Workbook

Sheet Info
H57: INT((누적 횟수*등급)10)+(INT(등급*등급(누적 횟수/1.14))10)
E58: 4 | F58: 4 | H58: =ROUNDDOWN((((F58*E58)*10)+(INT(E58*E58*(F58/1.14))*10))/100,0) -> 7

Sheet EquipmentList
A1: n_ID | B1: e_EquipmentType | C1: n_Grade | D1: n_MaxLv | E1: n_SetGroupID | F1: n_MainOtion | G1: n_SubOptionCount | H1: n_SubOtion1 | I1: n_SubOtion2 | J1: n_SubOtion3 | K1: n_SubOtion4
A2: 장비 ID | B2: 장비 타입 | C2: 장비 등급 | D2: 최대 강화레벨 | E2: 세트 효과 ID | F2: 메인 옵션 ID | G2: 보조 옵션 수 | H2: 보조 옵션1 ID | I2: 보조 옵션2 ID | J2: 보조 옵션3 ID | K2: 보조 옵션4 ID
A3: 30101 | B3: Weapon | C3: 1 | D3: 5 | E3: 0 | F3: 110001 | G3: 0 | H3: 0 | I3: 0 | J3: 0 | K3: 0 | N3: 장비 컨셉 | O3: 기본 능력치
A4: 30201 | B4: Weapon | C4: 2 | D4: 6 | E4: 0 | F4: 110002 | G4: 1 | H4: 120001 | I4: 0 | J4: 0 | K4: 0 | N4: 무기 | O4: 공격력 (Min~Max) | P4: 경험치% | Q4: 명중력 | R4: 치명타 확률 | S4: 치명타 피해
A5: 30301 | B5: Weapon | C5: 3 | D5: 7 | E5: 0 | F5: 110003 | G5: 2 | H5: 120001 | I5: 120002 | J5: 0 | K5: 0 | N5: 상의 | O5: 실드 | P5: 최대HP | Q5: 원거리 회피 | R5: 근거리 회피 | S5: 처치 보상 | T5: 희귀 스킬 확률 | U5: 근접 회피
A6: 30401 | B6: Weapon | C6: 4 | D6: 8 | E6: 0 | F6: 110004 | G6: 3 | H6: 120001 | I6: 120002 | J6: 120003 | K6: 0 | N6: 하의 | O6: 실드 | P6: 최대HP | Q6: 원거리 회피 | R6: 근거리 회피 | S6: 골드%
A7: 30501 | B7: Weapon | C7: 5 | D7: 9 | E7: 1 | F7: 110005 | G7: 4 | H7: 120001 | I7: 120002 | J7: 120003 | K7: 120004 | N7: 신발 | O7: 실드 | P7: 최대HP | Q7: 이동 속도% | R7: 근거리 회피 | S7: 원거리 회피
A8: 30502 | B8: Weapon | C8: 5 | D8: 10 | E8: 2 | F8: 110006 | G8: 4 | H8: 120001 | I8: 120002 | J8: 120003 | K8: 120004 | N8: 장갑 | O8: 실드 | P8: 경험치% | Q8: 골드% | R8: 희귀 스킬 확률 | S8: 치명타 피해 | T8: 치명타 확률
A9: 31101 | B9: SubWeapon | C9: 1 | D9: 5 | E9: 1 | F9: 110101 | G9: 0 | H9: 0 | I9: 0 | J9: 0 | K9: 0 | N9: 방패 | O9: 실드 | P9: 최대HP | Q9: 경험치% | R9: 치명타 피해 | S9: 치명타 확률
A10: 32101 | B10: ArmorTop | C10: 1 | D10: 5 | E10: 2 | F10: 110201 | G10: 0 | H10: 0 | I10: 0 | J10: 0 | K10: 0 | N10: 반지 | O10: - | P10: 생명력 | Q10: 골드% | R10: 경험치% | S10: 희귀 스킬 확률 | T10: 에픽 스킬 확률
A11: 33101 | B11: ArmorBottom | C11: 1 | D11: 5 | E11: 2 | F11: 110301 | G11: 0 | H11: 0 | I11: 0 | J11: 0 | K11: 0 | N11: 목걸이 | O11: - | P11: 최대 HP | Q11: 경험치% | R11: 골드% | S11: 희귀 스킬 확률 | T11: 에픽 스킬 확률 | U11: 치명타 확률
A12: 34101 | B12: Gloves | C12: 1 | D12: 5 | E12: 2 | F12: 110401 | G12: 0 | H12: 0 | I12: 0 | J12: 0 | K12: 0
A13: 35101 | B13: Shoes | C13: 1 | D13: 5 | E13: 2 | F13: 110501 | G13: 0 | H13: 0 | I13: 0 | J13: 0 | K13: 0
A14: 36101 | B14: Ring | C14: 1 | D14: 5 | E14: 2 | F14: 110601 | G14: 0 | H14: 0 | I14: 0 | J14: 0 | K14: 0
A15: 37101 | B15: Necklace | C15: 1 | D15: 5 | E15: 2 | F15: 110701 | G15: 0 | H15: 0 | I15: 0 | J15: 0 | K15: 0

Sheet EquipmentUpgrade
A1: n_EquipGrade | B1: n_MaxLv | C1: n_UpgradeGoodsID | D1: n_UpgradeDefaultPrice | E1: n_UpgradeIncreasePrice | F1: n_UpgradeMainStat | G1: n_UpgradeSubStat
A2: 장비 등급 | B2: 최대 강화레벨 | C2: 강화 시 필요 재화 ID | D2: 강화 기본 재화 요구량 | E2: 강화 단계 별 강화 가격 증가량 | F2: 업그레이드 시 기본 능력치 증가 레벨 | G2: 업그레이드 시 서브 능력치 증가 레벨
A3: 1 | B3: 3 | C3: 201 | D3: 100 | E3: 100 | F3: 2 | G3: 1
A4: 2 | B4: 3 | C4: 201 | D4: 250 | E4: 250 | F4: 4 | G4: 1
A5: 3 | B5: 5 | C5: 201 | D5: 500 | E5: 500 | F5: 6 | G5: 1
A6: 4 | B6: 5 | C6: 301 | D6: 10 | E6: 10 | F6: 8 | G6: 1
A7: 5 | B7: 9 | C7: 301 | D7: 25 | E7: 25 | F7: 10 | G7: 1
A8: 6 | B8: 9 | C8: 301 | D8: 50 | E8: 50 | F8: 12 | G8: 1

Sheet EquipmentSetOption
A1: n_SetId | B1: e_SetCondition1 | C1: e_SetStat1 | D1: s_SubStatValue1 | E1: e_SetCondition2 | F1: e_SetStat2 | G1: s_SetStatValue2 | H1: n_IncreaseMainStatSet2 | I1: n_IncreaseMainStatSet3 | J1: n_IncreaseMainStatSet4 | K1: n_IncreaseMainStatSet5 | L1: n_IncreaseMainStatSet6
A2: 세트 ID | B2: 세트1 발동 조건 | C2: 세트1 효과 | D2: 세트1 효과 값 | E2: 세트2 발동 조건 | F2: 세트2 효과 | G2: 세트2 효과 값 | H2: 2세트 달성 메인 스텟 증가 레벨 | I2: 3세트 달성 메인 스텟 증가 레벨 | J2: 4세트 달성 메인 스텟 증가 레벨 | K2: 5세트 달성 메인 스텟 증가 레벨 | L2: 6세트 달성 메인 스텟 증가 레벨
A3: 1 | B3: 3 | C3: None | D3: 0 | E3: 6 | F3: None | G3: 0 | H3: 1 | I3: 3 | J3: 5 | K3: 7 | L3: 10
A4: 2 | B4: 3 | C4: Cri | D4: 0.01 | E4: 6 | F4: Cri | G4: 0.01 | H4: 1 | I4: 3 | J4: 5 | K4: 7 | L4: 10
A5: 3 | B5: 3 | C5: Cri | D5: 0.02 | E5: 6 | F5: Cri | G5: 0.02 | H5: 1 | I5: 3 | J5: 5 | K5: 7 | L5: 10

Sheet GlobalValue
A1: s_ID | B1: n_Value | C1: exception
A2: _전역변수로 사용할 대상 | B2: 적용 값 | C2: 참고용 텍스트
A3: ReviveTime_byDefeatUI | B3: 0.5 | C3: 부활 시 무적(일시 정지) 시간
A4: FrontMonster_ProjectileSpeed | B4: 35 | C4: 전열 투사체 이동 속도
A5: BackMonster_ProjectileSpeed | B5: 45 | C5: 후열 몬스터 투사체 이동 속도
A6: PC_ProjectileSpeed | B6: 40 | C6: 피씨 투사체 이동속도
A7: DungeonMovement_DefaultTime | B7: 2.5 | C7: 던전 탐험 중 없음 패턴의 기본 이동 시간 초(s)
A8: CampFire_Default_HP | B8: 5 | C8: 캠프 파이어에서 제공하는 기본 HP 회복량
A9: CampFire_Default_Gold | B9: 10 | C9: 캠프 파이어에서 제공하는 기본 골드 지급량
A10: CampFire_Default_EXP | B10: 5 | C10: 캠프 파이어에서 제공하는 기본 EXP 지급량
A11: ProductDiscountUnitRate | B11: 10 | C11: 상인이 판매하는 상품의 할인율 단위(10 = 10%)

Sheet TreasureBoxConfig
A1: n_TreasureID | B1: n_TreasureGrade | C1: n_AppearRate | D1: s_TreasureImg | E1: f_LockRate | F1: f_TreasureMimicRate | G1: n_BattleMonsterID | H1: n_TreasureRewardID | I1: n_DestroyRewardID
A2: _상자 ID | B2: 상자 등급 | C2: 보물 상자 등장 가중치 | D2: 보물 상자 이미지 | E2: 잠김 상태 등장 확률 (100 = 100%) | F2: 미믹 등장 확률 (100=100%) | G2: 전투 변환 몬스터 ID | H2: 보상 랜덤백 ID | I2: 실패 보상 랜덤백 ID
A3: 101 | B3: 1 | C3: 1000 | D3: treasure_lock | E3: 5 | F3: 55 | G3: 14018 | H3: 91001 | I3: 90001
A4: 102 | B4: 1 | C4: 1000 | D4: treasure_lock | E4: 15 | F4: 55 | G4: 14018 | H4: 91002 | I4: 90001
A5: 103 | B5: 1 | C5: 1000 | D5: treasure_lock | E5: 30 | F5: 55 | G5: 14018 | H5: 91003 | I5: 90001
A6: 201 | B6: 2 | C6: 200 | D6: treasure_lock | E6: 60 | F6: 55 | G6: 14018 | H6: 91004 | I6: 90001
A7: 202 | B7: 2 | C7: 200 | D7: treasure_lock | E7: 100 | F7: 55 | G7: 14018 | H7: 91005 | I7: 90001
A8: 203 | B8: 2 | C8: 200 | D8: treasure_lock | E8: 100 | F8: 55 | G8: 14018 | H8: 91006 | I8: 90001
A9: 301 | B9: 3 | C9: 0 | D9: treasure_lock | E9: 100 | F9: 55 | G9: 14018 | H9: 91007 | I9: 90001
A10: 302 | B10: 3 | C10: 0 | D10: treasure_lock | E10: 100 | F10: 55 | G10: 14018 | H10: 91008 | I10: 90001
A11: 303 | B11: 3 | C11: 0 | D11: treasure_lock | E11: 100 | F11: 55 | G11: 14018 | H11: 91009 | I11: 90001
A12: 401 | B12: 4 | C12: 0 | D12: treasure_lock | E12: 100 | F12: 55 | G12: 14018 | H12: 91010 | I12: 90001
A13: 501 | B13: 5 | C13: 0 | D13: treasure_lock | E13: 100 | F13: 55 | G13: 14018 | H13: 91011 | I13: 90001

Sheet NPCConfig
A1: n_NPCID | B1: n_NPCGrade | C1: s_NPCImg | D1: n_AppearRate | E1: n_BattleMonsterID | F1: e_NPCType | G1: n_NPC​RequestItemID | H1: n_NPCRewardID | I1: n_AppearTalkID | J1: n_BattleTalkID | K1: n_LeaveTalkID | L1: n_NPC​RequestItemTalkID | M1: n_NPCGiftTalkID | N1: n_NoGiftTalkID | O1: n_StealFailTalkID | P1: n_DieTalkID
A2: _NPC ID | B2: NPC 등급 | C2: NPC 이미지 | D2: NPC 등장 가중치 | E2: 전투 변환 몬스터 ID | F2: NPC 성향 | G2: NPC 요구 아이템 랜덤백 ID | H2: NPC 랜덤 보상 랜덤백 ID | I2: 등장 대화 패턴 | J2: 전투 대화 패턴 | K2: NPC 떠날 때 대화 패턴 | L2: NPC 선물 감사 대화 패턴 | M2: NPC 선물 감사 대화 패턴 | N2: NPC 선물 거절 대화 패턴 | O2: NPC 훔치기 실패 대화 패턴 | P2: NPC 죽음 대화 패턴
A3: 101 | B3: 1 | C3: Npc_05 | D3: 500 | E3: 12015 | F3: Good | G3: 90002 | H3: 90003 | I3: 501010 | J3: =I3+10 -> 501020 | K3: =J3+10 -> 501030 | L3: 501040 | M3: 501050 | N3: 501060 | O3: 501070 | P3: 501080
A4: 102 | B4: 1 | C4: Npc_05 | D4: 400 | E4: 12015 | F4: Neutral | G4: 90002 | H4: 90003 | I4: =I3+1000 -> 502010 | J4: =I4+10 -> 502020 | K4: =J4+10 -> 502030 | L4: 502040 | M4: 502050 | N4: 502060 | O4: 502070 | P4: 502080
A5: 103 | B5: 1 | C5: Npc_05 | D5: 100 | E5: 12015 | F5: Evil | G5: 90002 | H5: 90003 | I5: =I4+1000 -> 503010 | J5: =I5+10 -> 503020 | K5: 503030 | L5: 503040 | M5: 503050 | N5: 503060 | O5: 503070 | P5: 503080
A6: 201 | B6: 2 | C6: Npc_05 | D6: 50 | E6: 12015 | F6: Good | G6: 90002 | H6: 90003 | I6: 504010 | J6: =I6+10 -> 504020 | K6: 504030 | L6: 504040 | M6: 504050 | N6: 504060 | O6: 504070 | P6: 504080
A7: 202 | B7: 2 | C7: Npc_05 | D7: 40 | E7: 12015 | F7: Neutral | G7: 90002 | H7: 90003 | I7: 505010 | J7: =I7+10 -> 505020 | K7: 505030 | L7: 505040 | M7: 505050 | N7: 505060 | O7: 505070 | P7: 505080
A8: 203 | B8: 2 | C8: Npc_05 | D8: 10 | E8: 12015 | F8: Evil | G8: 90002 | H8: 90003 | I8: 506010 | J8: =I8+10 -> 506020 | K8: 506030 | L8: 506040 | M8: 506050 | N8: 506060 | O8: 506070 | P8: 506080
A9: 301 | B9: 3 | C9: Npc_05 | D9: 0 | E9: 12015 | F9: Good | G9: 90002 | H9: 90003 | I9: 507010 | J9: =I9+10 -> 507020 | K9: 507030 | L9: 507040 | M9: 507050 | N9: 507060 | O9: 507070 | P9: 507080
A10: 302 | B10: 3 | C10: Npc_05 | D10: 0 | E10: 12015 | F10: Neutral | G10: 90002 | H10: 90003 | I10: 508010 | J10: =I10+10 -> 508020 | K10: 508030 | L10: 508040 | M10: 508050 | N10: 508060 | O10: 508070 | P10: 508080
A11: 303 | B11: 3 | C11: Npc_05 | D11: 0 | E11: 12015 | F11: Evil | G11: 90002 | H11: 90003 | I11: 509010 | J11: =I11+10 -> 509020 | K11: 509030 | L11: 509040 | M11: 509050 | N11: 509060 | O11: 509070 | P11: 509080

Sheet RewardRandomBag
A1: n_DropIndex | B1: n_ItemGrade | C1: e_ItemType | D1: n_ItemId | E1: n_DropRate | F1: n_DropCountMin | G1: n_DropCountMax | H1: exception
A2: _랜덤백 그룹 ID | B2: 아이템 등급 | C2: 아이템 타입 | D2: 아이템 ID | E2: 드랍 비중 | F2: 드랍 최소 수량 | G2: 드랍 최대 수량 | H2: 참고용 텍스트
A3: 90001 | B3: 1 | C3: Goods | D3: 201 | E3: 75 | F3: 1 | G3: 1
A4: 90001 | B4: 1 | C4: Goods | D4: 201 | E4: 20 | F4: 2 | G4: 2
A5: 90001 | B5: 1 | C5: Goods | D5: 201 | E5: 5 | F5: 3 | G5: 3
A6: 90002 | B6: 1 | C6: Goods | D6: 401 | E6: 75 | F6: 1 | G6: 1
A7: 90002 | B7: 1 | C7: Goods | D7: 401 | E7: 20 | F7: 2 | G7: 2
A8: 90002 | B8: 1 | C8: Goods | D8: 401 | E8: 5 | F8: 3 | G8: 3
A9: 90003 | B9: 1 | C9: Goods | D9: 201 | E9: 75 | F9: 100 | G9: 100
A10: 90003 | B10: 1 | C10: Goods | D10: 201 | E10: 20 | F10: 200 | G10: 200
A11: 90003 | B11: 1 | C11: Goods | D11: 201 | E11: 5 | F11: 300 | G11: 300
A12: 90004 | B12: 1 | C12: Goods | D12: 201 | E12: 75 | F12: 50 | G12: 50
A13: 90004 | B13: 1 | C13: Goods | D13: 201 | E13: 20 | F13: 60 | G13: 60
A14: 90004 | B14: 1 | C14: Goods | D14: 201 | E14: 5 | F14: 70 | G14: 70
A15: 90005 | B15: 1 | C15: Goods | D15: 201 | E15: 75 | F15: 150 | G15: 150
A16: 90005 | B16: 1 | C16: Goods | D16: 201 | E16: 20 | F16: 250 | G16: 250
A17: 90005 | B17: 1 | C17: Goods | D17: 201 | E17: 5 | F17: 350 | G17: 350
A18: =A3+1000 -> 91001 | B18: 1 | C18: Goods | D18: 201 | E18: 75 | F18: 500 | G18: 500
A19: =A6+1000 -> 91002 | B19: 1 | C19: Goods | D19: 201 | E19: 75 | F19: 550 | G19: 550
A20: =A9+1000 -> 91003 | B20: 1 | C20: Goods | D20: 201 | E20: 75 | F20: 600 | G20: 600
A21: =A13+1000 -> 91004 | B21: 1 | C21: Goods | D21: 201 | E21: 20 | F21: 777 | G21: 777
A22: =A17+1000 -> 91005 | B22: 1 | C22: Goods | D22: 201 | E22: 5 | F22: 888 | G22: 888

Sheet MerchantConfig
A1: n_MerchantID | B1: n_MerchantGrade | C1: s_MerchantImg | D1: n_AppearRate | E1: n_BattleMonsterID | F1: n_ProductRandomBagID | G1: f_MerchantSaleMin | H1: f_MerchantSaleMax | I1: n_AppearTalkID | J1: n_BattleTalkID | K1: n_LeaveTalkID | L1: n_SalesTalkID | M1: n_SoldOutTalkID | N1: n_NoPurchaseTalkID | O1: n_StealFailTalkID | P1: n_DieTalkID
A2: _상인 ID | B2: 상인 등급 | C2: _상인 이미지 | D2: 상인 등장 가중치 | E2: 전투 변환 몬스터 ID | F2: 판매할 상품 ID | G2: 최소 할인율(기본 할인율) | H2: 최대 할인율 | I2: 등장 대화 패턴 | J2: 전투 대화 패턴 | K2: 상인 떠날 때 대화 패턴 | L2: 상품 판매 중 대화 패턴 | M2: 상품 구입 시 대화 패턴 | N2: 상품 구입 안함 대화 패턴 | O2: 훔치기 실패 대화 패턴 | P2: 상인 죽음 대화 패턴
A3: 101 | B3: 1 | C3: Trader_01 | D3: 100 | E3: 12014 | F3: 90002 | G3: 30 | H3: 70 | I3: 601010 | J3: =I3+10 -> 601020 | K3: =J3+10 -> 601030 | L3: 601040 | M3: 601050 | N3: 601060 | O3: 601070 | P3: 601080
A4: 102 | B4: 1 | C4: Trader_01 | D4: 100 | E4: 12014 | F4: 90002 | G4: 30 | H4: 70 | I4: =I3+1000 -> 602010 | J4: =I4+10 -> 602020 | K4: 602030 | L4: 602040 | M4: 602050 | N4: 602060 | O4: 602070 | P4: 602080
A5: 103 | B5: 1 | C5: Trader_01 | D5: 100 | E5: 12014 | F5: 90002 | G5: 30 | H5: 70 | I5: =I4+1000 -> 603010 | J5: =I5+10 -> 603020 | K5: 603030 | L5: 603040 | M5: 603050 | N5: 603060 | O5: 603070 | P5: 603080
A6: 201 | B6: 2 | C6: Trader_01 | D6: 0 | E6: 12014 | F6: 90002 | G6: 30 | H6: 70 | I6: 604010 | J6: 604020 | K6: 604030 | L6: 604040 | M6: 604050 | N6: 604060 | O6: 604070 | P6: 604080
A7: 202 | B7: 2 | C7: Trader_01 | D7: 0 | E7: 12014 | F7: 90002 | G7: 30 | H7: 70 | I7: 605010 | J7: 605020 | K7: 605030 | L7: 605040 | M7: 605050 | N7: 605060 | O7: 605070 | P7: 605080
A8: 203 | B8: 2 | C8: Trader_01 | D8: 0 | E8: 12014 | F8: 90002 | G8: 30 | H8: 70 | I8: 606010 | J8: 606020 | K8: 606030 | L8: 606040 | M8: 606050 | N8: 606060 | O8: 606070 | P8: 606080
A9: 301 | B9: 3 | C9: Trader_01 | D9: 0 | E9: 12014 | F9: 90002 | G9: 30 | H9: 70 | I9: 607010 | J9: 607020 | K9: 607030 | L9: 607040 | M9: 607050 | N9: 607060 | O9: 607070 | P9: 607080
A10: 302 | B10: 3 | C10: Trader_01 | D10: 0 | E10: 12014 | F10: 90002 | G10: 30 | H10: 70 | I10: 608010 | J10: 608020 | K10: 608030 | L10: 608040 | M10: 608050 | N10: 608060 | O10: 608070 | P10: 608080
A11: 303 | B11: 3 | C11: Trader_01 | D11: 0 | E11: 12014 | F11: 90002 | G11: 30 | H11: 70 | I11: 609010 | J11: 609020 | K11: 609030 | L11: 609040 | M11: 609050 | N11: 609060 | O11: 609070 | P11: 609080

Sheet SanctuaryConfig
A1: s_SanctuaryType | B1: e_SanctuaryType | C1: s_MineImg | D1: n_AppearRate | E1: n_BuffDesc | F1: n_BuffOptionID
A2: _맵툴 성소 표기 문구 | B2: 성소 구분 | C2: 성소 이미지 | D2: 성소 등장 가중치 | E2: 버프 효과 발생 시 등장 문구 | F2: 버프 효과 ID
A3: 회복의 성소 | B3: Sanctuary | C3: sanctuary4 | D3: 0 | E3: 40001 | F3: 22001 | G3: 즉시 모든 생명력과 보호막을 회복한다.
A4: 성장의 성소 | B4: Sanctuary | C4: sanctuary7 | D4: 0 | E4: 40002 | F4: 22002 | G4: 남은 경험치에 관계 없이 즉시 레벨 업을 한다.
A5: 부활의 성소 | B5: Sanctuary | C5: sanctuary0 | D5: 0 | E5: 40003 | F5: 22003 | G5: 죽었을 경우 부활 할 수 있는 버프가 1회 추가 된다.
A6: 스킬의 성소 | B6: Sanctuary | C6: sanctuary3 | D6: 0 | E6: 40004 | F6: 22004 | G6: 랜덤 스킬 1개를 즉시 획득한다. (※선택지 없음)
A7: 지식의 성소 | B7: Sanctuary | C7: sanctuary7 | D7: 0 | E7: 40005 | F7: 22005 | G7: 획득 가능한 모든 경험치가 2배가 된다.
A8: 재물의 성소 | B8: Sanctuary | C8: sanctuary2 | D8: 0 | E8: 40006 | F8: 22006 | G8: 획득 가능한 모든 골드가 2배가 된다.
A9: 영혼의 성소 | B9: Sanctuary | C9: sanctuary0 | D9: 0 | E9: 40007 | F9: 22007 | G9: 즉시 영혼 재화를 랜덤 획득한다.
A10: 황금의 성소 | B10: Sanctuary | C10: sanctuary6 | D10: 0 | E10: 40008 | F10: 22008 | G10: 즉시 대량의 골드를 획득한다.
A11: 무적의 성소 | B11: Sanctuary | C11: sanctuary0 | D11: 0 | E11: 40009 | F11: 22009 | G11: 일정 시간 무적 상태가 된다.
A12: 치유의 샘 | B12: Spring_Heal | C12: sanctuary4 | D12: 100 | E12: 40010 | F12: 23001 | G12: 약간의 생명력을 회복한다.
A13: 경험의 샘 | B13: Spring_Exp | C13: sanctuary10 | D13: 100 | E13: 40011 | F13: 23002 | G13: 약간의 경험치를 획득한다.
A14: 보호의 샘 | B14: Spring_Shield | C14: sanctuary11 | D14: 100 | E14: 40012 | F14: 23003 | G14: 약간의 보호막이 회복된다.

Sheet RandomPatternConfig
A1: n_RandomPatternID | B1: s_RandomPatternID | C1: n_PatternRate | D1: n_NothingRate | E1: n_MonsterRate | F1: n_MonsterLimitCount | G1: n_BuffDebuffRate | H1: n_BuffDebuffLimitCount | I1: n_MerchantRate | J1: n_MerchantLimitCount | K1: n_TreasureRate | L1: n_TreasureLimitCount | M1: n_NPCRate | N1: n_NPCLimitCount | O1: n_MineRate | P1: f_MineLimitCount | Q1: f_TwoWayRate | R1: f_TwoWayLimitCount
A2: _랜덤 패턴 고유 ID | B2: 맵툴 표기 문구 | C2: 패턴 발생 비중 | D2: 없음 발생 비중 | E2: 몬스터 발생 비중 | F2: 최대 발생 제한 횟수 | G2: 버프 패턴 발생 비중 | H2: 최대 발생 제한 횟수 | I2: 상인 패턴 발생 비중 | J2: 최대 발생 제한 횟수 | K2: 보물 상자 등장 비중 | L2: 최대 발생 제한 횟수 | M2: NPC 발생 비중 | N2: 최대 발생 제한 횟수 | O2: 성소 발생 비중 | P2: 최대 발생 비중 | Q2: 갈림길 발생 비중 | R2: 최대 발생 제한 횟수
A3: 1 | B3: 랜덤 (기본) | C3: 10000 | D3: 6000 | E3: 3000 | F3: 30 | G3: 200 | H3: 2 | I3: 30 | J3: 1 | K3: 40 | L3: 1 | M3: 30 | N3: 1 | O3: 500 | P3: 1 | Q3: 200 | R3: 1
A4: 2 | B4: 랜덤 (많은 상인) | C4: 0 | D4: 8000 | E4: 800 | F4: 2 | G4: 200 | H4: 2 | I4: 230 | J4: 2 | K4: 40 | L4: 1 | M4: 30 | N4: 1 | O4: 500 | P4: 1 | Q4: 200 | R4: 1
A5: 3 | B5: 랜덤 (많은 상자) | C5: 0 | D5: 8000 | E5: 800 | F5: 1 | G5: 200 | H5: 2 | I5: 30 | J5: 1 | K5: 240 | L5: 2 | M5: 30 | N5: 1 | O5: 500 | P5: 1 | Q5: 200 | R5: 1
A6: 4 | B6: 랜덤 (많은 몬스터) | C6: 0 | D6: 7000 | E6: 2000 | F6: 3 | G6: 200 | H6: 0 | I6: 30 | J6: 1 | K6: 40 | L6: 1 | M6: 30 | N6: 1 | O6: 500 | P6: 1 | Q6: 200 | R6: 1

Sheet WorldMapConfig
A1: n_StageID | B1: n_StageName | C1: s_StageDiorama | D1: s_StageBg | E1: s_StageBGM | F1: n_ExtraRandombag
A2: _월드맵 장소 별 고유 ID | B2: UI에 표기 될 장소 명칭 | C2: 월드맵에 배치 될 디오라마 이미지 | D2: UI에 사용 될 BG 이미지 | E2: 스테이지에 사용 될 BGM | F2: 이벤트에 사용 될 추가 전리품 랜덤백
A3: 1 | B3: 9001 | D3: map_01 | F3: 90005
A4: 2 | B4: 9002 | D4: map_02 | F4: 90005
A5: 3 | B5: 9003 | D5: map_03 | F5: 90005
A6: 4 | B6: 9004 | D6: map_04 | F6: 90005
A7: 5 | B7: 9005 | D7: map_05 | F7: 90005
A8: 6 | B8: 9006 | D8: map_06 | F8: 90005
A9: 7 | B9: 9007 | D9: map_07 | F9: 90005
A10: 8 | B10: 9008 | D10: map_08 | F10: 90005
A11: 9 | B11: 9009 | D11: map_09 | F11: 90005
A12: 10 | B12: 9010 | D12: map_10 | F12: 90005
A13: 11 | B13: 9011 | D13: map_01 | F13: 90005
A14: 12 | B14: 9012 | D14: map_02 | F14: 90005
A15: 13 | B15: 9013 | D15: map_03 | F15: 90005
A16: 14 | B16: 9014 | D16: map_04 | F16: 90005
A17: 15 | B17: 9015 | D17: map_05 | F17: 90005
A18: 16 | B18: 9016 | D18: map_06 | F18: 90005
A19: 17 | B19: 9017 | D19: map_07 | F19: 90005
A20: 18 | B20: 9018 | D20: map_08 | F20: 90005
A21: 19 | B21: 9019 | D21: map_09 | F21: 90005
A22: 20 | B22: 9020 | D22: map_10 | F22: 90005
A23: 21 | B23: 9021 | D23: map_01 | F23: 90005

Sheet ApprearMonsterPattern
A1: n_AppearMonserGroup | B1: n_MonsterID | C1: n_AppearRate
A2: _월드맵 장소 별 고유 ID | B2: 등장 몬스터 ID | C2: 등장 몬스터 가중치 | E2: 몬스터 이름 | F2: 몬스터 타입 | G2: LV 컨셉 | J2: ID | K2: 몬스터 이름 | L2: 타입 | M2: LV
A3: 10101 | B3: 14001 | C3: 100 | E3: 놀1 | F3: 수인형 몬스터 | G3: 1 | J3: 11001 | K3: 놀1 | L3: 수인형 몬스터 | M3: 1 | N3: =_xlfn.TEXTJOIN(",",TRUE,_xlfn.UNIQUE(_xlfn._xlws.FILTER($B$3:$B$100,$A$3:$A$100=A6,""))) -> 14001,14013,14014,11007
A4: 10101 | B4: 14002 | C4: 100 | E4: 놀2 | F4: 수인형 몬스터 | G4: 1 | J4: 11002 | K4: 놀2 | L4: 수인형 몬스터 | M4: 1
A5: 10101 | B5: 14013 | C5: 100 | E5: 놀아처2 | F5: 수인형 몬스터 | G5: 1 | J5: 11007 | K5: 놀아처2 | L5: 수인형 몬스터 | M5: 1
A6: 10102 | B6: 14001 | C6: 100 | E6: 펑거스 | F6: 마법 생물 | G6: 1 | J6: 14001 | K6: 펑거스 | L6: 마법 생물 | M6: 1
A7: 10102 | B7: 14013 | C7: 100 | E7: 동굴 박쥐 | F7: 마법 생물 | G7: 1 | J7: 14002 | K7: 동굴 박쥐 | L7: 마법 생물 | M7: 1
A8: 10102 | B8: 14014 | C8: 100 | E8: 동굴쥐1 | F8: 마법 생물 | G8: 1 | J8: 14013 | K8: 동굴쥐1 | L8: 마법 생물 | M8: 1
A9: 10102 | B9: 11007 | C9: 100 | E9: 미믹 | F9: 마법 생물 | G9: 1 | J9: 14018 | K9: 미믹 | L9: 마법 생물 | M9: 1
A10: 10103 | B10: 14014 | C10: 100 | E10: 놀3 | F10: 수인형 몬스터 | G10: 2 | J10: 11003 | K10: 놀3 | L10: 수인형 몬스터 | M10: 2
A11: 10103 | B11: 11001 | C11: 100 | E11: 놀강도3 | F11: 수인형 몬스터 | G11: 2 | J11: 11005 | K11: 놀강도3 | L11: 수인형 몬스터 | M11: 2
A12: 10103 | B12: 11002 | C12: 100 | E12: 만드레고라 | F12: 마법 생물 | G12: 2 | H12: 1 | J12: 14003 | K12: 만드레고라 | L12: 마법 생물 | M12: 2
A13: 10103 | B13: 11007 | C13: 100 | E13: 맹독사2 | F13: 마법 생물 | G13: 2 | J13: 14017 | K13: 맹독사2 | L13: 마법 생물 | M13: 2
A14: 10104 | B14: 11001 | C14: 100 | E14: 슬라임1 | F14: 마법 생물 | G14: 2 | J14: 14021 | K14: 슬라임1 | L14: 마법 생물 | M14: 2
A15: 10104 | B15: 11002 | C15: 100 | E15: 임프2 | F15: 마법 생물 | G15: 2 | J15: 14024 | K15: 임프2 | L15: 마법 생물 | M15: 2
A16: 10104 | B16: 11007 | C16: 100 | E16: 놀아처3 | F16: 수인형 몬스터 | G16: 3 | J16: 11008 | K16: 놀아처3 | L16: 수인형 몬스터 | M16: 3
A17: 10104 | B17: 14003 | C17: 100 | E17: 미노타우로스 도살자1 | F17: 수인형 몬스터 | G17: 3 | J17: 11013 | K17: 미노타우로스 도살자1 | L17: 수인형 몬스터 | M17: 3
A18: 10104 | B18: 11003 | C18: 100 | E18: 트롤2 | F18: 수인형 몬스터 | G18: 3 | J18: 11030 | K18: 트롤2 | L18: 수인형 몬스터 | M18: 3
A19: 10201 | B19: 11001 | C19: 100 | E19: 트롤3 | F19: 수인형 몬스터 | G19: 3 | J19: 11031 | K19: 트롤3 | L19: 수인형 몬스터 | M19: 3
A20: 10201 | B20: 11002 | C20: 100 | E20: 동굴쥐2 | F20: 마법 생물 | G20: 3 | J20: 14014 | K20: 동굴쥐2 | L20: 마법 생물 | M20: 3
A21: 10201 | B21: 11003 | C21: 100 | E21: 슬라임2 | F21: 마법 생물 | G21: 3 | J21: 14022 | K21: 슬라임2 | L21: 마법 생물 | M21: 3
A22: 10201 | B22: 11005 | C22: 100 | E22: 미노타우르스 광전사1 | F22: 수인형 몬스터 | G22: 4 | J22: 11009 | K22: 미노타우르스 광전사1 | L22: 수인형 몬스터 | M22: 4
A23: 10201 | B23: 11008 | C23: 100 | E23: 싸이클롭스2 | F23: 수인형 몬스터 | G23: 4 | J23: 11025 | K23: 싸이클롭스2 | L23: 수인형 몬스터 | M23: 4
A24: 10202 | B24: 14003 | C24: 100 | E24: 놀강도4 | F24: 수인형 몬스터 | G24: 5 | J24: 11006 | K24: 놀강도4 | L24: 수인형 몬스터 | M24: 5
A25: 10202 | B25: 14024 | C25: 100 | E25: 트롤1 | F25: 수인형 몬스터 | G25: 5 | J25: 11029 | K25: 트롤1 | L25: 수인형 몬스터 | M25: 5
A26: 10202 | B26: 14013 | C26: 100 | E26: 오크 궁수1 | F26: 인간형 몬스터 | G26: 5 | J26: 12028 | K26: 오크 궁수1 | L26: 인간형 몬스터 | M26: 5
A27: 10202 | B27: 14014 | C27: 100 | E27: 오크1 | F27: 인간형 몬스터 | G27: 5 | J27: 12032 | K27: 오크1 | L27: 인간형 몬스터 | M27: 5
A28: 10203 | B28: 14021 | C28: 100 | E28: 사악한 악령1 | F28: 언데드형 몬스터 | G28: 5 | J28: 13014 | K28: 사악한 악령1 | L28: 언데드형 몬스터 | M28: 5
A29: 10203 | B29: 14022 | C29: 100 | E29: 놀강도1 | F29: 수인형 몬스터 | G29: 6 | J29: 11004 | K29: 놀강도1 | L29: 수인형 몬스터 | M29: 6
A30: 10203 | B30: 14017 | C30: 100 | E30: 오크 마법사2 | F30: 인간형 몬스터 | G30: 6 | J30: 12031 | K30: 오크 마법사2 | L30: 인간형 몬스터 | M30: 6
A31: 10203 | B31: 14002 | C31: 100 | E31: 오크2 | F31: 인간형 몬스터 | G31: 6 | H31: 2 | J31: 12033 | K31: 오크2 | L31: 인간형 몬스터 | M31: 6
A32: 10203 | B32: 14003 | C32: 100 | E32: 데스웜 | F32: 마법 생물 | G32: 6 | J32: 14012 | K32: 데스웜 | L32: 마법 생물 | M32: 6
A33: 10204 | B33: 11030 | C33: 100 | E33: 싸이클롭스1 | F33: 수인형 몬스터 | G33: 7 | J33: 11024 | K33: 싸이클롭스1 | L33: 수인형 몬스터 | M33: 7
A34: 10204 | B34: 11031 | C34: 100 | E34: 오크 궁수2 | F34: 인간형 몬스터 | G34: 7 | J34: 12029 | K34: 오크 궁수2 | L34: 인간형 몬스터 | M34: 7
A35: 10204 | B35: 11005 | C35: 100 | E35: 오크 마법사1 | F35: 인간형 몬스터 | G35: 7 | J35: 12030 | K35: 오크 마법사1 | L35: 인간형 몬스터 | M35: 7
A36: 10204 | B36: 11008 | C36: 100 | E36: 미노타우르스 광전사4 | F36: 수인형 몬스터 | G36: 8 | J36: 11012 | K36: 미노타우르스 광전사4 | L36: 수인형 몬스터 | M36: 8
A37: 10204 | B37: 14024 | C37: 100 | E37: 미노타우로스 도살자2 | F37: 수인형 몬스터 | G37: 8 | J37: 11014 | K37: 미노타우로스 도살자2 | L37: 수인형 몬스터 | M37: 8
A38: 10205 | B38: 11013 | C38: 100 | E38: 미노타우르스 챔피언4 | F38: 수인형 몬스터 | G38: 8 | J38: 11018 | K38: 미노타우르스 챔피언4 | L38: 수인형 몬스터 | M38: 8
A39: 10205 | B39: 14024 | C39: 100 | E39: 미노타우르스 챔피언5 | F39: 수인형 몬스터 | G39: 8 | J39: 11019 | K39: 미노타우르스 챔피언5 | L39: 수인형 몬스터 | M39: 8
A40: 10205 | B40: 14021 | C40: 100 | E40: 활든 강도2 | F40: 인간형 몬스터 | G40: 8 | J40: 12036 | K40: 활든 강도2 | L40: 인간형 몬스터 | M40: 8
A41: 10205 | B41: 14002 | C41: 100 | E41: 버그베어2 | F41: 수인형 몬스터 | G41: 9 | J41: 11021 | K41: 버그베어2 | L41: 수인형 몬스터 | M41: 9
A42: 10205 | B42: 14017 | C42: 100 | E42: 버그베어3 | F42: 수인형 몬스터 | G42: 9 | J42: 11022 | K42: 버그베어3 | L42: 수인형 몬스터 | M42: 9
A43: 10205 | B43: 14001 | C43: 100 | E43: 버그베어4 | F43: 수인형 몬스터 | G43: 9 | J43: 11023 | K43: 버그베어4 | L43: 수인형 몬스터 | M43: 9
A44: 10206 | B44: 14022 | C44: 100 | E44: 다크엘프 마법사1 | F44: 인간형 몬스터 | G44: 9 | J44: 12017 | K44: 다크엘프 마법사1 | L44: 인간형 몬스터 | M44: 9
A45: 10206 | B45: 11013 | C45: 100 | E45: 연쇄살인마1 | F45: 인간형 몬스터 | G45: 9 | J45: 12025 | K45: 연쇄살인마1 | L45: 인간형 몬스터 | M45: 9
A46: 10206 | B46: 11030 | C46: 100 | E46: 미노타우르스 광전사2 | F46: 수인형 몬스터 | G46: 10 | J46: 11010 | K46: 미노타우르스 광전사2 | L46: 수인형 몬스터 | M46: 10
A47: 10206 | B47: 11031 | C47: 100 | E47: 미노타우르스 광전사3 | F47: 수인형 몬스터 | G47: 10 | J47: 11011 | K47: 미노타우르스 광전사3 | L47: 수인형 몬스터 | M47: 10
A48: 10206 | B48: 11008 | C48: 100 | E48: 살인 청부업자3 | F48: 인간형 몬스터 | G48: 10 | H48: 3 | J48: 12024 | K48: 살인 청부업자3 | L48: 인간형 몬스터 | M48: 10
A49: 20301 | B49: 11006 | C49: 100 | E49: 활든 강도3 | F49: 인간형 몬스터 | G49: 10 | J49: 12037 | K49: 활든 강도3 | L49: 인간형 몬스터 | M49: 10
A50: 20301 | B50: 12032 | C50: 100 | E50: 미노타우르스 챔피언3 | F50: 수인형 몬스터 | G50: 11 | J50: 11017 | K50: 미노타우르스 챔피언3 | L50: 수인형 몬스터 | M50: 11
A51: 20301 | B51: 12028 | C51: 100 | E51: 광전사6 | F51: 인간형 몬스터 | G51: 11 | J51: 12013 | K51: 광전사6 | L51: 인간형 몬스터 | M51: 11
A52: 20301 | B52: 14012 | C52: 100 | E52: 살인 청부업자2 | F52: 인간형 몬스터 | G52: 11 | J52: 12023 | K52: 살인 청부업자2 | L52: 인간형 몬스터 | M52: 11
A53: 20302 | B53: 12032 | C53: 100 | E53: 연쇄살인마3 | F53: 인간형 몬스터 | G53: 11 | J53: 12027 | K53: 연쇄살인마3 | L53: 인간형 몬스터 | M53: 11
A54: 20302 | B54: 12033 | C54: 100 | E54: 악마 광신자2 | F54: 언데드형 몬스터 | G54: 11 | J54: 13017 | K54: 악마 광신자2 | L54: 언데드형 몬스터 | M54: 11
A55: 20302 | B55: 12029 | C55: 100 | E55: 고블린1 | F55: 인간형 몬스터 | G55: 12 | J55: 12004 | K55: 고블린1 | L55: 인간형 몬스터 | M55: 12
A56: 20302 | B56: 11006 | C56: 100 | E56: 고블린 라이더1 | F56: 인간형 몬스터 | G56: 12 | J56: 12005 | K56: 고블린 라이더1 | L56: 인간형 몬스터 | M56: 12
A57: 20303 | B57: 12032 | C57: 100 | E57: 고블린 라이더2 | F57: 인간형 몬스터 | G57: 12 | J57: 12006 | K57: 고블린 라이더2 | L57: 인간형 몬스터 | M57: 12
A58: 20303 | B58: 12033 | C58: 100 | E58: 고블린 아처1 | F58: 인간형 몬스터 | G58: 12 | J58: 12007 | K58: 고블린 아처1 | L58: 인간형 몬스터 | M58: 12
A59: 20303 | B59: 12030 | C59: 100 | E59: 네크로멘서1 | F59: 언데드형 몬스터 | G59: 13 | J59: 13001 | K59: 네크로멘서1 | L59: 언데드형 몬스터 | M59: 13
A60: 20303 | B60: 12031 | C60: 100 | E60: 데스1 | F60: 언데드형 몬스터 | G60: 13 | J60: 13004 | K60: 데스1 | L60: 언데드형 몬스터 | M60: 13
A61: 20303 | B61: 12036 | C61: 100 | E61: 머미1 | F61: 언데드형 몬스터 | G61: 13 | J61: 13007 | K61: 머미1 | L61: 언데드형 몬스터 | M61: 13
A62: 20304 | B62: 12033 | C62: 100 | E62: 사악한 악령2 | F62: 언데드형 몬스터 | G62: 13 | J62: 13015 | K62: 사악한 악령2 | L62: 언데드형 몬스터 | M62: 13
A63: 20304 | B63: 12028 | C63: 100 | E63: 임프 사역마1 | F63: 언데드형 몬스터 | G63: 13 | J63: 13023 | K63: 임프 사역마1 | L63: 언데드형 몬스터 | M63: 13
A64: 20304 | B64: 12029 | C64: 100 | E64: 네크로멘서2 | F64: 언데드형 몬스터 | G64: 14 | J64: 13002 | K64: 네크로멘서2 | L64: 언데드형 몬스터 | M64: 14
A65: 20304 | B65: 11006 | C65: 100 | E65: 데스2 | F65: 언데드형 몬스터 | G65: 14 | J65: 13005 | K65: 데스2 | L65: 언데드형 몬스터 | M65: 14
A66: 20304 | B66: 13014 | C66: 100 | E66: 머미2 | F66: 언데드형 몬스터 | G66: 14 | J66: 13008 | K66: 머미2 | L66: 언데드형 몬스터 | M66: 14
A67: 20305 | B67: 12036 | C67: 100 | E67: 타락한 기사2 | F67: 언데드형 몬스터 | G67: 14 | H67: 4 | J67: 13026 | K67: 타락한 기사2 | L67: 언데드형 몬스터 | M67: 14
A68: 20305 | B68: 13014 | C68: 100 | E68: 광전사1 | F68: 인간형 몬스터 | G68: 15 | J68: 12008 | K68: 광전사1 | L68: 인간형 몬스터 | M68: 15
A69: 20305 | B69: 14012 | C69: 100 | E69: 광전사3 | F69: 인간형 몬스터 | G69: 15 | J69: 12010 | K69: 광전사3 | L69: 인간형 몬스터 | M69: 15
A70: 20305 | B70: 11009 | C70: 100 | E70: 광전사5 | F70: 인간형 몬스터 | G70: 15 | J70: 12012 | K70: 광전사5 | L70: 인간형 몬스터 | M70: 15
A71: 20305 | B71: 11014 | C71: 100 | E71: 네크로멘서3 | F71: 언데드형 몬스터 | G71: 15 | J71: 13003 | K71: 네크로멘서3 | L71: 언데드형 몬스터 | M71: 15
A72: 20401 | B72: 11009 | C72: 100 | E72: 악마 광신자4 | F72: 언데드형 몬스터 | G72: 15 | J72: 13019 | K72: 악마 광신자4 | L72: 언데드형 몬스터 | M72: 15
A73: 20401 | B73: 12029 | C73: 100 | E73: 싸이클롭스3 | F73: 수인형 몬스터 | G73: 16 | J73: 11026 | K73: 싸이클롭스3 | L73: 수인형 몬스터 | M73: 16
A74: 20401 | B74: 12030 | C74: 100 | E74: 해골 궁수 | F74: 언데드형 몬스터 | G74: 16 | J74: 13028 | K74: 해골 궁수 | L74: 언데드형 몬스터 | M74: 16
A75: 20401 | B75: 12031 | C75: 100 | E75: 해골 근위병 | F75: 언데드형 몬스터 | G75: 16 | J75: 13029 | K75: 해골 근위병 | L75: 언데드형 몬스터 | M75: 16
A76: 20401 | B76: 11029 | C76: 100 | E76: 해골 기사1 | F76: 언데드형 몬스터 | G76: 16 | J76: 13031 | K76: 해골 기사1 | L76: 언데드형 몬스터 | M76: 16
A77: 20402 | B77: 12036 | C77: 100 | E77: 임프 마법사1 | F77: 마법 생물 | G77: 16 | J77: 14027 | K77: 임프 마법사1 | L77: 마법 생물 | M77: 16
A78: 20402 | B78: 14012 | C78: 100 | E78: 예티1 | F78: 수인형 몬스터 | G78: 17 | J78: 11027 | K78: 예티1 | L78: 수인형 몬스터 | M78: 17
A79: 20402 | B79: 13014 | C79: 100 | E79: 예티2 | F79: 수인형 몬스터 | G79: 17 | J79: 11028 | K79: 예티2 | L79: 수인형 몬스터 | M79: 17
A80: 20402 | B80: 11014 | C80: 100 | E80: 다크엘프 마법사4 | F80: 인간형 몬스터 | G80: 17 | J80: 12019 | K80: 다크엘프 마법사4 | L80: 인간형 몬스터 | M80: 17
A81: 20402 | B81: 11024 | C81: 100 | E81: 도살자1 | F81: 인간형 몬스터 | G81: 17 | J81: 12020 | K81: 도살자1 | L81: 인간형 몬스터 | M81: 17
A82: 20403 | B82: 11029 | C82: 100 | E82: 임프 사역마2 | F82: 언데드형 몬스터 | G82: 17 | J82: 13024 | K82: 임프 사역마2 | L82: 언데드형 몬스터 | M82: 17
A83: 20403 | B83: 11018 | C83: 100 | E83: 도살자2 | F83: 인간형 몬스터 | G83: 18 | J83: 12021 | K83: 도살자2 | L83: 인간형 몬스터 | M83: 18
A84: 20403 | B84: 11009 | C84: 100 | E84: 살인 청부업자1 | F84: 인간형 몬스터 | G84: 18 | J84: 12022 | K84: 살인 청부업자1 | L84: 인간형 몬스터 | M84: 18
A85: 20403 | B85: 12030 | C85: 100 | E85: 타락한 기사1 | F85: 언데드형 몬스터 | G85: 18 | J85: 13025 | K85: 타락한 기사1 | L85: 언데드형 몬스터 | M85: 18
A86: 20403 | B86: 11024 | C86: 100 | E86: 구울1 | F86: 마법 생물 | G86: 18 | J86: 14007 | K86: 구울1 | L86: 마법 생물 | M86: 18
A87: 20404 | B87: 11012 | C87: 100 | E87: 구울2 | F87: 마법 생물 | G87: 19 | J87: 14008 | K87: 구울2 | L87: 마법 생물 | M87: 19
A88: 20404 | B88: 11018 | C88: 100 | E88: 구울3 | F88: 마법 생물 | G88: 19 | H88: 5 | J88: 14009 | K88: 구울3 | L88: 마법 생물 | M88: 19
A89: 20404 | B89: 11019 | C89: 100 | E89: 다이어울프1 | F89: 마법 생물 | G89: 19 | J89: 14010 | K89: 다이어울프1 | L89: 마법 생물 | M89: 19
A90: 20404 | B90: 11025 | C90: 100 | E90: 다이어울프2 | F90: 마법 생물 | G90: 19 | J90: 14011 | K90: 다이어울프2 | L90: 마법 생물 | M90: 19
A91: 20404 | B91: 12028 | C91: 100 | E91: 임프 마법사3 | F91: 마법 생물 | G91: 19 | J91: 14029 | K91: 임프 마법사3 | L91: 마법 생물 | M91: 19
A92: 20404 | B92: 12029 | C92: 100 | E92: 임프 전사3 | F92: 마법 생물 | G92: 19 | J92: 14032 | K92: 임프 전사3 | L92: 마법 생물 | M92: 19
A93: 20405 | B93: 11012 | C93: 100 | E93: 임프1 | F93: 마법 생물 | G93: 20 | J93: 14023 | K93: 임프1 | L93: 마법 생물 | M93: 20
A94: 20405 | B94: 11029 | C94: 100 | E94: 임프3 | F94: 마법 생물 | G94: 20 | J94: 14025 | K94: 임프3 | L94: 마법 생물 | M94: 20
A95: 20405 | B95: 11018 | C95: 100 | E95: 임프 마법사4 | F95: 마법 생물 | G95: 20 | J95: 14030 | K95: 임프 마법사4 | L95: 마법 생물 | M95: 20
A96: 20405 | B96: 11019 | C96: 100 | E96: 임프 전사2 | F96: 마법 생물 | G96: 20 | J96: 14031 | K96: 임프 전사2 | L96: 마법 생물 | M96: 20
A97: 20405 | B97: 12031 | C97: 100 | E97: 흡혈귀1 | F97: 마법 생물 | G97: 20 | J97: 14034 | K97: 흡혈귀1 | L97: 마법 생물 | M97: 20
A98: 20406 | B98: 11014 | C98: 100 | E98: 해골 기사2 | F98: 언데드형 몬스터 | G98: 21 | J98: 13032 | K98: 해골 기사2 | L98: 언데드형 몬스터 | M98: 21
A99: 20406 | B99: 11012 | C99: 100 | E99: 강도1 | F99: 인간형 몬스터 | G99: 22 | J99: 12001 | K99: 강도1 | L99: 인간형 몬스터 | M99: 22
A100: 20406 | B100: 12028 | C100: 100 | E100: 강도2 | F100: 인간형 몬스터 | G100: 22 | J100: 12002 | K100: 강도2 | L100: 인간형 몬스터 | M100: 22
A101: 20406 | B101: 11024 | C101: 100 | E101: 강도3 | F101: 인간형 몬스터 | G101: 22 | J101: 12003 | K101: 강도3 | L101: 인간형 몬스터 | M101: 22
A102: 20406 | B102: 11025 | C102: 100 | E102: 연쇄살인마2 | F102: 인간형 몬스터 | G102: 22 | J102: 12026 | K102: 연쇄살인마2 | L102: 인간형 몬스터 | M102: 22
A103: 20406 | B103: 11029 | C103: 100 | E103: 악마 추종자1 | F103: 언데드형 몬스터 | G103: 22 | J103: 13020 | K103: 악마 추종자1 | L103: 언데드형 몬스터 | M103: 22
A104: 20407 | B104: 11018 | C104: 100 | E104: 해골 법사 | F104: 언데드형 몬스터 | G104: 22 | J104: 13030 | K104: 해골 법사 | L104: 언데드형 몬스터 | M104: 22
A105: 20407 | B105: 11019 | C105: 100 | E105: 해골 기사3 | F105: 언데드형 몬스터 | G105: 22 | J105: 13033 | K105: 해골 기사3 | L105: 언데드형 몬스터 | M105: 22
A106: 20407 | B106: 11024 | C106: 100 | E106: 해골 기사4 | F106: 언데드형 몬스터 | G106: 22 | J106: 13034 | K106: 해골 기사4 | L106: 언데드형 몬스터 | M106: 22
A107: 20407 | B107: 11025 | C107: 100 | E107: 미노타우르스 챔피언1 | F107: 수인형 몬스터 | G107: 23 | J107: 11015 | K107: 미노타우르스 챔피언1 | L107: 수인형 몬스터 | M107: 23
A108: 20407 | B108: 12031 | C108: 100 | E108: 미노타우르스 챔피언2 | F108: 수인형 몬스터 | G108: 23 | J108: 11016 | K108: 미노타우르스 챔피언2 | L108: 수인형 몬스터 | M108: 23
A109: 20407 | B109: 12030 | C109: 100 | E109: 다크엘프 기사4 | F109: 인간형 몬스터 | G109: 23 | J109: 12016 | K109: 다크엘프 기사4 | L109: 인간형 몬스터 | M109: 23
A110: 30501 | B110: 12004 | C110: 100 | E110: 데스나이트2 | F110: 언데드형 몬스터 | G110: 23 | H110: 6 | J110: 13006 | K110: 데스나이트2 | L110: 언데드형 몬스터 | M110: 23
A111: 30501 | B111: 12007 | C111: 100 | E111: 악마 광신자3 | F111: 언데드형 몬스터 | G111: 23 | J111: 13018 | K111: 악마 광신자3 | L111: 언데드형 몬스터 | M111: 23
A112: 30501 | B112: 12024 | C112: 100 | E112: 무리안 | F112: 마법 생물 | G112: 23 | J112: 14005 | K112: 무리안 | L112: 마법 생물 | M112: 23
A113: 30501 | B113: 12013 | C113: 100 | E113: 버그베어1 | F113: 수인형 몬스터 | G113: 24 | J113: 11020 | K113: 버그베어1 | L113: 수인형 몬스터 | M113: 24
A114: 30501 | B114: 12006 | C114: 100 | E114: 광전사2 | F114: 인간형 몬스터 | G114: 24 | J114: 12009 | K114: 광전사2 | L114: 인간형 몬스터 | M114: 24
A115: 30502 | B115: 12004 | C115: 100 | E115: 광전사4 | F115: 인간형 몬스터 | G115: 24 | J115: 12011 | K115: 광전사4 | L115: 인간형 몬스터 | M115: 24
A116: 30502 | B116: 12005 | C116: 100 | E116: 다크엘프 마법사3 | F116: 인간형 몬스터 | G116: 24 | J116: 12018 | K116: 다크엘프 마법사3 | L116: 인간형 몬스터 | M116: 24
A117: 30502 | B117: 12007 | C117: 100 | E117: 오크 워리어1 | F117: 인간형 몬스터 | G117: 24 | J117: 12034 | K117: 오크 워리어1 | L117: 인간형 몬스터 | M117: 24
A118: 30502 | B118: 12006 | C118: 100 | E118: 활든 강도1 | F118: 인간형 몬스터 | G118: 24 | J118: 12035 | K118: 활든 강도1 | L118: 인간형 몬스터 | M118: 24
A119: 30503 | B119: 12013 | C119: 100 | E119: 다크엘프 기사2 | F119: 인간형 몬스터 | G119: 25 | J119: 12014 | K119: 다크엘프 기사2 | L119: 인간형 몬스터 | M119: 25
A120: 30503 | B120: 12024 | C120: 100 | E120: 다크엘프 기사3 | F120: 인간형 몬스터 | G120: 25 | J120: 12015 | K120: 다크엘프 기사3 | L120: 인간형 몬스터 | M120: 25
A121: 30503 | B121: 12023 | C121: 100 | E121: 머미3 | F121: 언데드형 몬스터 | G121: 25 | J121: 13009 | K121: 머미3 | L121: 언데드형 몬스터 | M121: 25
A122: 30503 | B122: 13017 | C122: 100 | E122: 바포메트1 | F122: 언데드형 몬스터 | G122: 25 | J122: 13010 | K122: 바포메트1 | L122: 언데드형 몬스터 | M122: 25
A123: 30503 | B123: 12027 | C123: 100 | E123: 맹독사1 | F123: 마법 생물 | G123: 25 | J123: 14016 | K123: 맹독사1 | L123: 마법 생물 | M123: 25
A124: 30504 | B124: 12004 | C124: 100 | E124: 스프리트 | F124: 마법 생물 | G124: 25 | J124: 14020 | K124: 스프리트 | L124: 마법 생물 | M124: 25
A125: 30504 | B125: 12005 | C125: 100 | E125: 바포메트4 | F125: 언데드형 몬스터 | G125: 26 | J125: 13012 | K125: 바포메트4 | L125: 언데드형 몬스터 | M125: 26
A126: 30504 | B126: 12007 | C126: 100 | E126: 악마 추종자2 | F126: 언데드형 몬스터 | G126: 26 | J126: 13021 | K126: 악마 추종자2 | L126: 언데드형 몬스터 | M126: 26
A127: 30504 | B127: 12027 | C127: 100 | E127: 악마 추종자3 | F127: 언데드형 몬스터 | G127: 26 | J127: 13022 | K127: 악마 추종자3 | L127: 언데드형 몬스터 | M127: 26
A128: 30504 | B128: 12025 | C128: 100 | E128: 타락한 기사3 | F128: 언데드형 몬스터 | G128: 26 | J128: 13027 | K128: 타락한 기사3 | L128: 언데드형 몬스터 | M128: 26
A129: 30505 | B129: 12004 | C129: 100 | E129: 임프4 | F129: 마법 생물 | G129: 26 | J129: 14026 | K129: 임프4 | L129: 마법 생물 | M129: 26
A130: 30505 | B130: 12006 | C130: 100 | E130: 켄타우로스 | F130: 마법 생물 | G130: 27 | J130: 14004 | K130: 켄타우로스 | L130: 마법 생물 | M130: 27
A131: 30505 | B131: 12037 | C131: 100 | E131: 타이가 | F131: 마법 생물 | G131: 27 | J131: 14006 | K131: 타이가 | L131: 마법 생물 | M131: 27
A132: 30505 | B132: 13017 | C132: 100 | E132: 리자드맨 | F132: 마법 생물 | G132: 27 | J132: 14015 | K132: 리자드맨 | L132: 마법 생물 | M132: 27
A133: 30505 | B133: 12013 | C133: 100 | E133: 셀로브 | F133: 마법 생물 | G133: 27 | H133: 7 | J133: 14019 | K133: 셀로브 | L133: 마법 생물 | M133: 27
A134: 30506 | B134: 12037 | C134: 100 | E134: 레드드래곤1 | F134: 거인 종족 | G134: 27 | J134: 15002 | K134: 레드드래곤1 | L134: 거인 종족 | M134: 27
A135: 30506 | B135: 12023 | C135: 100 | E135: 오우거3 | F135: 거인 종족 | G135: 27 | J135: 15012 | K135: 오우거3 | L135: 거인 종족 | M135: 27
A136: 30506 | B136: 12025 | C136: 100 | E136: 임프 마법사2 | F136: 마법 생물 | G136: 28 | J136: 14028 | K136: 임프 마법사2 | L136: 마법 생물 | M136: 28
A137: 30506 | B137: 12024 | C137: 100 | E137: 하피 | F137: 마법 생물 | G137: 28 | J137: 14033 | K137: 하피 | L137: 마법 생물 | M137: 28
A138: 30506 | B138: 12027 | C138: 100 | E138: 싸이 전사 | F138: 거인 종족 | G138: 29 | J138: 15001 | K138: 싸이 전사 | L138: 거인 종족 | M138: 28
A139: 30601 | B139: 12005 | C139: 100 | E139: 약탈꾼2 | F139: 거인 종족 | G139: 29 | J139: 15005 | K139: 약탈꾼2 | L139: 거인 종족 | M139: 28
A140: 30601 | B140: 12007 | C140: 100 | E140: 예티6 | F140: 거인 종족 | G140: 29 | J140: 15010 | K140: 예티6 | L140: 거인 종족 | M140: 28
A141: 30601 | B141: 12006 | C141: 100 | E141: 트롤 워리어2 | F141: 거인 종족 | G141: 29 | J141: 15015 | K141: 트롤 워리어2 | L141: 거인 종족 | M141: 28
A142: 30601 | B142: 13017 | C142: 100 | E142: 악마 광신자1 | F142: 언데드형 몬스터 | G142: 30 | J142: 13016 | K142: 악마 광신자1 | L142: 언데드형 몬스터 | M142: 29
A143: 30601 | B143: 12023 | C143: 100 | E143: 용암골렘1 | F143: 거인 종족 | G143: 30 | J143: 15013 | K143: 용암골렘1 | L143: 거인 종족 | M143: 29
A144: 30602 | B144: 11010 | C144: 100 | E144: 트롤 워리어1 | F144: 거인 종족 | G144: 30 | J144: 15014 | K144: 트롤 워리어1 | L144: 거인 종족 | M144: 29
A145: 30602 | B145: 12013 | C145: 100 | E145: 트롤 워리어3 | F145: 거인 종족 | G145: 30 | J145: 15016 | K145: 트롤 워리어3 | L145: 거인 종족 | M145: 29
A146: 30602 | B146: 12017 | C146: 100 | E146: 트롤 워리어5 | F146: 거인 종족 | G146: 30 | J146: 15017 | K146: 트롤 워리어5 | L146: 거인 종족 | M146: 29
A147: 30602 | B147: 12024 | C147: 100 | E147: 바포메트5 | F147: 언데드형 몬스터 | G147: 31 | J147: 13013 | K147: 바포메트5 | L147: 언데드형 몬스터 | M147: 30
A148: 30602 | B148: 12007 | C148: 100 | E148: 약탈꾼1 | F148: 거인 종족 | G148: 31 | J148: 15004 | K148: 약탈꾼1 | L148: 거인 종족 | M148: 30
A149: 30603 | B149: 11017 | C149: 100 | E149: 예티1 | F149: 거인 종족 | G149: 31 | J149: 15006 | K149: 예티1 | L149: 거인 종족 | M149: 30
A150: 30603 | B150: 11021 | C150: 100 | E150: 예티3 | F150: 거인 종족 | G150: 31 | J150: 15008 | K150: 예티3 | L150: 거인 종족 | M150: 30
A151: 30603 | B151: 11011 | C151: 100 | E151: 예티5 | F151: 거인 종족 | G151: 31 | H151: 8 | J151: 15009 | K151: 예티5 | L151: 거인 종족 | M151: 30
A152: 30603 | B152: 12027 | C152: 100 | E152: 오우거2 | F152: 거인 종족 | G152: 32 | J152: 15011 | K152: 오우거2 | L152: 거인 종족 | M152: 30
A153: 30603 | B153: 12017 | C153: 100 | E153: 바포메트3 | F153: 언데드형 몬스터 | G153: 32 | J153: 13011 | K153: 바포메트3 | L153: 언데드형 몬스터 | M153: 31
A154: 30603 | B154: 12025 | C154: 100 | E154: 레드드래곤2 | F154: 거인 종족 | G154: 32 | J154: 15003 | K154: 레드드래곤2 | L154: 거인 종족 | M154: 31
A155: 30604 | B155: 11023 | C155: 100 | E155: 예티2 | F155: 거인 종족 | G155: 32 | J155: 15007 | K155: 예티2 | L155: 거인 종족 | M155: 31
A156: 30604 | B156: 11010 | C156: 100 | E156: 트롤 워리어6 | F156: 거인 종족 | G156: 32 | J156: 15018 | K156: 트롤 워리어6 | L156: 거인 종족 | M156: 31
A157: 30604 | B157: 11011 | C157: 100 | E157: 트롤 워리어7 | F157: 거인 종족 | G157: 32 | J157: 15019 | K157: 트롤 워리어7 | L157: 거인 종족 | M157: 31
A158: 30604 | B158: 12037 | C158: 100 | E158: 놀아처1 | F158: 보스 몬스터 | G158: 1
A159: 30604 | B159: 12017 | C159: 100 | E159: 놀강도2 | F159: 보스 몬스터 | G159: 2
A160: 30605 | B160: 11021 | C160: 100 | E160: 임프전사1 | F160: 보스 몬스터 | G160: 3
A161: 30605 | B161: 11022 | C161: 100 | E161: 오우거1 | F161: 보스 몬스터 | G161: 4
A162: 30605 | B162: 12017 | C162: 100 | E162: 바포메트6 | F162: 보스 몬스터 | G162: 5
A163: 30605 | B163: 11017 | C163: 100 | E163: 거미여왕2 | F163: 보스 몬스터 | G163: 6
A164: 30605 | B164: 12037 | C164: 100 | E164: 흑기사2 | F164: 보스 몬스터 | G164: 7
A165: 30605 | B165: 13017 | C165: 100 | E165: 늑대인간 | F165: 보스 몬스터 | G165: 8
A166: 30606 | B166: 12025 | C166: 100 | E166: 대사탄1 | F166: 보스 몬스터 | G166: 9
A167: 30606 | B167: 12023 | C167: 100 | E167: 다크엘프 아처1 | F167: 보스 몬스터 | G167: 10
A168: 30606 | B168: 11023 | C168: 100 | E168: 대사탄2 | F168: 보스 몬스터 | G168: 11
A169: 30606 | B169: 11010 | C169: 100 | E169: 데스나이트3 | F169: 보스 몬스터 | G169: 12
A170: 30606 | B170: 11011 | C170: 100 | E170: 메두사1 | F170: 보스 몬스터 | G170: 13
A171: 30606 | B171: 11022 | C171: 100 | E171: 바포메트2 | F171: 보스 몬스터 | G171: 14
A172: 30607 | B172: 11017 | C172: 100 | E172: 트롤 워리어4 | F172: 보스 몬스터 | G172: 15
A173: 30607 | B173: 11021 | C173: 100 | E173: 흑기사3 | F173: 보스 몬스터 | G173: 16
A174: 30607 | B174: 11022 | C174: 100 | E174: 흡혈귀여왕2 | F174: 보스 몬스터 | G174: 17
A175: 30607 | B175: 11023 | C175: 100 | E175: 에티4 | F175: 보스 몬스터 | G175: 18
A176: 30607 | B176: 13017 | C176: 100 | E176: 레드드래곤3 | F176: 보스 몬스터 | G176: 19
A177: 30607 | B177: 12017 | C177: 100 | E177: 메두사2 | F177: 보스 몬스터 | G177: 20
A178: 40701 | B178: 13004 | C178: 100 | E178: 흑기사1 | F178: 보스 몬스터 | G178: 21
A179: 40701 | B179: 13028 | C179: 100 | E179: 용암골렘2 | F179: 보스 몬스터 | G179: 22
A180: 40701 | B180: 13029 | C180: 100 | E180: 레드드래곤1 | F180: 보스 몬스터 | G180: 23
A181: 40701 | B181: 12008 | C181: 100 | E181: 바포메트7 | F181: 보스 몬스터 | G181: 24
A182: 40702 | B182: 13004 | C182: 100 | E182: 거미여왕1 | F182: 보스 몬스터 | G182: 25
A183: 40702 | B183: 13028 | C183: 100 | E183: 데스나이트1 | F183: 보스 몬스터 | G183: 26
A184: 40702 | B184: 13029 | C184: 100 | E184: 레드드래곤4 | F184: 보스 몬스터 | G184: 27
A185: 40702 | B185: 13015 | C185: 100 | E185: 타락한 천사 | F185: 보스 몬스터 | G185: 28
A186: 40703 | B186: 13005 | C186: 100 | E186: 타락한 천사 | F186: 보스 몬스터 | G186: 29
A187: 40703 | B187: 13031 | C187: 100 | E187: 타락한 천사 | F187: 보스 몬스터 | G187: 30
A188: 40703 | B188: 13015 | C188: 100 | E188: 타락한 천사 | F188: 보스 몬스터 | G188: 31
A189: 40703 | B189: 13026 | C189: 100 | E189: 타락한 천사 | F189: 보스 몬스터 | G189: 32
A190: 40704 | B190: 13005 | C190: 100
A191: 40704 | B191: 13029 | C191: 100
A192: 40704 | B192: 13031 | C192: 100
A193: 40704 | B193: 13023 | C193: 100
A194: 40704 | B194: 13019 | C194: 100
A195: 40801 | B195: 13007 | C195: 100
A196: 40801 | B196: 13008 | C196: 100
A197: 40801 | B197: 13001 | C197: 100
A198: 40801 | B198: 13002 | C198: 100
A199: 40801 | B199: 13019 | C199: 100
A200: 40802 | B200: 13007 | C200: 100
... 527 more rows

Sheet CreateMapConfig
A1: s_MapConfigID | B1: n_StageType | C1: n_AppearMonsterGroup | D1: n_AppearBossGroup | E1: f_Monster | F1: n_MobNodeMin | G1: n_MobNodeMax | H1: exception | I1: f_BuffDebuff | J1: n_BuffDebuffMin | K1: n_BuffDebuffMax | L1: exception | M1: f_CampFire | N1: n_CampMin | O1: n_CampMax | P1: exception | Q1: f_Merchant | R1: n_MerchantMin | S1: n_MerchantMax | T1: exception | U1: f_Treasure | V1: n_TreasureMin | W1: n_TreasureMax | X1: exception | Y1: f_NPC | Z1: n_NPCMin | AA1: n_NPCMax | AB1: exception | AC1: f_Mine | AD1: n_MineMin | AE1: n_MineMax | AF1: exception | AG1: f_TwoWay | AH1: n_TwoWayMin | AI1: n_TwoWayMax | AJ1: exception | AK1: f_Nothing | AL1: n_NothingMin | AM1: n_NothingMax | AN1: exception | AO1: f_Random | AP1: n_RandomMin | AQ1: n_RandomMax | AR1: exception
A2: _맵 고유 ID | B2: 스테이지 구분 ID | C2: 등장 몬스터 그룹 ID | D2: 등장 보스 몬스터 그룹 ID | E2: 몬스터 패턴 등장 확률 | F2: 최소 개수 | G2: 최대 개수 | H2: Data Border | I2: 버프/디버프 확률 | J2: 최소 개수 | K2: 최대 개수 | L2: Data Border | M2: 캠프 등장 확률 | N2: 최소 개수 | O2: 최대 개수 | P2: Data Border | Q2: 암상인 등장 발생 확률 | R2: 최소 개수 | S2: 최대 개수 | T2: Data Border | U2: 보물 등장 발생 확률 | V2: 보물 최소 개수 | W2: 보물 최대 개수 | X2: Data Border | Y2: NPC 발생 확률 | Z2: 최소 개수 | AA2: 최대 개수 | AB2: Data Border | AC2: 성소 발생 확률 | AD2: 최소 개수 | AE2: 최대 개수 | AF2: Data Border | AG2: 갈림길 등장 확률 | AH2: 최소 개수 | AI2: 최대 개수 | AJ2: Data Border | AK2: 없음 확률 | AL2: 없음 최소 개수 | AM2: 없음 최대 개수 | AN2: Data Border | AO2: 랜덤 발생 확률 | AP2: 랜덤 최소 개수 | AQ2: 랜덤 최대 개수 | AR2: Data Border
A3: ="Stage"&B3&"_"&COUNTIF(B$3:B3,B3) -> Stage1_1 | B3: 1 | C3: 10101 | D3: 0 | E3: 80 | F3: 10 | G3: 20 | I3: 2.3 | J3: 0 | K3: 1 | M3: 16.2 | N3: 0 | O3: 1 | Q3: 1 | R3: 0 | S3: 1 | U3: 1.5 | V3: 0 | W3: 1 | Y3: 3 | Z3: 0 | AA3: 1 | AC3: 5 | AD3: 0 | AE3: 1 | AG3: 1 | AH3: 0 | AI3: 1 | AK3: 1 | AL3: 1 | AM3: 10 | AO3: 20 | AP3: 5 | AQ3: 99
A4: ="Stage"&B4&"_"&COUNTIF(B$3:B4,B4) -> Stage1_2 | B4: 1 | C4: =10&MID(A4,6,1)&0&RIGHT(A4,1) -> 10102 | D4: 10001 | E4: 80 | F4: 10 | G4: 20 | I4: 2.3 | J4: 0 | K4: 1 | M4: 16.2 | N4: 0 | O4: 1 | Q4: 1 | R4: 0 | S4: 1 | U4: 1.5 | V4: 0 | W4: 1 | Y4: 3 | Z4: 0 | AA4: 1 | AC4: 5 | AD4: 0 | AE4: 1 | AG4: 1 | AH4: 0 | AI4: 1 | AK4: 1 | AL4: 1 | AM4: 10 | AO4: 20 | AP4: 5 | AQ4: 99
A5: ="Stage"&B5&"_"&COUNTIF(B$3:B5,B5) -> Stage1_3 | B5: 1 | C5: =10&MID(A5,6,1)&0&RIGHT(A5,1) -> 10103 | D5: 0 | E5: 80 | F5: 10 | G5: 20 | I5: 2.3 | J5: 0 | K5: 1 | M5: 16.2 | N5: 0 | O5: 1 | Q5: 1 | R5: 0 | S5: 1 | U5: 1.5 | V5: 0 | W5: 1 | Y5: 3 | Z5: 0 | AA5: 1 | AC5: 5 | AD5: 0 | AE5: 1 | AG5: 1 | AH5: 0 | AI5: 1 | AK5: 1 | AL5: 1 | AM5: 10 | AO5: 20 | AP5: 5 | AQ5: 99
A6: ="Stage"&B6&"_"&COUNTIF(B$3:B6,B6) -> Stage1_4 | B6: 1 | C6: 10104 | D6: 10002 | E6: 80 | F6: 10 | G6: 20 | I6: 2.3 | J6: 0 | K6: 1 | M6: 16.2 | N6: 0 | O6: 1 | Q6: 1 | R6: 0 | S6: 1 | U6: 1.5 | V6: 0 | W6: 1 | Y6: 3 | Z6: 0 | AA6: 1 | AC6: 5 | AD6: 0 | AE6: 1 | AG6: 1 | AH6: 0 | AI6: 1 | AK6: 1 | AL6: 1 | AM6: 10 | AO6: 20 | AP6: 5 | AQ6: 99
A7: ="Stage"&B7&"_"&COUNTIF(B$3:B7,B7) -> Stage2_1 | B7: =B4+1 -> 2 | C7: 10201 | D7: 10002 | E7: 80 | F7: 10 | G7: 20 | I7: 2.3 | J7: 0 | K7: 1 | M7: 16.2 | N7: 0 | O7: 1 | Q7: 1 | R7: 0 | S7: 1 | U7: 1.5 | V7: 0 | W7: 1 | Y7: 3 | Z7: 0 | AA7: 1 | AC7: 5 | AD7: 0 | AE7: 1 | AG7: 1 | AH7: 0 | AI7: 1 | AK7: 1 | AL7: 1 | AM7: 10 | AO7: 20 | AP7: 5 | AQ7: 99
A8: ="Stage"&B8&"_"&COUNTIF(B$3:B8,B8) -> Stage2_2 | B8: =B5+1 -> 2 | C8: 10202 | D8: 10003 | E8: 80 | F8: 10 | G8: 20 | I8: 2.3 | J8: 0 | K8: 1 | M8: 16.2 | N8: 0 | O8: 1 | Q8: 1 | R8: 0 | S8: 1 | U8: 1.5 | V8: 0 | W8: 1 | Y8: 3 | Z8: 0 | AA8: 1 | AC8: 5 | AD8: 0 | AE8: 1 | AG8: 1 | AH8: 0 | AI8: 1 | AK8: 1 | AL8: 1 | AM8: 10 | AO8: 20 | AP8: 5 | AQ8: 99
A9: ="Stage"&B9&"_"&COUNTIF(B$3:B9,B9) -> Stage2_3 | B9: 2 | C9: 10203 | D9: 0 | E9: 80 | F9: 10 | G9: 20 | I9: 2.3 | J9: 0 | K9: 1 | M9: 16.2 | N9: 0 | O9: 1 | Q9: 1 | R9: 0 | S9: 1 | U9: 1.5 | V9: 0 | W9: 1 | Y9: 3 | Z9: 0 | AA9: 1 | AC9: 5 | AD9: 0 | AE9: 1 | AG9: 1 | AH9: 0 | AI9: 1 | AK9: 1 | AL9: 1 | AM9: 10 | AO9: 20 | AP9: 5 | AQ9: 99
A10: ="Stage"&B10&"_"&COUNTIF(B$3:B10,B10) -> Stage2_4 | B10: 2 | C10: 10204 | D10: 10003 | E10: 80 | F10: 10 | G10: 20 | I10: 2.3 | J10: 0 | K10: 1 | M10: 16.2 | N10: 0 | O10: 1 | Q10: 1 | R10: 0 | S10: 1 | U10: 1.5 | V10: 0 | W10: 1 | Y10: 3 | Z10: 0 | AA10: 1 | AC10: 5 | AD10: 0 | AE10: 1 | AG10: 1 | AH10: 0 | AI10: 1 | AK10: 1 | AL10: 1 | AM10: 10 | AO10: 20 | AP10: 5 | AQ10: 99
A11: ="Stage"&B11&"_"&COUNTIF(B$3:B11,B11) -> Stage2_5 | B11: 2 | C11: 10205 | D11: 10004 | E11: 80 | F11: 10 | G11: 20 | I11: 2.3 | J11: 0 | K11: 1 | M11: 16.2 | N11: 0 | O11: 1 | Q11: 1 | R11: 0 | S11: 1 | U11: 1.5 | V11: 0 | W11: 1 | Y11: 3 | Z11: 0 | AA11: 1 | AC11: 5 | AD11: 0 | AE11: 1 | AG11: 1 | AH11: 0 | AI11: 1 | AK11: 1 | AL11: 1 | AM11: 10 | AO11: 20 | AP11: 5 | AQ11: 99
A12: ="Stage"&B12&"_"&COUNTIF(B$3:B12,B12) -> Stage2_6 | B12: 2 | C12: 10206 | D12: 10004 | E12: 80 | F12: 10 | G12: 20 | I12: 2.3 | J12: 0 | K12: 1 | M12: 16.2 | N12: 0 | O12: 1 | Q12: 1 | R12: 0 | S12: 1 | U12: 1.5 | V12: 0 | W12: 1 | Y12: 3 | Z12: 0 | AA12: 1 | AC12: 5 | AD12: 0 | AE12: 1 | AG12: 1 | AH12: 0 | AI12: 1 | AK12: 1 | AL12: 1 | AM12: 10 | AO12: 20 | AP12: 5 | AQ12: 99
A13: ="Stage"&B13&"_"&COUNTIF(B$3:B13,B13) -> Stage3_1 | B13: 3 | C13: =20&MID(A13,6,1)&0&RIGHT(A13,1) -> 20301 | D13: 10005 | E13: 80 | F13: 10 | G13: 20 | I13: 2.3 | J13: 0 | K13: 1 | M13: 16.2 | N13: 0 | O13: 1 | Q13: 1 | R13: 0 | S13: 1 | U13: 1.5 | V13: 0 | W13: 1 | Y13: 3 | Z13: 0 | AA13: 1 | AC13: 5 | AD13: 0 | AE13: 1 | AG13: 1 | AH13: 0 | AI13: 1 | AK13: 1 | AL13: 1 | AM13: 10 | AO13: 20 | AP13: 5 | AQ13: 99
A14: ="Stage"&B14&"_"&COUNTIF(B$3:B14,B14) -> Stage3_2 | B14: 3 | C14: =20&MID(A14,6,1)&0&RIGHT(A14,1) -> 20302 | D14: 0 | E14: 80 | F14: 10 | G14: 20 | I14: 2.3 | J14: 0 | K14: 1 | M14: 16.2 | N14: 0 | O14: 1 | Q14: 1 | R14: 0 | S14: 1 | U14: 1.5 | V14: 0 | W14: 1 | Y14: 3 | Z14: 0 | AA14: 1 | AC14: 5 | AD14: 0 | AE14: 1 | AG14: 1 | AH14: 0 | AI14: 1 | AK14: 1 | AL14: 1 | AM14: 10 | AO14: 20 | AP14: 5 | AQ14: 99
A15: ="Stage"&B15&"_"&COUNTIF(B$3:B15,B15) -> Stage3_3 | B15: 3 | C15: 20303 | D15: 10005 | E15: 80 | F15: 10 | G15: 20 | I15: 2.3 | J15: 0 | K15: 1 | M15: 16.2 | N15: 0 | O15: 1 | Q15: 1 | R15: 0 | S15: 1 | U15: 1.5 | V15: 0 | W15: 1 | Y15: 3 | Z15: 0 | AA15: 1 | AC15: 5 | AD15: 0 | AE15: 1 | AG15: 1 | AH15: 0 | AI15: 1 | AK15: 1 | AL15: 1 | AM15: 10 | AO15: 20 | AP15: 5 | AQ15: 99
A16: ="Stage"&B16&"_"&COUNTIF(B$3:B16,B16) -> Stage3_4 | B16: 3 | C16: 20304 | D16: 0 | E16: 80 | F16: 10 | G16: 20 | I16: 2.3 | J16: 0 | K16: 1 | M16: 16.2 | N16: 0 | O16: 1 | Q16: 1 | R16: 0 | S16: 1 | U16: 1.5 | V16: 0 | W16: 1 | Y16: 3 | Z16: 0 | AA16: 1 | AC16: 5 | AD16: 0 | AE16: 1 | AG16: 1 | AH16: 0 | AI16: 1 | AK16: 1 | AL16: 1 | AM16: 10 | AO16: 20 | AP16: 5 | AQ16: 99
A17: ="Stage"&B17&"_"&COUNTIF(B$3:B17,B17) -> Stage3_5 | B17: 3 | C17: 20305 | D17: 10006 | E17: 80 | F17: 10 | G17: 20 | I17: 2.3 | J17: 0 | K17: 1 | M17: 16.2 | N17: 0 | O17: 1 | Q17: 1 | R17: 0 | S17: 1 | U17: 1.5 | V17: 0 | W17: 1 | Y17: 3 | Z17: 0 | AA17: 1 | AC17: 5 | AD17: 0 | AE17: 1 | AG17: 1 | AH17: 0 | AI17: 1 | AK17: 1 | AL17: 1 | AM17: 10 | AO17: 20 | AP17: 5 | AQ17: 99
A18: ="Stage"&B18&"_"&COUNTIF(B$3:B18,B18) -> Stage4_1 | B18: 4 | C18: 20401 | D18: 10006 | E18: 80 | F18: 10 | G18: 20 | I18: 2.3 | J18: 0 | K18: 1 | M18: 16.2 | N18: 0 | O18: 1 | Q18: 1 | R18: 0 | S18: 1 | U18: 1.5 | V18: 0 | W18: 1 | Y18: 3 | Z18: 0 | AA18: 1 | AC18: 5 | AD18: 0 | AE18: 1 | AG18: 1 | AH18: 0 | AI18: 1 | AK18: 1 | AL18: 1 | AM18: 10 | AO18: 20 | AP18: 5 | AQ18: 99
A19: ="Stage"&B19&"_"&COUNTIF(B$3:B19,B19) -> Stage4_2 | B19: 4 | C19: 20402 | D19: 10007 | E19: 80 | F19: 10 | G19: 20 | I19: 2.3 | J19: 0 | K19: 1 | M19: 16.2 | N19: 0 | O19: 1 | Q19: 1 | R19: 0 | S19: 1 | U19: 1.5 | V19: 0 | W19: 1 | Y19: 3 | Z19: 0 | AA19: 1 | AC19: 5 | AD19: 0 | AE19: 1 | AG19: 1 | AH19: 0 | AI19: 1 | AK19: 1 | AL19: 1 | AM19: 10 | AO19: 20 | AP19: 5 | AQ19: 99
A20: ="Stage"&B20&"_"&COUNTIF(B$3:B20,B20) -> Stage4_3 | B20: 4 | C20: 20403 | D20: 0 | E20: 80 | F20: 10 | G20: 20 | I20: 2.3 | J20: 0 | K20: 1 | M20: 16.2 | N20: 0 | O20: 1 | Q20: 1 | R20: 0 | S20: 1 | U20: 1.5 | V20: 0 | W20: 1 | Y20: 3 | Z20: 0 | AA20: 1 | AC20: 5 | AD20: 0 | AE20: 1 | AG20: 1 | AH20: 0 | AI20: 1 | AK20: 1 | AL20: 1 | AM20: 10 | AO20: 20 | AP20: 5 | AQ20: 99
A21: ="Stage"&B21&"_"&COUNTIF(B$3:B21,B21) -> Stage4_4 | B21: 4 | C21: 20404 | D21: 10007 | E21: 80 | F21: 10 | G21: 20 | I21: 2.3 | J21: 0 | K21: 1 | M21: 16.2 | N21: 0 | O21: 1 | Q21: 1 | R21: 0 | S21: 1 | U21: 1.5 | V21: 0 | W21: 1 | Y21: 3 | Z21: 0 | AA21: 1 | AC21: 5 | AD21: 0 | AE21: 1 | AG21: 1 | AH21: 0 | AI21: 1 | AK21: 1 | AL21: 1 | AM21: 10 | AO21: 20 | AP21: 5 | AQ21: 99
A22: ="Stage"&B22&"_"&COUNTIF(B$3:B22,B22) -> Stage4_5 | B22: 4 | C22: 20405 | D22: 0 | E22: 80 | F22: 10 | G22: 20 | I22: 2.3 | J22: 0 | K22: 1 | M22: 16.2 | N22: 0 | O22: 1 | Q22: 1 | R22: 0 | S22: 1 | U22: 1.5 | V22: 0 | W22: 1 | Y22: 3 | Z22: 0 | AA22: 1 | AC22: 5 | AD22: 0 | AE22: 1 | AG22: 1 | AH22: 0 | AI22: 1 | AK22: 1 | AL22: 1 | AM22: 10 | AO22: 20 | AP22: 5 | AQ22: 99
A23: ="Stage"&B23&"_"&COUNTIF(B$3:B23,B23) -> Stage4_6 | B23: 4 | C23: 20406 | D23: 10008 | E23: 80 | F23: 10 | G23: 20 | I23: 2.3 | J23: 0 | K23: 1 | M23: 16.2 | N23: 0 | O23: 1 | Q23: 1 | R23: 0 | S23: 1 | U23: 1.5 | V23: 0 | W23: 1 | Y23: 3 | Z23: 0 | AA23: 1 | AC23: 5 | AD23: 0 | AE23: 1 | AG23: 1 | AH23: 0 | AI23: 1 | AK23: 1 | AL23: 1 | AM23: 10 | AO23: 20 | AP23: 5 | AQ23: 99
A24: ="Stage"&B24&"_"&COUNTIF(B$3:B24,B24) -> Stage4_7 | B24: 4 | C24: 20407 | D24: 10008 | E24: 80 | F24: 10 | G24: 20 | I24: 2.3 | J24: 0 | K24: 1 | M24: 16.2 | N24: 0 | O24: 1 | Q24: 1 | R24: 0 | S24: 1 | U24: 1.5 | V24: 0 | W24: 1 | Y24: 3 | Z24: 0 | AA24: 1 | AC24: 5 | AD24: 0 | AE24: 1 | AG24: 1 | AH24: 0 | AI24: 1 | AK24: 1 | AL24: 1 | AM24: 10 | AO24: 20 | AP24: 5 | AQ24: 99
A25: ="Stage"&B25&"_"&COUNTIF(B$3:B25,B25) -> Stage5_1 | B25: 5 | C25: =30&MID(A25,6,1)&0&RIGHT(A25,1) -> 30501 | D25: 10009 | E25: 80 | F25: 10 | G25: 20 | I25: 2.3 | J25: 0 | K25: 1 | M25: 16.2 | N25: 0 | O25: 1 | Q25: 1 | R25: 0 | S25: 1 | U25: 1.5 | V25: 0 | W25: 1 | Y25: 3 | Z25: 0 | AA25: 1 | AC25: 5 | AD25: 0 | AE25: 1 | AG25: 1 | AH25: 0 | AI25: 1 | AK25: 1 | AL25: 1 | AM25: 10 | AO25: 20 | AP25: 5 | AQ25: 99
A26: ="Stage"&B26&"_"&COUNTIF(B$3:B26,B26) -> Stage5_2 | B26: 5 | C26: =30&MID(A26,6,1)&0&RIGHT(A26,1) -> 30502 | D26: 0 | E26: 80 | F26: 10 | G26: 20 | I26: 2.3 | J26: 0 | K26: 1 | M26: 16.2 | N26: 0 | O26: 1 | Q26: 1 | R26: 0 | S26: 1 | U26: 1.5 | V26: 0 | W26: 1 | Y26: 3 | Z26: 0 | AA26: 1 | AC26: 5 | AD26: 0 | AE26: 1 | AG26: 1 | AH26: 0 | AI26: 1 | AK26: 1 | AL26: 1 | AM26: 10 | AO26: 20 | AP26: 5 | AQ26: 99
A27: ="Stage"&B27&"_"&COUNTIF(B$3:B27,B27) -> Stage5_3 | B27: 5 | C27: 30503 | D27: 10009 | E27: 80 | F27: 10 | G27: 20 | I27: 2.3 | J27: 0 | K27: 1 | M27: 16.2 | N27: 0 | O27: 1 | Q27: 1 | R27: 0 | S27: 1 | U27: 1.5 | V27: 0 | W27: 1 | Y27: 3 | Z27: 0 | AA27: 1 | AC27: 5 | AD27: 0 | AE27: 1 | AG27: 1 | AH27: 0 | AI27: 1 | AK27: 1 | AL27: 1 | AM27: 10 | AO27: 20 | AP27: 5 | AQ27: 99
A28: ="Stage"&B28&"_"&COUNTIF(B$3:B28,B28) -> Stage5_4 | B28: 5 | C28: 30504 | D28: 0 | E28: 80 | F28: 10 | G28: 20 | I28: 2.3 | J28: 0 | K28: 1 | M28: 16.2 | N28: 0 | O28: 1 | Q28: 1 | R28: 0 | S28: 1 | U28: 1.5 | V28: 0 | W28: 1 | Y28: 3 | Z28: 0 | AA28: 1 | AC28: 5 | AD28: 0 | AE28: 1 | AG28: 1 | AH28: 0 | AI28: 1 | AK28: 1 | AL28: 1 | AM28: 10 | AO28: 20 | AP28: 5 | AQ28: 99
A29: ="Stage"&B29&"_"&COUNTIF(B$3:B29,B29) -> Stage5_5 | B29: 5 | C29: 30505 | D29: 10010 | E29: 80 | F29: 10 | G29: 20 | I29: 2.3 | J29: 0 | K29: 1 | M29: 16.2 | N29: 0 | O29: 1 | Q29: 1 | R29: 0 | S29: 1 | U29: 1.5 | V29: 0 | W29: 1 | Y29: 3 | Z29: 0 | AA29: 1 | AC29: 5 | AD29: 0 | AE29: 1 | AG29: 1 | AH29: 0 | AI29: 1 | AK29: 1 | AL29: 1 | AM29: 10 | AO29: 20 | AP29: 5 | AQ29: 99
A30: ="Stage"&B30&"_"&COUNTIF(B$3:B30,B30) -> Stage5_6 | B30: 5 | C30: 30506 | D30: 10010 | E30: 80 | F30: 10 | G30: 20 | I30: 2.3 | J30: 0 | K30: 1 | M30: 16.2 | N30: 0 | O30: 1 | Q30: 1 | R30: 0 | S30: 1 | U30: 1.5 | V30: 0 | W30: 1 | Y30: 3 | Z30: 0 | AA30: 1 | AC30: 5 | AD30: 0 | AE30: 1 | AG30: 1 | AH30: 0 | AI30: 1 | AK30: 1 | AL30: 1 | AM30: 10 | AO30: 20 | AP30: 5 | AQ30: 99
A31: ="Stage"&B31&"_"&COUNTIF(B$3:B31,B31) -> Stage6_1 | B31: 6 | C31: 30601 | D31: 10011 | E31: 80 | F31: 10 | G31: 20 | I31: 2.3 | J31: 0 | K31: 1 | M31: 16.2 | N31: 0 | O31: 1 | Q31: 1 | R31: 0 | S31: 1 | U31: 1.5 | V31: 0 | W31: 1 | Y31: 3 | Z31: 0 | AA31: 1 | AC31: 5 | AD31: 0 | AE31: 1 | AG31: 1 | AH31: 0 | AI31: 1 | AK31: 1 | AL31: 1 | AM31: 10 | AO31: 20 | AP31: 5 | AQ31: 99
A32: ="Stage"&B32&"_"&COUNTIF(B$3:B32,B32) -> Stage6_2 | B32: 6 | C32: 30602 | D32: 0 | E32: 80 | F32: 10 | G32: 20 | I32: 2.3 | J32: 0 | K32: 1 | M32: 16.2 | N32: 0 | O32: 1 | Q32: 1 | R32: 0 | S32: 1 | U32: 1.5 | V32: 0 | W32: 1 | Y32: 3 | Z32: 0 | AA32: 1 | AC32: 5 | AD32: 0 | AE32: 1 | AG32: 1 | AH32: 0 | AI32: 1 | AK32: 1 | AL32: 1 | AM32: 10 | AO32: 20 | AP32: 5 | AQ32: 99
A33: ="Stage"&B33&"_"&COUNTIF(B$3:B33,B33) -> Stage6_3 | B33: 6 | C33: 30603 | D33: 10011 | E33: 80 | F33: 10 | G33: 20 | I33: 2.3 | J33: 0 | K33: 1 | M33: 16.2 | N33: 0 | O33: 1 | Q33: 1 | R33: 0 | S33: 1 | U33: 1.5 | V33: 0 | W33: 1 | Y33: 3 | Z33: 0 | AA33: 1 | AC33: 5 | AD33: 0 | AE33: 1 | AG33: 1 | AH33: 0 | AI33: 1 | AK33: 1 | AL33: 1 | AM33: 10 | AO33: 20 | AP33: 5 | AQ33: 99
A34: ="Stage"&B34&"_"&COUNTIF(B$3:B34,B34) -> Stage6_4 | B34: 6 | C34: 30604 | D34: 0 | E34: 80 | F34: 10 | G34: 20 | I34: 2.3 | J34: 0 | K34: 1 | M34: 16.2 | N34: 0 | O34: 1 | Q34: 1 | R34: 0 | S34: 1 | U34: 1.5 | V34: 0 | W34: 1 | Y34: 3 | Z34: 0 | AA34: 1 | AC34: 5 | AD34: 0 | AE34: 1 | AG34: 1 | AH34: 0 | AI34: 1 | AK34: 1 | AL34: 1 | AM34: 10 | AO34: 20 | AP34: 5 | AQ34: 99
A35: ="Stage"&B35&"_"&COUNTIF(B$3:B35,B35) -> Stage6_5 | B35: 6 | C35: 30605 | D35: 10012 | E35: 80 | F35: 10 | G35: 20 | I35: 2.3 | J35: 0 | K35: 1 | M35: 16.2 | N35: 0 | O35: 1 | Q35: 1 | R35: 0 | S35: 1 | U35: 1.5 | V35: 0 | W35: 1 | Y35: 3 | Z35: 0 | AA35: 1 | AC35: 5 | AD35: 0 | AE35: 1 | AG35: 1 | AH35: 0 | AI35: 1 | AK35: 1 | AL35: 1 | AM35: 10 | AO35: 20 | AP35: 5 | AQ35: 99
A36: ="Stage"&B36&"_"&COUNTIF(B$3:B36,B36) -> Stage6_6 | B36: 6 | C36: 30606 | D36: 0 | E36: 80 | F36: 10 | G36: 20 | I36: 2.3 | J36: 0 | K36: 1 | M36: 16.2 | N36: 0 | O36: 1 | Q36: 1 | R36: 0 | S36: 1 | U36: 1.5 | V36: 0 | W36: 1 | Y36: 3 | Z36: 0 | AA36: 1 | AC36: 5 | AD36: 0 | AE36: 1 | AG36: 1 | AH36: 0 | AI36: 1 | AK36: 1 | AL36: 1 | AM36: 10 | AO36: 20 | AP36: 5 | AQ36: 99
A37: ="Stage"&B37&"_"&COUNTIF(B$3:B37,B37) -> Stage6_7 | B37: 6 | C37: 30607 | D37: 10012 | E37: 80 | F37: 10 | G37: 20 | I37: 2.3 | J37: 0 | K37: 1 | M37: 16.2 | N37: 0 | O37: 1 | Q37: 1 | R37: 0 | S37: 1 | U37: 1.5 | V37: 0 | W37: 1 | Y37: 3 | Z37: 0 | AA37: 1 | AC37: 5 | AD37: 0 | AE37: 1 | AG37: 1 | AH37: 0 | AI37: 1 | AK37: 1 | AL37: 1 | AM37: 10 | AO37: 20 | AP37: 5 | AQ37: 99
A38: ="Stage"&B38&"_"&COUNTIF(B$3:B38,B38) -> Stage7_1 | B38: 7 | C38: =40&MID(A38,6,1)&0&RIGHT(A38,1) -> 40701 | D38: 0 | E38: 80 | F38: 10 | G38: 20 | I38: 2.3 | J38: 0 | K38: 1 | M38: 16.2 | N38: 0 | O38: 1 | Q38: 1 | R38: 0 | S38: 1 | U38: 1.5 | V38: 0 | W38: 1 | Y38: 3 | Z38: 0 | AA38: 1 | AC38: 5 | AD38: 0 | AE38: 1 | AG38: 1 | AH38: 0 | AI38: 1 | AK38: 1 | AL38: 1 | AM38: 10 | AO38: 20 | AP38: 5 | AQ38: 99
A39: ="Stage"&B39&"_"&COUNTIF(B$3:B39,B39) -> Stage7_2 | B39: 7 | C39: =40&MID(A39,6,1)&0&RIGHT(A39,1) -> 40702 | D39: 10013 | E39: 80 | F39: 10 | G39: 20 | I39: 2.3 | J39: 0 | K39: 1 | M39: 16.2 | N39: 0 | O39: 1 | Q39: 1 | R39: 0 | S39: 1 | U39: 1.5 | V39: 0 | W39: 1 | Y39: 3 | Z39: 0 | AA39: 1 | AC39: 5 | AD39: 0 | AE39: 1 | AG39: 1 | AH39: 0 | AI39: 1 | AK39: 1 | AL39: 1 | AM39: 10 | AO39: 20 | AP39: 5 | AQ39: 99
A40: ="Stage"&B40&"_"&COUNTIF(B$3:B40,B40) -> Stage7_3 | B40: 7 | C40: 40703 | D40: 0 | E40: 80 | F40: 10 | G40: 20 | I40: 2.3 | J40: 0 | K40: 1 | M40: 16.2 | N40: 0 | O40: 1 | Q40: 1 | R40: 0 | S40: 1 | U40: 1.5 | V40: 0 | W40: 1 | Y40: 3 | Z40: 0 | AA40: 1 | AC40: 5 | AD40: 0 | AE40: 1 | AG40: 1 | AH40: 0 | AI40: 1 | AK40: 1 | AL40: 1 | AM40: 10 | AO40: 20 | AP40: 5 | AQ40: 99
A41: ="Stage"&B41&"_"&COUNTIF(B$3:B41,B41) -> Stage7_4 | B41: 7 | C41: 40704 | D41: 10013 | E41: 80 | F41: 10 | G41: 20 | I41: 2.3 | J41: 0 | K41: 1 | M41: 16.2 | N41: 0 | O41: 1 | Q41: 1 | R41: 0 | S41: 1 | U41: 1.5 | V41: 0 | W41: 1 | Y41: 3 | Z41: 0 | AA41: 1 | AC41: 5 | AD41: 0 | AE41: 1 | AG41: 1 | AH41: 0 | AI41: 1 | AK41: 1 | AL41: 1 | AM41: 10 | AO41: 20 | AP41: 5 | AQ41: 99
A42: ="Stage"&B42&"_"&COUNTIF(B$3:B42,B42) -> Stage8_1 | B42: 8 | C42: 40801 | D42: 10013 | E42: 80 | F42: 10 | G42: 20 | I42: 2.3 | J42: 0 | K42: 1 | M42: 16.2 | N42: 0 | O42: 1 | Q42: 1 | R42: 0 | S42: 1 | U42: 1.5 | V42: 0 | W42: 1 | Y42: 3 | Z42: 0 | AA42: 1 | AC42: 5 | AD42: 0 | AE42: 1 | AG42: 1 | AH42: 0 | AI42: 1 | AK42: 1 | AL42: 1 | AM42: 10 | AO42: 20 | AP42: 5 | AQ42: 99
A43: ="Stage"&B43&"_"&COUNTIF(B$3:B43,B43) -> Stage8_2 | B43: 8 | C43: 40802 | D43: 0 | E43: 80 | F43: 10 | G43: 20 | I43: 2.3 | J43: 0 | K43: 1 | M43: 16.2 | N43: 0 | O43: 1 | Q43: 1 | R43: 0 | S43: 1 | U43: 1.5 | V43: 0 | W43: 1 | Y43: 3 | Z43: 0 | AA43: 1 | AC43: 5 | AD43: 0 | AE43: 1 | AG43: 1 | AH43: 0 | AI43: 1 | AK43: 1 | AL43: 1 | AM43: 10 | AO43: 20 | AP43: 5 | AQ43: 99
A44: ="Stage"&B44&"_"&COUNTIF(B$3:B44,B44) -> Stage8_3 | B44: 8 | C44: 40803 | D44: 10014 | E44: 80 | F44: 10 | G44: 20 | I44: 2.3 | J44: 0 | K44: 1 | M44: 16.2 | N44: 0 | O44: 1 | Q44: 1 | R44: 0 | S44: 1 | U44: 1.5 | V44: 0 | W44: 1 | Y44: 3 | Z44: 0 | AA44: 1 | AC44: 5 | AD44: 0 | AE44: 1 | AG44: 1 | AH44: 0 | AI44: 1 | AK44: 1 | AL44: 1 | AM44: 10 | AO44: 20 | AP44: 5 | AQ44: 99
A45: ="Stage"&B45&"_"&COUNTIF(B$3:B45,B45) -> Stage8_4 | B45: 8 | C45: 40804 | D45: 0 | E45: 80 | F45: 10 | G45: 20 | I45: 2.3 | J45: 0 | K45: 1 | M45: 16.2 | N45: 0 | O45: 1 | Q45: 1 | R45: 0 | S45: 1 | U45: 1.5 | V45: 0 | W45: 1 | Y45: 3 | Z45: 0 | AA45: 1 | AC45: 5 | AD45: 0 | AE45: 1 | AG45: 1 | AH45: 0 | AI45: 1 | AK45: 1 | AL45: 1 | AM45: 10 | AO45: 20 | AP45: 5 | AQ45: 99
A46: ="Stage"&B46&"_"&COUNTIF(B$3:B46,B46) -> Stage8_5 | B46: 8 | C46: 40805 | D46: 10014 | E46: 80 | F46: 10 | G46: 20 | I46: 2.3 | J46: 0 | K46: 1 | M46: 16.2 | N46: 0 | O46: 1 | Q46: 1 | R46: 0 | S46: 1 | U46: 1.5 | V46: 0 | W46: 1 | Y46: 3 | Z46: 0 | AA46: 1 | AC46: 5 | AD46: 0 | AE46: 1 | AG46: 1 | AH46: 0 | AI46: 1 | AK46: 1 | AL46: 1 | AM46: 10 | AO46: 20 | AP46: 5 | AQ46: 99
A47: ="Stage"&B47&"_"&COUNTIF(B$3:B47,B47) -> Stage9_1 | B47: 9 | C47: 40901 | D47: 0 | E47: 80 | F47: 10 | G47: 20 | I47: 2.3 | J47: 0 | K47: 1 | M47: 16.2 | N47: 0 | O47: 1 | Q47: 1 | R47: 0 | S47: 1 | U47: 1.5 | V47: 0 | W47: 1 | Y47: 3 | Z47: 0 | AA47: 1 | AC47: 5 | AD47: 0 | AE47: 1 | AG47: 1 | AH47: 0 | AI47: 1 | AK47: 1 | AL47: 1 | AM47: 10 | AO47: 20 | AP47: 5 | AQ47: 99
A48: ="Stage"&B48&"_"&COUNTIF(B$3:B48,B48) -> Stage9_2 | B48: 9 | C48: 40902 | D48: 10014 | E48: 80 | F48: 10 | G48: 20 | I48: 2.3 | J48: 0 | K48: 1 | M48: 16.2 | N48: 0 | O48: 1 | Q48: 1 | R48: 0 | S48: 1 | U48: 1.5 | V48: 0 | W48: 1 | Y48: 3 | Z48: 0 | AA48: 1 | AC48: 5 | AD48: 0 | AE48: 1 | AG48: 1 | AH48: 0 | AI48: 1 | AK48: 1 | AL48: 1 | AM48: 10 | AO48: 20 | AP48: 5 | AQ48: 99
A49: ="Stage"&B49&"_"&COUNTIF(B$3:B49,B49) -> Stage9_3 | B49: 9 | C49: 40903 | D49: 0 | E49: 80 | F49: 10 | G49: 20 | I49: 2.3 | J49: 0 | K49: 1 | M49: 16.2 | N49: 0 | O49: 1 | Q49: 1 | R49: 0 | S49: 1 | U49: 1.5 | V49: 0 | W49: 1 | Y49: 3 | Z49: 0 | AA49: 1 | AC49: 5 | AD49: 0 | AE49: 1 | AG49: 1 | AH49: 0 | AI49: 1 | AK49: 1 | AL49: 1 | AM49: 10 | AO49: 20 | AP49: 5 | AQ49: 99
A50: ="Stage"&B50&"_"&COUNTIF(B$3:B50,B50) -> Stage9_4 | B50: 9 | C50: 40904 | D50: 10015 | E50: 80 | F50: 10 | G50: 20 | I50: 2.3 | J50: 0 | K50: 1 | M50: 16.2 | N50: 0 | O50: 1 | Q50: 1 | R50: 0 | S50: 1 | U50: 1.5 | V50: 0 | W50: 1 | Y50: 3 | Z50: 0 | AA50: 1 | AC50: 5 | AD50: 0 | AE50: 1 | AG50: 1 | AH50: 0 | AI50: 1 | AK50: 1 | AL50: 1 | AM50: 10 | AO50: 20 | AP50: 5 | AQ50: 99
A51: ="Stage"&B51&"_"&COUNTIF(B$3:B51,B51) -> Stage9_5 | B51: 9 | C51: 40905 | D51: 0 | E51: 80 | F51: 10 | G51: 20 | I51: 2.3 | J51: 0 | K51: 1 | M51: 16.2 | N51: 0 | O51: 1 | Q51: 1 | R51: 0 | S51: 1 | U51: 1.5 | V51: 0 | W51: 1 | Y51: 3 | Z51: 0 | AA51: 1 | AC51: 5 | AD51: 0 | AE51: 1 | AG51: 1 | AH51: 0 | AI51: 1 | AK51: 1 | AL51: 1 | AM51: 10 | AO51: 20 | AP51: 5 | AQ51: 99
A52: ="Stage"&B52&"_"&COUNTIF(B$3:B52,B52) -> Stage9_6 | B52: 9 | C52: 40906 | D52: 10015 | E52: 80 | F52: 10 | G52: 20 | I52: 2.3 | J52: 0 | K52: 1 | M52: 16.2 | N52: 0 | O52: 1 | Q52: 1 | R52: 0 | S52: 1 | U52: 1.5 | V52: 0 | W52: 1 | Y52: 3 | Z52: 0 | AA52: 1 | AC52: 5 | AD52: 0 | AE52: 1 | AG52: 1 | AH52: 0 | AI52: 1 | AK52: 1 | AL52: 1 | AM52: 10 | AO52: 20 | AP52: 5 | AQ52: 99
A53: ="Stage"&B53&"_"&COUNTIF(B$3:B53,B53) -> Stage10_1 | B53: 10 | C53: =5&MID(A53,6,2)&0&RIGHT(A53,1) -> 51001 | D53: 0 | E53: 80 | F53: 10 | G53: 20 | I53: 2.3 | J53: 0 | K53: 1 | M53: 16.2 | N53: 0 | O53: 1 | Q53: 1 | R53: 0 | S53: 1 | U53: 1.5 | V53: 0 | W53: 1 | Y53: 3 | Z53: 0 | AA53: 1 | AC53: 5 | AD53: 0 | AE53: 1 | AG53: 1 | AH53: 0 | AI53: 1 | AK53: 1 | AL53: 1 | AM53: 10 | AO53: 20 | AP53: 5 | AQ53: 99
A54: ="Stage"&B54&"_"&COUNTIF(B$3:B54,B54) -> Stage10_2 | B54: 10 | C54: =5&MID(A54,6,2)&0&RIGHT(A54,1) -> 51002 | D54: 0 | E54: 80 | F54: 10 | G54: 20 | I54: 2.3 | J54: 0 | K54: 1 | M54: 16.2 | N54: 0 | O54: 1 | Q54: 1 | R54: 0 | S54: 1 | U54: 1.5 | V54: 0 | W54: 1 | Y54: 3 | Z54: 0 | AA54: 1 | AC54: 5 | AD54: 0 | AE54: 1 | AG54: 1 | AH54: 0 | AI54: 1 | AK54: 1 | AL54: 1 | AM54: 10 | AO54: 20 | AP54: 5 | AQ54: 99
A55: ="Stage"&B55&"_"&COUNTIF(B$3:B55,B55) -> Stage10_3 | B55: 10 | C55: =5&MID(A55,6,2)&0&RIGHT(A55,1) -> 51003 | D55: 10016 | E55: 80 | F55: 10 | G55: 20 | I55: 2.3 | J55: 0 | K55: 1 | M55: 16.2 | N55: 0 | O55: 1 | Q55: 1 | R55: 0 | S55: 1 | U55: 1.5 | V55: 0 | W55: 1 | Y55: 3 | Z55: 0 | AA55: 1 | AC55: 5 | AD55: 0 | AE55: 1 | AG55: 1 | AH55: 0 | AI55: 1 | AK55: 1 | AL55: 1 | AM55: 10 | AO55: 20 | AP55: 5 | AQ55: 99
A56: ="Stage"&B56&"_"&COUNTIF(B$3:B56,B56) -> Stage10_4 | B56: 10 | C56: 51004 | D56: 0 | E56: 80 | F56: 10 | G56: 20 | I56: 2.3 | J56: 0 | K56: 1 | M56: 16.2 | N56: 0 | O56: 1 | Q56: 1 | R56: 0 | S56: 1 | U56: 1.5 | V56: 0 | W56: 1 | Y56: 3 | Z56: 0 | AA56: 1 | AC56: 5 | AD56: 0 | AE56: 1 | AG56: 1 | AH56: 0 | AI56: 1 | AK56: 1 | AL56: 1 | AM56: 10 | AO56: 20 | AP56: 5 | AQ56: 99
A57: ="Stage"&B57&"_"&COUNTIF(B$3:B57,B57) -> Stage10_5 | B57: 10 | C57: 51005 | D57: 10016 | E57: 80 | F57: 10 | G57: 20 | I57: 2.3 | J57: 0 | K57: 1 | M57: 16.2 | N57: 0 | O57: 1 | Q57: 1 | R57: 0 | S57: 1 | U57: 1.5 | V57: 0 | W57: 1 | Y57: 3 | Z57: 0 | AA57: 1 | AC57: 5 | AD57: 0 | AE57: 1 | AG57: 1 | AH57: 0 | AI57: 1 | AK57: 1 | AL57: 1 | AM57: 10 | AO57: 20 | AP57: 5 | AQ57: 99
A58: ="Stage"&B58&"_"&COUNTIF(B$3:B58,B58) -> Stage11_1 | B58: 11 | C58: 51101 | D58: 0 | E58: 80 | F58: 10 | G58: 20 | I58: 2.3 | J58: 0 | K58: 1 | M58: 16.2 | N58: 0 | O58: 1 | Q58: 1 | R58: 0 | S58: 1 | U58: 1.5 | V58: 0 | W58: 1 | Y58: 3 | Z58: 0 | AA58: 1 | AC58: 5 | AD58: 0 | AE58: 1 | AG58: 1 | AH58: 0 | AI58: 1 | AK58: 1 | AL58: 1 | AM58: 10 | AO58: 20 | AP58: 5 | AQ58: 99
A59: ="Stage"&B59&"_"&COUNTIF(B$3:B59,B59) -> Stage11_2 | B59: 11 | C59: 51102 | D59: 10017 | E59: 80 | F59: 10 | G59: 20 | I59: 2.3 | J59: 0 | K59: 1 | M59: 16.2 | N59: 0 | O59: 1 | Q59: 1 | R59: 0 | S59: 1 | U59: 1.5 | V59: 0 | W59: 1 | Y59: 3 | Z59: 0 | AA59: 1 | AC59: 5 | AD59: 0 | AE59: 1 | AG59: 1 | AH59: 0 | AI59: 1 | AK59: 1 | AL59: 1 | AM59: 10 | AO59: 20 | AP59: 5 | AQ59: 99
A60: ="Stage"&B60&"_"&COUNTIF(B$3:B60,B60) -> Stage11_3 | B60: 11 | C60: 51103 | D60: 0 | E60: 80 | F60: 10 | G60: 20 | I60: 2.3 | J60: 0 | K60: 1 | M60: 16.2 | N60: 0 | O60: 1 | Q60: 1 | R60: 0 | S60: 1 | U60: 1.5 | V60: 0 | W60: 1 | Y60: 3 | Z60: 0 | AA60: 1 | AC60: 5 | AD60: 0 | AE60: 1 | AG60: 1 | AH60: 0 | AI60: 1 | AK60: 1 | AL60: 1 | AM60: 10 | AO60: 20 | AP60: 5 | AQ60: 99
A61: ="Stage"&B61&"_"&COUNTIF(B$3:B61,B61) -> Stage11_4 | B61: 11 | C61: 51104 | D61: 10016 | E61: 80 | F61: 10 | G61: 20 | I61: 2.3 | J61: 0 | K61: 1 | M61: 16.2 | N61: 0 | O61: 1 | Q61: 1 | R61: 0 | S61: 1 | U61: 1.5 | V61: 0 | W61: 1 | Y61: 3 | Z61: 0 | AA61: 1 | AC61: 5 | AD61: 0 | AE61: 1 | AG61: 1 | AH61: 0 | AI61: 1 | AK61: 1 | AL61: 1 | AM61: 10 | AO61: 20 | AP61: 5 | AQ61: 99
A62: ="Stage"&B62&"_"&COUNTIF(B$3:B62,B62) -> Stage11_5 | B62: 11 | C62: 51105 | D62: 10017 | E62: 80 | F62: 10 | G62: 20 | I62: 2.3 | J62: 0 | K62: 1 | M62: 16.2 | N62: 0 | O62: 1 | Q62: 1 | R62: 0 | S62: 1 | U62: 1.5 | V62: 0 | W62: 1 | Y62: 3 | Z62: 0 | AA62: 1 | AC62: 5 | AD62: 0 | AE62: 1 | AG62: 1 | AH62: 0 | AI62: 1 | AK62: 1 | AL62: 1 | AM62: 10 | AO62: 20 | AP62: 5 | AQ62: 99
A63: ="Stage"&B63&"_"&COUNTIF(B$3:B63,B63) -> Stage12_1 | B63: 12 | C63: 51201 | D63: 10018 | E63: 80 | F63: 10 | G63: 20 | I63: 2.3 | J63: 0 | K63: 1 | M63: 16.2 | N63: 0 | O63: 1 | Q63: 1 | R63: 0 | S63: 1 | U63: 1.5 | V63: 0 | W63: 1 | Y63: 3 | Z63: 0 | AA63: 1 | AC63: 5 | AD63: 0 | AE63: 1 | AG63: 1 | AH63: 0 | AI63: 1 | AK63: 1 | AL63: 1 | AM63: 10 | AO63: 20 | AP63: 5 | AQ63: 99
A64: ="Stage"&B64&"_"&COUNTIF(B$3:B64,B64) -> Stage12_2 | B64: 12 | C64: 51202 | D64: 10017 | E64: 80 | F64: 10 | G64: 20 | I64: 2.3 | J64: 0 | K64: 1 | M64: 16.2 | N64: 0 | O64: 1 | Q64: 1 | R64: 0 | S64: 1 | U64: 1.5 | V64: 0 | W64: 1 | Y64: 3 | Z64: 0 | AA64: 1 | AC64: 5 | AD64: 0 | AE64: 1 | AG64: 1 | AH64: 0 | AI64: 1 | AK64: 1 | AL64: 1 | AM64: 10 | AO64: 20 | AP64: 5 | AQ64: 99
A65: ="Stage"&B65&"_"&COUNTIF(B$3:B65,B65) -> Stage12_3 | B65: 12 | C65: 51203 | D65: 10016 | E65: 80 | F65: 10 | G65: 20 | I65: 2.3 | J65: 0 | K65: 1 | M65: 16.2 | N65: 0 | O65: 1 | Q65: 1 | R65: 0 | S65: 1 | U65: 1.5 | V65: 0 | W65: 1 | Y65: 3 | Z65: 0 | AA65: 1 | AC65: 5 | AD65: 0 | AE65: 1 | AG65: 1 | AH65: 0 | AI65: 1 | AK65: 1 | AL65: 1 | AM65: 10 | AO65: 20 | AP65: 5 | AQ65: 99
A66: ="Stage"&B66&"_"&COUNTIF(B$3:B66,B66) -> Stage12_4 | B66: 12 | C66: 51204 | D66: 0 | E66: 80 | F66: 10 | G66: 20 | I66: 2.3 | J66: 0 | K66: 1 | M66: 16.2 | N66: 0 | O66: 1 | Q66: 1 | R66: 0 | S66: 1 | U66: 1.5 | V66: 0 | W66: 1 | Y66: 3 | Z66: 0 | AA66: 1 | AC66: 5 | AD66: 0 | AE66: 1 | AG66: 1 | AH66: 0 | AI66: 1 | AK66: 1 | AL66: 1 | AM66: 10 | AO66: 20 | AP66: 5 | AQ66: 99
A67: ="Stage"&B67&"_"&COUNTIF(B$3:B67,B67) -> Stage12_5 | B67: 12 | C67: 51205 | D67: 10018 | E67: 80 | F67: 10 | G67: 20 | I67: 2.3 | J67: 0 | K67: 1 | M67: 16.2 | N67: 0 | O67: 1 | Q67: 1 | R67: 0 | S67: 1 | U67: 1.5 | V67: 0 | W67: 1 | Y67: 3 | Z67: 0 | AA67: 1 | AC67: 5 | AD67: 0 | AE67: 1 | AG67: 1 | AH67: 0 | AI67: 1 | AK67: 1 | AL67: 1 | AM67: 10 | AO67: 20 | AP67: 5 | AQ67: 99
A68: ="Stage"&B68&"_"&COUNTIF(B$3:B68,B68) -> Stage12_6 | B68: 12 | C68: 51206 | D68: 10017 | E68: 80 | F68: 10 | G68: 20 | I68: 2.3 | J68: 0 | K68: 1 | M68: 16.2 | N68: 0 | O68: 1 | Q68: 1 | R68: 0 | S68: 1 | U68: 1.5 | V68: 0 | W68: 1 | Y68: 3 | Z68: 0 | AA68: 1 | AC68: 5 | AD68: 0 | AE68: 1 | AG68: 1 | AH68: 0 | AI68: 1 | AK68: 1 | AL68: 1 | AM68: 10 | AO68: 20 | AP68: 5 | AQ68: 99
A69: ="Stage"&B69&"_"&COUNTIF(B$3:B69,B69) -> Stage12_7 | B69: 12 | C69: 51207 | D69: 10018 | E69: 80 | F69: 10 | G69: 20 | I69: 2.3 | J69: 0 | K69: 1 | M69: 16.2 | N69: 0 | O69: 1 | Q69: 1 | R69: 0 | S69: 1 | U69: 1.5 | V69: 0 | W69: 1 | Y69: 3 | Z69: 0 | AA69: 1 | AC69: 5 | AD69: 0 | AE69: 1 | AG69: 1 | AH69: 0 | AI69: 1 | AK69: 1 | AL69: 1 | AM69: 10 | AO69: 20 | AP69: 5 | AQ69: 99
A70: ="Stage"&B70&"_"&COUNTIF(B$3:B70,B70) -> Stage13_1 | B70: 13 | C70: =6&MID(A70,6,2)&0&RIGHT(A70,1) -> 61301 | D70: 0 | E70: 80 | F70: 10 | G70: 20 | I70: 2.3 | J70: 0 | K70: 1 | M70: 16.2 | N70: 0 | O70: 1 | Q70: 1 | R70: 0 | S70: 1 | U70: 1.5 | V70: 0 | W70: 1 | Y70: 3 | Z70: 0 | AA70: 1 | AC70: 5 | AD70: 0 | AE70: 1 | AG70: 1 | AH70: 0 | AI70: 1 | AK70: 1 | AL70: 1 | AM70: 10 | AO70: 20 | AP70: 5 | AQ70: 99
A71: ="Stage"&B71&"_"&COUNTIF(B$3:B71,B71) -> Stage13_2 | B71: 13 | C71: =6&MID(A71,6,2)&0&RIGHT(A71,1) -> 61302 | D71: 0 | E71: 80 | F71: 10 | G71: 20 | I71: 2.3 | J71: 0 | K71: 1 | M71: 16.2 | N71: 0 | O71: 1 | Q71: 1 | R71: 0 | S71: 1 | U71: 1.5 | V71: 0 | W71: 1 | Y71: 3 | Z71: 0 | AA71: 1 | AC71: 5 | AD71: 0 | AE71: 1 | AG71: 1 | AH71: 0 | AI71: 1 | AK71: 1 | AL71: 1 | AM71: 10 | AO71: 20 | AP71: 5 | AQ71: 99
A72: ="Stage"&B72&"_"&COUNTIF(B$3:B72,B72) -> Stage13_3 | B72: 13 | C72: 61303 | D72: 0 | E72: 80 | F72: 10 | G72: 20 | I72: 2.3 | J72: 0 | K72: 1 | M72: 16.2 | N72: 0 | O72: 1 | Q72: 1 | R72: 0 | S72: 1 | U72: 1.5 | V72: 0 | W72: 1 | Y72: 3 | Z72: 0 | AA72: 1 | AC72: 5 | AD72: 0 | AE72: 1 | AG72: 1 | AH72: 0 | AI72: 1 | AK72: 1 | AL72: 1 | AM72: 10 | AO72: 20 | AP72: 5 | AQ72: 99
A73: ="Stage"&B73&"_"&COUNTIF(B$3:B73,B73) -> Stage13_4 | B73: 13 | C73: 61304 | D73: 10019 | E73: 80 | F73: 10 | G73: 20 | I73: 2.3 | J73: 0 | K73: 1 | M73: 16.2 | N73: 0 | O73: 1 | Q73: 1 | R73: 0 | S73: 1 | U73: 1.5 | V73: 0 | W73: 1 | Y73: 3 | Z73: 0 | AA73: 1 | AC73: 5 | AD73: 0 | AE73: 1 | AG73: 1 | AH73: 0 | AI73: 1 | AK73: 1 | AL73: 1 | AM73: 10 | AO73: 20 | AP73: 5 | AQ73: 99
A74: ="Stage"&B74&"_"&COUNTIF(B$3:B74,B74) -> Stage14_1 | B74: 14 | C74: 61401 | D74: 0 | E74: 80 | F74: 10 | G74: 20 | I74: 2.3 | J74: 0 | K74: 1 | M74: 16.2 | N74: 0 | O74: 1 | Q74: 1 | R74: 0 | S74: 1 | U74: 1.5 | V74: 0 | W74: 1 | Y74: 3 | Z74: 0 | AA74: 1 | AC74: 5 | AD74: 0 | AE74: 1 | AG74: 1 | AH74: 0 | AI74: 1 | AK74: 1 | AL74: 1 | AM74: 10 | AO74: 20 | AP74: 5 | AQ74: 99
A75: ="Stage"&B75&"_"&COUNTIF(B$3:B75,B75) -> Stage14_2 | B75: 14 | C75: 61402 | D75: 0 | E75: 80 | F75: 10 | G75: 20 | I75: 2.3 | J75: 0 | K75: 1 | M75: 16.2 | N75: 0 | O75: 1 | Q75: 1 | R75: 0 | S75: 1 | U75: 1.5 | V75: 0 | W75: 1 | Y75: 3 | Z75: 0 | AA75: 1 | AC75: 5 | AD75: 0 | AE75: 1 | AG75: 1 | AH75: 0 | AI75: 1 | AK75: 1 | AL75: 1 | AM75: 10 | AO75: 20 | AP75: 5 | AQ75: 99
A76: ="Stage"&B76&"_"&COUNTIF(B$3:B76,B76) -> Stage14_3 | B76: 14 | C76: 61403 | D76: 10019 | E76: 80 | F76: 10 | G76: 20 | I76: 2.3 | J76: 0 | K76: 1 | M76: 16.2 | N76: 0 | O76: 1 | Q76: 1 | R76: 0 | S76: 1 | U76: 1.5 | V76: 0 | W76: 1 | Y76: 3 | Z76: 0 | AA76: 1 | AC76: 5 | AD76: 0 | AE76: 1 | AG76: 1 | AH76: 0 | AI76: 1 | AK76: 1 | AL76: 1 | AM76: 10 | AO76: 20 | AP76: 5 | AQ76: 99
A77: ="Stage"&B77&"_"&COUNTIF(B$3:B77,B77) -> Stage14_4 | B77: 14 | C77: 61404 | D77: 0 | E77: 80 | F77: 10 | G77: 20 | I77: 2.3 | J77: 0 | K77: 1 | M77: 16.2 | N77: 0 | O77: 1 | Q77: 1 | R77: 0 | S77: 1 | U77: 1.5 | V77: 0 | W77: 1 | Y77: 3 | Z77: 0 | AA77: 1 | AC77: 5 | AD77: 0 | AE77: 1 | AG77: 1 | AH77: 0 | AI77: 1 | AK77: 1 | AL77: 1 | AM77: 10 | AO77: 20 | AP77: 5 | AQ77: 99
A78: ="Stage"&B78&"_"&COUNTIF(B$3:B78,B78) -> Stage14_5 | B78: 14 | C78: 61405 | D78: 10020 | E78: 80 | F78: 10 | G78: 20 | I78: 2.3 | J78: 0 | K78: 1 | M78: 16.2 | N78: 0 | O78: 1 | Q78: 1 | R78: 0 | S78: 1 | U78: 1.5 | V78: 0 | W78: 1 | Y78: 3 | Z78: 0 | AA78: 1 | AC78: 5 | AD78: 0 | AE78: 1 | AG78: 1 | AH78: 0 | AI78: 1 | AK78: 1 | AL78: 1 | AM78: 10 | AO78: 20 | AP78: 5 | AQ78: 99
A79: ="Stage"&B79&"_"&COUNTIF(B$3:B79,B79) -> Stage15_1 | B79: 15 | C79: 61501 | D79: 0 | E79: 80 | F79: 10 | G79: 20 | I79: 2.3 | J79: 0 | K79: 1 | M79: 16.2 | N79: 0 | O79: 1 | Q79: 1 | R79: 0 | S79: 1 | U79: 1.5 | V79: 0 | W79: 1 | Y79: 3 | Z79: 0 | AA79: 1 | AC79: 5 | AD79: 0 | AE79: 1 | AG79: 1 | AH79: 0 | AI79: 1 | AK79: 1 | AL79: 1 | AM79: 10 | AO79: 20 | AP79: 5 | AQ79: 99
A80: ="Stage"&B80&"_"&COUNTIF(B$3:B80,B80) -> Stage15_2 | B80: 15 | C80: 61502 | D80: 10021 | E80: 80 | F80: 10 | G80: 20 | I80: 2.3 | J80: 0 | K80: 1 | M80: 16.2 | N80: 0 | O80: 1 | Q80: 1 | R80: 0 | S80: 1 | U80: 1.5 | V80: 0 | W80: 1 | Y80: 3 | Z80: 0 | AA80: 1 | AC80: 5 | AD80: 0 | AE80: 1 | AG80: 1 | AH80: 0 | AI80: 1 | AK80: 1 | AL80: 1 | AM80: 10 | AO80: 20 | AP80: 5 | AQ80: 99
A81: ="Stage"&B81&"_"&COUNTIF(B$3:B81,B81) -> Stage15_3 | B81: 15 | C81: 61503 | D81: 0 | E81: 80 | F81: 10 | G81: 20 | I81: 2.3 | J81: 0 | K81: 1 | M81: 16.2 | N81: 0 | O81: 1 | Q81: 1 | R81: 0 | S81: 1 | U81: 1.5 | V81: 0 | W81: 1 | Y81: 3 | Z81: 0 | AA81: 1 | AC81: 5 | AD81: 0 | AE81: 1 | AG81: 1 | AH81: 0 | AI81: 1 | AK81: 1 | AL81: 1 | AM81: 10 | AO81: 20 | AP81: 5 | AQ81: 99
A82: ="Stage"&B82&"_"&COUNTIF(B$3:B82,B82) -> Stage15_4 | B82: 15 | C82: 61504 | D82: 10020 | E82: 80 | F82: 10 | G82: 20 | I82: 2.3 | J82: 0 | K82: 1 | M82: 16.2 | N82: 0 | O82: 1 | Q82: 1 | R82: 0 | S82: 1 | U82: 1.5 | V82: 0 | W82: 1 | Y82: 3 | Z82: 0 | AA82: 1 | AC82: 5 | AD82: 0 | AE82: 1 | AG82: 1 | AH82: 0 | AI82: 1 | AK82: 1 | AL82: 1 | AM82: 10 | AO82: 20 | AP82: 5 | AQ82: 99
A83: ="Stage"&B83&"_"&COUNTIF(B$3:B83,B83) -> Stage15_5 | B83: 15 | C83: 61505 | D83: 10021 | E83: 80 | F83: 10 | G83: 20 | I83: 2.3 | J83: 0 | K83: 1 | M83: 16.2 | N83: 0 | O83: 1 | Q83: 1 | R83: 0 | S83: 1 | U83: 1.5 | V83: 0 | W83: 1 | Y83: 3 | Z83: 0 | AA83: 1 | AC83: 5 | AD83: 0 | AE83: 1 | AG83: 1 | AH83: 0 | AI83: 1 | AK83: 1 | AL83: 1 | AM83: 10 | AO83: 20 | AP83: 5 | AQ83: 99
A84: ="Stage"&B84&"_"&COUNTIF(B$3:B84,B84) -> Stage16_1 | B84: 16 | C84: 61601 | D84: 10020 | E84: 80 | F84: 10 | G84: 20 | I84: 2.3 | J84: 0 | K84: 1 | M84: 16.2 | N84: 0 | O84: 1 | Q84: 1 | R84: 0 | S84: 1 | U84: 1.5 | V84: 0 | W84: 1 | Y84: 3 | Z84: 0 | AA84: 1 | AC84: 5 | AD84: 0 | AE84: 1 | AG84: 1 | AH84: 0 | AI84: 1 | AK84: 1 | AL84: 1 | AM84: 10 | AO84: 20 | AP84: 5 | AQ84: 99
A85: ="Stage"&B85&"_"&COUNTIF(B$3:B85,B85) -> Stage16_2 | B85: 16 | C85: 61602 | D85: 10021 | E85: 80 | F85: 10 | G85: 20 | I85: 2.3 | J85: 0 | K85: 1 | M85: 16.2 | N85: 0 | O85: 1 | Q85: 1 | R85: 0 | S85: 1 | U85: 1.5 | V85: 0 | W85: 1 | Y85: 3 | Z85: 0 | AA85: 1 | AC85: 5 | AD85: 0 | AE85: 1 | AG85: 1 | AH85: 0 | AI85: 1 | AK85: 1 | AL85: 1 | AM85: 10 | AO85: 20 | AP85: 5 | AQ85: 99
A86: ="Stage"&B86&"_"&COUNTIF(B$3:B86,B86) -> Stage16_3 | B86: 16 | C86: 61603 | D86: 10019 | E86: 80 | F86: 10 | G86: 20 | I86: 2.3 | J86: 0 | K86: 1 | M86: 16.2 | N86: 0 | O86: 1 | Q86: 1 | R86: 0 | S86: 1 | U86: 1.5 | V86: 0 | W86: 1 | Y86: 3 | Z86: 0 | AA86: 1 | AC86: 5 | AD86: 0 | AE86: 1 | AG86: 1 | AH86: 0 | AI86: 1 | AK86: 1 | AL86: 1 | AM86: 10 | AO86: 20 | AP86: 5 | AQ86: 99
A87: ="Stage"&B87&"_"&COUNTIF(B$3:B87,B87) -> Stage17_1 | B87: 17 | C87: =7&MID(A87,6,2)&0&RIGHT(A87,1) -> 71701 | D87: 0 | E87: 80 | F87: 10 | G87: 20 | I87: 2.3 | J87: 0 | K87: 1 | M87: 16.2 | N87: 0 | O87: 1 | Q87: 1 | R87: 0 | S87: 1 | U87: 1.5 | V87: 0 | W87: 1 | Y87: 3 | Z87: 0 | AA87: 1 | AC87: 5 | AD87: 0 | AE87: 1 | AG87: 1 | AH87: 0 | AI87: 1 | AK87: 1 | AL87: 1 | AM87: 10 | AO87: 20 | AP87: 5 | AQ87: 99
A88: ="Stage"&B88&"_"&COUNTIF(B$3:B88,B88) -> Stage17_2 | B88: 17 | C88: =7&MID(A88,6,2)&0&RIGHT(A88,1) -> 71702 | D88: 10022 | E88: 80 | F88: 10 | G88: 20 | I88: 2.3 | J88: 0 | K88: 1 | M88: 16.2 | N88: 0 | O88: 1 | Q88: 1 | R88: 0 | S88: 1 | U88: 1.5 | V88: 0 | W88: 1 | Y88: 3 | Z88: 0 | AA88: 1 | AC88: 5 | AD88: 0 | AE88: 1 | AG88: 1 | AH88: 0 | AI88: 1 | AK88: 1 | AL88: 1 | AM88: 10 | AO88: 20 | AP88: 5 | AQ88: 99
A89: ="Stage"&B89&"_"&COUNTIF(B$3:B89,B89) -> Stage17_3 | B89: 17 | C89: 71703 | D89: 0 | E89: 80 | F89: 10 | G89: 20 | I89: 2.3 | J89: 0 | K89: 1 | M89: 16.2 | N89: 0 | O89: 1 | Q89: 1 | R89: 0 | S89: 1 | U89: 1.5 | V89: 0 | W89: 1 | Y89: 3 | Z89: 0 | AA89: 1 | AC89: 5 | AD89: 0 | AE89: 1 | AG89: 1 | AH89: 0 | AI89: 1 | AK89: 1 | AL89: 1 | AM89: 10 | AO89: 20 | AP89: 5 | AQ89: 99
A90: ="Stage"&B90&"_"&COUNTIF(B$3:B90,B90) -> Stage17_4 | B90: 17 | C90: 71704 | D90: 10023 | E90: 80 | F90: 10 | G90: 20 | I90: 2.3 | J90: 0 | K90: 1 | M90: 16.2 | N90: 0 | O90: 1 | Q90: 1 | R90: 0 | S90: 1 | U90: 1.5 | V90: 0 | W90: 1 | Y90: 3 | Z90: 0 | AA90: 1 | AC90: 5 | AD90: 0 | AE90: 1 | AG90: 1 | AH90: 0 | AI90: 1 | AK90: 1 | AL90: 1 | AM90: 10 | AO90: 20 | AP90: 5 | AQ90: 99
A91: ="Stage"&B91&"_"&COUNTIF(B$3:B91,B91) -> Stage17_5 | B91: 17 | C91: 71705 | D91: 0 | E91: 80 | F91: 10 | G91: 20 | I91: 2.3 | J91: 0 | K91: 1 | M91: 16.2 | N91: 0 | O91: 1 | Q91: 1 | R91: 0 | S91: 1 | U91: 1.5 | V91: 0 | W91: 1 | Y91: 3 | Z91: 0 | AA91: 1 | AC91: 5 | AD91: 0 | AE91: 1 | AG91: 1 | AH91: 0 | AI91: 1 | AK91: 1 | AL91: 1 | AM91: 10 | AO91: 20 | AP91: 5 | AQ91: 99
A92: ="Stage"&B92&"_"&COUNTIF(B$3:B92,B92) -> Stage17_6 | B92: 17 | C92: 71706 | D92: 10022 | E92: 80 | F92: 10 | G92: 20 | I92: 2.3 | J92: 0 | K92: 1 | M92: 16.2 | N92: 0 | O92: 1 | Q92: 1 | R92: 0 | S92: 1 | U92: 1.5 | V92: 0 | W92: 1 | Y92: 3 | Z92: 0 | AA92: 1 | AC92: 5 | AD92: 0 | AE92: 1 | AG92: 1 | AH92: 0 | AI92: 1 | AK92: 1 | AL92: 1 | AM92: 10 | AO92: 20 | AP92: 5 | AQ92: 99
A93: ="Stage"&B93&"_"&COUNTIF(B$3:B93,B93) -> Stage17_7 | B93: 17 | C93: 71707 | D93: 0 | E93: 80 | F93: 10 | G93: 20 | I93: 2.3 | J93: 0 | K93: 1 | M93: 16.2 | N93: 0 | O93: 1 | Q93: 1 | R93: 0 | S93: 1 | U93: 1.5 | V93: 0 | W93: 1 | Y93: 3 | Z93: 0 | AA93: 1 | AC93: 5 | AD93: 0 | AE93: 1 | AG93: 1 | AH93: 0 | AI93: 1 | AK93: 1 | AL93: 1 | AM93: 10 | AO93: 20 | AP93: 5 | AQ93: 99
A94: ="Stage"&B94&"_"&COUNTIF(B$3:B94,B94) -> Stage17_8 | B94: 17 | C94: 71708 | D94: 10023 | E94: 80 | F94: 10 | G94: 20 | I94: 2.3 | J94: 0 | K94: 1 | M94: 16.2 | N94: 0 | O94: 1 | Q94: 1 | R94: 0 | S94: 1 | U94: 1.5 | V94: 0 | W94: 1 | Y94: 3 | Z94: 0 | AA94: 1 | AC94: 5 | AD94: 0 | AE94: 1 | AG94: 1 | AH94: 0 | AI94: 1 | AK94: 1 | AL94: 1 | AM94: 10 | AO94: 20 | AP94: 5 | AQ94: 99
A95: ="Stage"&B95&"_"&COUNTIF(B$3:B95,B95) -> Stage18_1 | B95: 18 | C95: 71801 | D95: 0 | E95: 80 | F95: 10 | G95: 20 | I95: 2.3 | J95: 0 | K95: 1 | M95: 16.2 | N95: 0 | O95: 1 | Q95: 1 | R95: 0 | S95: 1 | U95: 1.5 | V95: 0 | W95: 1 | Y95: 3 | Z95: 0 | AA95: 1 | AC95: 5 | AD95: 0 | AE95: 1 | AG95: 1 | AH95: 0 | AI95: 1 | AK95: 1 | AL95: 1 | AM95: 10 | AO95: 20 | AP95: 5 | AQ95: 99
A96: ="Stage"&B96&"_"&COUNTIF(B$3:B96,B96) -> Stage18_2 | B96: 18 | C96: 71802 | D96: 10024 | E96: 80 | F96: 10 | G96: 20 | I96: 2.3 | J96: 0 | K96: 1 | M96: 16.2 | N96: 0 | O96: 1 | Q96: 1 | R96: 0 | S96: 1 | U96: 1.5 | V96: 0 | W96: 1 | Y96: 3 | Z96: 0 | AA96: 1 | AC96: 5 | AD96: 0 | AE96: 1 | AG96: 1 | AH96: 0 | AI96: 1 | AK96: 1 | AL96: 1 | AM96: 10 | AO96: 20 | AP96: 5 | AQ96: 99
A97: ="Stage"&B97&"_"&COUNTIF(B$3:B97,B97) -> Stage18_3 | B97: 18 | C97: 71803 | D97: 10022 | E97: 80 | F97: 10 | G97: 20 | I97: 2.3 | J97: 0 | K97: 1 | M97: 16.2 | N97: 0 | O97: 1 | Q97: 1 | R97: 0 | S97: 1 | U97: 1.5 | V97: 0 | W97: 1 | Y97: 3 | Z97: 0 | AA97: 1 | AC97: 5 | AD97: 0 | AE97: 1 | AG97: 1 | AH97: 0 | AI97: 1 | AK97: 1 | AL97: 1 | AM97: 10 | AO97: 20 | AP97: 5 | AQ97: 99
A98: ="Stage"&B98&"_"&COUNTIF(B$3:B98,B98) -> Stage18_4 | B98: 18 | C98: 71804 | D98: 10023 | E98: 80 | F98: 10 | G98: 20 | I98: 2.3 | J98: 0 | K98: 1 | M98: 16.2 | N98: 0 | O98: 1 | Q98: 1 | R98: 0 | S98: 1 | U98: 1.5 | V98: 0 | W98: 1 | Y98: 3 | Z98: 0 | AA98: 1 | AC98: 5 | AD98: 0 | AE98: 1 | AG98: 1 | AH98: 0 | AI98: 1 | AK98: 1 | AL98: 1 | AM98: 10 | AO98: 20 | AP98: 5 | AQ98: 99
A99: ="Stage"&B99&"_"&COUNTIF(B$3:B99,B99) -> Stage18_5 | B99: 18 | C99: 71805 | D99: 0 | E99: 80 | F99: 10 | G99: 20 | I99: 2.3 | J99: 0 | K99: 1 | M99: 16.2 | N99: 0 | O99: 1 | Q99: 1 | R99: 0 | S99: 1 | U99: 1.5 | V99: 0 | W99: 1 | Y99: 3 | Z99: 0 | AA99: 1 | AC99: 5 | AD99: 0 | AE99: 1 | AG99: 1 | AH99: 0 | AI99: 1 | AK99: 1 | AL99: 1 | AM99: 10 | AO99: 20 | AP99: 5 | AQ99: 99
A100: ="Stage"&B100&"_"&COUNTIF(B$3:B100,B100) -> Stage18_6 | B100: 18 | C100: 71806 | D100: 10024 | E100: 80 | F100: 10 | G100: 20 | I100: 2.3 | J100: 0 | K100: 1 | M100: 16.2 | N100: 0 | O100: 1 | Q100: 1 | R100: 0 | S100: 1 | U100: 1.5 | V100: 0 | W100: 1 | Y100: 3 | Z100: 0 | AA100: 1 | AC100: 5 | AD100: 0 | AE100: 1 | AG100: 1 | AH100: 0 | AI100: 1 | AK100: 1 | AL100: 1 | AM100: 10 | AO100: 20 | AP100: 5 | AQ100: 99
A101: ="Stage"&B101&"_"&COUNTIF(B$3:B101,B101) -> Stage18_7 | B101: 18 | C101: 71807 | D101: 0 | E101: 80 | F101: 10 | G101: 20 | I101: 2.3 | J101: 0 | K101: 1 | M101: 16.2 | N101: 0 | O101: 1 | Q101: 1 | R101: 0 | S101: 1 | U101: 1.5 | V101: 0 | W101: 1 | Y101: 3 | Z101: 0 | AA101: 1 | AC101: 5 | AD101: 0 | AE101: 1 | AG101: 1 | AH101: 0 | AI101: 1 | AK101: 1 | AL101: 1 | AM101: 10 | AO101: 20 | AP101: 5 | AQ101: 99
A102: ="Stage"&B102&"_"&COUNTIF(B$3:B102,B102) -> Stage18_8 | B102: 18 | C102: 71808 | D102: 10024 | E102: 80 | F102: 10 | G102: 20 | I102: 2.3 | J102: 0 | K102: 1 | M102: 16.2 | N102: 0 | O102: 1 | Q102: 1 | R102: 0 | S102: 1 | U102: 1.5 | V102: 0 | W102: 1 | Y102: 3 | Z102: 0 | AA102: 1 | AC102: 5 | AD102: 0 | AE102: 1 | AG102: 1 | AH102: 0 | AI102: 1 | AK102: 1 | AL102: 1 | AM102: 10 | AO102: 20 | AP102: 5 | AQ102: 99
A103: ="Stage"&B103&"_"&COUNTIF(B$3:B103,B103) -> Stage19_1 | B103: 19 | C103: =8&MID(A103,6,2)&0&RIGHT(A103,1) -> 81901 | D103: 0 | E103: 80 | F103: 10 | G103: 20 | I103: 2.3 | J103: 0 | K103: 1 | M103: 16.2 | N103: 0 | O103: 1 | Q103: 1 | R103: 0 | S103: 1 | U103: 1.5 | V103: 0 | W103: 1 | Y103: 3 | Z103: 0 | AA103: 1 | AC103: 5 | AD103: 0 | AE103: 1 | AG103: 1 | AH103: 0 | AI103: 1 | AK103: 1 | AL103: 1 | AM103: 10 | AO103: 20 | AP103: 5 | AQ103: 99
A104: ="Stage"&B104&"_"&COUNTIF(B$3:B104,B104) -> Stage19_2 | B104: 19 | C104: =8&MID(A104,6,2)&0&RIGHT(A104,1) -> 81902 | D104: 10025 | E104: 80 | F104: 10 | G104: 20 | I104: 2.3 | J104: 0 | K104: 1 | M104: 16.2 | N104: 0 | O104: 1 | Q104: 1 | R104: 0 | S104: 1 | U104: 1.5 | V104: 0 | W104: 1 | Y104: 3 | Z104: 0 | AA104: 1 | AC104: 5 | AD104: 0 | AE104: 1 | AG104: 1 | AH104: 0 | AI104: 1 | AK104: 1 | AL104: 1 | AM104: 10 | AO104: 20 | AP104: 5 | AQ104: 99
A105: ="Stage"&B105&"_"&COUNTIF(B$3:B105,B105) -> Stage19_3 | B105: 19 | C105: 81903 | D105: 0 | E105: 80 | F105: 10 | G105: 20 | I105: 2.3 | J105: 0 | K105: 1 | M105: 16.2 | N105: 0 | O105: 1 | Q105: 1 | R105: 0 | S105: 1 | U105: 1.5 | V105: 0 | W105: 1 | Y105: 3 | Z105: 0 | AA105: 1 | AC105: 5 | AD105: 0 | AE105: 1 | AG105: 1 | AH105: 0 | AI105: 1 | AK105: 1 | AL105: 1 | AM105: 10 | AO105: 20 | AP105: 5 | AQ105: 99
A106: ="Stage"&B106&"_"&COUNTIF(B$3:B106,B106) -> Stage19_4 | B106: 19 | C106: 81904 | D106: 10026 | E106: 80 | F106: 10 | G106: 20 | I106: 2.3 | J106: 0 | K106: 1 | M106: 16.2 | N106: 0 | O106: 1 | Q106: 1 | R106: 0 | S106: 1 | U106: 1.5 | V106: 0 | W106: 1 | Y106: 3 | Z106: 0 | AA106: 1 | AC106: 5 | AD106: 0 | AE106: 1 | AG106: 1 | AH106: 0 | AI106: 1 | AK106: 1 | AL106: 1 | AM106: 10 | AO106: 20 | AP106: 5 | AQ106: 99
A107: ="Stage"&B107&"_"&COUNTIF(B$3:B107,B107) -> Stage19_5 | B107: 19 | C107: 81905 | D107: 0 | E107: 80 | F107: 10 | G107: 20 | I107: 2.3 | J107: 0 | K107: 1 | M107: 16.2 | N107: 0 | O107: 1 | Q107: 1 | R107: 0 | S107: 1 | U107: 1.5 | V107: 0 | W107: 1 | Y107: 3 | Z107: 0 | AA107: 1 | AC107: 5 | AD107: 0 | AE107: 1 | AG107: 1 | AH107: 0 | AI107: 1 | AK107: 1 | AL107: 1 | AM107: 10 | AO107: 20 | AP107: 5 | AQ107: 99
A108: ="Stage"&B108&"_"&COUNTIF(B$3:B108,B108) -> Stage19_6 | B108: 19 | C108: 81906 | D108: 10025 | E108: 80 | F108: 10 | G108: 20 | I108: 2.3 | J108: 0 | K108: 1 | M108: 16.2 | N108: 0 | O108: 1 | Q108: 1 | R108: 0 | S108: 1 | U108: 1.5 | V108: 0 | W108: 1 | Y108: 3 | Z108: 0 | AA108: 1 | AC108: 5 | AD108: 0 | AE108: 1 | AG108: 1 | AH108: 0 | AI108: 1 | AK108: 1 | AL108: 1 | AM108: 10 | AO108: 20 | AP108: 5 | AQ108: 99
A109: ="Stage"&B109&"_"&COUNTIF(B$3:B109,B109) -> Stage19_7 | B109: 19 | C109: 81907 | D109: 0 | E109: 80 | F109: 10 | G109: 20 | I109: 2.3 | J109: 0 | K109: 1 | M109: 16.2 | N109: 0 | O109: 1 | Q109: 1 | R109: 0 | S109: 1 | U109: 1.5 | V109: 0 | W109: 1 | Y109: 3 | Z109: 0 | AA109: 1 | AC109: 5 | AD109: 0 | AE109: 1 | AG109: 1 | AH109: 0 | AI109: 1 | AK109: 1 | AL109: 1 | AM109: 10 | AO109: 20 | AP109: 5 | AQ109: 99
A110: ="Stage"&B110&"_"&COUNTIF(B$3:B110,B110) -> Stage19_8 | B110: 19 | C110: 81908 | D110: 10026 | E110: 80 | F110: 10 | G110: 20 | I110: 2.3 | J110: 0 | K110: 1 | M110: 16.2 | N110: 0 | O110: 1 | Q110: 1 | R110: 0 | S110: 1 | U110: 1.5 | V110: 0 | W110: 1 | Y110: 3 | Z110: 0 | AA110: 1 | AC110: 5 | AD110: 0 | AE110: 1 | AG110: 1 | AH110: 0 | AI110: 1 | AK110: 1 | AL110: 1 | AM110: 10 | AO110: 20 | AP110: 5 | AQ110: 99
A111: ="Stage"&B111&"_"&COUNTIF(B$3:B111,B111) -> Stage19_9 | B111: 19 | C111: 81909 | D111: 10025 | E111: 80 | F111: 10 | G111: 20 | I111: 2.3 | J111: 0 | K111: 1 | M111: 16.2 | N111: 0 | O111: 1 | Q111: 1 | R111: 0 | S111: 1 | U111: 1.5 | V111: 0 | W111: 1 | Y111: 3 | Z111: 0 | AA111: 1 | AC111: 5 | AD111: 0 | AE111: 1 | AG111: 1 | AH111: 0 | AI111: 1 | AK111: 1 | AL111: 1 | AM111: 10 | AO111: 20 | AP111: 5 | AQ111: 99
A112: ="Stage"&B112&"_"&COUNTIF(B$3:B112,B112) -> Stage20_1 | B112: 20 | C112: 82001 | D112: 0 | E112: 80 | F112: 10 | G112: 20 | I112: 2.3 | J112: 0 | K112: 1 | M112: 16.2 | N112: 0 | O112: 1 | Q112: 1 | R112: 0 | S112: 1 | U112: 1.5 | V112: 0 | W112: 1 | Y112: 3 | Z112: 0 | AA112: 1 | AC112: 5 | AD112: 0 | AE112: 1 | AG112: 1 | AH112: 0 | AI112: 1 | AK112: 1 | AL112: 1 | AM112: 10 | AO112: 20 | AP112: 5 | AQ112: 99
A113: ="Stage"&B113&"_"&COUNTIF(B$3:B113,B113) -> Stage20_2 | B113: 20 | C113: 82002 | D113: 10025 | E113: 80 | F113: 10 | G113: 20 | I113: 2.3 | J113: 0 | K113: 1 | M113: 16.2 | N113: 0 | O113: 1 | Q113: 1 | R113: 0 | S113: 1 | U113: 1.5 | V113: 0 | W113: 1 | Y113: 3 | Z113: 0 | AA113: 1 | AC113: 5 | AD113: 0 | AE113: 1 | AG113: 1 | AH113: 0 | AI113: 1 | AK113: 1 | AL113: 1 | AM113: 10 | AO113: 20 | AP113: 5 | AQ113: 99
A114: ="Stage"&B114&"_"&COUNTIF(B$3:B114,B114) -> Stage20_3 | B114: 20 | C114: 82003 | D114: 0 | E114: 80 | F114: 10 | G114: 20 | I114: 2.3 | J114: 0 | K114: 1 | M114: 16.2 | N114: 0 | O114: 1 | Q114: 1 | R114: 0 | S114: 1 | U114: 1.5 | V114: 0 | W114: 1 | Y114: 3 | Z114: 0 | AA114: 1 | AC114: 5 | AD114: 0 | AE114: 1 | AG114: 1 | AH114: 0 | AI114: 1 | AK114: 1 | AL114: 1 | AM114: 10 | AO114: 20 | AP114: 5 | AQ114: 99
A115: ="Stage"&B115&"_"&COUNTIF(B$3:B115,B115) -> Stage20_4 | B115: 20 | C115: 82004 | D115: 10027 | E115: 80 | F115: 10 | G115: 20 | I115: 2.3 | J115: 0 | K115: 1 | M115: 16.2 | N115: 0 | O115: 1 | Q115: 1 | R115: 0 | S115: 1 | U115: 1.5 | V115: 0 | W115: 1 | Y115: 3 | Z115: 0 | AA115: 1 | AC115: 5 | AD115: 0 | AE115: 1 | AG115: 1 | AH115: 0 | AI115: 1 | AK115: 1 | AL115: 1 | AM115: 10 | AO115: 20 | AP115: 5 | AQ115: 99
A116: ="Stage"&B116&"_"&COUNTIF(B$3:B116,B116) -> Stage20_5 | B116: 20 | C116: 82005 | D116: 0 | E116: 80 | F116: 10 | G116: 20 | I116: 2.3 | J116: 0 | K116: 1 | M116: 16.2 | N116: 0 | O116: 1 | Q116: 1 | R116: 0 | S116: 1 | U116: 1.5 | V116: 0 | W116: 1 | Y116: 3 | Z116: 0 | AA116: 1 | AC116: 5 | AD116: 0 | AE116: 1 | AG116: 1 | AH116: 0 | AI116: 1 | AK116: 1 | AL116: 1 | AM116: 10 | AO116: 20 | AP116: 5 | AQ116: 99
A117: ="Stage"&B117&"_"&COUNTIF(B$3:B117,B117) -> Stage20_6 | B117: 20 | C117: 82006 | D117: 0 | E117: 80 | F117: 10 | G117: 20 | I117: 2.3 | J117: 0 | K117: 1 | M117: 16.2 | N117: 0 | O117: 1 | Q117: 1 | R117: 0 | S117: 1 | U117: 1.5 | V117: 0 | W117: 1 | Y117: 3 | Z117: 0 | AA117: 1 | AC117: 5 | AD117: 0 | AE117: 1 | AG117: 1 | AH117: 0 | AI117: 1 | AK117: 1 | AL117: 1 | AM117: 10 | AO117: 20 | AP117: 5 | AQ117: 99
A118: ="Stage"&B118&"_"&COUNTIF(B$3:B118,B118) -> Stage20_7 | B118: 20 | C118: 82007 | D118: 10027 | E118: 80 | F118: 10 | G118: 20 | I118: 2.3 | J118: 0 | K118: 1 | M118: 16.2 | N118: 0 | O118: 1 | Q118: 1 | R118: 0 | S118: 1 | U118: 1.5 | V118: 0 | W118: 1 | Y118: 3 | Z118: 0 | AA118: 1 | AC118: 5 | AD118: 0 | AE118: 1 | AG118: 1 | AH118: 0 | AI118: 1 | AK118: 1 | AL118: 1 | AM118: 10 | AO118: 20 | AP118: 5 | AQ118: 99
A119: ="Stage"&B119&"_"&COUNTIF(B$3:B119,B119) -> Stage20_8 | B119: 20 | C119: 82008 | D119: 0 | E119: 80 | F119: 10 | G119: 20 | I119: 2.3 | J119: 0 | K119: 1 | M119: 16.2 | N119: 0 | O119: 1 | Q119: 1 | R119: 0 | S119: 1 | U119: 1.5 | V119: 0 | W119: 1 | Y119: 3 | Z119: 0 | AA119: 1 | AC119: 5 | AD119: 0 | AE119: 1 | AG119: 1 | AH119: 0 | AI119: 1 | AK119: 1 | AL119: 1 | AM119: 10 | AO119: 20 | AP119: 5 | AQ119: 99
A120: ="Stage"&B120&"_"&COUNTIF(B$3:B120,B120) -> Stage20_9 | B120: 20 | C120: 82009 | D120: 10028 | E120: 80 | F120: 10 | G120: 20 | I120: 2.3 | J120: 0 | K120: 1 | M120: 16.2 | N120: 0 | O120: 1 | Q120: 1 | R120: 0 | S120: 1 | U120: 1.5 | V120: 0 | W120: 1 | Y120: 3 | Z120: 0 | AA120: 1 | AC120: 5 | AD120: 0 | AE120: 1 | AG120: 1 | AH120: 0 | AI120: 1 | AK120: 1 | AL120: 1 | AM120: 10 | AO120: 20 | AP120: 5 | AQ120: 99
A121: ="Stage"&B121&"_"&COUNTIF(B$3:B121,B121) -> Stage21_1 | B121: 21 | C121: 82101 | D121: 10027 | E121: 80 | F121: 10 | G121: 20 | I121: 2.3 | J121: 0 | K121: 1 | M121: 16.2 | N121: 0 | O121: 1 | Q121: 1 | R121: 0 | S121: 1 | U121: 1.5 | V121: 0 | W121: 1 | Y121: 3 | Z121: 0 | AA121: 1 | AC121: 5 | AD121: 0 | AE121: 1 | AG121: 1 | AH121: 0 | AI121: 1 | AK121: 1 | AL121: 1 | AM121: 10 | AO121: 20 | AP121: 5 | AQ121: 99
A122: ="Stage"&B122&"_"&COUNTIF(B$3:B122,B122) -> Stage21_2 | B122: 21 | C122: 82102 | D122: 0 | E122: 80 | F122: 10 | G122: 20 | I122: 2.3 | J122: 0 | K122: 1 | M122: 16.2 | N122: 0 | O122: 1 | Q122: 1 | R122: 0 | S122: 1 | U122: 1.5 | V122: 0 | W122: 1 | Y122: 3 | Z122: 0 | AA122: 1 | AC122: 5 | AD122: 0 | AE122: 1 | AG122: 1 | AH122: 0 | AI122: 1 | AK122: 1 | AL122: 1 | AM122: 10 | AO122: 20 | AP122: 5 | AQ122: 99
A123: ="Stage"&B123&"_"&COUNTIF(B$3:B123,B123) -> Stage21_3 | B123: 21 | C123: 82103 | D123: 10028 | E123: 80 | F123: 10 | G123: 20 | I123: 2.3 | J123: 0 | K123: 1 | M123: 16.2 | N123: 0 | O123: 1 | Q123: 1 | R123: 0 | S123: 1 | U123: 1.5 | V123: 0 | W123: 1 | Y123: 3 | Z123: 0 | AA123: 1 | AC123: 5 | AD123: 0 | AE123: 1 | AG123: 1 | AH123: 0 | AI123: 1 | AK123: 1 | AL123: 1 | AM123: 10 | AO123: 20 | AP123: 5 | AQ123: 99
A124: ="Stage"&B124&"_"&COUNTIF(B$3:B124,B124) -> Stage21_4 | B124: 21 | C124: 82104 | D124: 10028 | E124: 80 | F124: 10 | G124: 20 | I124: 2.3 | J124: 0 | K124: 1 | M124: 16.2 | N124: 0 | O124: 1 | Q124: 1 | R124: 0 | S124: 1 | U124: 1.5 | V124: 0 | W124: 1 | Y124: 3 | Z124: 0 | AA124: 1 | AC124: 5 | AD124: 0 | AE124: 1 | AG124: 1 | AH124: 0 | AI124: 1 | AK124: 1 | AL124: 1 | AM124: 10 | AO124: 20 | AP124: 5 | AQ124: 99

Sheet ItemList
A1: n_ItemID | B1: n_ItemGrade | C1: e_ItemType | D1: n_ItemValue | E1: n_ItemName | F1: n_PurchaseGoodsType | G1: n_ItemPrice | H1: n_ItemDesc | I1: s_ItemIcon | J1: n_ItemOrder | K1: exception
A2: _아이템 ID | B2: 아이템 등급 | C2: 아이템 타입 | D2: 아이템 값 | E2: 아이템 이름 | F2: 아이템 구입 시 재화 ID | G2: 아이템 기본 가격 | H2: 아이템 설명 | I2: 아이템 아이콘 | J2: 아이템 정렬 순서 | K2: 참고용 텍스트
A3: -2 | B3: 1 | C3: Goods | D3: 0 | E3: -4002 | F3: 0 | G3: 0 | H3: 0 | I3: 0 | J3: 0 | K3: 실제 현금
A4: -1 | B4: 1 | C4: Goods | D4: 0 | E4: -4001 | F4: 0 | G4: 0 | H4: 0 | I4: ad | J4: 0 | K4: AD
A5: 101 | B5: 1 | C5: Goods | D5: 0 | E5: 100101 | F5: 201 | G5: 10000 | H5: 0 | I5: icon_gem | J5: 0 | K5: 캐시
A6: 201 | B6: 1 | C6: Goods | D6: 0 | E6: 100201 | F6: 101 | G6: 100 | H6: 0 | I6: icon_gold | J6: 0 | K6: 골드
A7: 301 | B7: 1 | C7: Goods | D7: 0 | E7: 100301 | F7: 101 | G7: 200 | H7: 0 | I7: icon_soul | J7: 0 | K7: 소울
A8: 401 | B8: 1 | C8: Goods | D8: 0 | E8: 100401 | F8: 101 | G8: 500 | H8: 0 | I8: potion_01 | J8: 0 | K8: 회복 물약
A9: 501 | B9: 1 | C9: Goods | D9: 0 | E9: 100501 | F9: 0 | G9: 0 | H9: 0 | I9: icon_exp | J9: 0 | K9: 경험치
A10: 601 | B10: 1 | C10: Goods | D10: 0 | E10: 100601 | F10: 0 | G10: 0 | H10: 0 | I10: stone_01 | J10: 0 | K10: 한계돌파 재화
A11: 6001 | B11: 1 | C11: PC | D11: 0 | E11: 6001 | F11: 0 | G11: 0 | H11: 0 | I11: hero_01 | J11: 0
A12: 6002 | B12: 1 | C12: PC | D12: 0 | E12: 6002 | F12: 101 | G12: 10 | H12: 0 | I12: hero_02 | J12: 0
A13: 6003 | B13: 1 | C13: PC | D13: 0 | E13: 6003 | F13: 101 | G13: 20 | H13: 0 | I13: hero_03 | J13: 0
A14: 6004 | B14: 1 | C14: PC | D14: 0 | E14: 6004 | F14: 101 | G14: 30 | H14: 0 | I14: hero_04 | J14: 0
A15: 6005 | B15: 1 | C15: PC | D15: 0 | E15: 6005 | F15: 101 | G15: 40 | H15: 0 | I15: hero_05 | J15: 0
A16: 20101 | B16: 1 | C16: Seal | D16: 0 | E16: 20101 | F16: 0 | G16: 0 | H16: 0 | I16: seal_001 | J16: 0 | K16: 인장1
A17: 20102 | B17: 1 | C17: Seal | D17: 0 | E17: 20102 | F17: 0 | G17: 0 | H17: 0 | I17: seal_002 | J17: 0 | K17: 인장2
A18: 20103 | B18: 1 | C18: Seal | D18: 0 | E18: 20103 | F18: 0 | G18: 0 | H18: 0 | I18: seal_003 | J18: 0 | K18: 인장3
A19: 20104 | B19: 1 | C19: Seal | D19: 0 | E19: 20104 | F19: 0 | G19: 0 | H19: 0 | I19: seal_004 | J19: 0 | K19: 인장4
A20: 20105 | B20: 1 | C20: Seal | D20: 0 | E20: 20105 | F20: 0 | G20: 0 | H20: 0 | I20: seal_005 | J20: 0 | K20: 인장5
A21: 20106 | B21: 1 | C21: Seal | D21: 0 | E21: 20106 | F21: 0 | G21: 0 | H21: 0 | I21: seal_006 | J21: 0 | K21: 인장6
A22: 20107 | B22: 1 | C22: Seal | D22: 0 | E22: 20107 | F22: 0 | G22: 0 | H22: 0 | I22: seal_007 | J22: 0 | K22: 인장7
A23: 20108 | B23: 1 | C23: Seal | D23: 0 | E23: 20108 | F23: 0 | G23: 0 | H23: 0 | I23: seal_008 | J23: 0 | K23: 인장8
A24: 20109 | B24: 1 | C24: Seal | D24: 0 | E24: 20109 | F24: 0 | G24: 0 | H24: 0 | I24: seal_009 | J24: 0 | K24: 인장9
A25: 20110 | B25: 1 | C25: Seal | D25: 0 | E25: 20110 | F25: 0 | G25: 0 | H25: 0 | I25: seal_010 | J25: 0 | K25: 인장10
A26: 20111 | B26: 1 | C26: Seal | D26: 0 | E26: 20111 | F26: 0 | G26: 0 | H26: 0 | I26: seal_011 | J26: 0 | K26: 인장11
A27: 20112 | B27: 1 | C27: Seal | D27: 0 | E27: 20112 | F27: 0 | G27: 0 | H27: 0 | I27: seal_012 | J27: 0 | K27: 인장12
A28: 30101 | B28: 1 | C28: Equipment | D28: 0 | E28: =A28 -> 30101 | F28: 0 | G28: 0 | H28: 0 | I28: ="Weapon_"&A28 -> Weapon_30101 | J28: 0 | K28: 무기
A29: 30201 | B29: 2 | C29: Equipment | D29: 0 | E29: =A29 -> 30201 | F29: 0 | G29: 0 | H29: 0 | I29: ="Weapon_"&A29 -> Weapon_30201 | J29: 0 | K29: 무기
A30: 30301 | B30: 3 | C30: Equipment | D30: 0 | E30: 30301 | F30: 0 | G30: 0 | H30: 0 | I30: Weapon_30301 | J30: 0 | K30: 무기
A31: 30401 | B31: 4 | C31: Equipment | D31: 0 | E31: 30401 | F31: 0 | G31: 0 | H31: 0 | I31: Weapon_30401 | J31: 0 | K31: 무기
A32: 30501 | B32: 5 | C32: Equipment | D32: 0 | E32: 30501 | F32: 0 | G32: 0 | H32: 0 | I32: Weapon_30501 | J32: 0 | K32: 무기
A33: 30502 | B33: 5 | C33: Equipment | D33: 0 | E33: 30502 | F33: 0 | G33: 0 | H33: 0 | I33: Weapon_30502 | J33: 0 | K33: 무기
A34: 31101 | B34: 1 | C34: Equipment | D34: 0 | E34: 31101 | F34: 0 | G34: 0 | H34: 0 | I34: ="SubWeapon_"&A34 -> SubWeapon_31101 | J34: 0 | K34: 보조장비
A35: 32101 | B35: 1 | C35: Equipment | D35: 0 | E35: 32101 | F35: 0 | G35: 0 | H35: 0 | I35: ="ArmorTop_"&A35 -> ArmorTop_32101 | J35: 0 | K35: 갑옷(상의)
A36: 33101 | B36: 1 | C36: Equipment | D36: 0 | E36: 33101 | F36: 0 | G36: 0 | H36: 0 | I36: ="ArmorBottom_"&A36 -> ArmorBottom_33101 | J36: 0 | K36: 갑옷(하의)
A37: 34101 | B37: 1 | C37: Equipment | D37: 0 | E37: 34101 | F37: 0 | G37: 0 | H37: 0 | I37: ="Gloves_"&A37 -> Gloves_34101 | J37: 0 | K37: 장갑
A38: 35101 | B38: 1 | C38: Equipment | D38: 0 | E38: 35101 | F38: 0 | G38: 0 | H38: 0 | I38: ="Shoes_"&A38 -> Shoes_35101 | J38: 0 | K38: 신발
A39: 36101 | B39: 1 | C39: Equipment | D39: 0 | E39: 36101 | F39: 0 | G39: 0 | H39: 0 | I39: ="Ring_"&A39 -> Ring_36101 | J39: 0 | K39: 반지
A40: 37101 | B40: 1 | C40: Equipment | D40: 0 | E40: 37101 | F40: 0 | G40: 0 | H40: 0 | I40: ="Necklace_"&A40 -> Necklace_37101 | J40: 0 | K40: 목걸이

Sheet BattleLevelUp
A1: n_Lv | B1: n_NextRequireExp | C1: n_TotalExp
A2: _레벨 | B2: 레벨업 필요 경험치 | C2: 누적 경험치
A3: 1 | B3: 3 | C3: 3
A4: 2 | B4: 7 | C4: 10
A5: 3 | B5: 14 | C5: =C4+B5 -> 24
A6: 4 | B6: 22 | C6: =C5+B6 -> 46
A7: 5 | B7: 32 | C7: 78
A8: 6 | B8: =B7+(INT(A8/2)+8) -> 43 | C8: 121
A9: 7 | B9: =B8+(INT(SQRT(A9*20))+1) -> 55 | C9: 176
A10: 8 | B10: =B9+(INT(SQRT(A10*20))+1) -> 68 | C10: 244
A11: 9 | B11: 82 | C11: 326
A12: 10 | B12: 97 | C12: 423
A13: 11 | B13: =B12+(INT(SQRT(A13*25))+1) -> 114 | C13: 537
A14: 12 | B14: =B13+(INT(SQRT(A14*25))+1) -> 132 | C14: 669
A15: 13 | B15: 151 | C15: 820
A16: 14 | B16: =B15+(INT(SQRT(A16*30))+1) -> 172 | C16: 992
A17: 15 | B17: =B16+(INT(SQRT(A17*30))+1) -> 194 | C17: 1186
A18: 16 | B18: =B17+(INT(SQRT(A18*38))+1) -> 219 | C18: 1405
A19: 17 | B19: =B18+(INT(SQRT(A19*38))+1) -> 245 | C19: 1650
A20: 18 | B20: 272 | C20: 1922
A21: 19 | B21: 300 | C21: 2222
A22: 20 | B22: 0 | C22: 2222

Sheet ActorTalkConfig
A1: n_TalkID | B1: n_TalkPattern1 | C1: n_TalkPattern2 | D1: n_TalkPattern3 | E1: n_TalkPattern4 | F1: n_TalkPattern5 | G1: n_TalkPattern6
A2: _NPC나 상인 대화에 쓸 대사 그룹 ID | B2: 대화 패턴1 | C2: 대화 패턴2 | D2: 대화 패턴3 | E2: 대화 패턴4 | F2: 대화 패턴5 | G2: 대화 패턴6
A3: 501010 | B3: =A3+1 -> 501011 | C3: =B3+1 -> 501012 | D3: 501013 | E3: 501014 | F3: 501015 | G3: 501016
A4: 501020 | B4: =A4+1 -> 501021 | C4: =B4+1 -> 501022 | D4: 501023 | E4: 501024 | F4: 501025 | G4: 501026
A5: =A4+10 -> 501030 | B5: =A5+1 -> 501031 | C5: 501032 | D5: 501033 | E5: 501034 | F5: 501035 | G5: 501036
A6: =A5+10 -> 501040 | B6: =A6+1 -> 501041 | C6: 501042 | D6: 501043 | E6: 501044 | F6: 501045 | G6: 501046
A7: 501050 | B7: =A7+1 -> 501051 | C7: 501052 | D7: 501053 | E7: 501054 | F7: 501055 | G7: 501056
A8: 501060 | B8: =A8+1 -> 501061 | C8: 501062 | D8: 501063 | E8: 501064 | F8: 501065 | G8: 501066
A9: =A3+1000 -> 502010 | B9: =A9+1 -> 502011 | C9: 502012 | D9: 502013 | E9: 502014 | F9: 502015 | G9: 502016
A10: =A4+1000 -> 502020 | B10: =A10+1 -> 502021 | C10: 502022 | D10: 502023 | E10: 502024 | F10: 502025 | G10: 502026
A11: 502030 | B11: =A11+1 -> 502031 | C11: 502032 | D11: 502033 | E11: 502034 | F11: 502035 | G11: 502036
A12: 502040 | B12: =A12+1 -> 502041 | C12: 502042 | D12: 502043 | E12: 502044 | F12: 502045 | G12: 502046
A13: 502050 | B13: =A13+1 -> 502051 | C13: 502052 | D13: 502053 | E13: 502054 | F13: 502055 | G13: 502056
A14: 502060 | B14: =A14+1 -> 502061 | C14: 502062 | D14: 502063 | E14: 502064 | F14: 502065 | G14: 502066
A15: 503010 | B15: =A15+1 -> 503011 | C15: 503012 | D15: 503013 | E15: 503014 | F15: 503015 | G15: 503016
A16: 503020 | B16: =A16+1 -> 503021 | C16: 503022 | D16: 503023 | E16: 503024 | F16: 503025 | G16: 503026
A17: 503030 | B17: =A17+1 -> 503031 | C17: 503032 | D17: 503033 | E17: 503034 | F17: 503035 | G17: 503036
A18: 503040 | B18: =A18+1 -> 503041 | C18: 503042 | D18: 503043 | E18: 503044 | F18: 503045 | G18: 503046
A19: 503050 | B19: =A19+1 -> 503051 | C19: 503052 | D19: 503053 | E19: 503054 | F19: 503055 | G19: 503056
A20: 503060 | B20: =A20+1 -> 503061 | C20: 503062 | D20: 503063 | E20: 503064 | F20: 503065 | G20: 503066
A21: 504010 | B21: =A21+1 -> 504011 | C21: 504012 | D21: 504013 | E21: 504014 | F21: 504015 | G21: 504016
A22: 504020 | B22: =A22+1 -> 504021 | C22: 504022 | D22: 504023 | E22: 504024 | F22: 504025 | G22: 504026
A23: 504030 | B23: =A23+1 -> 504031 | C23: 504032 | D23: 504033 | E23: 504034 | F23: 504035 | G23: 504036
A24: 504040 | B24: =A24+1 -> 504041 | C24: 504042 | D24: 504043 | E24: 504044 | F24: 504045 | G24: 504046
A25: 504050 | B25: =A25+1 -> 504051 | C25: 504052 | D25: 504053 | E25: 504054 | F25: 504055 | G25: 504056
A26: 504060 | B26: =A26+1 -> 504061 | C26: 504062 | D26: 504063 | E26: 504064 | F26: 504065 | G26: 504066
A27: 505010 | B27: =A27+1 -> 505011 | C27: 505012 | D27: 505013 | E27: 505014 | F27: 505015 | G27: 505016
A28: 505020 | B28: =A28+1 -> 505021 | C28: 505022 | D28: 505023 | E28: 505024 | F28: 505025 | G28: 505026
A29: 505030 | B29: =A29+1 -> 505031 | C29: 505032 | D29: 505033 | E29: 505034 | F29: 505035 | G29: 505036
A30: 505040 | B30: =A30+1 -> 505041 | C30: 505042 | D30: 505043 | E30: 505044 | F30: 505045 | G30: 505046
A31: 505050 | B31: =A31+1 -> 505051 | C31: 505052 | D31: 505053 | E31: 505054 | F31: 505055 | G31: 505056
A32: 505060 | B32: =A32+1 -> 505061 | C32: 505062 | D32: 505063 | E32: 505064 | F32: 505065 | G32: 505066
A33: 506010 | B33: =A33+1 -> 506011 | C33: 506012 | D33: 506013 | E33: 506014 | F33: 506015 | G33: 506016
A34: 506020 | B34: =A34+1 -> 506021 | C34: 506022 | D34: 506023 | E34: 506024 | F34: 506025 | G34: 506026
A35: 506030 | B35: =A35+1 -> 506031 | C35: 506032 | D35: 506033 | E35: 506034 | F35: 506035 | G35: 506036
A36: 506040 | B36: =A36+1 -> 506041 | C36: 506042 | D36: 506043 | E36: 506044 | F36: 506045 | G36: 506046
A37: 506050 | B37: =A37+1 -> 506051 | C37: 506052 | D37: 506053 | E37: 506054 | F37: 506055 | G37: 506056
A38: 506060 | B38: =A38+1 -> 506061 | C38: 506062 | D38: 506063 | E38: 506064 | F38: 506065 | G38: 506066
A39: 507010 | B39: =A39+1 -> 507011 | C39: 507012 | D39: 507013 | E39: 507014 | F39: 507015 | G39: 507016
A40: 507020 | B40: =A40+1 -> 507021 | C40: 507022 | D40: 507023 | E40: 507024 | F40: 507025 | G40: 507026
A41: 507030 | B41: =A41+1 -> 507031 | C41: 507032 | D41: 507033 | E41: 507034 | F41: 507035 | G41: 507036
A42: 507040 | B42: =A42+1 -> 507041 | C42: 507042 | D42: 507043 | E42: 507044 | F42: 507045 | G42: 507046
A43: 507050 | B43: =A43+1 -> 507051 | C43: 507052 | D43: 507053 | E43: 507054 | F43: 507055 | G43: 507056
A44: 507060 | B44: =A44+1 -> 507061 | C44: 507062 | D44: 507063 | E44: 507064 | F44: 507065 | G44: 507066
A45: 508010 | B45: =A45+1 -> 508011 | C45: 508012 | D45: 508013 | E45: 508014 | F45: 508015 | G45: 508016
A46: 508020 | B46: =A46+1 -> 508021 | C46: 508022 | D46: 508023 | E46: 508024 | F46: 508025 | G46: 508026
A47: 508030 | B47: =A47+1 -> 508031 | C47: 508032 | D47: 508033 | E47: 508034 | F47: 508035 | G47: 508036
A48: 508040 | B48: =A48+1 -> 508041 | C48: 508042 | D48: 508043 | E48: 508044 | F48: 508045 | G48: 508046
A49: 508050 | B49: =A49+1 -> 508051 | C49: 508052 | D49: 508053 | E49: 508054 | F49: 508055 | G49: 508056
A50: 508060 | B50: =A50+1 -> 508061 | C50: 508062 | D50: 508063 | E50: 508064 | F50: 508065 | G50: 508066

Sheet Localization
A1: ID | B1: s_Korean | C1: s_English | D1: s_Japan
A2: _Text 고유 인덱스 | B2: 한국어 텍스트 | C2: 영어 텍스트 | D2: 일본어 텍스트
A3: 1 | B3: 게임 데이터를 확인 중입니다.
A4: 2 | B4: 구글 플레이에서 설치한 앱이 아닙니다. 앱을 종료합니다.
A5: 3 | B5: 로그인 중입니다.
A6: 4 | B6: 화면을 터치해 주세요.
A7: 5 | B7: 확인
A8: 101 | B8: 탐험
A9: 102 | B9: 잡화점 강화
A10: 103 | B10: 전투 패배!
A11: 104 | B11: 부활하시겠습니까?
A12: 105 | B12: 획득한 전리품
A13: 106 | B13: 부활
A14: 107 | B14: 포기
A15: 108 | B15: 빗나감
A16: 109 | B16: 스킬을 선택해 주세요.
A17: 110 | B17: 리롤
A18: 111 | B18: 무효화
A19: 112 | B19: 치명타
A20: 113 | B20: 탐험을 포기할 경우, 획득한 전리품을 몬스터에게 모두 빼앗깁니다.
A21: 114 | B21: 에휴… 두고보자!
A22: 115 | B22: 오~ 오늘 수확이 쏠쏠한데?
A23: 116 | B23: 전투 승리!
A24: 117 | B24: 획득한 경험치
A25: 118 | B25: 전리품
A26: 119 | B26: 전리품x2
A27: 120 | B27: 덱 정보
A28: 121 | B28: 변경
A29: 122 | B29: 습득 스킬 : {0}개
A30: 123 | B30: 보유 특성 ({0}/4)
A31: 124 | B31: 스킬 선택
A32: 125 | B32: 출전
A33: 126 | B33: 아이템이 부족합니다.
A34: 127 | B34: 판매
A35: 128 | B35: 세트 정보
A36: 129 | B36: 장비 열기
A37: 130 | B37: 장착중
A38: 201 | B38: Normal
A39: 202 | B39: Rare
A40: 203 | B40: Epic
A41: 204 | B41: Unique
A42: 205 | B42: Legend
A43: 211 | B43: 쉬움
A44: 212 | B44: 보통
A45: 213 | B45: 어려움
A46: 301 | B46: 수상한 던전
A47: 302 | B47: 챕터2 던전
A48: 303 | B48: 챕터3 던전
A49: 304 | B49: 챕터4 던전
A50: 305 | B50: 챕터5 던전
A51: 306 | B51: 챕터6 던전
A52: 307 | B52: 챕터7 던전
A53: 308 | B53: 챕터8 던전
A54: 1001 | B54: 공격
A55: 1002 | B55: 방어
A56: 1003 | B56: 회피
A57: 1101 | B57: 무시하기
A58: 1102 | B58: 강제 개방 | C58: Force Open
A59: 1103 | B59: 확률 +{0}%
A60: 1104 | B60: 열쇠 사용
A61: 1105 | B61: 보물상자 발견!
A62: 1106 | B62: <size = 100>미믹 등장!
A63: 1107 | B63: 상자 열기
A64: 1201 | B64: 암상인 등장!
A65: 1202 | B65: 대화
A66: 1203 | B66: 훔치기
A67: 1204 | B67: 거래
A68: 1205 | B68: 구매
A69: 1206 | B69: 취소
A70: 1207 | B70: Sale {0}%
A71: 1301 | B71: 여행자 발견!
A72: 1302 | B72: 선물
A73: 1303 | B73: 준다
A74: 1401 | B74: 성소 발견!
A75: 1402 | B75: 조사하기
A76: 1411 | B76: 즉시 모든 생명력과 보호막을 회복한다.
A77: 1412 | B77: 남은 경험치에 관계 없이 즉시 레벨 업을 한다.
A78: 1413 | B78: 죽었을 경우 부활 할 수 있는 버프가 1회 추가 된다.
A79: 1414 | B79: 랜덤 스킬 1개를 즉시 획득한다. (※선택지 없음)
A80: 1415 | B80: 획득 가능한 모든 경험치가 2배가 된다.
A81: 1416 | B81: 획득 가능한 모든 골드가 2배가 된다.
A82: 1417 | B82: 즉시 영혼 재화를 랜덤 획득한다.
A83: 1418 | B83: 즉시 대량의 골드를 획득한다.
A84: 1419 | B84: 일정 시간 무적 상태가 된다.
A85: 1420 | B85: 약간의 생명력을 회복한다.
A86: 1421 | B86: 약간의 경험치를 획득한다.
A87: 1422 | B87: 약간의 보호막이 회복된다.
A88: 1423 | B88: 습득할 스킬을 선택하세요.
A89: 1501 | B89: 수상한 버섯 발견!
A90: 1502 | B90: 먹어본다
A91: 1503 | B91: 무시한다
A92: 1601 | B92: 갈림길 발견!
A93: 1602 | B93: 왼쪽 길
A94: 1603 | B94: 오른쪽 길
A95: 1701 | B95: 캠프파이어 발견!
A96: 1801 | B96: 아무것도 발견하지 못했다…
A97: 1901 | B97: 몬스터와 조우했다!!
A98: 2001 | B98: 쉬움
A99: 2002 | B99: 보통
A100: 2003 | B100: 어려움
A101: 2004 | B101: 지옥
A102: 2005 | B102: 불지옥
A103: 2006 | B103: 악몽
A104: 4000 | B104: 공격력
A105: 4001 | B105: 최소 공격력
A106: 4002 | B106: 최대 공격력
A107: 4003 | B107: 치명타 확률
A108: 4004 | B108: 치명타 피해율
A109: 4005 | B109: 명중력
A110: 4006 | B110: 생명력
A111: 4007 | B111: 최대 생명력
A112: 4008 | B112: 보호막
A113: 4009 | B113: 최대 보호막
A114: 4010 | B114: 근접 회피율
A115: 4011 | B115: 원거리 회피율
A116: 5001 | B116: 몬스터1
A117: 5002 | B117: 몬스터2
A118: 5003 | B118: 몬스터3
A119: 5004 | B119: 몬스터4
A120: 5005 | B120: 몬스터5
A121: 5006 | B121: 몬스터6
A122: 5007 | B122: 몬스터7
A123: 5008 | B123: 몬스터8
A124: 5009 | B124: 몬스터9
A125: 5010 | B125: 몬스터10
A126: 5011 | B126: 몬스터11
A127: 5012 | B127: 몬스터12
A128: 5013 | B128: 몬스터13
A129: 5014 | B129: 몬스터14
A130: 5015 | B130: 몬스터15
A131: 5016 | B131: 몬스터16
A132: 5017 | B132: 몬스터17
A133: 5018 | B133: 몬스터18
A134: 5019 | B134: 몬스터19
A135: 5020 | B135: 몬스터20
A136: 5021 | B136: 몬스터21
A137: 5022 | B137: 몬스터22
A138: 5023 | B138: 몬스터23
A139: 6001 | B139: PC1
A140: 9001 | B140: 수상한 동굴
A141: 9002 | B141: 트롤 은신처
A142: 9003 | B142: 오크의 소굴
A143: 9004 | B143: 잊혀진 미궁
A144: 9005 | B144: 고블린 성채
A145: 9006 | B145: 악마의 은신처
A146: 9007 | B146: 죽음의 회랑
A147: 9008 | B147: 언데드 실험실
A148: 9009 | B148: 거인의 신전
A149: 9010 | B149: 임프 서식지
A150: 9011 | B150: 악마의 소굴
A151: 9012 | B151: 피의 성채
A152: 9013 | B152: 드래곤 서식지
A153: 9014 | B153: 마녀의 은신처
A154: 9015 | B154: 광신자의 탑
A155: 9016 | B155: 봉인 된 미궁
A156: 9017 | B156: 용의 성지
A157: 9018 | B157: 고대의 신전
A158: 9019 | B158: 악마의 탑
A159: 9020 | B159: 이계의 신전
A160: 9021 | B160: 타락 천사의 수도원
A161: 10001 | B161: 일반 몬스터
A162: 10002 | B162: 보물상자
A163: 10003 | B163: 암상인
A164: 10004 | B164: NPC
A165: 10005 | B165: 성소
A166: 10006 | B166: 버프디버프
A167: 10007 | B167: 갈림길
A168: 10008 | B168: 캠프
A169: 10009 | B169: 없음
A170: 10010 | B170: 보스 몬스터
A171: 11001 | B171: 회복의 성소
A172: 11002 | B172: 성장의 성소
A173: 11003 | B173: 부활의 성소
A174: 11004 | B174: 스킬의 성소
A175: 11005 | B175: 지식의 성소
A176: 11006 | B176: 재물의 성소
A177: 11007 | B177: 영혼의 성소
A178: 11008 | B178: 황금의 성소
A179: 11009 | B179: 무적의 성소
A180: 11010 | B180: 치유의 샘
A181: 11011 | B181: 경험의 샘
A182: 11012 | B182: 보호의 샘
A183: 13024 | B183: 루시 특성1
A184: 13025 | B184: 루시 특성2
A185: 13026 | B185: 루시 특성3
A186: 13027 | B186: 루시 특성4
A187: 14024 | B187: 루시 기본 공격
A188: 14025 | B188: 훔치기 확률과 선제공격을 받을 때 회피 확률 각각 증가
A189: 14026 | B189: 피격 당한 횟수에 비례해 치명타 확률이 점차 증가 (※치명타 발동 후 초기화)
A190: 14027 | B190: 치명타 피해량 증가
A191: 20101 | B191: 인장1
A192: 20102 | B192: 인장2
A193: 20103 | B193: 인장3
A194: 20104 | B194: 인장4
A195: 20105 | B195: 인장5
A196: 20106 | B196: 인장6
A197: 20107 | B197: 인장7
A198: 20108 | B198: 인장8
A199: 20109 | B199: 인장9
A200: 20110 | B200: 인장10
... 1105 more rows

Sheet MonsterList
A1: n_ID | B1: n_Name | C1: e_MonsterType | D1: s_Image | E1: n_RewardExp | F1: n_HP | G1: n_Shield | H1: f_AttackCoolTime | I1: n_AttackMin | J1: n_AttackMax | K1: n_HitRate | L1: f_Cri | M1: f_CriDmg | N1: n_Avoid_Meele | O1: n_Avoid_Range | P1: f_Scale | Q1: e_AttackType | R1: s_Projectile | S1: n_Specificity1 | T1: n_Specificity2 | U1: n_Specificity3 | V1: n_Specificity4 | AF1: 플레이어 명중력
A2: _몬스터 ID | B2: 몬스터 이름 | C2: 몬스터 종류 | D2: 몬스터 이미지 | E2: 처치 시 획득 경험치 | F2: 체력 | G2: 보호막 | H2: 공격 쿨타임 | I2: 최소 공격력 | J2: 최대 공격력 | K2: 명중력 (정수) | L2: 치명타 확률 | M2: 치명타 피해량 | N2: 회피력(근) (정수) | O2: 회피력(원) (정수) | P2: 몬스터 크기 배율 | Q2: 기본 공격 타입 | R2: 기본 공격 투사체 경로 | S2: 몬스터 특성1 | T2: 몬스터 특성2 | U2: 몬스터 특성3 | V2: 몬스터 특성4 | W2: 원본 참고용 | X2: 몬스터 분류 | Y2: Lv | AA2: DPS | AB2: 몬스터 특성 | AF2: 100
A3: 10001 | B3: =A3+100000 -> 110001 | C3: Boss_Range | D3: =A3 -> 10001 | E3: =ROUNDDOWN(F3/2,0) -> 10 | F3: 20 | G3: 15 | H3: 2.3 | I3: 4 | J3: 6 | K3: 100 | L3: 25 | M3: 150 | N3: 34 | O3: 34 | P3: 1.3 | Q3: =IF(Z3="원거리","Range","Melee") -> Range | R3: Projectiles_light | S3: 31001 | T3: 0 | U3: 0 | V3: 0 | W3: 놀아처1 | X3: 보스 몬스터 | Y3: 1 | Z3: 원거리 | AA3: =ROUND(((I3 + J3) / 2) * (1 + (L3 / 100) * ((M3 / 100) - 1)) / H3 * (K3 / 100),2) -> 2.45 | AB3: 크리티컬 10% | AE3: =INT(SQRT((F3*Y3)*3)+1) -> 8 | AF3: =$AF$2/(N3*3.69) -> 0.7970667942 | AG3: 1.2
A4: 10002 | B4: 110002 | C4: Boss_Melee | D4: 10002 | E4: 15 | F4: 30 | G4: 22 | H4: 1.9 | I4: 6 | J4: 8 | K4: 100 | L4: 12.5 | M4: 150 | N4: 34 | O4: 34 | P4: 1.3 | Q4: Melee | R4: MeleeAttack_Sword | S4: 31002 | T4: 0 | U4: 0 | V4: 0 | W4: 놀강도2 | X4: 보스 몬스터 | Y4: 2 | Z4: 근접 | AA4: 3.91 | AB4: 광포화- 신속화 50% | AE4: =INT(SQRT((F4*Y4)*3)+1) -> 14 | AF4: =$AF$2/(N4*3.69) -> 0.7970667942 | AG4: 1.2
A5: 10003 | B5: 110003 | C5: Boss_Melee | D5: 10003 | E5: 21 | F5: 42 | G5: 16 | H5: 1.6 | I5: 6 | J5: 9 | K5: 100 | L5: 18 | M5: 150 | N5: 34 | O5: 34 | P5: 1.3 | Q5: Melee | R5: MeleeAttack_Sword | S5: 31003 | T5: 0 | U5: 0 | V5: 0 | W5: 임프전사1 | X5: 보스 몬스터 | Y5: 3 | Z5: 근접 | AA5: 5.11 | AB5: 광포화- 공격력 50% | AE5: 20 | AF5: 0.7970667942 | AG5: 1.3
A6: 10004 | B6: 110004 | C6: Boss_Melee | D6: 10004 | E6: 56 | F6: 112 | G6: 0 | H6: 2.6 | I6: 7 | J6: 30 | K6: 100 | L6: 15 | M6: 200 | N6: 31 | O6: 31 | P6: 1.3 | Q6: Melee | R6: MeleeAttack_Blunt | S6: 31004 | T6: 32004 | U6: 0 | V6: 0 | W6: 오우거1 | X6: 보스 몬스터 | Y6: 4 | Z6: 근접 | AA6: 8.18 | AB6: 체력 2배, 최대 공격력 2배 | AE6: 37 | AF6: 0.8742022904 | AG6: 1.6
A7: 10005 | B7: 110005 | C7: Boss_Range | D7: 10005 | E7: 26 | F7: 53 | G7: 66 | H7: 1.6 | I7: 7 | J7: 11 | K7: 100 | L7: 10 | M7: 150 | N7: 35 | O7: 35 | P7: 1.3 | Q7: Range | R7: vfx_ToonProjectile_Bomb03Orange | S7: 31005 | T7: 0 | U7: 0 | V7: 0 | W7: 바포메트6 | X7: 보스 몬스터 | Y7: 5 | Z7: 원거리 | AA7: 5.91 | AB7: 둔화 30% | AE7: 29 | AF7: 0.7742934572 | AG7: 1.5
A8: 10006 | B8: 110006 | C8: Boss_Range | D8: 10006 | E8: 29 | F8: 58 | G8: 72 | H8: 1.4 | I8: 7 | J8: 10 | K8: 100 | L8: 10 | M8: 150 | N8: 35 | O8: 35 | P8: 1.3 | Q8: Range | R8: vfx_Projectile_Fireball03_Green | S8: 31006 | T8: 0 | U8: 0 | V8: 0 | W8: 거미여왕2 | X8: 보스 몬스터 | Y8: 6 | Z8: 원거리 | AA8: 6.38 | AB8: 중독 5초 | AE8: 33 | AF8: 0.7742934572 | AG8: 1.6
A9: 10007 | B9: 110007 | C9: Boss_Melee | D9: 10007 | E9: 33 | F9: 66 | G9: 52 | H9: 1.6 | I9: 8 | J9: 15 | K9: 100 | L9: 10 | M9: 150 | N9: 35 | O9: 35 | P9: 1.3 | Q9: Melee | R9: MeleeAttack_Sword | S9: 31007 | T9: 0 | U9: 0 | V9: 0 | W9: 흑기사2 | X9: 보스 몬스터 | Y9: 7 | Z9: 근접 | AA9: 7.55 | AB9: 실드 회복 | AE9: 38 | AF9: 0.7742934572 | AG9: 1.4
A10: 10008 | B10: 110008 | C10: Boss_Melee | D10: 10008 | E10: 42 | F10: 85 | G10: 0 | H10: 1.2 | I10: 7 | J10: 9 | K10: 100 | L10: 25 | M10: 180 | N10: 38 | O10: 38 | P10: 1.3 | Q10: Melee | R10: MeleeAttack_Claw | S10: 31008 | T10: 0 | U10: 0 | V10: 0 | W10: 늑대인간 | X10: 보스 몬스터 | Y10: 8 | Z10: 근접 | AA10: 8 | AB10: 고정 피해 흡혈 | AE10: 46 | AF10: 0.7131650264 | AG10: 1.3
A11: 10009 | B11: 110009 | C11: Boss_Melee | D11: 10009 | E11: 44 | F11: 88 | G11: 60 | H11: 2.15 | I11: 12 | J11: 20 | K11: 100 | L11: 15 | M11: 180 | N11: 30 | O11: 30 | P11: 1.3 | Q11: Melee | R11: MeleeAttack_Blunt | S11: 31009 | T11: 0 | U11: 0 | V11: 0 | W11: 대사탄1 | X11: 보스 몬스터 | Y11: 9 | Z11: 근접 | AA11: 8.33 | AB11: 무적 5초 | AE11: 49 | AF11: 0.9033423668 | AG11: 1.8
A12: 10010 | B12: 110010 | C12: Boss_Range | D12: 10010 | E12: 17 | F12: 35 | G12: 282 | H12: 2.8 | I12: 18 | J12: 20 | K12: 100 | L12: 30 | M12: 200 | N12: 36 | O12: 36 | P12: 1.3 | Q12: Range | R12: Projectiles_light | S12: 31010 | T12: 32010 | U12: 0 | V12: 0 | W12: 다크엘프 아처1 | X12: 보스 몬스터 | Y12: 10 | Z12: 원거리 | AA12: 8.82 | AB12: 광포화 - 신속 | AC12: 치명타 15% | AE12: 33 | AF12: 0.7527853056 | AG12: 1.4
A13: 10011 | B13: 110011 | C13: Boss_Melee | D13: 10011 | E13: 51 | F13: 102 | G13: 72 | H13: 2.05 | I13: 13 | J13: 21 | K13: 100 | L13: 15 | M13: 180 | N13: 30 | O13: 30 | P13: 1.3 | Q13: Melee | R13: MeleeAttack_Sword | S13: 31011 | T13: 32011 | U13: 0 | V13: 0 | W13: 대사탄2 | X13: 보스 몬스터 | Y13: 11 | Z13: 근접 | AA13: 9.29 | AB13: 피해 무효 | AC13: 강화 -공격력 | AE13: 59 | AF13: 0.9033423668 | AG13: 1.8
A14: 10012 | B14: 110012 | C14: Boss_Melee | D14: 10012 | E14: 48 | F14: 97 | G14: 77 | H14: 1.5 | I14: 13 | J14: 14 | K14: 100 | L14: 33 | M14: 150 | N14: 37 | O14: 37 | P14: 1.3 | Q14: Melee | R14: MeleeAttack_Sword | S14: 31012 | T14: 32012 | U14: 0 | V14: 0 | W14: 데스나이트3 | X14: 보스 몬스터 | Y14: 12 | Z14: 근접 | AA14: 10.49 | AB14: 광포화 신속화 60% | AC14: 치명타 15% | AE14: 60 | AF14: 0.7324397568 | AG14: 1.6
A15: 10013 | B15: 110013 | C15: Boss_Melee | D15: 10013 | E15: 42 | F15: 84 | G15: 223 | H15: 1.5 | I15: 14 | J15: 16 | K15: 100 | L15: 10 | M15: 150 | N15: 37 | O15: 37 | P15: 1.3 | Q15: Melee | R15: FX_Double Claw | S15: 31013 | T15: 32013 | U15: 0 | V15: 0 | W15: 메두사1 | X15: 보스 몬스터 | Y15: 13 | Z15: 근접 | AA15: 10.5 | AB15: 둔화 50% | AC15: 실드 25% | AE15: 58 | AF15: 0.7324397568 | AG15: 1.5
A16: 10014 | B16: 110014 | C16: Boss_Range | D16: 10014 | E16: 53 | F16: 106 | G16: 108 | H16: 1.625 | I16: 16 | J16: 28 | K16: 100 | L16: 10 | M16: 150 | N16: 37 | O16: 37 | P16: 1.3 | Q16: Range | R16: Projectile 20 black | S16: 31014 | T16: 32014 | U16: 0 | V16: 0 | W16: 바포메트2 | X16: 보스 몬스터 | Y16: 14 | Z16: 원거리 | AA16: 14.22 | AB16: 화상 | AC16: 공격력 25% | AE16: 67 | AF16: 0.7324397568 | AG16: 1.5
A17: 10015 | B17: 110015 | C17: Boss_Melee | D17: 10015 | E17: 69 | F17: 138 | G17: 0 | H17: 3 | I17: 19 | J17: 45 | K17: 100 | L17: 33 | M17: 200 | N17: 33 | O17: 33 | P17: 1.3 | Q17: Melee | R17: MeleeAttack_Blunt | S17: 31015 | T17: 32015 | U17: 0 | V17: 0 | W17: 트롤 워리어4 | X17: 보스 몬스터 | Y17: 15 | Z17: 근접 | AA17: 14.19 | AB17: 기절 | AC17: 치명타 15% | AE17: 79 | AF17: 0.8212203334 | AG17: 1.7
A18: 10016 | B18: 110016 | C18: Boss_Melee | D18: 10016 | E18: 60 | F18: 121 | G18: 100 | H18: 2.35 | I18: 26 | J18: 34 | K18: 100 | L18: 10 | M18: 150 | N18: 37 | O18: 37 | P18: 1.3 | Q18: Melee | R18: MeleeAttack_Sword | S18: 31016 | T18: 32016 | U18: 0 | V18: 0 | W18: 흑기사3 | X18: 보스 몬스터 | Y18: 16 | Z18: 근접 | AA18: 13.4 | AB18: 광포화 공격력 | AC18: 광포화 신속 | AE18: 77 | AF18: 0.7324397568 | AG18: 1.5
A19: 10017 | B19: 110017 | C19: Boss_Range | D19: 10017 | E19: 45 | F19: 91 | G19: 315 | H19: 1.6 | I19: 20 | J19: 23 | K19: 100 | L19: 12 | M19: 150 | N19: 38 | O19: 38 | P19: 1.3 | Q19: Range | R19: Projectiles_heart | S19: 31017 | T19: 32017 | U19: 0 | V19: 0 | W19: 흡혈귀여왕2 | X19: 보스 몬스터 | Y19: 17 | Z19: 원거리 | AA19: 14.24 | AB19: 고정 피해 흡혈 | AC19: 실드 회복 | AE19: 69 | AF19: 0.7131650264 | AG19: 1.6
A20: 10018 | B20: 110018 | C20: Boss_Melee | D20: 10018 | E20: 79 | F20: 158 | G20: 0 | H20: 2.8 | I20: 30 | J20: 45 | K20: 100 | L20: 15 | M20: 200 | N20: 33 | O20: 33 | P20: 1.3 | Q20: Melee | R20: MeleeAttack_Blunt | S20: 31018 | T20: 32018 | U20: 0 | V20: 0 | W20: 에티4 | X20: 보스 몬스터 | Y20: 18 | Z20: 근접 | AA20: 15.4 | AB20: 강화 공격력 | AC20: 부활 | AE20: 93 | AF20: 0.8212203334 | AG20: 1.8
A21: 10019 | B21: 110019 | C21: Boss_Melee | D21: 10019 | E21: 71 | F21: 142 | G21: 111 | H21: 2.4 | I21: 20 | J21: 48 | K21: 100 | L21: 15 | M21: 200 | N21: 32 | O21: 32 | P21: 1.3 | Q21: Melee | R21: MeleeAttack_Claw | S21: 31019 | T21: 32019 | U21: 0 | V21: 0 | W21: 레드드래곤3 | X21: 보스 몬스터 | Y21: 19 | Z21: 근접 | AA21: 16.29 | AB21: 화상 | AC21: 회복 | AE21: 90 | AF21: 0.8468834688 | AG21: 3.2
A22: 10020 | B22: 110020 | C22: Boss_Range | D22: 10020 | E22: 59 | F22: 118 | G22: 230 | H22: 1.625 | I22: 25 | J22: 28 | K22: 100 | L22: 10 | M22: 150 | N22: 38 | O22: 38 | P22: 1.3 | Q22: Range | R22: Projectiles_water | S22: 31020 | T22: 32020 | U22: 0 | V22: 0 | W22: 메두사2 | X22: 보스 몬스터 | Y22: 20 | Z22: 원거리 | AA22: 17.12 | AB22: 실드 회복 | AC22: 중독 5초 | AE22: 85 | AF22: 0.7131650264 | AG22: 1.6
A23: 10021 | B23: 110021 | C23: Boss_Melee | D23: 10021 | E23: 74 | F23: 149 | G23: 120 | H23: 2.3 | I23: 36 | J23: 45 | K23: 100 | L23: 10 | M23: 150 | N23: 38 | O23: 38 | P23: 1.3 | Q23: Melee | R23: MeleeAttack_Sword | S23: 31021 | T23: 32021 | U23: 0 | V23: 0 | W23: 흑기사1 | X23: 보스 몬스터 | Y23: 21 | Z23: 근접 | AA23: 18.49 | AB23: 피해 무효 | AC23: 신속화 | AE23: 97 | AF23: 0.7131650264 | AG23: 1.8
A24: 10022 | B24: 110022 | C24: Boss_Melee | D24: 10022 | E24: 31 | F24: 63 | G24: 525 | H24: 2.8 | I24: 33 | J24: 62 | K24: 100 | L24: 15 | M24: 200 | N24: 30 | O24: 30 | P24: 1.3 | Q24: Melee | R24: MeleeAttack_Blunt | S24: 31022 | T24: 32022 | U24: 0 | V24: 0 | W24: 용암골렘2 | X24: 보스 몬스터 | Y24: 22 | Z24: 근접 | AA24: 19.51 | AB24: 광포화 공격력 | AC24: 화상 | AE24: 65 | AF24: 0.9033423668 | AG24: 2
A25: 10023 | B25: 110023 | C25: Boss_Melee | D25: 10023 | E25: 85 | F25: 170 | G25: 128 | H25: 3 | I25: 26 | J25: 82 | K25: 100 | L25: 15 | M25: 200 | N25: 34 | O25: 34 | P25: 1.3 | Q25: Melee | R25: MeleeAttack_Claw | S25: 31023 | T25: 32023 | U25: 0 | V25: 0 | W25: 레드드래곤1 | X25: 보스 몬스터 | Y25: 23 | Z25: 근접 | AA25: 20.7 | AB25: 화상 | AC25: 회복 | AE25: 109 | AF25: 0.7970667942 | AG25: 2.8
A26: 10024 | B26: 110024 | C26: Boss_Range | D26: 10024 | E26: 82 | F26: 165 | G26: 132 | H26: 1.67 | I26: 32 | J26: 36 | K26: 100 | L26: 10 | M26: 150 | N26: 39 | O26: 39 | P26: 1.3 | Q26: Range | R26: Projectile 20 black | S26: 31024 | T26: 32024 | U26: 0 | V26: 0 | W26: 바포메트7 | X26: 보스 몬스터 | Y26: 24 | Z26: 원거리 | AA26: 21.38 | AB26: 실드 회복 | AC26: 둔화 | AE26: 109 | AF26: 0.6948787437 | AG26: 1.7
A27: 10025 | B27: 110025 | C27: Boss_Range | D27: 10025 | E27: 85 | F27: 170 | G27: 136 | H27: 1.5 | I27: 30 | J27: 34 | K27: 100 | L27: 15 | M27: 150 | N27: 39 | O27: 39 | P27: 1.3 | Q27: Range | R27: vfx_Projectile_Fireball03_Green | S27: 31025 | T27: 32025 | U27: 0 | V27: 0 | W27: 거미여왕1 | X27: 보스 몬스터 | Y27: 25 | Z27: 원거리 | AA27: 22.93 | AB27: 중독 5초 | AC27: 둔화 30% | AE27: 113 | AF27: 0.6948787437 | AG27: 1.6
A28: 10026 | B28: 110026 | C28: Boss_Melee | D28: 10026 | E28: 88 | F28: 176 | G28: 142 | H28: 1.43 | I28: 26 | J28: 38 | K28: 100 | L28: 15 | M28: 150 | N28: 39 | O28: 39 | P28: 1.3 | Q28: Melee | R28: MeleeAttack_Sword | S28: 31026 | T28: 32026 | U28: 0 | V28: 0 | W28: 데스나이트1 | X28: 보스 몬스터 | Y28: 26 | Z28: 근접 | AA28: 24.06 | AB28: 광포화 신속화 60% | AC28: 부활 | AE28: 118 | AF28: 0.6948787437 | AG28: 1.7
A29: 10027 | B29: 110027 | C29: Boss_Range | D29: 10027 | E29: 91 | F29: 182 | G29: 146 | H29: 2.6 | I29: 22 | J29: 98 | K29: 100 | L29: 15 | M29: 200 | N29: 39 | O29: 39 | P29: 1.3 | Q29: Range | R29: FX_Shoot_06_projectile | S29: 31027 | T29: 32027 | U29: 0 | V29: 0 | W29: 레드드래곤4 | X29: 보스 몬스터 | Y29: 27 | Z29: 원거리 | AA29: 26.54 | AB29: 피해 무효 | AC29: 회복 | AD29: 화상 | AE29: 122 | AF29: 0.6948787437 | AG29: 3
A30: 10028 | B30: 110028 | C30: Boss_Melee | D30: 10028 | E30: 92 | F30: 184 | G30: 182 | H30: 1.75 | I30: 43 | J30: 46 | K30: 100 | L30: 15 | M30: 180 | N30: 40 | O30: 40 | P30: 1.3 | Q30: Melee | R30: MeleeAttack_Scythe | S30: 31028 | T30: 32028 | U30: 0 | V30: 0 | W30: 타락한 천사 | X30: 보스 몬스터 | Y30: 28 | Z30: 근접 | AA30: 28.48 | AB30: 부활 | AC30: 무적 | AD30: 광포화 - 공격 | AE30: 125 | AF30: 0.6775067751 | AG30: 2.2
A31: 11001 | B31: =A31+100000 -> 111001 | C31: ="Normal_"&Q31 -> Normal_Melee | D31: =A31 -> 11001 | E31: 1 | F31: 2 | G31: 0 | H31: 1.6 | I31: 1 | J31: 2 | K31: 100 | L31: =IF(Z31="근접",5,3) -> 5 | M31: =IF(Z31="근접",130,120) -> 130 | N31: 30 | O31: 30 | P31: 1.3 | Q31: =IF(Z31="원거리","Range","Melee") -> Melee | R31: MeleeAttack_Dagger | S31: 0 | T31: 0 | U31: 0 | V31: 0 | W31: 놀1 | X31: 수인형 몬스터 | Y31: 1 | Z31: 근접 | AA31: 0.95 | AB31: 공속 빠름 | AE31: =INT(F31/6) -> 0 | AF31: 0.9033423668 | AG31: 1
A32: 11002 | B32: 111002 | C32: ="Normal_"&Q32 -> Normal_Melee | D32: 11002 | E32: 1 | F32: 2 | G32: 0 | H32: 1.85 | I32: 1 | J32: 3 | K32: 100 | L32: =IF(Z32="근접",5,3) -> 5 | M32: =IF(Z32="근접",130,120) -> 130 | N32: 30 | O32: 30 | P32: 1.3 | Q32: Melee | R32: MeleeAttack_Sword | S32: 0 | T32: 0 | U32: 0 | V32: 0 | W32: 놀2 | X32: 수인형 몬스터 | Y32: 1 | Z32: 근접 | AA32: 1.1 | AB32: 공속 빠름 | AE32: =H32/3 -> 0.6166666667 | AF32: 0.9033423668 | AG32: 1
A33: 11003 | B33: 111003 | C33: Normal_Melee | D33: 11003 | E33: 1 | F33: 3 | G33: 0 | H33: 1.45 | I33: 2 | J33: 4 | K33: 100 | L33: 5 | M33: 130 | N33: 30 | O33: 30 | P33: 1.3 | Q33: Melee | R33: MeleeAttack_Sword | S33: 0 | T33: 0 | U33: 0 | V33: 0 | W33: 놀3 | X33: 수인형 몬스터 | Y33: 2 | Z33: 근접 | AA33: 2.1 | AB33: 공속 빠름 | AE33: 0.4833333333 | AF33: 0.9033423668 | AG33: 1
A34: 11004 | B34: 111004 | C34: Normal_Melee | D34: 11004 | E34: 5 | F34: 10 | G34: 0 | H34: 1.1 | I34: 3 | J34: 5 | K34: 100 | L34: 5 | M34: 130 | N34: 30 | O34: 30 | P34: 1.3 | Q34: Melee | R34: MeleeAttack_DoubleSword | S34: 0 | T34: 0 | U34: 0 | V34: 0 | W34: 놀강도1 | X34: 수인형 몬스터 | Y34: 6 | Z34: 근접 | AA34: 3.69 | AB34: 공속 빠름 | AE34: 0.3666666667 | AF34: 0.9033423668 | AG34: 1
A35: 11005 | B35: 111005 | C35: Normal_Melee | D35: 11005 | E35: 1 | F35: 3 | G35: 0 | H35: 1.2 | I35: 2 | J35: 4 | K35: 100 | L35: 5 | M35: 130 | N35: 30 | O35: 30 | P35: 1.3 | Q35: Melee | R35: MeleeAttack_DoubleSword | S35: 0 | T35: 0 | U35: 0 | V35: 0 | W35: 놀강도3 | X35: 수인형 몬스터 | Y35: 2 | Z35: 근접 | AA35: =ROUND(((I35 + J35) / 2) * (1 + (L35 / 100) * ((M35 / 100) - 1)) / H35 * (K35 / 100),2) -> 2.54 | AB35: 공속 빠름 | AE35: 0.4 | AF35: 0.9033423668 | AG35: 1
A36: 11006 | B36: 111006 | C36: Normal_Melee | D36: 11006 | E36: 3 | F36: 6 | G36: 0 | H36: 2.1 | I36: 3 | J36: 7 | K36: 100 | L36: 5 | M36: 130 | N36: 30 | O36: 30 | P36: 1.3 | Q36: Melee | R36: MeleeAttack_DoubleSword | S36: 0 | T36: 0 | U36: 0 | V36: 0 | W36: 놀강도4 | X36: 수인형 몬스터 | Y36: 5 | Z36: 근접 | AA36: 2.42 | AB36: 공속 빠름 | AE36: 0.7 | AF36: 0.9033423668 | AG36: 1
A37: 11007 | B37: 111007 | C37: Normal_Range | D37: 11007 | E37: 1 | F37: 1 | G37: 0 | H37: 2.7 | I37: 2 | J37: 4 | K37: 100 | L37: 8 | M37: 120 | N37: 30 | O37: 30 | P37: 1.3 | Q37: Range | R37: Projectiles_light | S37: 41007 | T37: 0 | U37: 0 | V37: 0 | W37: 놀아처2 | X37: 수인형 몬스터 | Y37: 1 | Z37: 원거리 | AA37: 1.13 | AB37: 치명타 확률+5% | AE37: 0.9 | AF37: 0.9033423668 | AG37: 1
A38: 11008 | B38: 111008 | C38: Normal_Range | D38: 11008 | E38: 1 | F38: 2 | G38: 0 | H38: 2.8 | I38: 4 | J38: 6 | K38: 100 | L38: 8 | M38: 120 | N38: 30 | O38: 30 | P38: 1.3 | Q38: Range | R38: Projectiles_light | S38: 41008 | T38: 0 | U38: 0 | V38: 0 | W38: 놀아처3 | X38: 수인형 몬스터 | Y38: 3 | Z38: 원거리 | AA38: 1.81 | AB38: 치명타 확률+5% | AE38: 0.9333333333 | AF38: 0.9033423668 | AG38: 1
A39: 11009 | B39: 111009 | C39: Normal_Melee | D39: 11009 | E39: 3 | F39: 7 | G39: 1 | H39: 2.9 | I39: 4 | J39: 9 | K39: 100 | L39: 5 | M39: 130 | N39: 30 | O39: 30 | P39: 1.3 | Q39: Melee | R39: MeleeAttack_Axe | S39: 0 | T39: 0 | U39: 0 | V39: 0 | W39: 미노타우르스 광전사1 | X39: 수인형 몬스터 | Y39: 4 | Z39: 근접 | AA39: 2.28 | AB39: 체력 10% | AE39: 0.9666666667 | AF39: 0.9033423668 | AG39: 1.4
A40: 11010 | B40: 111010 | C40: Normal_Melee | D40: 11010 | E40: 8 | F40: 18 | G40: 4 | H40: 2.6 | I40: 10 | J40: 12 | K40: 100 | L40: 5 | M40: 130 | N40: 30 | O40: 30 | P40: 1.3 | Q40: Melee | R40: MeleeAttack_Axe | S40: 0 | T40: 0 | U40: 0 | V40: 0 | W40: 미노타우르스 광전사2 | X40: 수인형 몬스터 | Y40: 10 | Z40: 근접 | AA40: 4.29 | AB40: 체력 10% | AF40: 0.9033423668 | AG40: 1.4
A41: 11011 | B41: 111011 | C41: Normal_Melee | D41: 11011 | E41: 8 | F41: 18 | G41: 4 | H41: 2.25 | I41: 8 | J41: 11 | K41: 100 | L41: 5 | M41: 130 | N41: 30 | O41: 30 | P41: 1.3 | Q41: Melee | R41: MeleeAttack_Axe | S41: 0 | T41: 0 | U41: 0 | V41: 0 | W41: 미노타우르스 광전사3 | X41: 수인형 몬스터 | Y41: 10 | Z41: 근접 | AA41: 4.29 | AB41: 체력 10% | AF41: 0.9033423668 | AG41: 1.4
A42: 11012 | B42: 111012 | C42: Normal_Melee | D42: 11012 | E42: 6 | F42: 14 | G42: 3 | H42: 2.4 | I42: 5 | J42: 9 | K42: 100 | L42: 5 | M42: 130 | N42: 30 | O42: 30 | P42: 1.3 | Q42: Melee | R42: MeleeAttack_Axe | S42: 0 | T42: 0 | U42: 0 | V42: 0 | W42: 미노타우르스 광전사4 | X42: 수인형 몬스터 | Y42: 8 | Z42: 근접 | AA42: 2.96 | AB42: 체력 10% | AF42: 0.9033423668 | AG42: 1.4
A43: 11013 | B43: 111013 | C43: Normal_Melee | D43: 11013 | E43: 2 | F43: 6 | G43: 1 | H43: 2.6 | I43: 3 | J43: 7 | K43: 100 | L43: 5 | M43: 130 | N43: 30 | O43: 30 | P43: 1.3 | Q43: Melee | R43: MeleeAttack_Axe | S43: 0 | T43: 0 | U43: 0 | V43: 0 | W43: 미노타우로스 도살자1 | X43: 수인형 몬스터 | Y43: 3 | Z43: 근접 | AA43: 1.95 | AB43: 체력 10% | AF43: 0.9033423668 | AG43: 1.4
A44: 11014 | B44: 111014 | C44: Normal_Melee | D44: 11014 | E44: 6 | F44: 14 | G44: 3 | H44: 3 | I44: 6 | J44: 11 | K44: 100 | L44: 5 | M44: 130 | N44: 30 | O44: 30 | P44: 1.3 | Q44: Melee | R44: MeleeAttack_Axe | S44: 0 | T44: 0 | U44: 0 | V44: 0 | W44: 미노타우로스 도살자2 | X44: 수인형 몬스터 | Y44: 8 | Z44: 근접 | AA44: 2.88 | AB44: 체력 10% | AF44: 0.9033423668 | AG44: 1.5
A45: 11015 | B45: 111015 | C45: Normal_Melee | D45: 11015 | E45: 18 | F45: 37 | G45: 9 | H45: 2.8 | I45: 22 | J45: 42 | K45: 100 | L45: 5 | M45: 130 | N45: 30 | O45: 30 | P45: 1.3 | Q45: Melee | R45: MeleeAttack_Axe | S45: 41015 | T45: 0 | U45: 0 | V45: 0 | W45: 미노타우르스 챔피언1 | X45: 수인형 몬스터 | Y45: 23 | Z45: 근접 | AA45: 11.6 | AB45: 피해 무효 | AF45: 0.9033423668 | AG45: 1.4
A46: 11016 | B46: 111016 | C46: Normal_Melee | D46: 11016 | E46: 18 | F46: 37 | G46: 9 | H46: 2.3 | I46: 17 | J46: 36 | K46: 100 | L46: 5 | M46: 130 | N46: 30 | O46: 30 | P46: 1.3 | Q46: Melee | R46: MeleeAttack_Axe | S46: 41016 | T46: 0 | U46: 0 | V46: 0 | W46: 미노타우르스 챔피언2 | X46: 수인형 몬스터 | Y46: 23 | Z46: 근접 | AA46: 11.69 | AB46: 피해 무효 | AF46: 0.9033423668 | AG46: 1.5
A47: 11017 | B47: 111017 | C47: Normal_Melee | D47: 11017 | E47: 9 | F47: 18 | G47: 4 | H47: 2.65 | I47: 12 | J47: 18 | K47: 100 | L47: 5 | M47: 130 | N47: 30 | O47: 30 | P47: 1.3 | Q47: Melee | R47: MeleeAttack_Axe | S47: 0 | T47: 0 | U47: 0 | V47: 0 | W47: 미노타우르스 챔피언3 | X47: 수인형 몬스터 | Y47: 11 | Z47: 근접 | AA47: 5.75 | AB47: 공격력 15% | AF47: 0.9033423668 | AG47: 1.5
A48: 11018 | B48: 111018 | C48: Normal_Melee | D48: 11018 | E48: 6 | F48: 13 | G48: 3 | H48: 2.9 | I48: 9 | J48: 11 | K48: 100 | L48: 5 | M48: 130 | N48: 30 | O48: 30 | P48: 1.3 | Q48: Melee | R48: MeleeAttack_Axe | S48: 0 | T48: 0 | U48: 0 | V48: 0 | W48: 미노타우르스 챔피언4 | X48: 수인형 몬스터 | Y48: 8 | Z48: 근접 | AA48: 3.5 | AB48: 공격력 15% | AF48: 0.9033423668 | AG48: 1.5
A49: 11019 | B49: 111019 | C49: Normal_Melee | D49: 11019 | E49: 6 | F49: 13 | G49: 42 | H49: 2.85 | I49: 8 | J49: 12 | K49: 100 | L49: 5 | M49: 130 | N49: 30 | O49: 30 | P49: 1.3 | Q49: Melee | R49: MeleeAttack_Axe | S49: 0 | T49: 0 | U49: 0 | V49: 0 | W49: 미노타우르스 챔피언5 | X49: 수인형 몬스터 | Y49: 8 | Z49: 근접 | AA49: 3.56 | AB49: 공격력 15% | AF49: 0.9033423668 | AG49: 1.5
A50: 11020 | B50: 111020 | C50: Normal_Melee | D50: 11020 | E50: 19 | F50: 38 | G50: 0 | H50: 3.35 | I50: 40 | J50: 53 | K50: 100 | L50: 5 | M50: 130 | N50: 30 | O50: 30 | P50: 1.3 | Q50: Melee | R50: MeleeAttack_Blunt | S50: 0 | T50: 0 | U50: 0 | V50: 0 | W50: 버그베어1 | X50: 수인형 몬스터 | Y50: 24 | Z50: 근접 | AA50: 14.09 | AB50: 공격력 15% | AF50: 0.9033423668 | AG50: 1.4
A51: 11021 | B51: 111021 | C51: Normal_Melee | D51: 11021 | E51: 7 | F51: 14 | G51: 0 | H51: 3.3 | I51: 11 | J51: 13 | K51: 100 | L51: 5 | M51: 130 | N51: 30 | O51: 30 | P51: 1.3 | Q51: Melee | R51: MeleeAttack_Blunt | S51: 0 | T51: 0 | U51: 0 | V51: 0 | W51: 버그베어2 | X51: 수인형 몬스터 | Y51: 9 | Z51: 근접 | AA51: 3.69 | AB51: 공격력 15% | AF51: 0.9033423668 | AG51: 1.5
A52: 11022 | B52: 111022 | C52: Normal_Melee | D52: 11022 | E52: 7 | F52: 14 | G52: 0 | H52: 3.3 | I52: 11 | J52: 14 | K52: 100 | L52: 5 | M52: 130 | N52: 30 | O52: 30 | P52: 1.3 | Q52: Melee | R52: MeleeAttack_Blunt | S52: 0 | T52: 0 | U52: 0 | V52: 0 | W52: 버그베어3 | X52: 수인형 몬스터 | Y52: 9 | Z52: 근접 | AA52: 3.84 | AB52: 공격력 15% | AF52: 0.9033423668 | AG52: 1.4
A53: 11023 | B53: =A53+100000 -> 111023 | C53: Normal_Melee | D53: =A53 -> 11023 | E53: 7 | F53: 14 | G53: 0 | H53: 3.1 | I53: 9 | J53: 15 | K53: 100 | L53: =IF(Z53="근접",5,3) -> 5 | M53: =IF(Z53="근접",130,120) -> 130 | N53: 30 | O53: 30 | P53: 1.3 | Q53: =IF(Z53="원거리","Range","Melee") -> Melee | R53: MeleeAttack_Blunt | S53: 0 | T53: 0 | U53: 0 | V53: 0 | W53: 버그베어4 | X53: 수인형 몬스터 | Y53: 9 | Z53: 근접 | AA53: 3.93 | AB53: 공격력 15% | AF53: 0.9033423668 | AG53: 1.4
A54: 11024 | B54: 111024 | C54: Normal_Range | D54: 11024 | E54: 3 | F54: 6 | G54: 0 | H54: 2.8 | I54: 4 | J54: 12 | K54: 100 | L54: 3 | M54: 150 | N54: 30 | O54: 30 | P54: 1.3 | Q54: Range | R54: vfx_ToonProjectile_Bomb03Orange | S54: 41024 | T54: 0 | U54: 0 | V54: 0 | W54: 싸이클롭스1 | X54: 수인형 몬스터 | Y54: 7 | Z54: 원거리 | AA54: 2.9 | AB54: 치명타 피해량 + 30% | AF54: 0.9033423668 | AG54: 1.4
A55: 11025 | B55: 111025 | C55: Normal_Range | D55: 11025 | E55: 1 | F55: 3 | G55: 0 | H55: 2.7 | I55: 4 | J55: 8 | K55: 100 | L55: 3 | M55: 150 | N55: 30 | O55: 30 | P55: 1.3 | Q55: Range | R55: vfx_ToonProjectile_Bomb03Red | S55: 41025 | T55: 0 | U55: 0 | V55: 0 | W55: 싸이클롭스2 | X55: 수인형 몬스터 | Y55: 4 | Z55: 원거리 | AA55: 2.26 | AB55: 치명타 피해량 + 30% | AF55: 0.9033423668 | AG55: 1.4
A56: 11026 | B56: 111026 | C56: Normal_Range | D56: 11026 | E56: 6 | F56: 13 | G56: 0 | H56: 2.9 | I56: 9 | J56: 35 | K56: 100 | L56: 3 | M56: 150 | N56: 30 | O56: 30 | P56: 1.3 | Q56: Range | R56: vfx_ToonProjectile_Bomb03Blue | S56: 41026 | T56: 0 | U56: 0 | V56: 0 | W56: 싸이클롭스3 | X56: 수인형 몬스터 | Y56: 16 | Z56: 원거리 | AA56: 7.7 | AB56: 치명타 피해량 + 30% | AF56: 0.9033423668 | AG56: 1.4
A57: 11027 | B57: 111027 | C57: Normal_Melee | D57: 11027 | E57: 13 | F57: 32 | G57: 0 | H57: 2.5 | I57: 10 | J57: 30 | K57: 100 | L57: 5 | M57: 130 | N57: 30 | O57: 30 | P57: 1.3 | Q57: Melee | R57: MeleeAttack_Blow | S57: 0 | T57: 0 | U57: 0 | V57: 0 | W57: 예티1 | X57: 수인형 몬스터 | Y57: 17 | Z57: 근접 | AA57: 8.12 | AB57: 생명력 20% | AF57: 0.9033423668 | AG57: 1.3
A58: 11028 | B58: 111028 | C58: Normal_Melee | D58: 11028 | E58: 13 | F58: 32 | G58: 0 | H58: 2.65 | I58: 14 | J58: 28 | K58: 100 | L58: 5 | M58: 130 | N58: 30 | O58: 30 | P58: 1.3 | Q58: Melee | R58: MeleeAttack_Blow | S58: 0 | T58: 0 | U58: 0 | V58: 0 | W58: 예티2 | X58: 수인형 몬스터 | Y58: 17 | Z58: 근접 | AA58: 8.04 | AB58: 생명력 20% | AF58: 0.9033423668 | AG58: 1.4
A59: 11029 | B59: 111029 | C59: Normal_Melee | D59: 11029 | E59: 4 | F59: 8 | G59: 0 | H59: 2.8 | I59: 3 | J59: 10 | K59: 100 | L59: 5 | M59: 130 | N59: 30 | O59: 30 | P59: 1.3 | Q59: Melee | R59: MeleeAttack_Blunt | S59: 41029 | T59: 0 | U59: 0 | V59: 0 | W59: 트롤1 | X59: 수인형 몬스터 | Y59: 5 | Z59: 근접 | AA59: 2.36 | AB59: 회복 | AF59: 0.9033423668 | AG59: 1.5
A60: 11030 | B60: 111030 | C60: Normal_Melee | D60: 11030 | E60: 2 | F60: 5 | G60: 0 | H60: 2.75 | I60: 2 | J60: 9 | K60: 100 | L60: 5 | M60: 130 | N60: 30 | O60: 30 | P60: 1.3 | Q60: Melee | R60: MeleeAttack_Blunt | S60: 41030 | T60: 0 | U60: 0 | V60: 0 | W60: 트롤2 | X60: 수인형 몬스터 | Y60: 3 | Z60: 근접 | AA60: 2.03 | AB60: 회복 | AF60: 0.9033423668 | AG60: 1.4
A61: 11031 | B61: 111031 | C61: Normal_Melee | D61: 11031 | E61: 2 | F61: 5 | G61: 0 | H61: 2.9 | I61: 2 | J61: 9 | K61: 100 | L61: 5 | M61: 130 | N61: 30 | O61: 30 | P61: 1.3 | Q61: Melee | R61: MeleeAttack_Blunt | S61: 41031 | T61: 0 | U61: 0 | V61: 0 | W61: 트롤3 | X61: 수인형 몬스터 | Y61: 3 | Z61: 근접 | AA61: 1.93 | AB61: 회복 | AF61: 0.9033423668 | AG61: 1.4
A62: 12001 | B62: 112001 | C62: Normal_Melee | D62: 12001 | E62: 17 | F62: 34 | G62: 0 | H62: 1.3 | I62: 17 | J62: 18 | K62: 100 | L62: 10 | M62: 130 | N62: 30 | O62: 30 | P62: 1.3 | Q62: Melee | R62: MeleeAttack_Sword | S62: 51001 | T62: 52001 | U62: 0 | V62: 0 | W62: 강도1 | X62: 인간형 몬스터 | Y62: 22 | Z62: 근접 | AA62: 13.87 | AB62: 공격속도 빠름 | AC62: 치명타 5% | AF62: 0.9033423668 | AG62: 1.2
A63: 12002 | B63: 112002 | C63: Normal_Melee | D63: 12002 | E63: 17 | F63: 34 | G63: 0 | H63: 1.45 | I63: 16 | J63: 22 | K63: 100 | L63: 10 | M63: 130 | N63: 30 | O63: 30 | P63: 1.3 | Q63: Melee | R63: MeleeAttack_Sword | S63: 51002 | T63: 52002 | U63: 0 | V63: 0 | W63: 강도2 | X63: 인간형 몬스터 | Y63: 22 | Z63: 근접 | AA63: 13.5 | AB63: 공격속도 빠름 | AC63: 치명타 5% | AF63: 0.9033423668 | AG63: 1.3
A64: 12003 | B64: 112003 | C64: Normal_Melee | D64: 12003 | E64: 17 | F64: 35 | G64: 0 | H64: 1.4 | I64: 17 | J64: 20 | K64: 100 | L64: 10 | M64: 130 | N64: 30 | O64: 30 | P64: 1.3 | Q64: Melee | R64: MeleeAttack_Sword | S64: 51003 | T64: 52003 | U64: 0 | V64: 0 | W64: 강도3 | X64: 인간형 몬스터 | Y64: 22 | Z64: 근접 | AA64: 13.61 | AB64: 공격속도 빠름 | AC64: 치명타 5% | AF64: 0.9033423668 | AG64: 1.3
A65: 12004 | B65: 112004 | C65: Normal_Melee | D65: 12004 | E65: 9 | F65: 19 | G65: 0 | H65: 1.7 | I65: 8 | J65: 10 | K65: 100 | L65: 5 | M65: 130 | N65: 30 | O65: 30 | P65: 1.3 | Q65: Melee | R65: MeleeAttack_Dagger | S65: 51004 | T65: 0 | U65: 0 | V65: 0 | W65: 고블린1 | X65: 인간형 몬스터 | Y65: 12 | Z65: 근접 | AA65: 5.37 | AB65: 사망 - 공격력 | AF65: 0.9033423668 | AG65: 1.1
A66: 12005 | B66: 112005 | C66: Normal_Melee | D66: 12005 | E66: 9 | F66: 19 | G66: 0 | H66: 2 | I66: 7 | J66: 14 | K66: 100 | L66: 5 | M66: 130 | N66: 30 | O66: 30 | P66: 1.3 | Q66: Melee | R66: MeleeAttack_Scythe | S66: 51005 | T66: 0 | U66: 0 | V66: 0 | W66: 고블린 라이더1 | X66: 인간형 몬스터 | Y66: 12 | Z66: 근접 | AA66: 5.33 | AB66: 사망 - 공격력 | AF66: 0.9033423668 | AG66: 1.4
A67: 12006 | B67: 112006 | C67: Normal_Melee | D67: 12006 | E67: 9 | F67: 19 | G67: 0 | H67: 2.1 | I67: 7 | J67: 15 | K67: 100 | L67: 5 | M67: 130 | N67: 30 | O67: 30 | P67: 1.3 | Q67: Melee | R67: MeleeAttack_Scythe | S67: 51006 | T67: 0 | U67: 0 | V67: 0 | W67: 고블린 라이더2 | X67: 인간형 몬스터 | Y67: 12 | Z67: 근접 | AA67: =ROUND(((I67 + J67) / 2) * (1 + (L67 / 100) * ((M67 / 100) - 1)) / H67 * (K67 / 100),2) -> 5.32 | AB67: 사망 - 공격력 | AF67: 0.9033423668 | AG67: 1.5
A68: 12007 | B68: =A68+100000 -> 112007 | C68: Normal_Range | D68: =A68 -> 12007 | E68: 5 | F68: 10 | G68: 0 | H68: 2.4 | I68: 11 | J68: 13 | K68: 100 | L68: 3 | M68: 120 | N68: 30 | O68: 30 | P68: 1.3 | Q68: =IF(Z68="원거리","Range","Melee") -> Range | R68: vfx_ToonProjectile_Bullet01Green | S68: 51007 | T68: 0 | U68: 0 | V68: 0 | W68: 고블린 아처1 | X68: 인간형 몬스터 | Y68: 12 | Z68: 원거리 | AA68: 5.03 | AB68: 사망 - 공격력 | AF68: =$AF$2/(N68*3.69) -> 0.9033423668 | AG68: 1.1
A69: 12008 | B69: 112008 | C69: Normal_Melee | D69: 12008 | E69: 12 | F69: 24 | G69: 0 | H69: 3.1 | I69: 13 | J69: 28 | K69: 100 | L69: 5 | M69: 150 | N69: 30 | O69: 30 | P69: 1.3 | Q69: Melee | R69: MeleeAttack_Axe | S69: 51008 | T69: 52008 | U69: 0 | V69: 0 | W69: 광전사1 | X69: 인간형 몬스터 | Y69: 15 | Z69: 근접 | AA69: 6.78 | AB69: 광포화 - 공격력 | AC69: 치명타 피해량20% | AF69: 0.9033423668 | AG69: 1.4
A70: 12009 | B70: 112009 | C70: Normal_Melee | D70: 12009 | E70: 19 | F70: 38 | G70: 0 | H70: 3.3 | I70: 24 | J70: 60 | K70: 100 | L70: 5 | M70: 150 | N70: 30 | O70: 30 | P70: 1.3 | Q70: Melee | R70: MeleeAttack_Axe | S70: 51009 | T70: 52009 | U70: 0 | V70: 0 | W70: 광전사2 | X70: 인간형 몬스터 | Y70: 24 | Z70: 근접 | AA70: 13.05 | AB70: 광포화 - 공격력 | AC70: 치명타 피해량20% | AF70: 0.9033423668 | AG70: 1.5
A71: 12010 | B71: 112010 | C71: Normal_Melee | D71: 12010 | E71: 12 | F71: 24 | G71: 0 | H71: 3.35 | I71: 22 | J71: 23 | K71: 100 | L71: 5 | M71: 150 | N71: 30 | O71: 30 | P71: 1.3 | Q71: Melee | R71: MeleeAttack_Axe | S71: 51010 | T71: 52010 | U71: 0 | V71: 0 | W71: 광전사3 | X71: 인간형 몬스터 | Y71: 15 | Z71: 근접 | AA71: 6.88 | AB71: 광포화 - 공격력 | AC71: 치명타 피해량20% | AF71: 0.9033423668 | AG71: 1.6
A72: 12011 | B72: 112011 | C72: Normal_Melee | D72: 12011 | E72: 19 | F72: 38 | G72: 0 | H72: 3.2 | I72: 35 | J72: 46 | K72: 100 | L72: 5 | M72: 150 | N72: 30 | O72: 30 | P72: 1.3 | Q72: Melee | R72: MeleeAttack_Axe | S72: 51011 | T72: 52011 | U72: 0 | V72: 0 | W72: 광전사4 | X72: 인간형 몬스터 | Y72: 24 | Z72: 근접 | AA72: 12.97 | AB72: 광포화 - 공격력 | AC72: 치명타 피해량20% | AF72: 0.9033423668 | AG72: 1.5
A73: 12012 | B73: 112012 | C73: Normal_Melee | D73: 12012 | E73: 12 | F73: 24 | G73: 0 | H73: 3.3 | I73: 18 | J73: 26 | K73: 100 | L73: 5 | M73: 150 | N73: 30 | O73: 30 | P73: 1.3 | Q73: Melee | R73: MeleeAttack_Axe | S73: 51012 | T73: 52012 | U73: 0 | V73: 0 | W73: 광전사5 | X73: 인간형 몬스터 | Y73: 15 | Z73: 근접 | AA73: 6.83 | AB73: 광포화 - 공격력 | AC73: 치명타 피해량20% | AF73: 0.9033423668 | AG73: 1.7
A74: 12013 | B74: 112013 | C74: Normal_Melee | D74: 12013 | E74: 9 | F74: 18 | G74: 0 | H74: 3.35 | I74: 14 | J74: 16 | K74: 100 | L74: 5 | M74: 150 | N74: 30 | O74: 30 | P74: 1.3 | Q74: Melee | R74: MeleeAttack_Axe | S74: 51013 | T74: 52013 | U74: 0 | V74: 0 | W74: 광전사6 | X74: 인간형 몬스터 | Y74: 11 | Z74: 근접 | AA74: 4.59 | AB74: 광포화 - 공격력 | AC74: 치명타 피해량20% | AF74: 0.9033423668 | AG74: 1.5
A75: 12014 | B75: 112014 | C75: Normal_Melee | D75: 12014 | E75: 20 | F75: 40 | G75: 0 | H75: 2.3 | I75: 30 | J75: 32 | K75: 100 | L75: 10 | M75: 130 | N75: 30 | O75: 30 | P75: 1.3 | Q75: Melee | R75: MeleeAttack_Sword | S75: 51014 | T75: 52014 | U75: 0 | V75: 0 | W75: 다크엘프 기사2 | X75: 인간형 몬스터 | Y75: 25 | Z75: 근접 | AA75: 13.88 | AB75: 피해 무효 | AC75: 치명타 5% | AF75: 0.9033423668 | AG75: 1.4
A76: 12015 | B76: 112015 | C76: Normal_Melee | D76: 12015 | E76: 20 | F76: 40 | G76: 0 | H76: 2.25 | I76: 26 | J76: 35 | K76: 100 | L76: 10 | M76: 130 | N76: 30 | O76: 30 | P76: 1.3 | Q76: Melee | R76: MeleeAttack_Sword | S76: 51015 | T76: 52015 | U76: 0 | V76: 0 | W76: 다크엘프 기사3 | X76: 인간형 몬스터 | Y76: 25 | Z76: 근접 | AA76: 13.96 | AB76: 피해 무효 | AC76: 치명타 5% | AF76: 0.9033423668 | AG76: 1.3
A77: 12016 | B77: 112016 | C77: Normal_Melee | D77: 12016 | E77: 18 | F77: 37 | G77: 0 | H77: 2.4 | I77: 22 | J77: 33 | K77: 100 | L77: 10 | M77: 130 | N77: 30 | O77: 30 | P77: 1.3 | Q77: Melee | R77: MeleeAttack_Sword | S77: 51016 | T77: 52016 | U77: 0 | V77: 0 | W77: 다크엘프 기사4 | X77: 인간형 몬스터 | Y77: 23 | Z77: 근접 | AA77: 11.8 | AB77: 피해 무효 | AC77: 치명타 5% | AF77: 0.9033423668 | AG77: 1.4
A78: 12017 | B78: 112017 | C78: Normal_Range | D78: 12017 | E78: 3 | F78: 7 | G78: 17 | H78: 2.7 | I78: 7 | J78: 11 | K78: 100 | L78: 3 | M78: 120 | N78: 30 | O78: 30 | P78: 1.3 | Q78: Range | R78: vfx_Projectile_Orb02_Pink | S78: 51017 | T78: 0 | U78: 0 | V78: 0 | W78: 다크엘프 마법사1 | X78: 인간형 몬스터 | Y78: 9 | Z78: 원거리 | AA78: 3.35 | AB78: 둔화 50% | AF78: 0.9033423668 | AG78: 1.3
A79: 12018 | B79: 112018 | C79: Normal_Range | D79: 12018 | E79: 9 | F79: 19 | G79: 47 | H79: 2.75 | I79: 20 | J79: 48 | K79: 100 | L79: 3 | M79: 120 | N79: 30 | O79: 30 | P79: 1.3 | Q79: Range | R79: vfx_Projectile_Orb06_Purple | S79: 51018 | T79: 0 | U79: 0 | V79: 0 | W79: 다크엘프 마법사3 | X79: 인간형 몬스터 | Y79: 24 | Z79: 원거리 | AA79: 12.44 | AB79: 회복 | AF79: 0.9033423668 | AG79: 1.3
A80: 12019 | B80: 112019 | C80: Normal_Range | D80: 12019 | E80: 7 | F80: 14 | G80: 35 | H80: 2.65 | I80: 20 | J80: 23 | K80: 100 | L80: 3 | M80: 120 | N80: 30 | O80: 30 | P80: 1.3 | Q80: Range | R80: vfx_Projectile_Orb05_Purple | S80: 51019 | T80: 0 | U80: 0 | V80: 0 | W80: 다크엘프 마법사4 | X80: 인간형 몬스터 | Y80: 17 | Z80: 원거리 | AA80: 8.16 | AB80: 화상 | AF80: 0.9033423668 | AG80: 1.2
A81: 12020 | B81: 112020 | C81: Normal_Melee | D81: 12020 | E81: 13 | F81: 27 | G81: 0 | H81: 2.9 | I81: 23 | J81: 24 | K81: 100 | L81: 5 | M81: 130 | N81: 30 | O81: 30 | P81: 1.3 | Q81: Melee | R81: MeleeAttack_Axe | S81: 51020 | T81: 0 | U81: 0 | V81: 0 | W81: 도살자1 | X81: 인간형 몬스터 | Y81: 17 | Z81: 근접 | AA81: 8.23 | AB81: 중독 5초 | AF81: 0.9033423668 | AG81: 1.4
A82: 12021 | B82: 112021 | C82: Normal_Melee | D82: 12021 | E82: 14 | F82: 29 | G82: 0 | H82: 2.8 | I82: 22 | J82: 24 | K82: 100 | L82: 5 | M82: 130 | N82: 30 | O82: 30 | P82: 1.3 | Q82: Melee | R82: MeleeAttack_Axe | S82: 51021 | T82: 0 | U82: 0 | V82: 0 | W82: 도살자2 | X82: 인간형 몬스터 | Y82: 18 | Z82: 근접 | AA82: 8.34 | AB82: 광전사 2배 | AF82: 0.9033423668 | AG82: 1.5
A83: 12022 | B83: 112022 | C83: Normal_Melee | D83: 12022 | E83: 14 | F83: 29 | G83: 0 | H83: 1.7 | I83: 9 | J83: 19 | K83: 100 | L83: 5 | M83: 130 | N83: 30 | O83: 30 | P83: 1.3 | Q83: Melee | R83: MeleeAttack_Sword | S83: 51022 | T83: 0 | U83: 0 | V83: 0 | W83: 살인 청부업자1 | X83: 인간형 몬스터 | Y83: 18 | Z83: 근접 | AA83: 8.36 | AB83: 치명타 확률 20% | AF83: 0.9033423668 | AG83: 1.3
A84: 12023 | B84: 112023 | C84: Normal_Melee | D84: 12023 | E84: 9 | F84: 18 | G84: 0 | H84: 1.65 | I84: 7 | J84: 8 | K84: 100 | L84: 5 | M84: 150 | N84: 30 | O84: 30 | P84: 1.3 | Q84: Melee | R84: MeleeAttack_DoubleSword | S84: 51023 | T84: 0 | U84: 0 | V84: 0 | W84: 살인 청부업자2 | X84: 인간형 몬스터 | Y84: 11 | Z84: 근접 | AA84: 4.66 | AB84: 치명타 확률 20% | AF84: 0.9033423668 | AG84: 1.3
A85: 12024 | B85: 112024 | C85: Normal_Melee | D85: 12024 | E85: 8 | F85: 16 | G85: 0 | H85: 1.85 | I85: 7 | J85: 9 | K85: 100 | L85: 5 | M85: 150 | N85: 30 | O85: 30 | P85: 1.3 | Q85: Melee | R85: MeleeAttack_Sword | S85: 51024 | T85: 0 | U85: 0 | V85: 0 | W85: 살인 청부업자3 | X85: 인간형 몬스터 | Y85: 10 | Z85: 근접 | AA85: 4.43 | AB85: 치명타 확률 20% | AF85: 0.9033423668 | AG85: 1.1
A86: 12025 | B86: 112025 | C86: Normal_Melee | D86: 12025 | E86: 7 | F86: 14 | G86: 0 | H86: 0.85 | I86: 3 | J86: 6 | K86: 100 | L86: 5 | M86: 130 | N86: 30 | O86: 30 | P86: 1.3 | Q86: Melee | R86: MeleeAttack_DoubleSword | S86: 51025 | T86: 52025 | U86: 0 | V86: 0 | W86: 연쇄살인마1 | X86: 인간형 몬스터 | Y86: 9 | Z86: 근접 | AA86: 5.37 | AB86: 공속 빠름 | AC86: 흡혈 | AF86: 0.9033423668 | AG86: 1.3
A87: 12026 | B87: 112026 | C87: Normal_Melee | D87: 12026 | E87: 17 | F87: 35 | G87: 0 | H87: 0.9 | I87: 11 | J87: 16 | K87: 100 | L87: 5 | M87: 130 | N87: 30 | O87: 30 | P87: 1.3 | Q87: Melee | R87: MeleeAttack_Dagger | S87: 51026 | T87: 52026 | U87: 0 | V87: 0 | W87: 연쇄살인마2 | X87: 인간형 몬스터 | Y87: 22 | Z87: 근접 | AA87: 15.23 | AB87: 공속 빠름 | AC87: 흡혈 | AF87: 0.9033423668 | AG87: 1.3
A88: 12027 | B88: 112027 | C88: Normal_Melee | D88: 12027 | E88: 9 | F88: 18 | G88: 0 | H88: 0.9 | I88: 5 | J88: 7 | K88: 100 | L88: 5 | M88: 130 | N88: 30 | O88: 30 | P88: 1.3 | Q88: Melee | R88: MeleeAttack_Dagger | S88: 51027 | T88: 52027 | U88: 0 | V88: 0 | W88: 연쇄살인마3 | X88: 인간형 몬스터 | Y88: 11 | Z88: 근접 | AA88: 6.77 | AB88: 공속 빠름 | AC88: 흡혈 | AF88: 0.9033423668 | AG88: 1.1
A89: 12028 | B89: 112028 | C89: Normal_Range | D89: 12028 | E89: 2 | F89: 4 | G89: 0 | H89: 2.6 | I89: 3 | J89: 9 | K89: 100 | L89: 3 | M89: 120 | N89: 30 | O89: 30 | P89: 1.3 | Q89: Range | R89: Projectiles_light | S89: 51028 | T89: 0 | U89: 0 | V89: 0 | W89: 오크 궁수1 | X89: 인간형 몬스터 | Y89: 5 | Z89: 원거리 | AA89: 2.32 | AB89: 사망 - 회복 | AF89: 0.9033423668 | AG89: 1.3
A90: 12029 | B90: 112029 | C90: Normal_Range | D90: 12029 | E90: 3 | F90: 6 | G90: 0 | H90: 2.7 | I90: 6 | J90: 9 | K90: 100 | L90: 3 | M90: 120 | N90: 30 | O90: 30 | P90: 1.3 | Q90: Range | R90: Projectiles_light | S90: 51029 | T90: 0 | U90: 0 | V90: 0 | W90: 오크 궁수2 | X90: 인간형 몬스터 | Y90: 7 | Z90: 원거리 | AA90: 2.79 | AB90: 사망 - 회복 | AF90: 0.9033423668 | AG90: 1.3
A91: 12030 | B91: 112030 | C91: Normal_Range | D91: 12030 | E91: 3 | F91: 6 | G91: 0 | H91: 2.8 | I91: 5 | J91: 11 | K91: 100 | L91: 3 | M91: 120 | N91: 30 | O91: 30 | P91: 1.3 | Q91: Range | R91: vfx_ToonProjectile_Bomb03Red | S91: 51030 | T91: 0 | U91: 0 | V91: 0 | W91: 오크 마법사1 | X91: 인간형 몬스터 | Y91: 7 | Z91: 원거리 | AA91: 2.87 | AB91: 사망 - 회복 | AF91: 0.9033423668 | AG91: 1.2
A92: 12031 | B92: 112031 | C92: Normal_Range | D92: 12031 | E92: 2 | F92: 5 | G92: 0 | H92: 2.85 | I92: 7 | J92: 8 | K92: 100 | L92: 3 | M92: 120 | N92: 30 | O92: 30 | P92: 1.3 | Q92: Range | R92: vfx_ToonProjectile_Bomb03Blue | S92: 51031 | T92: 0 | U92: 0 | V92: 0 | W92: 오크 마법사2 | X92: 인간형 몬스터 | Y92: 6 | Z92: 원거리 | AA92: 2.65 | AB92: 사망 - 회복 | AF92: 0.9033423668 | AG92: 1.2
A93: 12032 | B93: 112032 | C93: Normal_Melee | D93: 12032 | E93: 4 | F93: 8 | G93: 0 | H93: 2.5 | I93: 3 | J93: 8 | K93: 100 | L93: 5 | M93: 130 | N93: 30 | O93: 30 | P93: 1.3 | Q93: Melee | R93: MeleeAttack_Axe | S93: 51032 | T93: 0 | U93: 0 | V93: 0 | W93: 오크1 | X93: 인간형 몬스터 | Y93: 5 | Z93: 근접 | AA93: 2.23 | AB93: 사망 - 회복 | AF93: 0.9033423668 | AG93: 1.3
A94: 12033 | B94: 112033 | C94: Normal_Melee | D94: 12033 | E94: 5 | F94: 10 | G94: 0 | H94: 2.6 | I94: 5 | J94: 9 | K94: 100 | L94: 5 | M94: 130 | N94: 30 | O94: 30 | P94: 1.3 | Q94: Melee | R94: MeleeAttack_Axe | S94: 51033 | T94: 0 | U94: 0 | V94: 0 | W94: 오크2 | X94: 인간형 몬스터 | Y94: 6 | Z94: 근접 | AA94: 2.73 | AB94: 사망 - 회복 | AF94: 0.9033423668 | AG94: 1.4
A95: 12034 | B95: 112034 | C95: Normal_Melee | D95: 12034 | E95: 19 | F95: 38 | G95: 0 | H95: 2.9 | I95: 36 | J95: 37 | K95: 100 | L95: 5 | M95: 130 | N95: 30 | O95: 30 | P95: 1.3 | Q95: Melee | R95: MeleeAttack_Blunt | S95: 51034 | T95: 0 | U95: 0 | V95: 0 | W95: 오크 워리어1 | X95: 인간형 몬스터 | Y95: 24 | Z95: 근접 | AA95: 12.78 | AB95: 사망 - 회복 | AF95: 0.9033423668 | AG95: 1.4
A96: 12035 | B96: 112035 | C96: ="Normal_"&Q96 -> Normal_Range | D96: 12035 | E96: 9 | F96: 19 | G96: 0 | H96: 2.4 | I96: 35 | J96: 47 | K96: 100 | L96: =IF(Z96="근접",5,3) -> 3 | M96: =IF(Z96="근접",130,120) -> 120 | N96: 30 | O96: 30 | P96: 1.3 | Q96: Range | R96: Projectiles_light | S96: 51035 | T96: 52035 | U96: 0 | V96: 0 | W96: 활든 강도1 | X96: 인간형 몬스터 | Y96: 24 | Z96: 원거리 | AA96: 17.19 | AB96: 공격력 15% | AC96: 공속 15% | AF96: 0.9033423668 | AG96: 1.2
A97: 12036 | B97: 112036 | C97: Normal_Range | D97: 12036 | E97: 3 | F97: 6 | G97: 0 | H97: 2.5 | I97: 7 | J97: 13 | K97: 100 | L97: 3 | M97: 120 | N97: 30 | O97: 30 | P97: 1.3 | Q97: Range | R97: Projectiles_light | S97: 51036 | T97: 52036 | U97: 0 | V97: 0 | W97: 활든 강도2 | X97: 인간형 몬스터 | Y97: 8 | Z97: 원거리 | AA97: 4.02 | AB97: 공격력 15% | AC97: 공속 15% | AF97: 0.9033423668 | AG97: 1.2
A98: 12037 | B98: 112037 | C98: Normal_Range | D98: 12037 | E98: 4 | F98: 8 | G98: 0 | H98: 2.45 | I98: 7 | J98: 21 | K98: 100 | L98: 3 | M98: 120 | N98: 30 | O98: 30 | P98: 1.3 | Q98: Range | R98: Projectiles_light | S98: 51037 | T98: 52037 | U98: 0 | V98: 0 | W98: 활든 강도3 | X98: 인간형 몬스터 | Y98: 10 | Z98: 원거리 | AA98: 5.75 | AB98: 공격력 15% | AC98: 공속 15% | AF98: 0.9033423668 | AG98: 1.2
A99: 13001 | B99: 113001 | C99: Normal_Range | D99: 13001 | E99: 5 | F99: 10 | G99: 0 | H99: 2.9 | I99: 16 | J99: 22 | K99: 100 | L99: 3 | M99: 120 | N99: 30 | O99: 30 | P99: 1.3 | Q99: Range | R99: Projectiles_magic | S99: 61001 | T99: 62001 | U99: 0 | V99: 0 | W99: 네크로멘서1 | X99: 언데드형 몬스터 | Y99: 13 | Z99: 원거리 | AA99: =ROUND(((I99 + J99) / 2) * (1 + (L99 / 100) * ((M99 / 100) - 1)) / H99 * (K99 / 100),2) -> 6.59 | AB99: 실드 회복 | AC99: 공격력 20% | AF99: 0.9033423668 | AG99: 1.3
A100: 13002 | B100: 113002 | C100: Normal_Range | D100: 13002 | E100: 5 | F100: 11 | G100: 0 | H100: 2.85 | I100: 20 | J100: 22 | K100: 100 | L100: 3 | M100: 120 | N100: 30 | O100: 30 | P100: 1.3 | Q100: Range | R100: Projectiles_magic | S100: 61002 | T100: 62002 | U100: 0 | V100: 0 | W100: 네크로멘서2 | X100: 언데드형 몬스터 | Y100: 14 | Z100: 원거리 | AA100: 7.41 | AB100: 실드 회복 | AC100: 공격력 20% | AF100: 0.9033423668 | AG100: 1.3
A101: 13003 | B101: 113003 | C101: Normal_Range | D101: 13003 | E101: 6 | F101: 12 | G101: 0 | H101: 2.95 | I101: 21 | J101: 24 | K101: 100 | L101: 3 | M101: 120 | N101: 30 | O101: 30 | P101: 1.3 | Q101: Range | R101: Projectiles_magic | S101: 61003 | T101: 62003 | U101: 0 | V101: 0 | W101: 네크로멘서3 | X101: 언데드형 몬스터 | Y101: 15 | Z101: 원거리 | AA101: 7.67 | AB101: 실드 회복 | AC101: 공격력 20% | AF101: 0.9033423668 | AG101: 1.2
A102: 13004 | B102: 113004 | C102: Normal_Melee | D102: 13004 | E102: 10 | F102: 21 | G102: 0 | H102: 2.3 | I102: 8 | J102: 16 | K102: 100 | L102: 5 | M102: 130 | N102: 30 | O102: 30 | P102: 1.3 | Q102: Melee | R102: MeleeAttack_Scythe | S102: 61004 | T102: 0 | U102: 0 | V102: 0 | W102: 데스1 | X102: 언데드형 몬스터 | Y102: 13 | Z102: 근접 | AA102: 5.3 | AB102: 사망 회복 | AF102: 0.9033423668 | AG102: 1.3
A103: 13005 | B103: 113005 | C103: Normal_Melee | D103: 13005 | E103: 11 | F103: 22 | G103: 0 | H103: 2.35 | I103: 14 | J103: 15 | K103: 100 | L103: 5 | M103: 130 | N103: 30 | O103: 30 | P103: 1.3 | Q103: Melee | R103: MeleeAttack_Scythe | S103: 61005 | T103: 0 | U103: 0 | V103: 0 | W103: 데스2 | X103: 언데드형 몬스터 | Y103: 14 | Z103: 근접 | AA103: 6.26 | AB103: 사망 회복 | AF103: 0.9033423668 | AG103: 1.3
A104: 13006 | B104: 113006 | C104: Normal_Melee | D104: 13006 | E104: 18 | F104: 37 | G104: 0 | H104: 2.1 | I104: 23 | J104: 25 | K104: 100 | L104: 5 | M104: 130 | N104: 30 | O104: 30 | P104: 1.3 | Q104: Melee | R104: MeleeAttack_Sword | S104: 61006 | T104: 0 | U104: 0 | V104: 0 | W104: 데스나이트2 | X104: 언데드형 몬스터 | Y104: 23 | Z104: 근접 | AA104: 11.6 | AB104: 공격력 증가 | AF104: 0.9033423668 | AG104: 1.4
A105: 13007 | B105: 113007 | C105: Normal_Melee | D105: 13007 | E105: 10 | F105: 21 | G105: 0 | H105: 2.4 | I105: 12 | J105: 13 | K105: 100 | L105: 5 | M105: 130 | N105: 30 | O105: 30 | P105: 1.3 | Q105: Melee | R105: FX_Kick | S105: 61007 | T105: 0 | U105: 0 | V105: 0 | W105: 머미1 | X105: 언데드형 몬스터 | Y105: 13 | Z105: 근접 | AA105: 5.29 | AB105: 중독 5초 | AF105: 0.9033423668 | AG105: 1.1
A106: 13008 | B106: 113008 | C106: Normal_Melee | D106: 13008 | E106: 11 | F106: 22 | G106: 0 | H106: 2.45 | I106: 11 | J106: 19 | K106: 100 | L106: 5 | M106: 130 | N106: 30 | O106: 30 | P106: 1.3 | Q106: Melee | R106: FX_Kick | S106: 61008 | T106: 0 | U106: 0 | V106: 0 | W106: 머미2 | X106: 언데드형 몬스터 | Y106: 14 | Z106: 근접 | AA106: 6.21 | AB106: 중독 5초 | AF106: 0.9033423668 | AG106: 1.2
A107: 13009 | B107: 113009 | C107: Normal_Melee | D107: 13009 | E107: 20 | F107: 40 | G107: 0 | H107: 2.35 | I107: 28 | J107: 34 | K107: 100 | L107: 5 | M107: 130 | N107: 30 | O107: 30 | P107: 1.3 | Q107: Melee | R107: FX_Kick | S107: 61009 | T107: 0 | U107: 0 | V107: 0 | W107: 머미3 | X107: 언데드형 몬스터 | Y107: 25 | Z107: 근접 | AA107: 13.39 | AB107: 중독 5초 | AF107: 0.9033423668 | AG107: 1.2
A108: 13010 | B108: 113010 | C108: Normal_Range | D108: 13010 | E108: 10 | F108: 20 | G108: 0 | H108: 2.8 | I108: 30 | J108: 44 | K108: 100 | L108: 3 | M108: 120 | N108: 30 | O108: 30 | P108: 1.3 | Q108: Range | R108: vfx_Projectile_Orb13_DarkPurple | S108: 61010 | T108: 0 | U108: 0 | V108: 0 | W108: 바포메트1 | X108: 언데드형 몬스터 | Y108: 25 | Z108: 원거리 | AA108: 13.29 | AB108: 광포화 | AF108: 0.9033423668 | AG108: 1.5
A109: 13011 | B109: 113011 | C109: Normal_Range | D109: 13011 | E109: 13 | F109: 26 | G109: 0 | H109: 2.9 | I109: 70 | J109: 78 | K109: 100 | L109: 3 | M109: 120 | N109: 30 | O109: 30 | P109: 1.3 | Q109: Range | R109: vfx_Projectile_Orb13_DarkRed | S109: 61011 | T109: 0 | U109: 0 | V109: 0 | W109: 바포메트3 | X109: 언데드형 몬스터 | Y109: 32 | Z109: 원거리 | AA109: 25.67 | AB109: 광포화 | AF109: 0.9033423668 | AG109: 1.3
A110: 13012 | B110: 113012 | C110: Normal_Range | D110: 13012 | E110: 10 | F110: 21 | G110: 0 | H110: 2.85 | I110: 24 | J110: 62 | K110: 100 | L110: 3 | M110: 120 | N110: 30 | O110: 30 | P110: 1.3 | Q110: Range | R110: vfx_ToonProjectile_Bomb03Red | S110: 61012 | T110: 0 | U110: 0 | V110: 0 | W110: 바포메트4 | X110: 언데드형 몬스터 | Y110: 26 | Z110: 원거리 | AA110: 15.18 | AB110: 광포화 | AF110: 0.9033423668 | AG110: 1.2
A111: 13013 | B111: 113013 | C111: Normal_Range | D111: 13013 | E111: 12 | F111: 25 | G111: 0 | H111: 2.95 | I111: 62 | J111: 74 | K111: 100 | L111: 3 | M111: 120 | N111: 30 | O111: 30 | P111: 1.3 | Q111: Range | R111: vfx_Projectile_Orb13_DarkPurple | S111: 61013 | T111: 0 | U111: 0 | V111: 0 | W111: 바포메트5 | X111: 언데드형 몬스터 | Y111: 31 | Z111: 원거리 | AA111: 23.19 | AB111: 광포화 | AF111: 0.9033423668 | AG111: 1.2
A112: 13014 | B112: 113014 | C112: Normal_Melee | D112: 13014 | E112: 4 | F112: 8 | G112: 0 | H112: 2.2 | I112: 4 | J112: 6 | K112: 100 | L112: 5 | M112: 130 | N112: 30 | O112: 30 | P112: 1.3 | Q112: Melee | R112: FX_Double Claw | S112: 61014 | T112: 0 | U112: 0 | V112: 0 | W112: 사악한 악령1 | X112: 언데드형 몬스터 | Y112: 5 | Z112: 근접 | AA112: 2.31 | AB112: 실드 증가 | AF112: 0.9033423668 | AG112: 1.3
A113: 13015 | B113: 113015 | C113: Normal_Melee | D113: 13015 | E113: 10 | F113: 21 | G113: 0 | H113: 2.15 | I113: 10 | J113: 13 | K113: 100 | L113: 5 | M113: 130 | N113: 30 | O113: 30 | P113: 1.3 | Q113: Melee | R113: FX_Double Claw | S113: 61015 | T113: 0 | U113: 0 | V113: 0 | W113: 사악한 악령2 | X113: 언데드형 몬스터 | Y113: 13 | Z113: 근접 | AA113: 5.43 | AB113: 실드 증가 | AF113: 0.9033423668 | AG113: 1.3
A114: 13016 | B114: 113016 | C114: Normal_Range | D114: 13016 | E114: 12 | F114: 24 | G114: 0 | H114: 2.8 | I114: 54 | J114: 64 | K114: 100 | L114: 3 | M114: 120 | N114: 30 | O114: 30 | P114: 1.3 | Q114: Range | R114: vfx_Projectile_Orb02_Pink | S114: 61016 | T114: 0 | U114: 0 | V114: 0 | W114: 악마 광신자1 | X114: 언데드형 몬스터 | Y114: 30 | Z114: 원거리 | AA114: 21.2 | AB114: 회복 | AF114: 0.9033423668 | AG114: 1.2
A115: 13017 | B115: 113017 | C115: Normal_Range | D115: 13017 | E115: 4 | F115: 9 | G115: 0 | H115: 2.85 | I115: 12 | J115: 15 | K115: 100 | L115: 3 | M115: 120 | N115: 30 | O115: 30 | P115: 1.3 | Q115: Range | R115: vfx_Projectile_Orb13_DarkPurple | S115: 61017 | T115: 0 | U115: 0 | V115: 0 | W115: 악마 광신자2 | X115: 언데드형 몬스터 | Y115: 11 | Z115: 원거리 | AA115: 4.77 | AB115: 회복 | AF115: 0.9033423668 | AG115: 1.2
A116: 13018 | B116: 113018 | C116: Normal_Range | D116: 13018 | E116: 9 | F116: 18 | G116: 0 | H116: 2.9 | I116: 32 | J116: 35 | K116: 100 | L116: 3 | M116: 120 | N116: 30 | O116: 30 | P116: 1.3 | Q116: Range | R116: vfx_Projectile_Orb13_DarkRed | S116: 61018 | T116: 0 | U116: 0 | V116: 0 | W116: 악마 광신자3 | X116: 언데드형 몬스터 | Y116: 23 | Z116: 원거리 | AA116: 11.62 | AB116: 회복 | AF116: 0.9033423668 | AG116: 1.2
A117: 13019 | B117: 113019 | C117: Normal_Range | D117: 13019 | E117: 6 | F117: 12 | G117: 0 | H117: 2.75 | I117: 17 | J117: 20 | K117: 100 | L117: 3 | M117: 120 | N117: 30 | O117: 30 | P117: 1.3 | Q117: Range | R117: vfx_Projectile_Orb05_Purple | S117: 61019 | T117: 0 | U117: 0 | V117: 0 | W117: 악마 광신자4 | X117: 언데드형 몬스터 | Y117: 15 | Z117: 원거리 | AA117: 6.77 | AB117: 회복 | AF117: 0.9033423668 | AG117: 1.2
A118: 13020 | B118: 113020 | C118: Normal_Melee | D118: 13020 | E118: 17 | F118: 35 | G118: 0 | H118: 2.15 | I118: 15 | J118: 30 | K118: 100 | L118: 5 | M118: 130 | N118: 30 | O118: 30 | P118: 1.3 | Q118: Melee | R118: MeleeAttack_Dagger | S118: 61020 | T118: 0 | U118: 0 | V118: 0 | W118: 악마 추종자1 | X118: 언데드형 몬스터 | Y118: 22 | Z118: 근접 | AA118: 10.62 | AB118: 중독 5초 | AF118: 0.9033423668 | AG118: 1.1
A119: 13021 | B119: 113021 | C119: Normal_Melee | D119: 13021 | E119: 21 | F119: 42 | G119: 0 | H119: 2.2 | I119: 26 | J119: 42 | K119: 100 | L119: 5 | M119: 130 | N119: 30 | O119: 30 | P119: 1.3 | Q119: Melee | R119: FX_Double Claw | S119: 61021 | T119: 0 | U119: 0 | V119: 0 | W119: 악마 추종자2 | X119: 언데드형 몬스터 | Y119: 26 | Z119: 근접 | AA119: 15.69 | AB119: 자폭 | AF119: 0.9033423668 | AG119: 1.1
A120: 13022 | B120: 113022 | C120: Normal_Melee | D120: 13022 | E120: 21 | F120: 42 | G120: 0 | H120: 2.05 | I120: 29 | J120: 33 | K120: 100 | L120: 20 | M120: 150 | N120: 30 | O120: 30 | P120: 1.3 | Q120: Melee | R120: MeleeAttack_Dagger | S120: 61022 | T120: 62022 | U120: 0 | V120: 0 | W120: 악마 추종자3 | X120: 언데드형 몬스터 | Y120: 26 | Z120: 근접 | AA120: 16.63 | AB120: 치명타 15% | AC120: 치명타 피해량 20% | AF120: 0.9033423668 | AG120: 1.1
A121: 13023 | B121: 113023 | C121: Normal_Melee | D121: 13023 | E121: 10 | F121: 21 | G121: 0 | H121: 1.9 | I121: 9 | J121: 12 | K121: 100 | L121: 5 | M121: 130 | N121: 30 | O121: 30 | P121: 1.3 | Q121: Melee | R121: FX_Kick | S121: 61023 | T121: 0 | U121: 0 | V121: 0 | W121: 임프 사역마1 | X121: 언데드형 몬스터 | Y121: 13 | Z121: 근접 | AA121: 5.61 | AB121: 회피력 | AC121: 회피력 | AF121: 0.9033423668 | AG121: 1.3
A122: 13024 | B122: 113024 | C122: Normal_Melee | D122: 13024 | E122: 13 | F122: 27 | G122: 0 | H122: 1.95 | I122: 13 | J122: 18 | K122: 100 | L122: 5 | M122: 130 | N122: 30 | O122: 30 | P122: 1.3 | Q122: Melee | R122: FX_Kick | S122: 61024 | T122: 0 | U122: 0 | V122: 0 | W122: 임프 사역마2 | X122: 언데드형 몬스터 | Y122: 17 | Z122: 근접 | AA122: 8.07 | AB122: 회피력 | AC122: 회피력 | AF122: 0.9033423668 | AG122: 1.5
A123: 13025 | B123: 113025 | C123: Normal_Melee | D123: 13025 | E123: 14 | F123: 29 | G123: 0 | H123: 2.2 | I123: 16 | J123: 20 | K123: 100 | L123: 5 | M123: 130 | N123: 30 | O123: 30 | P123: 1.3 | Q123: Melee | R123: MeleeAttack_Sword | S123: 61025 | T123: 0 | U123: 0 | V123: 0 | W123: 타락한 기사1 | X123: 언데드형 몬스터 | Y123: 18 | Z123: 근접 | AA123: 8.3 | AB123: 피해 무효 | AF123: 0.9033423668 | AG123: 1.4
A124: 13026 | B124: 113026 | C124: Normal_Melee | D124: 13026 | E124: 11 | F124: 22 | G124: 0 | H124: 2.25 | I124: 12 | J124: 16 | K124: 100 | L124: 5 | M124: 130 | N124: 30 | O124: 30 | P124: 1.3 | Q124: Melee | R124: MeleeAttack_Sword | S124: 61026 | T124: 0 | U124: 0 | V124: 0 | W124: 타락한 기사2 | X124: 언데드형 몬스터 | Y124: 14 | Z124: 근접 | AA124: 6.32 | AB124: 피해 무효 | AF124: 0.9033423668 | AG124: 1.4
A125: 13027 | B125: 113027 | C125: Normal_Melee | D125: 13027 | E125: 21 | F125: 42 | G125: 0 | H125: 2.15 | I125: 26 | J125: 39 | K125: 100 | L125: 5 | M125: 130 | N125: 30 | O125: 30 | P125: 1.3 | Q125: Melee | R125: MeleeAttack_Sword | S125: 61027 | T125: 0 | U125: 0 | V125: 0 | W125: 타락한 기사3 | X125: 언데드형 몬스터 | Y125: 26 | Z125: 근접 | AA125: 15.34 | AB125: 피해 무효 | AF125: 0.9033423668 | AG125: 1.5
A126: 13028 | B126: 113028 | C126: Normal_Range | D126: 13028 | E126: 6 | F126: 13 | G126: 0 | H126: 2.85 | I126: 18 | J126: 25 | K126: 100 | L126: 3 | M126: 120 | N126: 30 | O126: 30 | P126: 1.3 | Q126: Range | R126: Projectiles_light | S126: 61028 | T126: 61028 | U126: 0 | V126: 0 | W126: 해골 궁수 | X126: 언데드형 몬스터 | Y126: 16 | Z126: 원거리 | AA126: 7.59 | AB126: 부활 | AC126: 버서커 공속 | AF126: 0.9033423668 | AG126: 2.6
A127: 13029 | B127: 113029 | C127: Normal_Melee | D127: 13029 | E127: 13 | F127: 26 | G127: 0 | H127: 2.6 | I127: 18 | J127: 21 | K127: 100 | L127: 5 | M127: 130 | N127: 30 | O127: 30 | P127: 1.3 | Q127: Melee | R127: MeleeAttack_Scythe | S127: 61029 | T127: 61029 | U127: 0 | V127: 0 | W127: 해골 근위병 | X127: 언데드형 몬스터 | Y127: 16 | Z127: 근접 | AA127: 7.61 | AB127: 부활 | AC127: 피해 무효 | AF127: 0.9033423668 | AG127: 2.6
A128: 13030 | B128: 113030 | C128: Normal_Range | D128: 13030 | E128: 9 | F128: 18 | G128: 0 | H128: 3.05 | I128: 26 | J128: 38 | K128: 100 | L128: 3 | M128: 120 | N128: 30 | O128: 30 | P128: 1.3 | Q128: Range | R128: vfx_Projectile_Orb04_Yellow | S128: 61030 | T128: 61030 | U128: 0 | V128: 0 | W128: 해골 법사 | X128: 언데드형 몬스터 | Y128: 22 | Z128: 원거리 | AA128: 10.55 | AB128: 부활 | AC128: 회복 | AF128: 0.9033423668 | AG128: 2.6
A129: 13031 | B129: 113031 | C129: Normal_Melee | D129: 13031 | E129: 13 | F129: 26 | G129: 0 | H129: 2.4 | I129: 17 | J129: 19 | K129: 100 | L129: 5 | M129: 130 | N129: 30 | O129: 30 | P129: 1.3 | Q129: Melee | R129: MeleeAttack_Sword | S129: 61031 | T129: 0 | U129: 0 | V129: 0 | W129: 해골 기사1 | X129: 언데드형 몬스터 | Y129: 16 | Z129: 근접 | AA129: 7.61 | AB129: 부활 | AF129: 0.9033423668 | AG129: 1.5
A130: 13032 | B130: 113032 | C130: Normal_Melee | D130: 13032 | E130: 17 | F130: 34 | G130: 0 | H130: 2.35 | I130: 11 | J130: 36 | K130: 100 | L130: 5 | M130: 130 | N130: 30 | O130: 30 | P130: 1.3 | Q130: Melee | R130: MeleeAttack_Sword | S130: 61032 | T130: 0 | U130: 0 | V130: 0 | W130: 해골 기사2 | X130: 언데드형 몬스터 | Y130: 21 | Z130: 근접 | AA130: 10.15 | AB130: 부활 | AF130: 0.9033423668 | AG130: 1.5
A131: 13033 | B131: 113033 | C131: Normal_Melee | D131: 13033 | E131: 17 | F131: 35 | G131: 0 | H131: 2.1 | I131: 19 | J131: 25 | K131: 100 | L131: 5 | M131: 130 | N131: 30 | O131: 30 | P131: 1.3 | Q131: Melee | R131: MeleeAttack_Sword | S131: 61033 | T131: 0 | U131: 0 | V131: 0 | W131: 해골 기사3 | X131: 언데드형 몬스터 | Y131: 22 | Z131: 근접 | AA131: =ROUND(((I131 + J131) / 2) * (1 + (L131 / 100) * ((M131 / 100) - 1)) / H131 * (K131 / 100),2) -> 10.63 | AB131: 부활 | AF131: 0.9033423668 | AG131: 1.4
A132: 13034 | B132: =A132+100000 -> 113034 | C132: Normal_Melee | D132: =A132 -> 13034 | E132: 17 | F132: 35 | G132: 0 | H132: 2.05 | I132: 20 | J132: 23 | K132: 100 | L132: 5 | M132: 130 | N132: 30 | O132: 30 | P132: 1.3 | Q132: =IF(Z132="원거리","Range","Melee") -> Melee | R132: MeleeAttack_Sword | S132: 61034 | T132: 0 | U132: 0 | V132: 0 | W132: 해골 기사4 | X132: 언데드형 몬스터 | Y132: 22 | Z132: 근접 | AA132: 10.65 | AB132: 부활 | AF132: =$AF$2/(N132*3.69) -> 0.9033423668 | AG132: 1.3
A133: 14001 | B133: 114001 | C133: Normal_Melee | D133: 14001 | E133: 1 | F133: 2 | G133: 0 | H133: 2 | I133: 2 | J133: 3 | K133: 100 | L133: 5 | M133: 130 | N133: 30 | O133: 30 | P133: 1.3 | Q133: Melee | R133: FX_Kick | S133: 71001 | T133: 0 | U133: 0 | V133: 0 | W133: 펑거스 | X133: 마법 생물 | Y133: 1 | Z133: 근접 | AA133: 1.27 | AB133: 중독 5초 | AF133: 0.9033423668 | AG133: 2.6
A134: 14002 | B134: 114002 | C134: Normal_Melee | D134: 14002 | E134: 1 | F134: 2 | G134: 0 | H134: 1.95 | I134: 2 | J134: 3 | K134: 100 | L134: 5 | M134: 130 | N134: 30 | O134: 30 | P134: 1.3 | Q134: Melee | R134: FX_Double Claw | S134: 0 | T134: 0 | U134: 0 | V134: 0 | W134: 동굴 박쥐 | X134: 마법 생물 | Y134: 1 | Z134: 근접 | AA134: 1.3 | AF134: 0.9033423668 | AG134: 2.1
A135: 14003 | B135: 114003 | C135: Normal_Range | D135: 14003 | E135: 1 | F135: 3 | G135: 0 | H135: 2.1 | I135: 3 | J135: 5 | K135: 100 | L135: 3 | M135: 120 | N135: 30 | O135: 30 | P135: 1.3 | Q135: Range | R135: FX_Double Claw | S135: 71003 | T135: 0 | U135: 0 | V135: 0 | W135: 만드레고라 | X135: 마법 생물 | Y135: 2 | Z135: 원거리 | AA135: 1.92 | AB135: 중독 5초 | AF135: 0.9033423668 | AG135: 2.5
A136: 14004 | B136: 114004 | C136: Normal_Melee | D136: 14004 | E136: 21 | F136: 43 | G136: 0 | H136: 2.25 | I136: 36 | J136: 38 | K136: 100 | L136: 5 | M136: 130 | N136: 30 | O136: 30 | P136: 1.3 | Q136: Melee | R136: MeleeAttack_Blow | S136: 71004 | T136: 0 | U136: 0 | V136: 0 | W136: 켄타우로스 | X136: 마법 생물 | Y136: 27 | Z136: 근접 | AA136: 16.69 | AB136: 광전사 2배 | AF136: 0.9033423668 | AG136: 3
A137: 14005 | B137: 114005 | C137: Normal_Melee | D137: 14005 | E137: 18 | F137: 37 | G137: 0 | H137: 1.9 | I137: 21 | J137: 22 | K137: 100 | L137: 5 | M137: 130 | N137: 30 | O137: 30 | P137: 1.3 | Q137: Melee | R137: MeleeAttack_Claw | S137: 71005 | T137: 0 | U137: 0 | V137: 0 | W137: 무리안 | X137: 마법 생물 | Y137: 23 | Z137: 근접 | AA137: 11.49 | AB137: 슬로우 | AF137: 0.9033423668 | AG137: 1.4
A138: 14006 | B138: 114006 | C138: Normal_Melee | D138: 14006 | E138: 21 | F138: 43 | G138: 0 | H138: 1.85 | I138: 29 | J138: 31 | K138: 100 | L138: 15 | M138: 150 | N138: 30 | O138: 30 | P138: 1.3 | Q138: Melee | R138: MeleeAttack_Claw | S138: 71006 | T138: 72006 | U138: 0 | V138: 0 | W138: 타이가 | X138: 마법 생물 | Y138: 27 | Z138: 근접 | AA138: 17.43 | AB138: 치명타 확률 | AC138: 치명타 피해량 | AF138: 0.9033423668 | AG138: 1.4
A139: 14007 | B139: 114007 | C139: Normal_Melee | D139: 14007 | E139: 14 | F139: 29 | G139: 0 | H139: 2 | I139: 16 | J139: 17 | K139: 100 | L139: 5 | M139: 130 | N139: 30 | O139: 30 | P139: 1.3 | Q139: Melee | R139: FX_Double Claw | S139: 71007 | T139: 0 | U139: 0 | V139: 0 | W139: 구울1 | X139: 마법 생물 | Y139: 18 | Z139: 근접 | AA139: 8.37 | AB139: 광전사 공격력 | AF139: 0.9033423668 | AG139: 1.2
A140: 14008 | B140: 114008 | C140: Normal_Melee | D140: 14008 | E140: 15 | F140: 30 | G140: 0 | H140: 1.95 | I140: 12 | J140: 22 | K140: 100 | L140: 5 | M140: 130 | N140: 30 | O140: 30 | P140: 1.3 | Q140: Melee | R140: FX_Double Claw | S140: 71008 | T140: 0 | U140: 0 | V140: 0 | W140: 구울2 | X140: 마법 생물 | Y140: 19 | Z140: 근접 | AA140: 8.85 | AB140: 광전사 공격력 | AF140: 0.9033423668 | AG140: 1.2
A141: 14009 | B141: 114009 | C141: Normal_Melee | D141: 14009 | E141: 15 | F141: 30 | G141: 0 | H141: 1.95 | I141: 9 | J141: 25 | K141: 100 | L141: 5 | M141: 130 | N141: 30 | O141: 30 | P141: 1.3 | Q141: Melee | R141: FX_Double Claw | S141: 71009 | T141: 0 | U141: 0 | V141: 0 | W141: 구울3 | X141: 마법 생물 | Y141: 19 | Z141: 근접 | AA141: 8.85 | AB141: 광전사 공격력 | AF141: 0.9033423668 | AG141: 1.2
A142: 14010 | B142: 114010 | C142: Normal_Melee | D142: 14010 | E142: 15 | F142: 30 | G142: 0 | H142: 1.8 | I142: 15 | J142: 16 | K142: 100 | L142: 15 | M142: 130 | N142: 30 | O142: 30 | P142: 1.3 | Q142: Melee | R142: MeleeAttack_Claw | S142: 71010 | T142: 0 | U142: 0 | V142: 0 | W142: 다이어울프1 | X142: 마법 생물 | Y142: 19 | Z142: 근접 | AA142: 9 | AB142: 치명타 확률 | AF142: 0.9033423668 | AG142: 1.3
A143: 14011 | B143: 114011 | C143: Normal_Melee | D143: 14011 | E143: 15 | F143: 30 | G143: 0 | H143: 1.9 | I143: 15 | J143: 18 | K143: 100 | L143: 15 | M143: 130 | N143: 30 | O143: 30 | P143: 1.3 | Q143: Melee | R143: MeleeAttack_Claw | S143: 71011 | T143: 0 | U143: 0 | V143: 0 | W143: 다이어울프2 | X143: 마법 생물 | Y143: 19 | Z143: 근접 | AA143: 9.08 | AB143: 치명타 확률 | AF143: 0.9033423668 | AG143: 1.2
A144: 14012 | B144: 114012 | C144: Normal_Melee | D144: 14012 | E144: 5 | F144: 10 | G144: 0 | H144: 2.2 | I144: 2 | J144: 10 | K144: 100 | L144: 5 | M144: 130 | N144: 30 | O144: 30 | P144: 1.3 | Q144: Melee | R144: FX_Kick | S144: 71012 | T144: 0 | U144: 0 | V144: 0 | W144: 데스웜 | X144: 마법 생물 | Y144: 6 | Z144: 근접 | AA144: 2.77 | AB144: 회복 | AF144: 0.9033423668 | AG144: 1.3
A145: 14013 | B145: 114013 | C145: Normal_Melee | D145: 14013 | E145: 1 | F145: 2 | G145: 0 | H145: 2.1 | I145: 2 | J145: 3 | K145: 100 | L145: 5 | M145: 130 | N145: 30 | O145: 30 | P145: 1.3 | Q145: Melee | R145: FX_Kick | S145: 71013 | T145: 0 | U145: 0 | V145: 0 | W145: 동굴쥐1 | X145: 마법 생물 | Y145: 1 | Z145: 근접 | AA145: 1.21 | AB145: 중독 5초 | AF145: 0.9033423668 | AG145: 0.9
A146: 14014 | B146: 114014 | C146: Normal_Melee | D146: 14014 | E146: 2 | F146: 5 | G146: 0 | H146: 2.25 | I146: 2 | J146: 7 | K146: 100 | L146: 5 | M146: 130 | N146: 30 | O146: 30 | P146: 1.3 | Q146: Melee | R146: FX_Kick | S146: 71014 | T146: 0 | U146: 0 | V146: 0 | W146: 동굴쥐2 | X146: 마법 생물 | Y146: 3 | Z146: 근접 | AA146: 2.03 | AB146: 중독 5초 | AF146: 0.9033423668 | AG146: 1.1
A147: 14015 | B147: 114015 | C147: Normal_Melee | D147: 14015 | E147: 21 | F147: 43 | G147: 0 | H147: 2 | I147: 31 | J147: 34 | K147: 100 | L147: 5 | M147: 130 | N147: 30 | O147: 30 | P147: 1.3 | Q147: Melee | R147: MeleeAttack_Sword | S147: 71015 | T147: 72015 | U147: 0 | V147: 0 | W147: 리자드맨 | X147: 마법 생물 | Y147: 27 | Z147: 근접 | AA147: 16.49 | AB147: 치명타 확률 | AC147: 치명타 피해 | AF147: 0.9033423668 | AG147: 1.5
A148: 14016 | B148: 114016 | C148: Normal_Melee | D148: 14016 | E148: 20 | F148: 40 | G148: 0 | H148: 2.15 | I148: 28 | J148: 29 | K148: 100 | L148: 5 | M148: 130 | N148: 30 | O148: 30 | P148: 1.3 | Q148: Melee | R148: MeleeAttack_Claw | S148: 71016 | T148: 0 | U148: 0 | V148: 0 | W148: 맹독사1 | X148: 마법 생물 | Y148: 25 | Z148: 근접 | AA148: 13.45 | AB148: 중독 5초 | AF148: 0.9033423668 | AG148: 1.3
A149: 14017 | B149: 114017 | C149: Normal_Melee | D149: 14017 | E149: 1 | F149: 3 | G149: 0 | H149: 2.15 | I149: 3 | J149: 4 | K149: 100 | L149: 5 | M149: 130 | N149: 30 | O149: 30 | P149: 1.3 | Q149: Melee | R149: MeleeAttack_Claw | S149: 71017 | T149: 0 | U149: 0 | V149: 0 | W149: 맹독사2 | X149: 마법 생물 | Y149: 2 | Z149: 근접 | AA149: 1.65 | AB149: 중독 5초 | AF149: 0.9033423668 | AG149: 1.2
A150: 14018 | B150: 114018 | C150: Normal_Melee | D150: 14018 | E150: 1 | F150: 2 | G150: 0 | H150: 2.2 | I150: 2 | J150: 4 | K150: 100 | L150: 5 | M150: 130 | N150: 30 | O150: 30 | P150: 1.3 | Q150: Melee | R150: FX_Kick | S150: 0 | T150: 0 | U150: 0 | V150: 0 | W150: 미믹 | X150: 마법 생물 | Y150: 1 | Z150: 근접 | AA150: 1.38 | AB150: - | AF150: 0.9033423668 | AG150: 1.1
A151: 14019 | B151: 114019 | C151: Normal_Melee | D151: 14019 | E151: 21 | F151: 43 | G151: 0 | H151: 1.8 | I151: 23 | J151: 36 | K151: 100 | L151: 5 | M151: 130 | N151: 30 | O151: 30 | P151: 1.3 | Q151: Melee | R151: MeleeAttack_Claw | S151: 71019 | T151: 0 | U151: 0 | V151: 0 | W151: 셀로브 | X151: 마법 생물 | Y151: 27 | Z151: 근접 | AA151: 16.63 | AB151: 슬로우 | AF151: 0.9033423668 | AG151: 1.4
A152: 14020 | B152: 114020 | C152: Normal_Melee | D152: 14020 | E152: 20 | F152: 40 | G152: 0 | H152: 2 | I152: 19 | J152: 34 | K152: 100 | L152: 5 | M152: 130 | N152: 35 | O152: 35 | P152: 1.3 | Q152: Melee | R152: FX_Double Claw | S152: 71020 | T152: 0 | U152: 0 | V152: 0 | W152: 스프리트 | X152: 마법 생물 | Y152: 25 | Z152: 근접 | AA152: 13.45 | AB152: 회피력 | AC152: 회피력 | AF152: 0.7742934572 | AG152: 1.8
A153: 14021 | B153: 114021 | C153: Normal_Range | D153: 14021 | E153: 1 | F153: 3 | G153: 0 | H153: 2.15 | I153: 3 | J153: 5 | K153: 100 | L153: 3 | M153: 120 | N153: 30 | O153: 30 | P153: 1.3 | Q153: Range | R153: FX_Kick | S153: 71021 | T153: 0 | U153: 0 | V153: 0 | W153: 슬라임1 | X153: 마법 생물 | Y153: 2 | Z153: 원거리 | AA153: 1.87 | AB153: 회복 | AF153: 0.9033423668 | AG153: 1.1
A154: 14022 | B154: 114022 | C154: Normal_Range | D154: 14022 | E154: 3 | F154: 6 | G154: 0 | H154: 2.25 | I154: 3 | J154: 7 | K154: 100 | L154: 3 | M154: 120 | N154: 30 | O154: 30 | P154: 1.3 | Q154: Range | R154: FX_Kick | S154: 71022 | T154: 0 | U154: 0 | V154: 0 | W154: 슬라임2 | X154: 마법 생물 | Y154: 3 | Z154: 원거리 | AA154: 2.24 | AB154: 회복 | AF154: 0.9033423668 | AG154: 0.8
A155: 14023 | B155: 114023 | C155: Normal_Melee | D155: 14023 | E155: 16 | F155: 32 | G155: 0 | H155: 1.95 | I155: 15 | J155: 21 | K155: 100 | L155: 5 | M155: 130 | N155: 30 | O155: 30 | P155: 1.3 | Q155: Melee | R155: FX_Kick | S155: 71023 | T155: 0 | U155: 0 | V155: 0 | W155: 임프1 | X155: 마법 생물 | Y155: 20 | Z155: 근접 | AA155: 9.37 | AB155: 사망-성장 | AF155: 0.9033423668 | AG155: 1.2
A156: 14024 | B156: 114024 | C156: Normal_Melee | D156: 14024 | E156: 1 | F156: 3 | G156: 0 | H156: 2 | I156: 2 | J156: 5 | K156: 100 | L156: 5 | M156: 130 | N156: 30 | O156: 30 | P156: 1.3 | Q156: Melee | R156: FX_Kick | S156: 0 | T156: 0 | U156: 0 | V156: 0 | W156: 임프2 | X156: 마법 생물 | Y156: 2 | Z156: 근접 | AA156: 1.78 | AF156: 0.9033423668 | AG156: 1.2
A157: 14025 | B157: 114025 | C157: Normal_Melee | D157: 14025 | E157: 16 | F157: 32 | G157: 0 | H157: 1.95 | I157: 12 | J157: 24 | K157: 100 | L157: 5 | M157: 130 | N157: 30 | O157: 30 | P157: 1.3 | Q157: Melee | R157: FX_Kick | S157: 71025 | T157: 0 | U157: 0 | V157: 0 | W157: 임프3 | X157: 마법 생물 | Y157: 20 | Z157: 근접 | AA157: 9.37 | AB157: 사망 회복 | AF157: 0.9033423668 | AG157: 1.1
A158: 14026 | B158: 114026 | C158: Normal_Melee | D158: 14026 | E158: 21 | F158: 42 | G158: 0 | H158: 2 | I158: 28 | J158: 33 | K158: 100 | L158: 5 | M158: 130 | N158: 30 | O158: 30 | P158: 1.3 | Q158: Melee | R158: FX_Kick | S158: 71026 | T158: 0 | U158: 0 | V158: 0 | W158: 임프4 | X158: 마법 생물 | Y158: 26 | Z158: 근접 | AA158: 15.48 | AB158: 사망 공격력 | AF158: 0.9033423668 | AG158: 1.1
A159: 14027 | B159: 114027 | C159: Normal_Range | D159: 14027 | E159: 6 | F159: 13 | G159: 0 | H159: 2.7 | I159: 18 | J159: 23 | K159: 100 | L159: 3 | M159: 120 | N159: 30 | O159: 30 | P159: 1.3 | Q159: Range | R159: vfx_ToonProjectile_Bomb03Red | S159: 71027 | T159: 0 | U159: 0 | V159: 0 | W159: 임프 마법사1 | X159: 마법 생물 | Y159: 16 | Z159: 원거리 | AA159: 7.64 | AB159: 사망 공격력 | AF159: 0.9033423668 | AG159: 1.2
A160: 14028 | B160: 114028 | C160: ="Normal_"&Q160 -> Normal_Range | D160: 14028 | E160: 11 | F160: 22 | G160: 0 | H160: 2.75 | I160: 48 | J160: 52 | K160: 100 | L160: =IF(Z160="근접",5,3) -> 3 | M160: =IF(Z160="근접",130,120) -> 120 | N160: 30 | O160: 30 | P160: 1.3 | Q160: Range | R160: vfx_ToonProjectile_Bomb02Red | S160: 71028 | T160: 0 | U160: 0 | V160: 0 | W160: 임프 마법사2 | X160: 마법 생물 | Y160: 29 | Z160: 원거리 | AA160: 18.29 | AB160: 사망 공속 | AF160: 0.9033423668 | AG160: 1.2
A161: 14029 | B161: 114029 | C161: Normal_Range | D161: 14029 | E161: 7 | F161: 15 | G161: 0 | H161: 2.65 | I161: 18 | J161: 28 | K161: 100 | L161: 3 | M161: 120 | N161: 30 | O161: 30 | P161: 1.3 | Q161: Range | R161: vfx_ToonProjectile_Bomb03Red | S161: 71029 | T161: 0 | U161: 0 | V161: 0 | W161: 임프 마법사3 | X161: 마법 생물 | Y161: 19 | Z161: 원거리 | AA161: 8.73 | AB161: 화상 | AF161: 0.9033423668 | AG161: 1.2
A162: 14030 | B162: 114030 | C162: Normal_Range | D162: 14030 | E162: 8 | F162: 16 | G162: 0 | H162: 2.6 | I162: 23 | J162: 26 | K162: 100 | L162: 3 | M162: 120 | N162: 30 | O162: 30 | P162: 1.3 | Q162: Range | R162: vfx_ToonProjectile_Bomb02Red | S162: 71030 | T162: 0 | U162: 0 | V162: 0 | W162: 임프 마법사4 | X162: 마법 생물 | Y162: 20 | Z162: 원거리 | AA162: 9.48 | AB162: 사망 회복 | AF162: 0.9033423668 | AG162: 1.1
A163: 14031 | B163: 114031 | C163: Normal_Melee | D163: 14031 | E163: 16 | F163: 32 | G163: 0 | H163: 2.05 | I163: 16 | J163: 22 | K163: 100 | L163: 5 | M163: 130 | N163: 30 | O163: 30 | P163: 1.3 | Q163: Melee | R163: MeleeAttack_Sword | S163: 71031 | T163: 0 | U163: 0 | V163: 0 | W163: 임프 전사2 | X163: 마법 생물 | Y163: 20 | Z163: 근접 | AA163: =ROUND(((I163 + J163) / 2) * (1 + (L163 / 100) * ((M163 / 100) - 1)) / H163 * (K163 / 100),2) -> 9.41 | AB163: 사망-성장 | AF163: 0.9033423668 | AG163: 1.2
A164: 14032 | B164: 114032 | C164: Normal_Melee | D164: 14032 | E164: 15 | F164: 30 | G164: 0 | H164: 2.1 | I164: 14 | J164: 22 | K164: 100 | L164: 5 | M164: 130 | N164: 30 | O164: 30 | P164: 1.3 | Q164: Melee | R164: MeleeAttack_Sword | S164: 71032 | T164: 0 | U164: 0 | V164: 0 | W164: 임프 전사3 | X164: 마법 생물 | Y164: 19 | Z164: 근접 | AA164: 8.7 | AB164: 사망-성장 | AF164: 0.9033423668 | AG164: 1.3
A165: 14033 | B165: 114033 | C165: Normal_Melee | D165: 14033 | E165: 22 | F165: 45 | G165: 0 | H165: 2 | I165: 23 | J165: 50 | K165: 100 | L165: 15 | M165: 130 | N165: 30 | O165: 30 | P165: 1.3 | Q165: Melee | R165: FX_Double Claw | S165: 71033 | T165: 72033 | U165: 0 | V165: 0 | W165: 하피 | X165: 마법 생물 | Y165: 29 | Z165: 근접 | AA165: 19.07 | AB165: 부활 | AC165: 치명타 | AF165: 0.9033423668 | AG165: 1.6
A166: 14034 | B166: 114034 | C166: Normal_Melee | D166: 14034 | E166: 17 | F166: 34 | G166: 0 | H166: 2.15 | I166: 18 | J166: 25 | K166: 100 | L166: 5 | M166: 130 | N166: 30 | O166: 30 | P166: 1.3 | Q166: Melee | R166: MeleeAttack_Claw | S166: 71034 | T166: 0 | U166: 0 | V166: 0 | W166: 흡혈귀1 | X166: 마법 생물 | Y166: 20 | Z166: 근접 | AA166: 10.15 | AB166: 흡혈 | AF166: 0.9033423668 | AG166: 1.2
A167: 15001 | B167: 115001 | C167: Normal_Melee | D167: 15001 | E167: 23 | F167: 46 | G167: 0 | H167: 3 | I167: 34 | J167: 104 | K167: 100 | L167: 15 | M167: 130 | N167: 30 | O167: 30 | P167: 1.3 | Q167: Melee | R167: MeleeAttack_Axe | S167: 81001 | T167: 82001 | U167: 0 | V167: 0 | W167: 싸이 전사 | X167: 거인 종족 | Y167: 29 | Z167: 근접 | AA167: 24.04 | AB167: 공격력 | AC167: 치명타 | AF167: 0.9033423668 | AG167: 3.3
A168: 15002 | B168: 115002 | C168: Normal_Range | D168: 15002 | E168: 11 | F168: 26 | G168: 0 | H168: 3.5 | I168: 38 | J168: 115 | K168: 100 | L168: 3 | M168: 120 | N168: 30 | O168: 30 | P168: 1.3 | Q168: Range | R168: vfx_Projectile_Fireball03_Orange | S168: 81002 | T168: 82002 | U168: 0 | V168: 0 | W168: 헤츨링1 | X168: 거인 종족 | Y168: 27 | Z168: 원거리 | AA168: 21.99 | AB168: 생명력 20% | AC168: 공격력 20% | AF168: 0.9033423668 | AG168: 1.6
A169: 15003 | B169: 115003 | C169: Normal_Range | D169: 15003 | E169: 13 | F169: 31 | G169: 0 | H169: 3.25 | I169: 62 | J169: 105 | K169: 100 | L169: 3 | M169: 120 | N169: 30 | O169: 30 | P169: 1.3 | Q169: Range | R169: vfx_Projectile_Fireball03_Green | S169: 81003 | T169: 82003 | U169: 0 | V169: 0 | W169: 헤츨링2 | X169: 거인 종족 | Y169: 32 | Z169: 원거리 | AA169: 25.85 | AB169: 생명력 20% | AC169: 화상 | AF169: 0.9033423668 | AG169: 1.6
A170: 15004 | B170: 115004 | C170: Normal_Melee | D170: 15004 | E170: 25 | F170: 50 | G170: 0 | H170: 3.2 | I170: 84 | J170: 91 | K170: 100 | L170: 5 | M170: 130 | N170: 30 | O170: 30 | P170: 1.3 | Q170: Melee | R170: MeleeAttack_Blunt | S170: 81004 | T170: 0 | U170: 0 | V170: 0 | W170: 약탈꾼1 | X170: 거인 종족 | Y170: 31 | Z170: 근접 | AA170: 27.75 | AB170: 공격력 | AF170: 0.9033423668 | AG170: 1.7
A171: 15005 | B171: 115005 | C171: Normal_Melee | D171: 15005 | E171: 23 | F171: 46 | G171: 0 | H171: 3.3 | I171: 72 | J171: 81 | K171: 100 | L171: 5 | M171: 130 | N171: 30 | O171: 30 | P171: 1.3 | Q171: Melee | R171: MeleeAttack_Blunt | S171: 81005 | T171: 0 | U171: 0 | V171: 0 | W171: 약탈꾼2 | X171: 거인 종족 | Y171: 29 | Z171: 근접 | AA171: 23.53 | AB171: 공격력 | AF171: 0.9033423668 | AG171: 1.6
A172: 15006 | B172: 115006 | C172: Normal_Melee | D172: 15006 | E172: 25 | F172: 50 | G172: 0 | H172: 3.5 | I172: 37 | J172: 156 | K172: 100 | L172: 5 | M172: 130 | N172: 30 | O172: 30 | P172: 1.3 | Q172: Melee | R172: MeleeAttack_Blunt | S172: 81006 | T172: 0 | U172: 0 | V172: 0 | W172: 엘더 예티1 | X172: 거인 종족 | Y172: 31 | Z172: 근접 | AA172: 27.99 | AB172: 공격력 | AF172: 0.9033423668 | AG172: 1.8
A173: 15007 | B173: 115007 | C173: Normal_Melee | D173: 15007 | E173: 25 | F173: 51 | G173: 0 | H173: 3.65 | I173: 98 | J173: 124 | K173: 100 | L173: 5 | M173: 130 | N173: 30 | O173: 30 | P173: 1.3 | Q173: Melee | R173: MeleeAttack_Blunt | S173: 81007 | T173: 82007 | U173: 0 | V173: 0 | W173: 엘더 예티2 | X173: 거인 종족 | Y173: 32 | Z173: 근접 | AA173: 30.87 | AB173: 공격력 | AC173: 버서커 공격력 | AF173: 0.9033423668 | AG173: 1.8
A174: 15008 | B174: 115008 | C174: Normal_Melee | D174: 15008 | E174: 25 | F174: 50 | G174: 0 | H174: 3.7 | I174: 21 | J174: 184 | K174: 100 | L174: 5 | M174: 130 | N174: 30 | O174: 30 | P174: 1.3 | Q174: Melee | R174: MeleeAttack_Blunt | S174: 81008 | T174: 82008 | U174: 0 | V174: 0 | W174: 예티3 | X174: 거인 종족 | Y174: 31 | Z174: 근접 | AA174: 28.12 | AB174: 공격력 | AC174: 버서커 공격력 | AF174: 0.9033423668 | AG174: 1.8
A175: 15009 | B175: 115009 | C175: Normal_Melee | D175: 15009 | E175: 25 | F175: 60 | G175: 0 | H175: 3.2 | I175: 68 | J175: 110 | K175: 100 | L175: 5 | M175: 130 | N175: 30 | O175: 30 | P175: 1.3 | Q175: Melee | R175: MeleeAttack_Blunt | S175: 81009 | T175: 82009 | U175: 0 | V175: 0 | W175: 예티5 | X175: 거인 종족 | Y175: 31 | Z175: 근접 | AA175: 28.23 | AB175: 공격력 | AC175: 생명 | AF175: 0.9033423668 | AG175: 1.8
A176: 15010 | B176: 115010 | C176: Normal_Melee | D176: 15010 | E176: 23 | F176: 55 | G176: 0 | H176: 3.25 | I176: 38 | J176: 114 | K176: 100 | L176: 5 | M176: 130 | N176: 30 | O176: 30 | P176: 1.3 | Q176: Melee | R176: MeleeAttack_Blunt | S176: 81010 | T176: 82010 | U176: 0 | V176: 0 | W176: 예티6 | X176: 거인 종족 | Y176: 29 | Z176: 근접 | AA176: 23.74 | AB176: 공격력 | AC176: 생명 | AF176: 0.9033423668 | AG176: 1.9
A177: 15011 | B177: 115011 | C177: Normal_Melee | D177: 15011 | E177: 25 | F177: 50 | G177: 0 | H177: 3 | I177: 66 | J177: 74 | K177: 100 | L177: 5 | M177: 130 | N177: 30 | O177: 30 | P177: 1.3 | Q177: Melee | R177: MeleeAttack_Blunt | S177: 81011 | T177: 0 | U177: 0 | V177: 0 | W177: 오우거2 | X177: 거인 종족 | Y177: 31 | Z177: 근접 | AA177: 23.68 | AB177: 생명력 | AF177: 0.9033423668 | AG177: 1.9
A178: 15012 | B178: 115012 | C178: Normal_Melee | D178: 15012 | E178: 22 | F178: 45 | G178: 0 | H178: 3.1 | I178: 50 | J178: 62 | K178: 100 | L178: 5 | M178: 130 | N178: 30 | O178: 30 | P178: 1.3 | Q178: Melee | R178: MeleeAttack_Blunt | S178: 81012 | T178: 0 | U178: 0 | V178: 0 | W178: 오우거3 | X178: 거인 종족 | Y178: 27 | Z178: 근접 | AA178: 18.34 | AB178: 생명력 | AF178: 0.9033423668 | AG178: 1.9
A179: 15013 | B179: 115013 | C179: Normal_Melee | D179: 15013 | E179: 24 | F179: 58 | G179: 0 | H179: 3.45 | I179: 28 | J179: 118 | K179: 100 | L179: 5 | M179: 130 | N179: 30 | O179: 30 | P179: 1.3 | Q179: Melee | R179: MeleeAttack_Blow | S179: 81013 | T179: 82013 | U179: 0 | V179: 0 | W179: 용암골렘1 | X179: 거인 종족 | Y179: 30 | Z179: 근접 | AA179: 21.48 | AB179: 화상 | AC179: 생명력 | AF179: 0.9033423668 | AG179: 2
A180: 15014 | B180: 115014 | C180: Normal_Melee | D180: 15014 | E180: 24 | F180: 58 | G180: 0 | H180: 2.95 | I180: 46 | J180: 80 | K180: 100 | L180: 5 | M180: 150 | N180: 30 | O180: 30 | P180: 1.3 | Q180: Melee | R180: MeleeAttack_Blunt | S180: 81014 | T180: 82014 | U180: 0 | V180: 0 | W180: 트롤 워리어1 | X180: 거인 종족 | Y180: 30 | Z180: 근접 | AA180: 21.89 | AB180: 생명력 | AC180: 치명타 피해량 | AF180: 0.9033423668 | AG180: 2
A181: 15015 | B181: 115015 | C181: Normal_Melee | D181: 15015 | E181: 23 | F181: 46 | G181: 0 | H181: 2.9 | I181: 21 | J181: 114 | K181: 100 | L181: 5 | M181: 150 | N181: 30 | O181: 30 | P181: 1.3 | Q181: Melee | R181: MeleeAttack_Blunt | S181: 81015 | T181: 82015 | U181: 0 | V181: 0 | W181: 트롤 워리어2 | X181: 거인 종족 | Y181: 29 | Z181: 근접 | AA181: 23.86 | AB181: 공격력 | AC181: 치명타 피해량 | AF181: 0.9033423668 | AG181: 2
A182: 15016 | B182: 115016 | C182: Normal_Melee | D182: 15016 | E182: 24 | F182: 48 | G182: 0 | H182: 2.95 | I182: 58 | J182: 68 | K182: 100 | L182: 5 | M182: 150 | N182: 30 | O182: 30 | P182: 1.3 | Q182: Melee | R182: MeleeAttack_Blunt | S182: 81016 | T182: 82016 | U182: 0 | V182: 0 | W182: 트롤 워리어3 | X182: 거인 종족 | Y182: 30 | Z182: 근접 | AA182: 21.89 | AB182: 실드 | AC182: 치명타 피해량 | AF182: 0.9033423668 | AG182: 1.8
A183: 15017 | B183: 115017 | C183: Normal_Melee | D183: 15017 | E183: 24 | F183: 58 | G183: 0 | H183: 3 | I183: 33 | J183: 95 | K183: 100 | L183: 5 | M183: 150 | N183: 30 | O183: 30 | P183: 1.3 | Q183: Melee | R183: MeleeAttack_Blunt | S183: 81017 | T183: 82017 | U183: 0 | V183: 0 | W183: 트롤 워리어5 | X183: 거인 종족 | Y183: 30 | Z183: 근접 | AA183: 21.87 | AB183: 생명력 | AC183: 치명타 피해량 | AF183: 0.9033423668 | AG183: 1.9
A184: 15018 | B184: 115018 | C184: Normal_Melee | D184: 15018 | E184: 25 | F184: 62 | G184: 0 | H184: 3.1 | I184: 33 | J184: 156 | K184: 100 | L184: 5 | M184: 130 | N184: 30 | O184: 30 | P184: 1.3 | Q184: Melee | R184: MeleeAttack_Blunt | S184: 81018 | T184: 82018 | U184: 0 | V184: 0 | W184: 트롤 워리어6 | X184: 거인 종족 | Y184: 32 | Z184: 근접 | AA184: 30.94 | AB184: 생명력 | AC184: 공격력 20% | AF184: 0.9033423668 | AG184: 1.8
A185: 15019 | B185: 115019 | C185: Normal_Melee | D185: =A185 -> 15019 | E185: 25 | F185: 62 | G185: 0 | H185: 3.15 | I185: 72 | J185: 120 | K185: 100 | L185: 5 | M185: 130 | N185: 30 | O185: 30 | P185: 1.3 | Q185: Melee | R185: MeleeAttack_Blunt | S185: 81019 | T185: 82019 | U185: 0 | V185: 0 | W185: 트롤 워리어7 | X185: 거인 종족 | Y185: 32 | Z185: 근접 | AA185: 30.93 | AB185: 생명력 | AC185: 공격력 20% | AF185: 0.9033423668 | AG185: 1.8

Sheet CardList
A1: n_ID | B1: e_CardType | C1: n_CardGrade | D1: s_Value1 | E1: s_Value2 | F1: s_Value3 | G1: n_ProjectileCount | H1: f_ProjectileDelayTime | I1: e_StatusConditionsType | J1: s_Projectile | K1: e_ProjectileAttackType | L1: n_Desc | M1: b_Percent | N1: exception
A2: _카드 ID (서버저장) | B2: 카드 타입 | C2: 카드 등급 | D2: 값1 | E2: 값2 | F2: 값3 | G2: 투사체 개수(기본 1) | H2: 투사체 쏘는 딜레이(초) | I2: 상태이상 | J2: 투사체 | K2: 투사체 공격타입 | L2: 카드 설명 | M2: %표시 | N2: 참고용 텍스트
A3: 1001 | B3: G1_AddPotion | C3: 1 | D3: 1 | E3: 1 | F3: 0 | G3: 1 | H3: 0 | I3: Max | J3: FX_LightUpSmoke | K3: Melee | L3: 101001 | M3: FALSE | N3: 물약 최대 보유량을 +1 추가하고, 물약을 1개를 획득합니다.
A4: 1002 | B4: G1_FirstAttack | C4: 1 | D4: 0 | E4: 3 | F4: 0 | G4: 1 | H4: 0 | I4: Max | J4: FX_Red Slash_Impact | K4: Melee | L4: 101002 | M4: TRUE | N4: 전투 시작 후 첫 번째 공격은 +300%의 피해를 입힙니다.
A5: 1003 | B5: G1_AddMaxAttack | C5: 1 | D5: 2 | E5: 0 | F5: 0 | G5: 1 | H5: 0 | I5: Max | K5: Melee | L5: 101003 | M5: FALSE | N5: 최대 피해가 +2 증가합니다.
A6: 1004 | B6: G1_AddMinAttack | C6: 1 | D6: 1 | E6: 0 | F6: 0 | G6: 1 | H6: 0 | I6: Max | K6: Melee | L6: 101004 | M6: FALSE | N6: 최소 피해가 +1 증가합니다.
A7: 1005 | B7: G1_IllusionSpear | C7: 1 | D7: 0 | E7: 1 | F7: 0 | G7: 1 | H7: 0 | I7: Max | J7: FX_BlueCharge | K7: Melee | L7: 101005 | M7: FALSE | N7: 전투 시작 후 첫 번째 공격은 후열의 적에게도 피해를 입히는 환영의 창을 시전합니다.
A8: 1006 | B8: G1_AddHitRate | C8: 1 | D8: 5 | E8: 0 | F8: 0 | G8: 1 | H8: 0 | I8: Max | J8: LevelUp2 | K8: Melee | L8: 101006 | M8: FALSE | N8: 명중력이 +5 증가합니다.
A9: 1007 | B9: G1_ElectricShockOnConsecutiveHits | C9: 1 | D9: 8 | E9: 6 | F9: 0 | G9: 1 | H9: 0 | I9: Max | J9: FX_Cartoon Thunder | K9: Melee | L9: 101007 | M9: TRUE | N9: 빗나감 없이 6회 공격을 명중할 때마다 전기 충격을 시전합니다.
A10: 1008 | B10: G1_SanctuaryHeal | C10: 1 | D10: 0 | E10: 2 | F10: 0 | G10: 1 | H10: 0 | I10: Max | J10: EnergyBlast | K10: Melee | L10: 101008 | M10: TRUE | N10: 회복의 성소에서 얻는 회복 효과와 경험치가 +200% 증가합니다.
A11: 1009 | B11: G1_MagicMissile | C11: 1 | D11: 4 | E11: 0 | F11: 8s | G11: 3 | H11: 0.5 | I11: Max | J11: BlueCannonBullet | K11: Range | L11: 101009 | M11: FALSE | N11: 전투 시작 후 매 8초가 지날 때마다 무작위 적에게 매직 미사일을 3발 발사합니다.
A12: 1010 | B12: G1_AddCriDmg | C12: 1 | D12: 0 | E12: 1 | F12: 0 | G12: 1 | H12: 0 | I12: Max | J12: LevelUp3 | K12: Melee | L12: 101010 | M12: FALSE | N12: 치명타 피해량이 x1배 증가합니다.
A13: 1011 | B13: G1_LifeStealOnDodge | C13: 1 | D13: 2 | E13: 0 | F13: 0 | G13: 1 | H13: 0 | I13: Max | K13: Melee | L13: 101011 | M13: FALSE | N13: 회피 발동 시 무작위 적의 생명력 2를 흡혈합니다.
A14: 1012 | B14: G1_XpGainOnCritKill | C14: 1 | D14: 0 | E14: 1.5 | F14: 0 | G14: 1 | H14: 0 | I14: Max | K14: Melee | L14: 101012 | M14: TRUE | N14: 치명타 처치 시 경험치를 +150% 획득합니다.
A15: 1013 | B15: G1_InstantCastMysticExplosion | C15: 1 | D15: 0 | E15: 0 | F15: 0 | G15: 1 | H15: 0 | I15: Max | J15: FX_Icelight_Seal | K15: Melee | L15: 101013 | M15: FALSE | N15: 신비한 폭발 스킬 1회를 즉시 시전합니다. (※즉시 시전 : 카드 획득 시점에만 발동)
A16: 1014 | B16: G1_HolyDamageOnMeleeFrontAppear | C16: 1 | D16: 1 | E16: 0 | F16: 0 | G16: 1 | H16: 0 | I16: Max | J16: Magic Door_Purple | K16: Melee | L16: 101014 | M16: FALSE | N16: 근접 적이 전열에 등장할 때마다 1의 신성 피해를 입힙니다.
A17: 1015 | B17: G1_NullifyDamageEveryNHits | C17: 1 | D17: 8 | E17: 0 | F17: 0 | G17: 1 | H17: 0 | I17: Max | K17: Melee | L17: 101015 | M17: FALSE | N17: 공격을 8회 받을 때마다 받는 피해를 무효화 합니다.
A18: 1016 | B18: G1_DodgeNextNAttacks | C18: 1 | D18: 7 | E18: 0 | F18: 0 | G18: 1 | H18: 0 | I18: Max | K18: Melee | L18: 101016 | M18: FALSE | N18: 다음 7회의 공격을 무조건 회피합니다.
A19: 1017 | B19: G1_HolyDamageToBackEnemiesOnDodge | C19: 1 | D19: 1 | E19: 0 | F19: 0 | G19: 1 | H19: 0 | I19: Max | J19: Magic Door_Purple | K19: Melee | L19: 101017 | M19: FALSE | N19: 회피 시 후열에 있는 모든 적에게 1의 신성 피해를 입힙니다.
A20: 1018 | B20: G1_DarkMissileFromPotion | C20: 1 | D20: 0 | E20: 2 | F20: 0 | G20: 1 | H20: 0 | I20: Max | J20: Magic Door_Purple | K20: Range | L20: 101018 | M20: TRUE | N20: 물약은 전열의 임의의 적에게 +200%의 피해를 입히는 암흑 미사일을 시전합니다.
A21: 1019 | B21: G1_NoSimultaneousHpShieldLoss | C21: 1 | D21: 0 | E21: 0 | F21: 0 | G21: 1 | H21: 0 | I21: Max | K21: Melee | L21: 101019 | M21: FALSE | N21: 적 공격이 생명력과 보호막을 동시에 감소시키지 않습니다.
A22: 1020 | B22: G1_CurseExplosionOnKill | C22: 1 | D22: 0 | E22: 0 | F22: 0 | G22: 1 | H22: 0 | I22: Max | K22: Melee | L22: 101020 | M22: FALSE | N22: 즉시 임의의 적에게 저주 효과를 부여해 처치 시 시체 폭파를 일으킵니다.
A23: 1021 | B23: G1_AngelFeatherHeal | C23: 1 | D23: 0 | E23: 2 | F23: 0 | G23: 1 | H23: 0 | I23: Max | K23: Melee | L23: 101021 | M23: TRUE | N23: 부활 발동 시 회복되는 생명력이 +200% 늘어납니다.
A24: 1022 | B24: G1_HealOnRangedHit | C24: 1 | D24: 1 | E24: 0 | F24: 0 | G24: 1 | H24: 0 | I24: Max | K24: Melee | L24: 101022 | M24: FALSE | N24: 원거리 공격을 받을 때마다 생명력을 1 회복합니다.
A25: 1023 | B25: G1_FireMagicMissiles | C25: 1 | D25: 4 | E25: 0 | F25: 0 | G25: 8 | H25: 0.3 | I25: Max | J25: BlueCannonBullet | K25: Range | L25: 101023 | M25: FALSE | N25: 8발의 매직 미사일을 무작위 적에게 즉시 발사합니다.
A26: 1024 | B26: G1_ReflectOnRangedDodge | C26: 1 | D26: 0 | E26: 0 | F26: 0 | G26: 1 | H26: 0 | I26: Max | K26: Melee | L26: 101024 | M26: FALSE | N26: 원거리 공격 회피 시 공격을 반사합니다.
A27: 1025 | B27: G1_HealOnDoubleDodge | C27: 1 | D27: 2 | E27: 10 | F27: 0 | G27: 1 | H27: 0 | I27: Max | K27: Melee | L27: 101025 | M27: FALSE | N27: 연속 2회 회피 성공 시 생명력을 10 회복합니다.
A28: 1026 | B28: G1_LightningToBackOnMeleeDodge | C28: 1 | D28: 0 | E28: 0 | F28: 0 | G28: 1 | H28: 0 | I28: Max | J28: FX_Cartoon Thunder | K28: Melee | L28: 101026 | M28: FALSE | N28: 근거리 적 공격 회피 시 후열의 적에게 낙뢰 피해를 입힙니다.
A29: 1027 | B29: G1_LifeStealToRandomAll | C29: 1 | D29: 20 | E29: 0 | F29: 0 | G29: 1 | H29: 0 | I29: Max | K29: Melee | L29: 101027 | M29: FALSE | N29: 전장의 모든 무작위 적에게 생명력 20을 흡혈합니다.
A30: 1028 | B30: G1_LifeStealOnBackAttack | C30: 1 | D30: 3 | E30: 0 | F30: 0 | G30: 1 | H30: 0 | I30: Max | K30: Range | L30: 101028 | M30: FALSE | N30: 후열의 적 공격 시 무작위 적의 생명력 3을 흡혈합니다.
A31: 1029 | B31: G1_ShieldOnRangedDodge | C31: 1 | D31: 6 | E31: 0 | F31: 0 | G31: 1 | H31: 0 | I31: Max | K31: Melee | L31: 101029 | M31: FALSE | N31: 원거리 적 공격 회피 시 보호막을 6만큼 회복합니다.
A32: 1030 | B32: G1_ThirdCritDamage | C32: 1 | D32: 3 | E32: 3 | F32: 0 | G32: 1 | H32: 0 | I32: Max | K32: Melee | L32: 101030 | M32: TRUE | N32: 3번 째 치명타는 +300%의 피해를 입힙니다.
A33: 1031 | B33: G1_FifthAttackBack | C33: 1 | D33: 5 | E33: 1.5 | F33: 0 | G33: 1 | H33: 0 | I33: Max | J33: Magic Door_Purple | K33: Melee | L33: 101031 | M33: TRUE | N33: 5번째 공격마다 후열의 적에게 150% 피해를 입힙니다.
A34: 1032 | B34: G1_FirstAttackHeals | C34: 1 | D34: 5 | E34: 0 | F34: 0 | G34: 1 | H34: 0 | I34: Max | K34: Melee | L34: 101032 | M34: FALSE | N34: 전투 시작 후 첫 번째 공격은 생명력을 5 회복합니다.
A35: 1033 | B35: G1_FirstAttackShieldPercent | C35: 1 | D35: 0 | E35: 0.05 | F35: 0 | G35: 1 | H35: 0 | I35: Max | K35: Melee | L35: 101033 | M35: TRUE | N35: 전투 시작 후 첫 번째 공격 후 보호막을 5% 회복합니다.
A36: 1034 | B36: G1_AutoUsePotionOnDeath | C36: 1 | D36: 0 | E36: 0 | F36: 0 | G36: 1 | H36: 0 | I36: Max | K36: Melee | L36: 101034 | M36: FALSE | N36: 물약 보유 시 생명력이 0이 될 때 자동으로 사용합니다.
A37: 1035 | B37: G1_GainGoldOnSanctuaryFind | C37: 1 | D37: 10 | E37: 0 | F37: 0 | G37: 1 | H37: 0 | I37: Max | K37: Melee | L37: 101035 | M37: FALSE | N37: 임의의 성소을 발견하면 골드를 획득합니다.
A38: 1036 | B38: G1_MaxHpPlusOnFountain | C38: 1 | D38: 2 | E38: 0 | F38: 0 | G38: 1 | H38: 0 | I38: Max | K38: Melee | L38: 101036 | M38: FALSE | N38: 샘물을 발견 시 최대 HP를 2증가 시킵니다.
A39: 1037 | B39: G1_ShieldHealOnHealFountain | C39: 1 | D39: 0 | E39: 0 | F39: 0 | G39: 1 | H39: 0 | I39: Max | K39: Melee | L39: 101037 | M39: FALSE | N39: 회복의 샘에서 회복 효과가 발생 될 때 보호막도 동일하게 회복 됩니다.
A40: 1038 | B40: G1_ShieldOnFullHeal | C40: 1 | D40: 12 | E40: 0 | F40: 0 | G40: 1 | H40: 0 | I40: Max | K40: Melee | L40: 101038 | M40: FALSE | N40: 완전히 회복할 때 보호막을 12 회복합니다.
A41: 1039 | B41: G1_ThunderOnFifthHit | C41: 1 | D41: 5 | E41: 2.5 | F41: 0 | G41: 1 | H41: 0 | I41: Max | J41: FX_Cartoon Thunder | K41: Melee | L41: 101039 | M41: TRUE | N41: 5번째 공격이 명중할 때마다 250% 피해를 입히는 낙뢰를 시전합니다.
A42: 1040 | B42: G1_GetRandomRareOrEpicSkill | C42: 1 | D42: 0 | E42: 0 | F42: 0 | G42: 1 | H42: 0 | I42: Max | K42: Melee | L42: 101040 | M42: FALSE | N42: 즉시 무작위 고급 또는 희귀 스킬 1개를 획득합니다.
A43: 1041 | B43: G1_HealOnGoldDrop | C43: 1 | D43: 5 | E43: 0 | F43: 0 | G43: 1 | H43: 0 | I43: Max | K43: Melee | L43: 101041 | M43: FALSE | N43: 적이 골드를 떨어뜨릴 때마다 생명력을 5 회복 시킵니다.
A44: 1042 | B44: G1_ShockDamageOnGoldDrop | C44: 1 | D44: 8 | E44: 0 | F44: 0 | G44: 1 | H44: 0 | I44: Max | J44: FX_Cartoon Thunder | K44: Melee | L44: 101042 | M44: FALSE | N44: 적이 골드를 떨어뜨릴 때마다 임의의 적에게 전기 충격 피해를 입힙니다.
A45: 1043 | B45: G1_FullShieldIfHpLowAndShieldZero | C45: 1 | D45: 1 | E45: 0 | F45: 0 | G45: 1 | H45: 0 | I45: Max | K45: Melee | L45: 101043 | M45: FALSE | N45: 보호막이 0인 상태에서 생명력이 1만 남아 있을 경우,. 보호막을 완전 회복합니다.
A46: 1044 | B46: G1_HealOnLevelUp | C46: 1 | D46: 7 | E46: 0 | F46: 0 | G46: 1 | H46: 0 | I46: Max | K46: Melee | L46: 101044 | M46: FALSE | N46: 매 레벨 업 할 때마다 생명력을 7 회복합니다.
A47: 1045 | B47: G1_FountainGivesXp | C47: 1 | D47: 5exp | E47: 0 | F47: 0 | G47: 1 | H47: 0 | I47: Max | K47: Melee | L47: 101045 | M47: FALSE | N47: 회복의 샘도 경험치를 제공합니다.
A48: 1046 | B48: G1_FullHealAfterKillsOnce | C48: 1 | D48: 10 | E48: 0 | F48: 0 | G48: 1 | H48: 0 | I48: Max | K48: Melee | L48: 101046 | M48: FALSE | N48: 적 10명 처치 후 완전 회복(매 전투 당 1회만 발동)
A49: 1047 | B49: G1_HealHpOnShieldBreak | C49: 1 | D49: 10 | E49: 0 | F49: 0 | G49: 1 | H49: 0 | I49: Max | K49: Melee | L49: 101047 | M49: FALSE | N49: 보호막 소진 시 생명력 10 회복
A50: 1048 | B50: G1_CampHealShield | C50: 1 | D50: 5 | E50: 0 | F50: 0 | G50: 1 | H50: 0 | I50: Max | K50: Melee | L50: 101048 | M50: FALSE | N50: 캠프에서 보호막도 함께 회복됩니다.
A51: 1049 | B51: G1_HealOnRangedHitChance | C51: 1 | D51: 3 | E51: 0.3 | F51: 0 | G51: 1 | H51: 0 | I51: Max | K51: Melee | L51: 101049 | M51: TRUE | N51: 원거리 공격에 피격 될 경우 30% 확률로 생명력을 3 회복합니다.
A52: 1050 | B52: G1_HolyDamageOnHeal | C52: 1 | D52: 5 | E52: 0 | F52: 0 | G52: 1 | H52: 0 | I52: Max | J52: Magic Door_Purple | K52: Melee | L52: 101050 | M52: FALSE | N52: 회복 효과가 발생되면 무작위 적에게 5의 신성 피해를 입힙니다.
A53: 1051 | B53: G1_InstantFullHeal | C53: 1 | D53: 0 | E53: 0 | F53: 0 | G53: 1 | H53: 0 | I53: Max | K53: Melee | L53: 101051 | M53: FALSE | N53: 지금 즉시 생명력을 완전 회복합니다.
A54: 1052 | B54: G1_HealEverySecOutOfCombat | C54: 1 | D54: 5 | E54: 0 | F54: 4s | G54: 1 | H54: 0 | I54: Max | K54: Melee | L54: 101052 | M54: FALSE | N54: 비 전투 상태로 던전 탐험 시 4초마다 생명력을 5 회복합니다.
A55: 1053 | B55: G1_MaxDodgeWhenHpBelow | C55: 1 | D55: 4 | E55: 0 | F55: 0 | G55: 1 | H55: 0 | I55: Max | K55: Melee | L55: 101053 | M55: FALSE | N55: 생명력이 4이하일 때 회피 확률이 최대치로 고정됩니다.
A56: 1054 | B56: G1_GoldDropChanceUp | C56: 1 | D56: 0 | E56: 0.3 | F56: 0 | G56: 1 | H56: 0 | I56: Max | K56: Melee | L56: 101054 | M56: TRUE | N56: 적이 골드를 떨어뜨릴 확률이 +30% 증가합니다.
A57: 1055 | B57: G1_MaxShieldUpOnSkillGain | C57: 1 | D57: 4 | E57: 0 | F57: 0 | G57: 1 | H57: 0 | I57: Max | K57: Melee | L57: 101055 | M57: FALSE | N57: 일반 또는 고급 스킬을 얻으면 최대 보호막이 4 증가합니다.
A58: 1056 | B58: G1_MaxHpUpOnLevelUp | C58: 1 | D58: 4 | E58: 0 | F58: 0 | G58: 1 | H58: 0 | I58: Max | K58: Melee | L58: 101056 | M58: FALSE | N58: 매 레벨 업 할 때마다 최대 생명력가 4 증가합니다.
A59: 1057 | B59: G1_MaxShieldUpOnLevelUp | C59: 1 | D59: 4 | E59: 0 | F59: 0 | G59: 1 | H59: 0 | I59: Max | K59: Melee | L59: 101057 | M59: FALSE | N59: 매 레벨 업 할 때마다 최대 보호막이 4 증가합니다.
A60: 1058 | B60: G1_HealOnBackKill | C60: 1 | D60: 5 | E60: 0 | F60: 0 | G60: 1 | H60: 0 | I60: Max | K60: Melee | L60: 101058 | M60: FALSE | N60: 후열의 적 처치 시 생명력을 5 회복합니다.
A61: 1059 | B61: G1_DamageOnKill | C61: 1 | D61: 2 | E61: 0 | F61: 0 | G61: 1 | H61: 0 | I61: Max | J61: Magic Door_Purple | K61: Melee | L61: 101059 | M61: FALSE | N61: 적 처치 시 임의의 적에게 2 피해를 입힙니다.
A62: 1060 | B62: G1_CastMagicMissilesOnBackKill | C62: 1 | D62: 4 | E62: 0 | F62: 0 | G62: 3 | H62: 0.3 | I62: Max | J62: BlueCannonBullet | K62: Range | L62: 101060 | M62: FALSE | N62: 후열의 적 처치 시 매직 미사일 3발을 시전해 무작위 적을 공격합니다.
A63: 1061 | B63: G1_CastReaperOnLevelUp | C63: 1 | D63: 1 | E63: 0 | F63: 0 | G63: 1 | H63: 0 | I63: Max | J63: DeathAttack | K63: Melee | L63: 101061 | M63: FALSE | N63: 매 레벨 업 할 때마다 무작위 적 1명에게 사신의 낫을 시전해 즉사시킵니다.
A64: 1062 | B64: G1_CastReaperOnNthCrit | C64: 1 | D64: 10 | E64: 0 | F64: 0 | G64: 1 | H64: 0 | I64: Max | J64: DeathAttack | K64: Melee | L64: 101062 | M64: FALSE | N64: 10번째 치명타 발생 시 피격 된 대상에게 사신의 낫을 시전해 즉사시킵니다.
A65: 1063 | B65: G1_LevelUpOnCampFind | C65: 1 | D65: 0 | E65: 0 | F65: 0 | G65: 1 | H65: 0 | I65: Max | K65: Melee | L65: 101063 | M65: FALSE | N65: 캠프를 발견할 때마다 즉시 레벨 업합니다.
A66: 1064 | B66: G1_StunAllEnemiesOnLevelUp | C66: 1 | D66: 0 | E66: 0 | F66: 6s | G66: 1 | H66: 0 | I66: Max | K66: Melee | L66: 101064 | M66: FALSE | N66: 레벨 업 시 모든 적을 6초 동안 기절시킵니다.
A67: 1065 | B67: G1_CurseEnemiesOnLevelUp | C67: 1 | D67: 1 | E67: 0 | F67: 0 | G67: 1 | H67: 0 | I67: Max | K67: Melee | L67: 101065 | M67: FALSE | N67: 레벨 업 시 무작위 적 1명에게 저주 효과를 부여하고, 처치 시 시체 폭파를 일으킵니다.
A68: 1066 | B68: G1_LootChestGivesHealAndXp | C68: 1 | D68: 5 | E68: 5exp | F68: 0 | G68: 1 | H68: 0 | I68: Max | K68: Melee | L68: 101066 | M68: FALSE | N68: 전리품 상자가 회복과 경험치를 제공합니다.
A69: 1067 | B69: G1_CurseEnemiesOnBattlefield | C69: 1 | D69: 2 | E69: 0 | F69: 0 | G69: 1 | H69: 0 | I69: Max | K69: Melee | L69: 101067 | M69: FALSE | N69: 전장에 있는 적 2명에게 즉시 저주 효과를 부여하고, 처치 시 시체 폭파를 일으킵니다.
A70: 1068 | B70: G1_MeleeEnemiesAttackSelfChance | C70: 1 | D70: 0 | E70: 0.2 | F70: 0 | G70: 1 | H70: 0 | I70: Max | K70: Melee | L70: 101068 | M70: TRUE | N70: 근접 적이 출몰할 때 20% 확률로 자신을 공격합니다.
A71: 1069 | B71: G1_HolyDamageOnMeleeHit | C71: 1 | D71: 2 | E71: 0 | F71: 0 | G71: 1 | H71: 0 | I71: Max | J71: Magic Door_Purple | K71: Melee | L71: 101069 | M71: FALSE | N71: 근접 피해를 입힌 적에게 2의 신성 피해를 입힌다.
A72: 1070 | B72: G1_DamageUpAfterMiss | C72: 1 | D72: 0 | E72: 4.25 | F72: 0 | G72: 3 | H72: 0.3 | I72: Max | K72: Melee | L72: 101070 | M72: TRUE | N72: 빗나감이 발생되면 다음 공격 피해를 425% 증가시킵니다.
A73: 2001 | B73: G2_CriUpAfterCri | C73: 2 | D73: 0 | E73: 0.3 | F73: 0 | G73: 1 | H73: 0 | I73: Max | J73: LevelUp3 | K73: Melee | L73: 102001 | M73: TRUE | N73: 치명타 발생 시 다음 치명타 확률이 +30% 증가 합니다.
A74: 2002 | B74: G2_GetSkillOnCamp | C74: 2 | D74: 0 | E74: 0 | F74: 0 | G74: 1 | H74: 0 | I74: Max | J74: FX_LevelUP | K74: Melee | L74: 102002 | M74: FALSE | N74: 캠프를 방문할 때마다 무작위 일반 스킬을 얻습니다.
A75: 2003 | B75: G2_ReduceMeeleEnemyDamage | C75: 2 | D75: 2 | E75: 0 | F75: 0 | G75: 1 | H75: 0 | I75: Max | K75: Melee | L75: 102003 | M75: FALSE | N75: 모든 근접 적의 피해가 2 감소합니다.
A76: 2004 | B76: G2_ReduceRangeEnemyDamage | C76: 2 | D76: 1 | E76: 0 | F76: 0 | G76: 1 | H76: 0 | I76: Max | K76: Melee | L76: 102004 | M76: FALSE | N76: 모든 원거리 적의 피해가 1 감소합니다.
A77: 2005 | B77: G2_ShieldRecoverOnLevelUp | C77: 2 | D77: 10 | E77: 0 | F77: 0 | G77: 1 | H77: 0 | I77: Max | K77: Melee | L77: 102005 | M77: FALSE | N77: 레벨 업 시 보호막이 10 회복됩니다.
A78: 2006 | B78: G2_NegateMeleeDamageWithShield | C78: 2 | D78: 0 | E78: 0.4 | F78: 0 | G78: 1 | H78: 0 | I78: Max | K78: Melee | L78: 102006 | M78: TRUE | N78: 보호막은 근접 피해를 40% 확률로 무효화 합니다.
A79: 2007 | B79: G2_NegateRangedAttackWithShield | C79: 2 | D79: 0 | E79: 0.5 | F79: 0 | G79: 1 | H79: 0 | I79: Max | K79: Melee | L79: 102007 | M79: TRUE | N79: 보호막이 있을 경우, 원거리 공격을 50% 확률로 무효화 합니다.
A80: 2008 | B80: G2_ReduceRangedDamageWithShield | C80: 2 | D80: 0 | E80: 0.5 | F80: 0 | G80: 1 | H80: 0 | I80: Max | K80: Melee | L80: 102008 | M80: TRUE | N80: 보호막이 있을 경우, 원거리 피해를 50% 감소시킵니다.
A81: 2009 | B81: G2_IncreaseDamageToBacklineEnemies | C81: 2 | D81: 0 | E81: 2.5 | F81: 0 | G81: 1 | H81: 0 | I81: Max | K81: Melee | L81: 102009 | M81: TRUE | N81: 후열에 있는 적에게 입히는 피해가 +250% 만큼 증가합니다.
A82: 2010 | B82: G2_ActivateInvincibleShieldOnKill | C82: 2 | D82: 0 | E82: 0 | F82: 3s | G82: 1 | H82: 0 | I82: Max | K82: Melee | L82: 102010 | M82: FALSE | N82: 적 처시 시 모든 피해를 무효화하는 보호막을 3초 동안 활성화합니다.
A83: 3001 | B83: G3_GetInstantGold | C83: 3 | D83: 200 | E83: 500 | F83: 0 | G83: 1 | H83: 0 | I83: Max | K83: Melee | L83: 103001 | M83: FALSE | N83: 지금 즉시 대량의 골드(200~500G)를 얻을 수 있습니다.
A84: 3002 | B84: G3_IncreaseAttackSpeed | C84: 3 | D84: 0 | E84: 0.25 | F84: 0 | G84: 1 | H84: 0 | I84: Max | J84: FX_LightPillar | K84: Melee | L84: 103002 | M84: TRUE | N84: 공격 속도가 +25% 증가합니다.
A85: 3003 | B85: G3_RangedHitNextAttackDamageUp | C85: 3 | D85: 0 | E85: 0.5 | F85: 0 | G85: 1 | H85: 0 | I85: Max | K85: Melee | L85: 103003 | M85: TRUE | N85: 원거리 피격 시 다음 공격으로 입히는 피해가 +50% 증가합니다.
A86: 3004 | B86: G3_DodgeFirstRangedAttack | C86: 3 | D86: 0 | E86: 0 | F86: 0 | G86: 1 | H86: 0 | I86: Max | K86: Melee | L86: 103004 | M86: FALSE | N86: 원거리 적이 공격하는 첫 번째 공격을 무조건 회피합니다.
A87: 3005 | B87: G3_IncreaseMeleeDodge | C87: 3 | D87: 0 | E87: 0.15 | F87: 0 | G87: 1 | H87: 0 | I87: Max | K87: Melee | L87: 103005 | M87: TRUE | N87: 근접 회피가 +15% 증가합니다.
A88: 3006 | B88: G3_FirstAttackCritChanceUp | C88: 3 | D88: 0 | E88: 0.35 | F88: 0 | G88: 1 | H88: 0 | I88: Max | K88: Melee | L88: 103006 | M88: TRUE | N88: 첫 번째 공격은 치명타 확률이 35% 증가합니다.
A89: 3007 | B89: G3_CritHitChainsToRandomEnemy | C89: 3 | D89: 0 | E89: 0.27 | F89: 0 | G89: 1 | H89: 0 | I89: Max | J89: YellowSwordBeamHit | K89: Melee | L89: 103007 | M89: TRUE | N89: 치명타가 발생할 경우, 27% 확률로 무작위 적에게도 동일한 피해를 입힙니다.
A90: 3008 | B90: G3_HealHalfHPAndRefillPotions | C90: 3 | D90: 0 | E90: 0.5 | F90: 0 | G90: 1 | H90: 0 | I90: Max | K90: Melee | L90: 103008 | M90: TRUE | N90: 즉시 최대 생명력의 50%를 회복하고, 모든 물약을 가득 채웁니다.
A91: 3009 | B91: G3_PotionUseDealsHealAsDamage | C91: 3 | D91: 0 | E91: 0 | F91: 0 | G91: 1 | H91: 0 | I91: Max | J91: Holy hit | K91: Melee | L91: 103009 | M91: FALSE | N91: 물약을 사용하면 모든 적에게 물약으로 회복 된 생명력과 동일한 피해를 입힙니다.
A92: 3010 | B92: G3_MaxAttackUpEveryNDodges | C92: 3 | D92: 1 | E92: 6 | F92: 0 | G92: 1 | H92: 0 | I92: Max | K92: Melee | L92: 103010 | M92: FALSE | N92: 6번째 회피마다 최대 공격력이 1증가 합니다.
A93: 4001 | B93: G4_ShieldedDamageReduction | C93: 4 | D93: 0 | E93: 0.5 | F93: 0 | G93: 1 | H93: 0 | I93: Max | K93: Melee | L93: 104001 | M93: TRUE | N93: 보호막이 있을 경우, 모든 받는 피해가 50% 감소됩니다.
A94: 4002 | B94: G4_RangedAttackFrontEnemyDamageShare | C94: 4 | D94: 0 | E94: 0.5 | F94: 0 | G94: 1 | H94: 0 | I94: Max | J94: MeeleAttack | K94: Melee | L94: 104002 | M94: TRUE | N94: 원거리 적이 공격할 때 전열의 적이 있을 경우, 50%의 피해를 입힙니다.
A95: 4003 | B95: G4_NHitFiresDarkMissiles | C95: 4 | D95: 6 | E95: 2 | F95: 0 | G95: 5 | H95: 0.25 | I95: Max | J95: Magic Door_Purple | K95: Range | L95: 104003 | M95: FALSE | N95: 6번째 일반 공격에 명중 된 적에게 암흑 미사일 5발을 연속 시전합니다.
A96: 4004 | B96: G4_CritStunsAllEnemies | C96: 4 | D96: 0 | E96: 0 | F96: 3s | G96: 1 | H96: 0 | I96: Stun | J96: Attack_Stun | K96: Melee | L96: 104004 | M96: FALSE | N96: 치명타 발생 시 모든 적을 3초 동안 기절시킵니다.
A97: 4005 | B97: G4_MaxAttackIncreasesByShield | C97: 4 | D97: 0 | E97: 0.5 | F97: 0 | G97: 1 | H97: 0 | I97: Max | K97: Melee | L97: 104005 | M97: TRUE | N97: 현재 보호막의 50%만큼 최대 공격력이 증가합니다.
A98: 4006 | B98: G4_MaxAttackUpAndHealOnKill | C98: 4 | D98: 10 | E98: 1 | F98: 0 | G98: 1 | H98: 0 | I98: Max | K98: Melee | L98: 104006 | M98: FALSE | N98: 최대 공격력이 +10 증가하고, 적 처치 시 생명력을 추가로 1 회복합니다.
A99: 4007 | B99: G4_NHitCastsLightning | C99: 4 | D99: 4 | E99: 2.5 | F99: 0 | G99: 1 | H99: 0 | I99: Max | J99: FX_Cartoon Thunder | K99: Melee | L99: 104007 | M99: FALSE | N99: 일반 공격을 4회 명중할 때마다 임의의 적에게 낙뢰를 시전합니다.
A100: 4008 | B100: G4_NHitHealsByMaxHPPercent | C100: 4 | D100: 5 | E100: 0.1 | F100: 0 | G100: 1 | H100: 0 | I100: Heal_Hp_Mul | K100: Melee | L100: 104008 | M100: TRUE | N100: 5번째 일반 공격마다 최대 생명력의 10%만큼 회복합니다.
A101: 4009 | B101: G4_NhMeleeHitRestoresShield | C101: 4 | D101: 4 | E101: 0.2 | F101: 0 | G101: 1 | H101: 0 | I101: Max | K101: Melee | L101: 104009 | M101: TRUE | N101: 근접 피해를 4회 받을 때마다 최대 보호막의 20%를 회복합니다.
A102: 4010 | B102: G4_NHitCastsFireballAOE | C102: 4 | D102: 6 | E102: 5 | F102: 0 | G102: 1 | H102: 0 | I102: Max | J102: FX_Fireball_Fall | K102: Melee | L102: 104010 | M102: FALSE | N102: 6번째 일반 공격 명중 시 임의의 적에게 범위 피해를 입히는 화염구를 시전합니다.
A103: 5001 | B103: G5_FirstAttackTripleDamage | C103: 5 | D103: 3 | E103: 0 | F103: 0 | G103: 1 | H103: 0 | I103: Max | K103: Melee | L103: 105001 | M103: FALSE | N103: 적에게 입히는 첫 번째 공격은 x3배의 피해를 입힙니다.
A104: 5002 | B104: G5_RangedDamageRandomReflect | C104: 5 | D104: 0 | E104: 0 | F104: 0 | G104: 1 | H104: 0 | I104: Max | K104: Melee | L104: 105002 | M104: FALSE | N104: 모든 원거리 피해는 무작위 적에게 반사됩니다.
A105: 5003 | B105: G5_ReviveOnDeath | C105: 5 | D105: 0.4 | E105: 0 | F105: 0 | G105: 1 | H105: 0 | I105: Max | K105: Melee | L105: 105003 | M105: TRUE | N105: 사망할 경우, 40% 확률로 부활합니다.
A106: 5004 | B106: G5_AllRangedEnemiesBlindIfBackline | C106: 5 | D106: 0 | E106: 0 | F106: 10s | G106: 1 | H106: 0 | I106: Max | K106: Melee | L106: 105004 | M106: FALSE | N106: 모든 원거리 적은 후열에 있을 경우 눈멀기 상태가 됩니다.
A107: 5005 | B107: G5_CastFireballOnCrit | C107: 5 | D107: 0 | E107: 1 | F107: 0 | G107: 1 | H107: 0 | I107: Max | J107: FX_Fireball_Fall | K107: Melee | L107: 105005 | M107: FALSE | N107: 치명타에 명중 된 대상에게 범위 피해를 입히는 화염구를 추가로 시전합니다.
A108: 5006 | B108: G5_ShieldHealWhenHealed | C108: 5 | D108: 0 | E108: 0 | F108: 0 | G108: 1 | H108: 0 | I108: Max | K108: Melee | L108: 105006 | M108: FALSE | N108: 회복 효과가 발생 될 때마다 보호막도 회복됩니다.
A109: 5007 | B109: G5_ArcaneExplosionOnKill | C109: 5 | D109: 0 | E109: 1 | F109: 0 | G109: 1 | H109: 0 | I109: Max | J109: FX_Icelight_Seal | K109: Melee | L109: 105007 | M109: FALSE | N109: 적 처치 시 모든 적에게 신비한 폭발 피해를 입힙니다.
A110: 5008 | B110: G5_FlatDamageMinMaxEqual | C110: 5 | D110: 0 | E110: 0 | F110: 0 | G110: 1 | H110: 0 | I110: Max | K110: Melee | L110: 105008 | M110: FALSE | N110: 최소 공격력과 최대 공격력이 항상 동일하게 적용됩니다.
A111: 5009 | B111: G5_StunBacklineOnKill | C111: 5 | D111: 0 | E111: 0 | F111: 4s | G111: 1 | H111: 0 | I111: Max | K111: Melee | L111: 105009 | M111: FALSE | N111: 적 처치 시 후열의 적이 4초 동안 기절합니다.
A112: 5010 | B112: G5_ReflectAllDamageWhenShielded | C112: 5 | D112: 0 | E112: 0 | F112: 0 | G112: 1 | H112: 0 | I112: Max | K112: Melee | L112: 105010 | M112: FALSE | N112: 보호막이 활성화 되어있을 경우, 받는 모든 피해를 반사합니다.

Sheet PCList
A1: n_ID | B1: s_Image | C1: s_Element | D1: s_SlotElement | E1: f_AttackCoolTime | F1: n_AttackMin | G1: n_AttackMax | H1: f_Cri | I1: f_CriDmg | J1: n_HP | K1: n_Shield | L1: n_Avoid_Meele | M1: n_Avoid_Range | N1: e_AttackType | O1: s_Projectile | P1: n_Specificity1 | Q1: n_Specificity1_Effect | R1: n_Specificity1_Target | S1: n_Specificity2 | T1: n_Specificity2_Effect | U1: n_Specificity2_Target | V1: n_Specificity3 | W1: n_Specificity3_Effect | X1: n_Specificity3_Target | Y1: n_Specificity4 | Z1: n_Specificity4_Effect | AA1: n_Specificity4_Target
A2: PC ID | B2: PC 이미지 | C2: 캐릭터 속성 (3개 고정) | D2: 슬롯 6개 착용 가능한 속성 | E2: 공격 쿨타임 | F2: 최소 공격력 | G2: 최대 공격력 | H2: 치명타 확률 | I2: 치명타 피해량 | J2: 체력 | K2: 보호막 | L2: 회피력(근) | M2: 회피력(원) | N2: 기본 공격 이펙트 | O2: 기본 공격 투사체 | P2: 영웅 특성1 | Q2: 특성1 효과 | R2: 특성1 대상 | S2: 영웅 특성1 | T2: 특성2 효과 | U2: 특성2 대상 | V2: 영웅 특성3 | W2: 특성3 효과 | X2: 특성3 대상 | Y2: 영웅 특성4 | Z2: 특성4 효과 | AA2: 특성4 대상
A3: 6001 | B3: pc1 | C3: Fire^Water^Wind | D3: Fire^Water^Wind^Fire^Water^Wind | E3: 1.2 | F3: 1 | G3: 2 | H3: 5 | I3: 150 | J3: 999 | K3: 999 | L3: 10 | M3: 10 | N3: Melee | O3: MeleeAttack | P3: 10101 | Q3: 1010001 | R3: 1020001 | S3: 10102 | T3: 1010003 | U3: 1020005 | V3: 10103 | W3: 1010002 | X3: 1020003 | Y3: 10104 | Z3: 1010003 | AA3: 1020006 | AB3: 루시
A4: 6002 | B4: pc2 | C4: Light^Earth^Dark | D4: Light^Earth^Dark^Light^Earth^Dark | E4: 3 | F4: 1 | G4: 3 | H4: 5 | I4: 150 | J4: 10 | K4: 0 | L4: 10 | M4: 10 | N4: Range | O4: BlueCannonBullet | P4: 10201 | Q4: 1010002 | R4: 1020002 | S4: 10202 | T4: 1010002 | U4: 1020004 | V4: 10203 | W4: 1010002 | X4: 1020004 | Y4: 10204 | Z4: 1010003 | AA4: 1020004 | AB4: 루나
A5: 6003 | B5: pc3 | C5: Wind^Light^Earth | D5: Wind^Light^Earth^Wind^Light^Earth | E5: 1.2 | F5: 1 | G5: 2 | H5: 5 | I5: 150 | J5: 999 | K5: 999 | L5: 10 | M5: 10 | N5: Melee | O5: MeleeAttack | P5: 10101 | Q5: 1010003 | R5: 1020003 | S5: 10102 | T5: 1010001 | U5: 1020003 | V5: 10103 | W5: 1010002 | X5: 1020003 | Y5: 10104 | Z5: 1010003 | AA5: 1020003
A6: 6004 | B6: pc4 | C6: Fire^Water^Earth | D6: Fire^Water^Earth^Fire^Water^Earth | E6: 1.2 | F6: 1 | G6: 2 | H6: 5 | I6: 150 | J6: 999 | K6: 999 | L6: 10 | M6: 10 | N6: Melee | O6: MeleeAttack | P6: 10101 | Q6: 1010001 | R6: 1020004 | S6: 10102 | T6: 1010001 | U6: 1020002 | V6: 10103 | W6: 1010002 | X6: 1020002 | Y6: 10104 | Z6: 1010003 | AA6: 1020002
A7: 6005 | B7: pc5 | C7: Fire^Earth^Dark | D7: Fire^Earth^Dark^Fire^Earth^Dark | E7: 3 | F7: 1 | G7: 3 | H7: 5 | I7: 150 | J7: 10 | K7: 0 | L7: 10 | M7: 10 | N7: Range | O7: BlueCannonBullet | P7: 10201 | Q7: 1010002 | R7: 1020005 | S7: 10202 | T7: 1010002 | U7: 1020001 | V7: 10203 | W7: 1010002 | X7: 1020001 | Y7: 10204 | Z7: 1010003 | AA7: 1020005

Sheet SealList
A1: n_ID | B1: e_SealType | C1: e_Element | D1: n_Star | E1: e_SpecialEffect1 | F1: s_Value1 | G1: s_Projectile1 | H1: b_PercentValue1 | I1: e_SpecialEffect2 | J1: s_Value2 | K1: s_Projectile2 | L1: b_PercentValue2 | M1: n_Desc1 | N1: n_Desc2 | O1: exception
A2: 인장 ID | B2: 인장 타입 | C2: 속성 | D2: 스텝 | E2: 특수 효과 정의1 | F2: 값1 | G2: 적용할 투사체 | H2: %값인 지 여부 | I2: 특수 효과 정의2 | J2: 값2 | K2: 적용할 투사체 | L2: %값인 지 여부 | M2: 특수효과 설명1 | N2: 특수효과 설명2 | O2: 참고용 텍스트
A3: 20101 | B3: Magic | C3: Dark | D3: 1 | E3: MagicMissileDamage | F3: 1 | G3: BlueCannonBullet | H3: FALSE | I3: DarkMissileDamage | J3: 0.03 | K3: Magic Door_Purple | L3: TRUE | M3: 900101 | N3: 900102 | O3: 매직 미사일 / 암흑 미사일 피해 증가
A4: 20101 | B4: Magic | C4: Dark | D4: 2 | E4: MagicMissileDamage | F4: 2 | G4: BlueCannonBullet | H4: FALSE | I4: DarkMissileDamage | J4: 0.05 | K4: Magic Door_Purple | L4: TRUE | M4: 900101 | N4: 900102
A5: 20101 | B5: Magic | C5: Dark | D5: 3 | E5: MagicMissileDamage | F5: 3 | G5: BlueCannonBullet | H5: FALSE | I5: DarkMissileDamage | J5: 0.08 | K5: Magic Door_Purple | L5: TRUE | M5: 900101 | N5: 900102
A6: 20101 | B6: Magic | C6: Dark | D6: 4 | E6: MagicMissileDamage | F6: 5 | G6: BlueCannonBullet | H6: FALSE | I6: DarkMissileDamage | J6: 0.12 | K6: Magic Door_Purple | L6: TRUE | M6: 900101 | N6: 900102
A7: 20101 | B7: Magic | C7: Dark | D7: 5 | E7: MagicMissileDamage | F7: 8 | G7: BlueCannonBullet | H7: FALSE | I7: DarkMissileDamage | J7: 0.2 | K7: Magic Door_Purple | L7: TRUE | M7: 900101 | N7: 900102
A8: 20102 | B8: Reaper | C8: Dark | D8: 1 | E8: CorpseExplosion | F8: 1 | H8: FALSE | I8: LifeSteal | J8: 0.03 | L8: TRUE | M8: 900201 | N8: 900202 | O8: 시체 폭파 / 흡혈 피해
A9: 20102 | B9: Reaper | C9: Dark | D9: 2 | E9: CorpseExplosion | F9: 2 | H9: FALSE | I9: LifeSteal | J9: 0.05 | L9: TRUE | M9: 900201 | N9: 900202
A10: 20102 | B10: Reaper | C10: Dark | D10: 3 | E10: CorpseExplosion | F10: 3 | H10: FALSE | I10: LifeSteal | J10: 0.08 | L10: TRUE | M10: 900201 | N10: 900202
A11: 20102 | B11: Reaper | C11: Dark | D11: 4 | E11: CorpseExplosion | F11: 5 | H11: FALSE | I11: LifeSteal | J11: 0.12 | L11: TRUE | M11: 900201 | N11: 900202
A12: 20102 | B12: Reaper | C12: Dark | D12: 5 | E12: CorpseExplosion | F12: 8 | H12: FALSE | I12: LifeSteal | J12: 0.2 | L12: TRUE | M12: 900201 | N12: 900202
A13: 20103 | B13: Lightning | C13: Water | D13: 1 | E13: ElectricShock | F13: 1 | G13: FX_Cartoon Thunder | H13: FALSE | I13: Thunder | J13: 0.03 | K13: FX_Cartoon Thunder | L13: TRUE | M13: 900301 | N13: 900302 | O13: 전기 충격 / 낙뢰
A14: 20103 | B14: Lightning | C14: Water | D14: 2 | E14: ElectricShock | F14: 2 | G14: FX_Cartoon Thunder | H14: FALSE | I14: Thunder | J14: 0.05 | K14: FX_Cartoon Thunder | L14: TRUE | M14: 900301 | N14: 900302 | O14: ※ 둘 중 하나 투사체 변경 필요
A15: 20103 | B15: Lightning | C15: Water | D15: 3 | E15: ElectricShock | F15: 3 | G15: FX_Cartoon Thunder | H15: FALSE | I15: Thunder | J15: 0.08 | K15: FX_Cartoon Thunder | L15: TRUE | M15: 900301 | N15: 900302
A16: 20103 | B16: Lightning | C16: Water | D16: 4 | E16: ElectricShock | F16: 5 | G16: FX_Cartoon Thunder | H16: FALSE | I16: Thunder | J16: 0.12 | K16: FX_Cartoon Thunder | L16: TRUE | M16: 900301 | N16: 900302
A17: 20103 | B17: Lightning | C17: Water | D17: 5 | E17: ElectricShock | F17: 8 | G17: FX_Cartoon Thunder | H17: FALSE | I17: Thunder | J17: 0.2 | K17: FX_Cartoon Thunder | L17: TRUE | M17: 900301 | N17: 900302
A18: 20104 | B18: Flame | C18: Fire | D18: 1 | E18: Meteor | F18: 0.1 | H18: TRUE | I18: Fireball | J18: 0.05 | K18: FX_Fireball_Fall | L18: TRUE | M18: 900401 | N18: 900402 | O18: 운석 / 화염구
A19: 20104 | B19: Flame | C19: Fire | D19: 2 | E19: Meteor | F19: 0.2 | H19: TRUE | I19: Fireball | J19: 0.1 | K19: FX_Fireball_Fall | L19: TRUE | M19: 900401 | N19: 900402
A20: 20104 | B20: Flame | C20: Fire | D20: 3 | E20: Meteor | F20: 0.3 | H20: TRUE | I20: Fireball | J20: 0.16 | K20: FX_Fireball_Fall | L20: TRUE | M20: 900401 | N20: 900402
A21: 20104 | B21: Flame | C21: Fire | D21: 4 | E21: Meteor | F21: 0.4 | H21: TRUE | I21: Fireball | J21: 0.24 | K21: FX_Fireball_Fall | L21: TRUE | M21: 900401 | N21: 900402
A22: 20104 | B22: Flame | C22: Fire | D22: 5 | E22: Meteor | F22: 0.5 | H22: TRUE | I22: Fireball | J22: 0.35 | K22: FX_Fireball_Fall | L22: TRUE | M22: 900401 | N22: 900402
A23: 20105 | B23: Holy | C23: Light | D23: 1 | E23: HolyDamage | F23: 1 | G23: Magic Door_Purple | H23: FALSE | I23: ShieldBonus | J23: 0.05 | L23: TRUE | M23: 900501 | N23: 900502 | O23: 신성 피해 / 보호막 증가
A24: 20105 | B24: Holy | C24: Light | D24: 2 | E24: HolyDamage | F24: 2 | G24: Magic Door_Purple | H24: FALSE | I24: ShieldBonus | J24: 0.1 | L24: TRUE | M24: 900501 | N24: 900502 | O24: ※ 투사체 변경 필요
A25: 20105 | B25: Holy | C25: Light | D25: 3 | E25: HolyDamage | F25: 3 | G25: Magic Door_Purple | H25: FALSE | I25: ShieldBonus | J25: 0.15 | L25: TRUE | M25: 900501 | N25: 900502
A26: 20105 | B26: Holy | C26: Light | D26: 4 | E26: HolyDamage | F26: 4 | G26: Magic Door_Purple | H26: FALSE | I26: ShieldBonus | J26: 0.2 | L26: TRUE | M26: 900501 | N26: 900502
A27: 20105 | B27: Holy | C27: Light | D27: 5 | E27: HolyDamage | F27: 5 | G27: Magic Door_Purple | H27: FALSE | I27: ShieldBonus | J27: 0.25 | L27: TRUE | M27: 900501 | N27: 900502
A28: 20106 | B28: Blade | C28: Earth | D28: 1 | E28: RockBlade | F28: 0.05 | H28: TRUE | I28: ArrowRain | J28: 0.05 | L28: TRUE | M28: 900601 | N28: 900602 | O28: 칼날 바위 / 화살의 비
A29: 20106 | B29: Blade | C29: Earth | D29: 2 | E29: RockBlade | F29: 0.1 | H29: TRUE | I29: ArrowRain | J29: 0.1 | L29: TRUE | M29: 900601 | N29: 900602
A30: 20106 | B30: Blade | C30: Earth | D30: 3 | E30: RockBlade | F30: 0.16 | H30: TRUE | I30: ArrowRain | J30: 0.16 | L30: TRUE | M30: 900601 | N30: 900602
A31: 20106 | B31: Blade | C31: Earth | D31: 4 | E31: RockBlade | F31: 0.24 | H31: TRUE | I31: ArrowRain | J31: 0.24 | L31: TRUE | M31: 900601 | N31: 900602
A32: 20106 | B32: Blade | C32: Earth | D32: 5 | E32: RockBlade | F32: 0.35 | H32: TRUE | I32: ArrowRain | J32: 0.35 | L32: TRUE | M32: 900601 | N32: 900602
A33: 20107 | B33: Pierce | C33: Wind | D33: 1 | E33: DoomRay | F33: 0.1 | H33: TRUE | I33: PiercingLightning | J33: 0.05 | L33: TRUE | M33: 900701 | N33: 900702 | O33: 파멸의 광선 / 관통 번개
A34: 20107 | B34: Pierce | C34: Wind | D34: 2 | E34: DoomRay | F34: 0.2 | H34: TRUE | I34: PiercingLightning | J34: 0.1 | L34: TRUE | M34: 900701 | N34: 900702
A35: 20107 | B35: Pierce | C35: Wind | D35: 3 | E35: DoomRay | F35: 0.3 | H35: TRUE | I35: PiercingLightning | J35: 0.16 | L35: TRUE | M35: 900701 | N35: 900702
A36: 20107 | B36: Pierce | C36: Wind | D36: 4 | E36: DoomRay | F36: 0.4 | H36: TRUE | I36: PiercingLightning | J36: 0.24 | L36: TRUE | M36: 900701 | N36: 900702
A37: 20107 | B37: Pierce | C37: Wind | D37: 5 | E37: DoomRay | F37: 0.5 | H37: TRUE | I37: PiercingLightning | J37: 0.35 | L37: TRUE | M37: 900701 | N37: 900702
A38: 20108 | B38: AoE | C38: Water | D38: 1 | E38: Blizzard | F38: 0.1 | H38: TRUE | I38: MysticExplosion | J38: 0.05 | K38: FX_Icelight_Seal | L38: TRUE | M38: 900801 | N38: 900802 | O38: 혹한의 눈보라 / 신비한 폭발
A39: 20108 | B39: AoE | C39: Water | D39: 2 | E39: Blizzard | F39: 0.2 | H39: TRUE | I39: MysticExplosion | J39: 0.1 | K39: FX_Icelight_Seal | L39: TRUE | M39: 900801 | N39: 900802 | O39: ※ 신비한 폭발 투사체 변경 필요
A40: 20108 | B40: AoE | C40: Water | D40: 3 | E40: Blizzard | F40: 0.3 | H40: TRUE | I40: MysticExplosion | J40: 0.16 | K40: FX_Icelight_Seal | L40: TRUE | M40: 900801 | N40: 900802
A41: 20108 | B41: AoE | C41: Water | D41: 4 | E41: Blizzard | F41: 0.4 | H41: TRUE | I41: MysticExplosion | J41: 0.24 | K41: FX_Icelight_Seal | L41: TRUE | M41: 900801 | N41: 900802
A42: 20108 | B42: AoE | C42: Water | D42: 5 | E42: Blizzard | F42: 0.5 | H42: TRUE | I42: MysticExplosion | J42: 0.35 | K42: FX_Icelight_Seal | L42: TRUE | M42: 900801 | N42: 900802
A43: 20109 | B43: Heal | C43: Light | D43: 1 | E43: HealBonus | F43: 1 | H43: FALSE | I43: MaxLife | J43: 0.03 | L43: TRUE | M43: 900901 | N43: 900902 | O43: 회복 효과 / 생명력
A44: 20109 | B44: Heal | C44: Light | D44: 2 | E44: HealBonus | F44: 2 | H44: FALSE | I44: MaxLife | J44: 0.05 | L44: TRUE | M44: 900901 | N44: 900902
A45: 20109 | B45: Heal | C45: Light | D45: 3 | E45: HealBonus | F45: 3 | H45: FALSE | I45: MaxLife | J45: 0.08 | L45: TRUE | M45: 900901 | N45: 900902
A46: 20109 | B46: Heal | C46: Light | D46: 4 | E46: HealBonus | F46: 4 | H46: FALSE | I46: MaxLife | J46: 0.12 | L46: TRUE | M46: 900901 | N46: 900902
A47: 20109 | B47: Heal | C47: Light | D47: 5 | E47: HealBonus | F47: 5 | H47: FALSE | I47: MaxLife | J47: 0.2 | L47: TRUE | M47: 900901 | N47: 900902
A48: 20110 | B48: Haste | C48: Wind | D48: 1 | E48: AttackSpeed | F48: 0.01 | H48: TRUE | I48: PhantomSpear | J48: 0.05 | K48: FX_BlueCharge | L48: TRUE | M48: 901001 | N48: 901002 | O48: 공속 증가 / 환영의 창
A49: 20110 | B49: Haste | C49: Wind | D49: 2 | E49: AttackSpeed | F49: 0.02 | H49: TRUE | I49: PhantomSpear | J49: 0.1 | K49: FX_BlueCharge | L49: TRUE | M49: 901001 | N49: 901002
A50: 20110 | B50: Haste | C50: Wind | D50: 3 | E50: AttackSpeed | F50: 0.04 | H50: TRUE | I50: PhantomSpear | J50: 0.16 | K50: FX_BlueCharge | L50: TRUE | M50: 901001 | N50: 901002
A51: 20110 | B51: Haste | C51: Wind | D51: 4 | E51: AttackSpeed | F51: 0.065 | H51: TRUE | I51: PhantomSpear | J51: 0.24 | K51: FX_BlueCharge | L51: TRUE | M51: 901001 | N51: 901002
A52: 20110 | B52: Haste | C52: Wind | D52: 5 | E52: AttackSpeed | F52: 0.1 | H52: TRUE | I52: PhantomSpear | J52: 0.35 | K52: FX_BlueCharge | L52: TRUE | M52: 901001 | N52: 901002
A53: 20111 | B53: Critical | C53: Fire | D53: 1 | E53: CritChance | F53: 0.002 | H53: TRUE | I53: CritDamage | J53: 0.03 | L53: TRUE | M53: 901101 | N53: 901102 | O53: 치명타 / 치명 피해
A54: 20111 | B54: Critical | C54: Fire | D54: 2 | E54: CritChance | F54: 0.004 | H54: TRUE | I54: CritDamage | J54: 0.05 | L54: TRUE | M54: 901101 | N54: 901102
A55: 20111 | B55: Critical | C55: Fire | D55: 3 | E55: CritChance | F55: 0.006 | H55: TRUE | I55: CritDamage | J55: 0.08 | L55: TRUE | M55: 901101 | N55: 901102
A56: 20111 | B56: Critical | C56: Fire | D56: 4 | E56: CritChance | F56: 0.008 | H56: TRUE | I56: CritDamage | J56: 0.12 | L56: TRUE | M56: 901101 | N56: 901102
A57: 20111 | B57: Critical | C57: Fire | D57: 5 | E57: CritChance | F57: 0.01 | H57: TRUE | I57: CritDamage | J57: 0.2 | L57: TRUE | M57: 901101 | N57: 901102
A58: 20112 | B58: Sacrifice | C58: Earth | D58: 1 | E58: GoldGain | F58: 0.01 | H58: TRUE | I58: ExpGain | J58: 0.01 | L58: TRUE | M58: 901201 | N58: 901202 | O58: 골드 및 경험치 획득량 증가
A59: 20112 | B59: Sacrifice | C59: Earth | D59: 2 | E59: GoldGain | F59: 0.02 | H59: TRUE | I59: ExpGain | J59: 0.02 | L59: TRUE | M59: 901201 | N59: 901202
A60: 20112 | B60: Sacrifice | C60: Earth | D60: 3 | E60: GoldGain | F60: 0.04 | H60: TRUE | I60: ExpGain | J60: 0.04 | L60: TRUE | M60: 901201 | N60: 901202
A61: 20112 | B61: Sacrifice | C61: Earth | D61: 4 | E61: GoldGain | F61: 0.065 | H61: TRUE | I61: ExpGain | J61: 0.065 | L61: TRUE | M61: 901201 | N61: 901202
A62: 20112 | B62: Sacrifice | C62: Earth | D62: 5 | E62: GoldGain | F62: 0.1 | H62: TRUE | I62: ExpGain | J62: 0.1 | L62: TRUE | M62: 901201 | N62: 901202

Sheet BuffPatternConfig
A1: s_BuffType | B1: b_MaintainBuff | C1: n_AppearRate | D1: n_BuffDesc | E1: n_BuffOptionID
A2: _맵툴 버프 표기 문구 | B2: 효과 유지 여부 | C2: 버프 발생 비중 | D2: 버프 효과 발생 등장 문구 | E2: 버프 효과 ID | G2: 비고 | H2: 효과 설명
A3: 생명력 회복 | B3: FALSE | C3: 100 | D3: 30001 | E3: 21001 | G3: 즉시 발동 | H3: 생명력 회복
A4: 실드 회복 | B4: FALSE | C4: 100 | D4: 30002 | E4: 21002 | G4: 즉시 발동 | H4: 실드 회복
A5: 중독 | B5: FALSE | C5: 100 | D5: 30003 | E5: 21003 | G5: 즉시 발동 | H5: 중독 효과 발생
A6: 전투 발생 | B6: FALSE | C6: 100 | D6: 30004 | E6: 21004 | G6: 즉시 발동 | H6: 전투 발생
A7: 최대 생명력 증가 | B7: TRUE | C7: 100 | D7: 30005 | E7: 21005 | G7: 전투 종료 시까지 | H7: 최대 생명력 증가
A8: 최대 생명력 감소 | B8: TRUE | C8: 100 | D8: 30006 | E8: 21006 | G8: 전투 종료 시까지 | H8: 최대 생명력 감소
A9: 최대 실드 증가 | B9: TRUE | C9: 100 | D9: 30007 | E9: 21007 | G9: 전투 종료 시까지 | H9: 최대 실드 증가
A10: 최대 실드 감소 | B10: TRUE | C10: 100 | D10: 30008 | E10: 21008 | G10: 전투 종료 시까지 | H10: 최대 실드 감소
A11: 공격력 증가 | B11: TRUE | C11: 50 | D11: 30009 | E11: 21009 | G11: 전투 종료 시까지 | H11: 공격력 증가
A12: 공격력 감소 | B12: TRUE | C12: 50 | D12: 30010 | E12: 21010 | G12: 전투 종료 시까지 | H12: 공격력 감소
A13: 회피율 증가 | B13: TRUE | C13: 100 | D13: 30011 | E13: 21011 | G13: 전투 종료 시까지 | H13: 회피율 증가
A14: 회피율 감소 | B14: TRUE | C14: 100 | D14: 30012 | E14: 21012 | G14: 전투 종료 시까지 | H14: 회피율 감소
A15: 명중력 증가 | B15: TRUE | C15: 100 | D15: 30013 | E15: 21013 | G15: 전투 종료 시까지 | H15: 명중 증가
A16: 명중력 감소 | B16: TRUE | C16: 100 | D16: 30014 | E16: 21014 | G16: 전투 종료 시까지 | H16: 명중력 감소
A17: 치명타 확률 증가 | B17: TRUE | C17: 100 | D17: 30015 | E17: 21015 | G17: 전투 종료 시까지 | H17: 치명타 확률 증가
A18: 치명타 확률 감소 | B18: TRUE | C18: 100 | D18: 30016 | E18: 21016 | G18: 전투 종료 시까지 | H18: 치명타 확률 감소
A19: 치명타 피해량 증가 | B19: TRUE | C19: 100 | D19: 30017 | E19: 21017 | G19: 전투 종료 시까지 | H19: 치명타 피해량 증가
A20: 치명타 피해량 감소 | B20: TRUE | C20: 100 | D20: 30018 | E20: 21018 | G20: 전투 종료 시까지 | H20: 치명타 피해량 감소
A21: 공격 속도 증가 | B21: TRUE | C21: 100 | D21: 30019 | E21: 21019 | G21: 전투 종료 시까지 | H21: 공격 속도 증가
A22: 공격 속도 감소 | B22: TRUE | C22: 100 | D22: 30020 | E22: 21020 | G22: 전투 종료 시까지 | H22: 공격 속도 감소

Sheet PCAwakening
A1: n_PCID | B1: n_ID | C1: n_Step | D1: e_Position | E1: n_NextID1 | F1: n_NextID2 | G1: n_NextID3 | H1: s_Icon | I1: n_Name | J1: n_Desc | K1: e_Stat1 | L1: s_Value1 | M1: s_UpgradeStatValuePara1 | N1: e_Stat2 | O1: s_Value2 | P1: s_UpgradeStatValuePara2 | Q1: n_MaxLv | R1: n_NeedSoul | S1: exception
A2: PC ID | B2: 특성 고유 ID | C2: 특성 강화 단계 | D2: 포지션(좌중우) | E2: 다음 특성 ID1 | F2: 다음 특성 ID2 | G2: 다음 특성 ID3 | H2: 특성 아이콘 | I2: 특성 이름 | J2: 특설 설명 | K2: 스탯1 | L2: 특성값1 | M2: 레벨당 증가값1 | N2: 스탯2 | O2: 특성값2 | P2: 레벨당 증가값2 | Q2: 최대 강화 레벨 | R2: 레벨 업시 필요한 소울 | S2: 설명
A3: 6001 | B3: 10100011 | C3: 1 | D3: Center | E3: 0 | F3: =B5 -> 10100022 | G3: 0 | H3: ="awaken_"&B3 -> awaken_10100011 | I3: 810011 | J3: 810111 | K3: Attack_Min | L3: 0 | M3: 1 | N3: None | O3: 0 | P3: 0 | Q3: 5 | R3: 15 | S3: 최소 공격력 증가
A4: 6001 | B4: 10100021 | C4: 2 | D4: Left | E4: 0 | F4: 0 | G4: 0 | H4: ="awaken_"&B4 -> awaken_10100021 | I4: 810021 | J4: 810121 | K4: Attack_Max | L4: 0 | M4: 1 | N4: None | O4: 0 | P4: 0 | Q4: 5 | R4: 20 | S4: 최대 공격력 증가
A5: 6001 | B5: 10100022 | C5: 2 | D5: Center | E5: 0 | F5: 0 | G5: 0 | H5: awaken_10100022 | I5: 810022 | J5: 810122 | K5: MaxHP | L5: 0 | M5: 2 | N5: None | O5: 0 | P5: 0 | Q5: 5 | R5: 20 | S5: 최대 생명력 증가
A6: 6002 | B6: 10200011 | C6: 1 | D6: Center | E6: =B7 -> 10200021 | F6: 0 | G6: =B8 -> 10200022 | H6: awaken_10200011 | I6: 820011 | J6: 820111 | K6: MaxPotion | L6: 0 | M6: 1 | N6: None | O6: 0 | P6: 0 | Q6: 5 | R6: 15 | S6: 최대 포션 소지수 증가
A7: 6002 | B7: 10200021 | C7: 2 | D7: Left | E7: 0 | F7: 0 | G7: 0 | H7: awaken_10200021 | I7: 820021 | J7: 820121 | K7: Avoid_Melee | L7: 0 | M7: 0.01 | N7: None | O7: 0 | P7: 0 | Q7: 5 | R7: 20 | S7: 근거리 회피율 증가
A8: 6002 | B8: 10200022 | C8: 2 | D8: Right | E8: 0 | F8: 0 | G8: 0 | H8: awaken_10200022 | I8: 820022 | J8: 820122 | K8: Avoid_Range | L8: 0 | M8: 0.01 | N8: None | O8: 0 | P8: 0 | Q8: 5 | R8: 20 | S8: 원거리 회피율 증가
A9: 6003 | B9: 10300011 | C9: 1 | D9: Center | E9: =B10 -> 10300021 | F9: 0 | G9: =B11 -> 10300022 | H9: awaken_10300011 | I9: 820011 | J9: 820111 | K9: MaxPotion | L9: 0 | M9: 1 | N9: None | O9: 0 | P9: 0 | Q9: 5 | R9: 15 | S9: 최대 포션 소지수 증가
A10: 6003 | B10: 10300021 | C10: 2 | D10: Left | E10: 0 | F10: 0 | G10: 0 | H10: awaken_10300021 | I10: 820021 | J10: 820121 | K10: Avoid_Melee | L10: 0 | M10: 0.01 | N10: None | O10: 0 | P10: 0 | Q10: 5 | R10: 20 | S10: 근거리 회피율 증가
A11: 6003 | B11: 10300022 | C11: 2 | D11: Right | E11: 0 | F11: 0 | G11: 0 | H11: awaken_10300022 | I11: 820022 | J11: 820122 | K11: Avoid_Range | L11: 0 | M11: 0.01 | N11: None | O11: 0 | P11: 0 | Q11: 5 | R11: 20 | S11: 원거리 회피율 증가
A12: 6004 | B12: 10400011 | C12: 1 | D12: Center | E12: 0 | F12: =B14 -> 10400022 | G12: 0 | H12: ="awaken_"&B12 -> awaken_10400011 | I12: 810011 | J12: 810111 | K12: Attack_Min | L12: 0 | M12: 1 | N12: None | O12: 0 | P12: 0 | Q12: 5 | R12: 15 | S12: 최소 공격력 증가
A13: 6004 | B13: 10400021 | C13: 2 | D13: Left | E13: 0 | F13: 0 | G13: 0 | H13: ="awaken_"&B13 -> awaken_10400021 | I13: 810021 | J13: 810121 | K13: Attack_Max | L13: 0 | M13: 1 | N13: None | O13: 0 | P13: 0 | Q13: 5 | R13: 20 | S13: 최대 공격력 증가
A14: 6004 | B14: 10400022 | C14: 2 | D14: Center | E14: 0 | F14: 0 | G14: 0 | H14: awaken_10400022 | I14: 810022 | J14: 810122 | K14: MaxHP | L14: 0 | M14: 2 | N14: None | O14: 0 | P14: 0 | Q14: 5 | R14: 20 | S14: 최대 생명력 증가
A15: 6005 | B15: 10500011 | C15: 1 | D15: Center | E15: =B16 -> 10500021 | F15: 0 | G15: =B17 -> 10500022 | H15: awaken_10500011 | I15: 820011 | J15: 820111 | K15: MaxPotion | L15: 0 | M15: 1 | N15: None | O15: 0 | P15: 0 | Q15: 5 | R15: 15 | S15: 최대 포션 소지수 증가
A16: 6005 | B16: 10500021 | C16: 2 | D16: Left | E16: 0 | F16: 0 | G16: 0 | H16: awaken_10500021 | I16: 820021 | J16: 820121 | K16: Avoid_Melee | L16: 0 | M16: 0.01 | N16: None | O16: 0 | P16: 0 | Q16: 5 | R16: 20 | S16: 근거리 회피율 증가
A17: 6005 | B17: 10500022 | C17: 2 | D17: Right | E17: 0 | F17: 0 | G17: 0 | H17: awaken_10500022 | I17: 820022 | J17: 820122 | K17: Avoid_Range | L17: 0 | M17: 0.01 | N17: None | O17: 0 | P17: 0 | Q17: 5 | R17: 20 | S17: 원거리 회피율 증가

Sheet PCEvolution
A1: n_PCID | B1: n_Star | C1: e_Stat1 | D1: n_AttackValue | E1: e_Stat2 | F1: n_MaxHPValue | G1: e_Stat3 | H1: n_MaxShieldValue | I1: e_Stat4 | J1: n_HitRateValue
A2: _PC ID | B2: 진화 스텝 | C2: 진화 스탯 1 | D2: 공격력 | E2: 진화 스탯 2 | F2: 최대 생명력 | G2: 진화 스탯 3 | H2: 최대 보호막 | I2: 진화 스탯 4 | J2: 명중률
A3: 6001 | B3: 1 | C3: Attack | D3: 1 | E3: MaxHP | F3: 5 | G3: MaxShield | H3: 5 | I3: HitRate | J3: 5
A4: 6001 | B4: 2 | C4: Attack | D4: 2 | E4: MaxHP | F4: 10 | G4: MaxShield | H4: 10 | I4: HitRate | J4: 10
A5: 6001 | B5: 3 | C5: Attack | D5: 3 | E5: MaxHP | F5: 15 | G5: MaxShield | H5: 15 | I5: HitRate | J5: 15
A6: 6001 | B6: 4 | C6: Attack | D6: 4 | E6: MaxHP | F6: 20 | G6: MaxShield | H6: 20 | I6: HitRate | J6: 20
A7: 6001 | B7: 5 | C7: Attack | D7: 5 | E7: MaxHP | F7: 25 | G7: MaxShield | H7: 25 | I7: HitRate | J7: 25
A8: 6001 | B8: 6 | C8: Attack | D8: 6 | E8: MaxHP | F8: 30 | G8: MaxShield | H8: 30 | I8: HitRate | J8: 30
A9: 6002 | B9: 1 | C9: Attack | D9: 2 | E9: MaxHP | F9: 5 | G9: MaxShield | H9: 5 | I9: HitRate | J9: 5
A10: 6002 | B10: 2 | C10: Attack | D10: 3 | E10: MaxHP | F10: 10 | G10: MaxShield | H10: 10 | I10: HitRate | J10: 10
A11: 6002 | B11: 3 | C11: Attack | D11: 4 | E11: MaxHP | F11: 15 | G11: MaxShield | H11: 15 | I11: HitRate | J11: 15
A12: 6002 | B12: 4 | C12: Attack | D12: 5 | E12: MaxHP | F12: 20 | G12: MaxShield | H12: 20 | I12: HitRate | J12: 20
A13: 6002 | B13: 5 | C13: Attack | D13: 6 | E13: MaxHP | F13: 25 | G13: MaxShield | H13: 25 | I13: HitRate | J13: 25
A14: 6002 | B14: 6 | C14: Attack | D14: 7 | E14: MaxHP | F14: 30 | G14: MaxShield | H14: 30 | I14: HitRate | J14: 30
A15: 6003 | B15: 1 | C15: Attack | D15: 3 | E15: MaxHP | F15: 5 | G15: MaxShield | H15: 5 | I15: HitRate | J15: 5
A16: 6003 | B16: 2 | C16: Attack | D16: 4 | E16: MaxHP | F16: 10 | G16: MaxShield | H16: 10 | I16: HitRate | J16: 10
A17: 6003 | B17: 3 | C17: Attack | D17: 5 | E17: MaxHP | F17: 15 | G17: MaxShield | H17: 15 | I17: HitRate | J17: 15
A18: 6003 | B18: 4 | C18: Attack | D18: 6 | E18: MaxHP | F18: 20 | G18: MaxShield | H18: 20 | I18: HitRate | J18: 20
A19: 6003 | B19: 5 | C19: Attack | D19: 7 | E19: MaxHP | F19: 25 | G19: MaxShield | H19: 25 | I19: HitRate | J19: 25
A20: 6003 | B20: 6 | C20: Attack | D20: 8 | E20: MaxHP | F20: 30 | G20: MaxShield | H20: 30 | I20: HitRate | J20: 30
A21: 6004 | B21: 1 | C21: Attack | D21: 4 | E21: MaxHP | F21: 5 | G21: MaxShield | H21: 5 | I21: HitRate | J21: 5
A22: 6004 | B22: 2 | C22: Attack | D22: 5 | E22: MaxHP | F22: 10 | G22: MaxShield | H22: 10 | I22: HitRate | J22: 10
A23: 6004 | B23: 3 | C23: Attack | D23: 6 | E23: MaxHP | F23: 15 | G23: MaxShield | H23: 15 | I23: HitRate | J23: 15
A24: 6004 | B24: 4 | C24: Attack | D24: 7 | E24: MaxHP | F24: 20 | G24: MaxShield | H24: 20 | I24: HitRate | J24: 20
A25: 6004 | B25: 5 | C25: Attack | D25: 8 | E25: MaxHP | F25: 25 | G25: MaxShield | H25: 25 | I25: HitRate | J25: 25
A26: 6004 | B26: 6 | C26: Attack | D26: 9 | E26: MaxHP | F26: 30 | G26: MaxShield | H26: 30 | I26: HitRate | J26: 30
A27: 6005 | B27: 1 | C27: Attack | D27: 5 | E27: MaxHP | F27: 5 | G27: MaxShield | H27: 5 | I27: HitRate | J27: 5
A28: 6005 | B28: 2 | C28: Attack | D28: 6 | E28: MaxHP | F28: 10 | G28: MaxShield | H28: 10 | I28: HitRate | J28: 10
A29: 6005 | B29: 3 | C29: Attack | D29: 7 | E29: MaxHP | F29: 15 | G29: MaxShield | H29: 15 | I29: HitRate | J29: 15
A30: 6005 | B30: 4 | C30: Attack | D30: 8 | E30: MaxHP | F30: 20 | G30: MaxShield | H30: 20 | I30: HitRate | J30: 20
A31: 6005 | B31: 5 | C31: Attack | D31: 9 | E31: MaxHP | F31: 25 | G31: MaxShield | H31: 25 | I31: HitRate | J31: 25
A32: 6005 | B32: 6 | C32: Attack | D32: 10 | E32: MaxHP | F32: 30 | G32: MaxShield | H32: 30 | I32: HitRate | J32: 30

Sheet PCEvolutionMax
A1: e_Stat | B1: s_Value | C1: s_Rate
A2: _한계돌파 스탯 | B2: 스탯값 | C2: 발생 확률
A3: Attack_Min | B3: 1 | C3: 0.03
A4: Attack_Max | B4: 1 | C4: 0.06
A5: MaxHP | B5: 1 | C5: 0.35
A6: MaxShield | B6: 1 | C6: 0.25
A7: HitRate | B7: 1 | C7: 0.03
A8: Avoid_Melee | B8: 0.1% | C8: 0.05
A9: Avoid_Range | B9: 0.1% | C9: 0.05
A10: Cri | B10: 0.1% | C10: 0.03
A11: CriDmg | B11: 1% | C11: 0.15

Sheet StatusOptionSet
A1: n_StatusID | B1: s_Icon | C1: e_StatusConditionsType | D1: s_SkillTarget | E1: e_ActiveConditions | F1: s_ActiveConditionsValue | G1: b_DotDmg | H1: e_BuffType | I1: e_Stat1 | J1: e_Stat2 | K1: s_DefaultStatValuePara1 | L1: s_DefaultStatValuePara2 | M1: s_UpgradeStatValuePara1 | N1: s_UpgradeStatValuePara2
A2: _능력치 고유 키값 | B2: 아이콘 | C2: 사용할 효과 타입 | D2: Status 효과 적용 대상 | E2: 발생 조건 | F2: 발생 조건 값 | G2: 도트 데미지 | H2: 버프 타입 | I2: 스탯1 | J2: 스탯2 | K2: 기본 스텟 능력치 파라메터1 | L2: 기본 스텟 능력치 파라메터2 | M2: 강화 시 증가 능력치 파라메터1 | N2: 강화 시 증가 능력치 파라메터2 | R2: 발생 조건 | S2: Value 값 | T2: 상세 설명
A3: 10101 | B3: spe_01_00 | C3: PC_DefaultAttack_Add | D3: Self | E3: None | F3: 1 | G3: FALSE | H3: Buff | I3: Attack_Min | J3: Attack_Max | K3: 1 | L3: 1 | M3: 1 | N3: 2 | O3: =VLOOKUP(C3,StatusConditionsList!$A$3:$J$71,10,FALSE) -> 영웅 기본 공격력에 최소 / 최대 공격력 고정(+) 수치 추가 | R3: None | S3: 0 (사용 안함) | T3: 항상 적용되는 패시브 효과 개념
A4: 10102 | B4: spe_01_01 | C4: PC_Evasion_All | D4: Self | E4: Hit_PreemptiveStrike | F4: 1 | G4: FALSE | H4: Buff | I4: AvoidAll_1Time | J4: None | K4: 10% | L4: 10% | M4: 5% | N4: 5% | O4: =VLOOKUP(C4,StatusConditionsList!$A$3:$J$71,10,FALSE) -> 영웅 근접 / 원거리 회피 확률에 고정(+) 확률을 각각 추가 | R4: Attack_Normal | S4: 발생 확률 | T4: 기본 공격 시 {Value}% 확률로 발동 | U4: 1
A5: 10103 | B5: spe_01_02 | C5: HitCriticalRate_Add | D5: Self | E5: Hit_Noraml | F5: 1 | G5: FALSE | H5: Buff | I5: AddCri_Once | J5: None | K5: 1% | L5: 0 | M5: 0 | N5: 0 | O5: =VLOOKUP(C5,StatusConditionsList!$A$3:$J$71,10,FALSE) -> 공격 명중 시마다 영웅 기본 치명타 피해량에 고정(+) 확률 값을 추가(치명타 발생 시 초기화) | R5: Attack_Hit | S5: 발생 확률 | T5: 기본 공격 명중 시 {Value}% 확률로 발동 | U5: 1
A6: 10104 | B6: spe_01_03 | C6: PC_CriticalRate_Add | D6: Self | E6: Attack_Critical | F6: 1 | G6: FALSE | H6: Buff | I6: CriDmg | J6: None | K6: 0.5 | L6: 0 | M6: 25% | N6: 0 | O6: =VLOOKUP(C6,StatusConditionsList!$A$3:$J$71,10,FALSE) -> 치명타 피해량 증가 | R6: Attack_Critical | S6: 발생 확률 | T6: 치명타 공격 시 {Value}% 확률로 발동 | U6: 1
A7: 10201 | B7: spe_03_00 | C7: PC_DefaultAttack_Add | D7: Self | E7: None | F7: 1 | G7: FALSE | H7: Buff | I7: Attack_Min | J7: Attack_Max | K7: 1 | L7: 1 | M7: 1 | N7: 2 | O7: =VLOOKUP(C7,StatusConditionsList!$A$3:$J$71,10,FALSE) -> 영웅 기본 공격력에 최소 / 최대 공격력 고정(+) 수치 추가 | R7: Attack_Special | S7: 발생 확률 | T7: 기본 공격 외 특수 효과 발동 시 {Value}% 확률로 발동 | U7: 1
A8: 10202 | B8: spe_03_02 | C8: Poison | D8: Self | E8: None | F8: 1 | G8: TRUE | H8: Debuff | I8: None | J8: None | K8: 4 | L8: 5 | M8: 0 | N8: 0 | O8: =VLOOKUP(C8,StatusConditionsList!$A$3:$J$71,10,FALSE) -> 중독 | R8: Hit_Noraml | S8: 발생 확률 | T8: 피격 시 {Value}% 확률로 발동 | U8: 1
A9: 10203 | B9: spe_04_00 | C9: Poison | D9: Self | E9: None | F9: 1 | G9: TRUE | H9: Debuff | I9: None | J9: None | K9: 4 | L9: 5 | M9: 0 | N9: 0 | O9: =VLOOKUP(C9,StatusConditionsList!$A$3:$J$71,10,FALSE) -> 중독 | R9: Hit_Count | S9: 피격 횟수 | T9: 해당 피격 {Value} 횟수 충족 시 발동
A10: 10204 | B10: spe_04_01 | C10: Poison | D10: Self | E10: None | F10: 1 | G10: TRUE | H10: Debuff | I10: None | J10: None | K10: 4 | L10: 5 | M10: 0 | N10: 0 | O10: =VLOOKUP(C10,StatusConditionsList!$A$3:$J$71,10,FALSE) -> 중독 | R10: Hit_PreemptiveStrike | S10: 발생 확률 | T10: 선제 공격받는 상황에 {Value}% 확률로 발동 | U10: 1
A11: 10301 | B11: spe_04_02 | C11: Poison | D11: Self | E11: None | F11: 1 | G11: TRUE | H11: Debuff | I11: None | J11: None | K11: 4 | L11: 5 | M11: 0 | N11: 0 | O11: =VLOOKUP(C11,StatusConditionsList!$A$3:$J$71,10,FALSE) -> 중독 | R11: ActiveSkill | S11: 쿨타임 | T11: {Value} 초 쿨타임마다 액티브 스킬처럼 발동
A12: 10302 | B12: spe_04_03 | C12: Poison | D12: Self | E12: None | F12: 1 | G12: TRUE | H12: Debuff | I12: None | J12: None | K12: 4 | L12: 5 | M12: 0 | N12: 0 | O12: =VLOOKUP(C12,StatusConditionsList!$A$3:$J$71,10,FALSE) -> 중독 | R12: MaxHp_Up | S12: 남은 생명력 | T12: {Value} 값 상태 이상일 때 적용됨을 의미 (예: HP 5 이상일 때)
A13: 10303 | B13: spe_05_00 | C13: Poison | D13: Self | E13: None | F13: 1 | G13: TRUE | H13: Debuff | I13: None | J13: None | K13: 4 | L13: 5 | M13: 0 | N13: 0 | O13: =VLOOKUP(C13,StatusConditionsList!$A$3:$J$71,10,FALSE) -> 중독 | R13: MaxHp_Down | S13: 남은 생명력 | T13: {Value} 값 상태 이하일 때 적용됨을 의미 (예: HP 5 이하일 때)
A14: 10304 | B14: spe_05_01 | C14: Poison | D14: Self | E14: None | F14: 1 | G14: TRUE | H14: Debuff | I14: None | J14: None | K14: 4 | L14: 5 | M14: 0 | N14: 0 | O14: =VLOOKUP(C14,StatusConditionsList!$A$3:$J$71,10,FALSE) -> 중독 | R14: MaxHpRate | S14: 남은 비율 | T14: {Value} = 100은 생명력 최대 100%, {Value} = 0은 0%죽음을 의미 | U14: 1
A15: 10401 | B15: spe_05_02 | C15: Poison | D15: Self | E15: None | F15: 1 | G15: TRUE | H15: Debuff | I15: None | J15: None | K15: 4 | L15: 5 | M15: 0 | N15: 0 | O15: =VLOOKUP(C15,StatusConditionsList!$A$3:$J$71,10,FALSE) -> 중독 | R15: MaxShield_Up | S15: 남은 실드량 | T15: {Value} 값 상태 이상일 때 적용됨을 의미
A16: 10402 | B16: spe_01_00 | C16: Poison | D16: Self | E16: None | F16: 1 | G16: TRUE | H16: Debuff | I16: None | J16: None | K16: 4 | L16: 5 | M16: 0 | N16: 0 | O16: =VLOOKUP(C16,StatusConditionsList!$A$3:$J$71,10,FALSE) -> 중독 | R16: MaxShield_Down | S16: 남은 실드량 | T16: {Value} 값 상태 이하일 때 적용됨을 의미
A17: 10403 | B17: spe_01_01 | C17: Poison | D17: Self | E17: None | F17: 1 | G17: TRUE | H17: Debuff | I17: None | J17: None | K17: 4 | L17: 5 | M17: 0 | N17: 0 | O17: =VLOOKUP(C17,StatusConditionsList!$A$3:$J$71,10,FALSE) -> 중독 | R17: MaxShield_Rate | S17: 남은 비율 | T17: {Value} = 100은 실드 최대 100%, {Value} = 0은 0% 실드 소멸을 의미 | U17: 1
A18: 10404 | B18: spe_01_02 | C18: Poison | D18: Self | E18: None | F18: 1 | G18: TRUE | H18: Debuff | I18: None | J18: None | K18: 4 | L18: 5 | M18: 0 | N18: 0 | O18: =VLOOKUP(C18,StatusConditionsList!$A$3:$J$71,10,FALSE) -> 중독 | R18: Appear | S18: 0 (사용 안함) | T18: 몬스터가 전투에 참여한 시점부터 발동 (전열 또는 후열)
A19: 10501 | B19: spe_01_03 | C19: Poison | D19: Self | E19: None | F19: 1 | G19: TRUE | H19: Debuff | I19: None | J19: None | K19: 4 | L19: 5 | M19: 0 | N19: 0 | O19: =VLOOKUP(C19,StatusConditionsList!$A$3:$J$71,10,FALSE) -> 중독 | R19: SurviveAlone | S19: 0 (사용 안함) | T19: 몬스터가 전장에 혼자만 살아있는 상태일 때 발동
A20: 10502 | B20: spe_03_00 | C20: Poison | D20: Self | E20: None | F20: 1 | G20: TRUE | H20: Debuff | I20: None | J20: None | K20: 4 | L20: 5 | M20: 0 | N20: 0 | O20: =VLOOKUP(C20,StatusConditionsList!$A$3:$J$71,10,FALSE) -> 중독 | R20: Die_Self | S20: 0 (사용 안함) | T20: 자신이 죽었을 때 발생
A21: 10503 | B21: spe_03_02 | C21: Poison | D21: Self | E21: None | F21: 1 | G21: TRUE | H21: Debuff | I21: None | J21: None | K21: 4 | L21: 5 | M21: 0 | N21: 0 | O21: =VLOOKUP(C21,StatusConditionsList!$A$3:$J$71,10,FALSE) -> 중독 | R21: Die_Front | S21: 0 (사용 안함) | T21: 전열의 임의의 적이 죽었을 때 발생
A22: 10504 | B22: spe_04_00 | C22: Poison | D22: Self | E22: None | F22: 1 | G22: TRUE | H22: Debuff | I22: None | J22: None | K22: 4 | L22: 5 | M22: 0 | N22: 0 | O22: =VLOOKUP(C22,StatusConditionsList!$A$3:$J$71,10,FALSE) -> 중독 | R22: Die_Back | S22: 0 (사용 안함) | T22: 후열의 임의의 적이 죽었을 때 발생
A23: 21001 | B23: spe_04_01 | C23: Heal_Hp_Random | D23: Self | E23: Instantly | F23: 1 | G23: FALSE | H23: None | I23: None | J23: None | K23: 1 | L23: 10 | M23: 0 | N23: 0 | O23: =VLOOKUP(C23,StatusConditionsList!$A$3:$J$71,10,FALSE) -> HP 회복 : 고정 랜덤(+) | R23: Die_Ally | S23: 0 (사용 안함) | T23: 임의의 아군이 죽었을 때 발생
A24: 21002 | B24: spe_04_02 | C24: Heal_Shield_Random | D24: Self | E24: Instantly | F24: 1 | G24: FALSE | H24: None | I24: None | J24: None | K24: 1 | L24: 10 | M24: 0 | N24: 0 | O24: =VLOOKUP(C24,StatusConditionsList!$A$3:$J$71,10,FALSE) -> 실드 회복 : 고정 랜덤(+) | R24: Evasion_Count | S24: 회피 횟수 | T24: 회피 발생 횟수가 {Value}일 때마다 발동
A25: 21003 | B25: spe_04_03 | C25: Poison | D25: Self | E25: Instantly | F25: 1 | G25: TRUE | H25: Debuff | I25: None | J25: None | K25: 10s | L25: 1 | M25: 0 | N25: 0 | O25: =VLOOKUP(C25,StatusConditionsList!$A$3:$J$71,10,FALSE) -> 중독 | R25: Evasion_Rate | S25: 발생 확률 | T25: 회피 성공 시 {Value}% 확률로 발동 | U25: 1
A26: 21004 | B26: spe_05_00 | C26: Battle | D26: None | E26: Instantly | F26: 1 | G26: FALSE | H26: None | I26: None | J26: None | K26: 1 | L26: 10 | M26: 0 | N26: 0 | O26: =VLOOKUP(C26,StatusConditionsList!$A$3:$J$71,10,FALSE) -> 즉시 지정 된 몬스터 등장 후 전투 발생(선제 공격) | R26: Miss_Count | S26: 빗나감 횟수 | T26: 빗나감 발생 횟수가 {Value}일 때마다 발동
A27: 21005 | B27: spe_05_01 | C27: PC_IncreaseMaxHp_Mul | D27: Self | E27: Instantly | F27: 1 | G27: FALSE | H27: Buff | I27: MaxHP_Mul | J27: None | K27: 0.1 | L27: 0 | M27: 0 | N27: 0 | O27: =VLOOKUP(C27,StatusConditionsList!$A$3:$J$71,10,FALSE) -> 영웅의 최대 생명력을 기준으로 비율(%) 만큼 최대 생명력 증가 | R27: Miss_Rate | S27: 빗나감 확률 | T27: 빗나감 발생 시 {Value}% 확률로 발동 | U27: 1
A28: 21006 | B28: spe_05_02 | C28: PC_IncreaseMaxHp_Mul | D28: Self | E28: Instantly | F28: 1 | G28: FALSE | H28: Debuff | I28: MaxHP_Mul | J28: None | K28: -0.1 | L28: 0 | M28: 0 | N28: 0 | O28: =VLOOKUP(C28,StatusConditionsList!$A$3:$J$71,10,FALSE) -> 영웅의 최대 생명력을 기준으로 비율(%) 만큼 최대 생명력 증가 | R28: Potion_Use | S28: 발생 확률 | T28: 포션 사용 시 {Value}% 확률로 발동 | U28: 1
A29: 21007 | B29: spe_01_00 | C29: PC_IncreaseMaxShield_Mul | D29: Self | E29: Instantly | F29: 1 | G29: FALSE | H29: Buff | I29: MaxShield_Mul | J29: None | K29: 0.1 | L29: 0 | M29: 0 | N29: 0 | O29: =VLOOKUP(C29,StatusConditionsList!$A$3:$J$71,10,FALSE) -> 영웅의 최대 보호막을 기준으로 비율(%) 만큼 최대 보호막 증가 | R29: Potion_Count | S29: 사용 횟수 | T29: 포션 사용 {Value} 횟수 충족 시 발동
A30: 21008 | B30: spe_01_01 | C30: PC_IncreaseMaxShield_Mul | D30: Self | E30: Instantly | F30: 1 | G30: FALSE | H30: Debuff | I30: MaxShield_Mul | J30: None | K30: -0.1 | L30: 0 | M30: 0 | N30: 0 | O30: =VLOOKUP(C30,StatusConditionsList!$A$3:$J$71,10,FALSE) -> 영웅의 최대 보호막을 기준으로 비율(%) 만큼 최대 보호막 증가 | R30: Sancturay | S30: 0 (사용 안함) | T30: 성소 효과 발동 | U30: 2025.11.16 정인호 추가
A31: 21009 | B31: spe_01_02 | C31: ATK_DMG_Mul | D31: Self | E31: Instantly | F31: 1 | G31: FALSE | H31: Buff | I31: DmgMul | J31: None | K31: 0.1 | L31: 0 | M31: 0 | N31: 0 | O31: =VLOOKUP(C31,StatusConditionsList!$A$3:$J$71,10,FALSE) -> 강화-공격력 증가 : 비율(%) | R31: Instantly | S31: 0 (사용 안함) | T31: 즉시 발동 | U31: 2025.11.19 이승우 추가
A32: 21010 | B32: spe_01_03 | C32: ATK_DMG_Mul | D32: Self | E32: Instantly | F32: 1 | G32: FALSE | H32: Debuff | I32: DmgMul | J32: None | K32: -0.1 | L32: 0 | M32: 0 | N32: 0 | O32: =VLOOKUP(C32,StatusConditionsList!$A$3:$J$71,10,FALSE) -> 강화-공격력 증가 : 비율(%)
A33: 21011 | B33: spe_03_00 | C33: PC_Evasion_All | D33: Self | E33: Instantly | F33: 1 | G33: FALSE | H33: Buff | I33: Avoid_Melee | J33: Avoid_Range | K33: 10% | L33: 10% | M33: 0 | N33: 0 | O33: =VLOOKUP(C33,StatusConditionsList!$A$3:$J$71,10,FALSE) -> 영웅 근접 / 원거리 회피 확률에 고정(+) 확률을 각각 추가
A34: 21012 | B34: spe_03_02 | C34: PC_Evasion_All | D34: Self | E34: Instantly | F34: 1 | G34: FALSE | H34: Debuff | I34: Avoid_Melee | J34: Avoid_Range | K34: -10% | L34: -10% | M34: 0 | N34: 0 | O34: =VLOOKUP(C34,StatusConditionsList!$A$3:$J$71,10,FALSE) -> 영웅 근접 / 원거리 회피 확률에 고정(+) 확률을 각각 추가 | R34: AvoidAll_1Time
A35: 21013 | B35: spe_04_00 | C35: PC_Accuracy_Add | D35: Self | E35: Instantly | F35: 1 | G35: FALSE | H35: Buff | I35: HitRate | J35: None | K35: 10 | L35: 0 | M35: 0 | N35: 0 | O35: =VLOOKUP(C35,StatusConditionsList!$A$3:$J$71,10,FALSE) -> 영웅 기본 명중력에 고정(+) 값을 추가
A36: 21014 | B36: spe_04_01 | C36: PC_Accuracy_Add | D36: Self | E36: Instantly | F36: 1 | G36: FALSE | H36: Debuff | I36: HitRate | J36: None | K36: -10 | L36: 0 | M36: 0 | N36: 0 | O36: =VLOOKUP(C36,StatusConditionsList!$A$3:$J$71,10,FALSE) -> 영웅 기본 명중력에 고정(+) 값을 추가
A37: 21015 | B37: spe_04_02 | C37: PC_Critical_Add | D37: Self | E37: Instantly | F37: 1 | G37: FALSE | H37: Buff | I37: Cri | J37: None | K37: 10% | L37: 0 | M37: 0 | N37: 0 | O37: =VLOOKUP(C37,StatusConditionsList!$A$3:$J$71,10,FALSE) -> 영웅 기본 치명타 확률에 고정(+) 확률 값을 추가
A38: 21016 | B38: spe_04_03 | C38: PC_Critical_Add | D38: Self | E38: Instantly | F38: 1 | G38: FALSE | H38: Debuff | I38: Cri | J38: None | K38: -10% | L38: 0 | M38: 0 | N38: 0 | O38: =VLOOKUP(C38,StatusConditionsList!$A$3:$J$71,10,FALSE) -> 영웅 기본 치명타 확률에 고정(+) 확률 값을 추가
A39: 21017 | B39: spe_05_00 | C39: PC_CriticalRate_Add | D39: Self | E39: Instantly | F39: 1 | G39: FALSE | H39: Buff | I39: CriDmg | J39: None | K39: 30% | L39: 0 | M39: 0 | N39: 0 | O39: =VLOOKUP(C39,StatusConditionsList!$A$3:$J$71,10,FALSE) -> 치명타 피해량 증가
A40: 21018 | B40: spe_05_01 | C40: PC_CriticalRate_Add | D40: Self | E40: Instantly | F40: 1 | G40: FALSE | H40: Debuff | I40: CriDmg | J40: None | K40: -30% | L40: 0 | M40: 0 | N40: 0 | O40: =VLOOKUP(C40,StatusConditionsList!$A$3:$J$71,10,FALSE) -> 치명타 피해량 증가
A41: 21019 | B41: spe_05_02 | C41: ATK_SPD_Add | D41: Self | E41: Instantly | F41: 1 | G41: FALSE | H41: Buff | I41: None | J41: None | K41: 15% | L41: 0 | M41: 0 | N41: 0 | O41: =VLOOKUP(C41,StatusConditionsList!$A$3:$J$71,10,FALSE) -> 강화-공속 증가 : 고정(+)
A42: 21020 | B42: spe_01_00 | C42: ATK_SPD_Add | D42: Self | E42: Instantly | F42: 1 | G42: FALSE | H42: Debuff | I42: None | J42: None | K42: -15% | L42: 0 | M42: 0 | N42: 0 | O42: =VLOOKUP(C42,StatusConditionsList!$A$3:$J$71,10,FALSE) -> 강화-공속 증가 : 고정(+)
A43: 22001 | B43: spe_01_01 | C43: Recovery_All | D43: Self | E43: Sancturay | F43: 1 | G43: FALSE | H43: None | I43: None | J43: None | K43: 0 | L43: 0 | M43: 0 | N43: 0 | O43: =VLOOKUP(C43,StatusConditionsList!$A$3:$J$70,10,FALSE) -> HP & 실드 완전 회복
A44: 22002 | B44: spe_01_02 | C44: LvUp | D44: Self | E44: Sancturay | F44: 1 | G44: FALSE | H44: None | I44: None | J44: None | K44: 1 | L44: 0 | M44: 0 | N44: 0 | O44: =VLOOKUP(C44,StatusConditionsList!$A$3:$J$70,10,FALSE) -> 남은 경험치 무시하고 즉시 레벨업
A45: 22003 | B45: spe_01_03 | C45: AddResurrection | D45: Self | E45: Sancturay | F45: 1 | G45: FALSE | H45: Buff | I45: Resurrection | J45: None | K45: 1 | L45: 0 | M45: 0 | N45: 0 | O45: =VLOOKUP(C45,StatusConditionsList!$A$3:$J$70,10,FALSE) -> 부활 횟수 추가
A46: 22004 | B46: spe_03_00 | C46: GetSkillCard_Random | D46: Self | E46: Sancturay | F46: 1 | G46: FALSE | H46: None | I46: None | J46: None | K46: 1 | L46: 0 | M46: 0 | N46: 0 | O46: =VLOOKUP(C46,StatusConditionsList!$A$3:$J$70,10,FALSE) -> 일반~전설 등급 중 랜덤 카드 획득(등장 확률 = 등급 별 가중치)
A47: 22005 | B47: spe_03_02 | C47: IncreaseEXP_Mul | D47: Self | E47: Sancturay | F47: 1 | G47: FALSE | H47: Buff | I47: None | J47: None | K47: 100% | L47: 0 | M47: 0 | N47: 0 | O47: =VLOOKUP(C47,StatusConditionsList!$A$3:$J$70,10,FALSE) -> 경험치 획득량 증가
A48: 22006 | B48: spe_04_00 | C48: IncreaseGold_Mul | D48: Self | E48: Sancturay | F48: 1 | G48: FALSE | H48: Buff | I48: None | J48: None | K48: 100% | L48: 0 | M48: 0 | N48: 0 | O48: =VLOOKUP(C48,StatusConditionsList!$A$3:$J$70,10,FALSE) -> 골드 획득량 증가
A49: 22007 | B49: spe_04_01 | C49: GetSoul_Add | D49: Self | E49: Sancturay | F49: 1 | G49: FALSE | H49: None | I49: None | J49: None | K49: 10 | L49: 0 | M49: 0 | N49: 0 | O49: =VLOOKUP(C49,StatusConditionsList!$A$3:$J$70,10,FALSE) -> 소울 획득 (즉시 증가)
A50: 22008 | B50: spe_04_02 | C50: GetGold_Add | D50: Self | E50: Sancturay | F50: 1 | G50: FALSE | H50: None | I50: None | J50: None | K50: 25 | L50: 0 | M50: 0 | N50: 0 | O50: =VLOOKUP(C50,StatusConditionsList!$A$3:$J$70,10,FALSE) -> 골드 획득 (즉시 증가)
A51: 22009 | B51: spe_04_03 | C51: Invincibility_Time | D51: Self | E51: Sancturay | F51: 1 | G51: FALSE | H51: Buff | I51: None | J51: None | K51: 10s | L51: 0 | M51: 0 | N51: 0 | O51: =VLOOKUP(C51,StatusConditionsList!$A$3:$J$70,10,FALSE) -> 무적 : 지속 시간
A52: 23001 | B52: spe_05_00 | C52: Heal_Hp_Random | D52: Self | E52: Sancturay | F52: 1 | G52: FALSE | H52: None | I52: None | J52: None | K52: 1 | L52: 10 | M52: 0 | N52: 0 | O52: =VLOOKUP(C52,StatusConditionsList!$A$3:$J$70,10,FALSE) -> HP 회복 : 고정 랜덤(+)
A53: 23002 | B53: spe_05_01 | C53: GetExp_Add | D53: Self | E53: Sancturay | F53: 1 | G53: FALSE | H53: None | I53: None | J53: None | K53: 15 | L53: 0 | M53: 0 | N53: 0 | O53: =VLOOKUP(C53,StatusConditionsList!$A$3:$J$70,10,FALSE) -> 경험치 획득 (즉시 증가)
A54: 23003 | B54: spe_05_02 | C54: Heal_Shield_Random | D54: Self | E54: Sancturay | F54: 1 | G54: FALSE | H54: None | I54: None | J54: None | K54: 1 | L54: 10 | M54: 0 | N54: 0 | O54: =VLOOKUP(C54,StatusConditionsList!$A$3:$J$70,10,FALSE) -> 실드 회복 : 고정 랜덤(+)
A55: 31001 | B55: spe_01_00 | C55: Cri_Add | D55: Self | E55: None | F55: 1 | G55: FALSE | H55: Buff | I55: Cri | J55: None | K55: 10% | L55: 0 | M55: 0 | N55: 0 | O55: 크리티컬 10%
A56: 31002 | B56: spe_01_01 | C56: Berserker_ATK_SPD_Mul | D56: Self | E56: MaxHpRate | F56: 50% | G56: FALSE | H56: Buff | I56: AttackCoolTimeMul | J56: None | K56: 50% | L56: 0 | M56: 0 | N56: 0 | O56: 광포화- 신속화 30%
A57: 31003 | B57: spe_01_02 | C57: Berserker_ATK_DMG_Mul | D57: Self | E57: MaxHpRate | F57: 50% | G57: FALSE | H57: Buff | I57: DmgMul | J57: None | K57: 50% | L57: 0 | M57: 0 | N57: 0 | O57: 광포화- 공격력 50%
A58: 31004 | B58: spe_01_03 | C58: ATK_DMG_Mul | D58: Self | E58: None | F58: 1 | G58: FALSE | H58: Buff | I58: DmgMul | J58: None | K58: 200% | L58: 0 | M58: 0 | N58: 0 | O58: 체력 2배
A59: 32004 | B59: spe_03_00 | C59: MaxHp_Mul | D59: Self | E59: None | F59: 1 | G59: FALSE | H59: Buff | I59: MaxHP_Mul | J59: None | K59: 200% | L59: 0 | M59: 0 | N59: 0 | O59: 최대 공격력 2배
A60: 31005 | B60: spe_03_02 | C60: Slow | D60: Enemy | E60: Attack_Hit | F60: 30% | G60: FALSE | H60: Debuff | I60: Slow | J60: None | K60: 3s | L60: -0.5 | M60: 0 | N60: 0 | O60: 둔화 30%
A61: 31006 | B61: spe_04_00 | C61: Poison | D61: Enemy | E61: Attack_Hit | F61: 1 | G61: TRUE | H61: Debuff | I61: None | J61: None | K61: 5s | L61: 1 | M61: 0 | N61: 0 | O61: 중독 5초
A62: 31007 | B62: spe_04_01 | C62: Heal_Shield_Random | D62: Self | E62: Hit_Noraml | F62: 20% | G62: FALSE | H62: Buff | I62: Shield | J62: None | K62: 5 | L62: 10 | M62: 0 | N62: 0 | O62: 피격 시 20% 확률로 실드 랜덤 회복
A63: 31008 | B63: spe_04_02 | C63: Heal_Hp_Random | D63: Self | E63: Attack_Hit | F63: 100% | G63: FALSE | H63: Buff | I63: HP | J63: None | K63: 1 | L63: 5 | M63: 0 | N63: 0 | O63: 고정 생명 회복
A64: 31009 | B64: spe_04_03 | C64: Invincibility_Time | D64: Self | E64: Appear | F64: 100% | G64: FALSE | H64: Buff | I64: None | J64: None | K64: 5s | L64: 0 | M64: 0 | N64: 0 | O64: 무적 5초
A65: 31010 | B65: spe_05_00 | C65: Berserker_ATK_SPD_Mul | D65: Self | E65: MaxHpRate | F65: 50% | G65: FALSE | H65: Buff | I65: AttackCoolTimeMul | J65: None | K65: 30% | L65: 0 | M65: 0 | N65: 0 | O65: 광포화 - 신속
A66: 32010 | B66: spe_05_01 | C66: Cri_Add | D66: Self | E66: None | F66: 1 | G66: FALSE | H66: Buff | I66: Cri | J66: None | K66: 15% | L66: 0 | M66: 0 | N66: 0 | O66: 크리티컬 15%
A67: 31011 | B67: spe_05_02 | C67: Invincibility_Count | D67: Self | E67: Appear | F67: 100% | G67: FALSE | H67: Buff | I67: Dmg_Immune | J67: None | K67: 1 | L67: 0 | M67: 0 | N67: 0 | O67: 피해 무효
A68: 32011 | B68: spe_01_00 | C68: ATK_DMG_Mul | D68: Self | E68: None | F68: 1 | G68: FALSE | H68: Buff | I68: DmgMul | J68: None | K68: 15% | L68: 0 | M68: 0 | N68: 0 | O68: 강화 -공격력
A69: 31012 | B69: spe_01_01 | C69: Berserker_ATK_SPD_Mul | D69: Self | E69: MaxHpRate | F69: 50% | G69: FALSE | H69: Buff | I69: AttackCoolTimeMul | J69: None | K69: 80% | L69: 0 | M69: 0 | N69: 0 | O69: 광포화 신속화 80%
A70: 32012 | B70: spe_01_02 | C70: Cri_Add | D70: Self | E70: None | F70: 1 | G70: FALSE | H70: Buff | I70: Cri | J70: None | K70: 15% | L70: 0 | M70: 0 | N70: 0 | O70: 치명타 15%
A71: 31013 | B71: spe_01_03 | C71: Slow | D71: Enemy | E71: Attack_Hit | F71: 15% | G71: FALSE | H71: Debuff | I71: Slow | J71: None | K71: 3s | L71: -0.5 | M71: 0 | N71: 0 | O71: 공격 시 10%, 둔화 50% 3초
A72: =A71+1000 -> 32013 | B72: spe_03_00 | C72: Heal_Shield_Random | D72: Self | E72: Hit_Noraml | F72: 20% | G72: FALSE | H72: Buff | I72: Shield | J72: None | K72: 5 | L72: 10 | M72: 0 | N72: 0 | O72: 피격 시 20%, 실드 회복
A73: =A71+1 -> 31014 | B73: spe_03_02 | C73: Burn | D73: Enemy | E73: Attack_Hit | F73: 15% | G73: TRUE | H73: Debuff | I73: None | J73: None | K73: 3s | L73: -10% | M73: 0 | N73: 0 | O73: 화상
A74: =A73+1000 -> 32014 | B74: spe_04_00 | C74: ATK_DMG_Mul | D74: Self | E74: None | F74: 1 | G74: FALSE | H74: Buff | I74: DmgMul | J74: None | K74: 25% | L74: 0 | M74: 0 | N74: 0 | O74: 공격력 25%
A75: =A73+1 -> 31015 | B75: spe_04_01 | C75: Stun | D75: Enemy | E75: Attack_Hit | F75: 10% | G75: FALSE | H75: Debuff | I75: None | J75: None | K75: 1s | L75: 0 | M75: 0 | N75: 0 | O75: 기절
A76: =A75+1000 -> 32015 | B76: spe_04_02 | C76: Cri_Add | D76: Self | E76: None | F76: 1 | G76: FALSE | H76: Buff | I76: Cri | J76: None | K76: 15% | L76: 0 | M76: 0 | N76: 0 | O76: 치명타 15%
A77: =A75+1 -> 31016 | B77: spe_04_03 | C77: Berserker_ATK_SPD_Mul | D77: Self | E77: MaxHpRate | F77: 50% | G77: FALSE | H77: Buff | I77: AttackCoolTimeMul | J77: None | K77: 50% | L77: 0 | M77: 0 | N77: 0 | O77: 광포화 신속
A78: =A77+1000 -> 32016 | B78: spe_05_00 | C78: Berserker_ATK_DMG_Mul | D78: Self | E78: MaxHpRate | F78: 50% | G78: FALSE | H78: Buff | I78: DmgMul | J78: None | K78: 50% | L78: 0 | M78: 0 | N78: 0 | O78: 광포화 공격력
A79: =A77+1 -> 31017 | B79: spe_05_01 | C79: VampirHeal_Add | D79: Enemy | E79: Attack_Hit | F79: 100% | G79: FALSE | H79: Debuff | I79: FixedDmg | J79: HP | K79: 1 | L79: 1 | M79: 0 | N79: 0 | O79: 고정 피해 흡혈
A80: =A79+1000 -> 32017 | B80: spe_05_02 | C80: Heal_Shield_Mul | D80: Self | E80: Hit_Count | F80: 3 | G80: FALSE | H80: Buff | I80: Shield | J80: None | K80: 10% | L80: 0 | M80: 0 | N80: 0 | O80: 실드 회복
A81: =A79+1 -> 31018 | B81: spe_01_00 | C81: ATK_DMG_Mul | D81: Self | E81: None | F81: 1 | G81: FALSE | H81: Buff | I81: DmgMul | J81: None | K81: 25% | L81: 0 | M81: 0 | N81: 0 | O81: 강화 공격력
A82: =A81+1000 -> 32018 | B82: spe_01_01 | C82: Resurrection | D82: Self | E82: Die_Self | F82: 1 | G82: FALSE | H82: Buff | I82: Resurrection_Heal | J82: Resurrection_Shield | K82: 50% | L82: 0 | M82: 0 | N82: 0 | O82: 부활
A83: =A81+1 -> 31019 | B83: spe_01_02 | C83: Burn | D83: Enemy | E83: Attack_Hit | F83: 15% | G83: TRUE | H83: Debuff | I83: None | J83: None | K83: 3s | L83: -10% | M83: 0 | N83: 0 | O83: 화상
A84: =A83+1000 -> 32019 | B84: spe_01_03 | C84: Heal_Hp_Mul | D84: Self | E84: ActiveSkill | F84: 8s | G84: FALSE | H84: Buff | I84: None | J84: None | K84: 0.1 | L84: 0 | M84: 0 | N84: 0 | O84: 회복
A85: =A83+1 -> 31020 | B85: spe_03_00 | C85: Poison | D85: Enemy | E85: Attack_Hit | F85: 1 | G85: TRUE | H85: Debuff | I85: None | J85: None | K85: 5s | L85: 3 | M85: 0 | N85: 0 | O85: 중독 5초, -3
A86: =A85+1000 -> 32020 | B86: spe_03_02 | C86: Heal_Shield_Mul | D86: Self | E86: ActiveSkill | F86: 8s | G86: FALSE | H86: Buff | I86: None | J86: None | K86: 0.1 | L86: 0 | M86: 0 | N86: 0 | O86: 실드 회복
A87: =A85+1 -> 31021 | B87: spe_04_00 | C87: Invincibility_Count | D87: Self | E87: Appear | F87: 100% | G87: FALSE | H87: Buff | I87: Dmg_Immune | J87: None | K87: 3 | L87: 0 | M87: 0 | N87: 0 | O87: 피해 무효 3
A88: =A87+1000 -> 32021 | B88: spe_04_01 | C88: ATK_SPD_Mul | D88: Self | E88: None | F88: 1 | G88: FALSE | H88: Buff | I88: AttackCoolTimeMul | J88: None | K88: 30% | L88: 0 | M88: 0 | N88: 0 | O88: 신속화
A89: =A87+1 -> 31022 | B89: spe_04_02 | C89: Berserker_ATK_DMG_Mul | D89: Self | E89: MaxHpRate | F89: 50% | G89: FALSE | H89: Buff | I89: DmgMul | J89: None | K89: 50% | L89: 0 | M89: 0 | N89: 0 | O89: 광포화 공격력
A90: =A89+1000 -> 32022 | B90: spe_04_03 | C90: Burn | D90: Enemy | E90: Attack_Hit | F90: 100% | G90: TRUE | H90: Debuff | I90: None | J90: None | K90: 2s | L90: -5% | M90: 0 | N90: 0 | O90: 화상
A91: =A89+1 -> 31023 | B91: spe_05_00 | C91: Heal_Hp_Random | D91: Self | E91: ActiveSkill | F91: 3s | G91: FALSE | H91: Buff | I91: HP | J91: None | K91: 1 | L91: 3 | M91: 0 | N91: 0 | O91: 회복
A92: =A91+1000 -> 32023 | B92: spe_05_01 | C92: Burn | D92: Enemy | E92: Attack_Hit | F92: 15% | G92: TRUE | H92: Debuff | I92: None | J92: None | K92: 3s | L92: -10% | M92: 0 | N92: 0 | O92: 화상
A93: =A91+1 -> 31024 | B93: spe_05_02 | C93: Heal_Shield_Random | D93: Self | E93: Hit_Noraml | F93: 25% | G93: FALSE | H93: Buff | I93: Shield | J93: None | K93: 5 | L93: 10 | M93: 0 | N93: 0 | O93: 실드 회복
A94: =A93+1000 -> 32024 | B94: spe_01_00 | C94: Slow | D94: Enemy | E94: Attack_Hit | F94: 15% | G94: FALSE | H94: Debuff | I94: Slow | J94: None | K94: 3s | L94: -0.8 | M94: 0 | N94: 0 | O94: 둔화
A95: =A93+1 -> 31025 | B95: spe_01_01 | C95: Poison | D95: Enemy | E95: Attack_Hit | F95: 0.15 | G95: TRUE | H95: Debuff | I95: None | J95: None | K95: 5s | L95: 10 | M95: 0 | N95: 0 | O95: 중독 5초
A96: =A95+1000 -> 32025 | B96: spe_01_02 | C96: Slow | D96: Enemy | E96: Attack_Hit | F96: 100% | G96: FALSE | H96: Debuff | I96: Slow | J96: None | K96: 2s | L96: -0.3 | M96: 0 | N96: 0 | O96: 2초, 둔화 30%
A97: =A95+1 -> 31026 | B97: spe_01_03 | C97: Berserker_ATK_SPD_Mul | D97: Self | E97: MaxHpRate | F97: 50% | G97: FALSE | H97: Buff | I97: AttackCoolTimeMul | J97: None | K97: 80% | L97: 0 | M97: 0 | N97: 0 | O97: 광포화 신속화 60%
A98: =A97+1000 -> 32026 | B98: spe_03_00 | C98: Resurrection | D98: Self | E98: Die_Self | F98: 1 | G98: FALSE | H98: Buff | I98: Resurrection_Heal | J98: Resurrection_Shield | K98: 50% | L98: 50% | M98: 0 | N98: 0 | O98: 부활
A99: =A97+1 -> 31027 | B99: spe_03_02 | C99: Invincibility_Count | D99: Self | E99: Appear | F99: 100% | G99: FALSE | H99: Buff | I99: Dmg_Immune | J99: None | K99: 3 | L99: 0 | M99: 0 | N99: 0 | O99: 피해 무효
A100: =A99+1000 -> 32027 | B100: spe_04_00 | C100: Heal_Hp_Random | D100: Self | E100: ActiveSkill | F100: 2.5s | G100: FALSE | H100: Buff | I100: HP | J100: None | K100: 2 | L100: 4 | M100: 0 | N100: 0 | O100: 회복
A101: =A99+1 -> 31028 | B101: spe_04_01 | C101: Invincibility_Time | D101: Self | E101: Evasion_Rate | F101: 100% | G101: FALSE | H101: Buff | I101: None | J101: None | K101: 1.5s | L101: 0 | M101: 0 | N101: 0 | O101: 무적
A102: =A101+1000 -> 32028 | B102: spe_04_02 | C102: Resurrection | D102: Self | E102: Die_Self | F102: 1 | G102: FALSE | H102: Buff | I102: Resurrection_Heal | J102: Resurrection_Shield | K102: 100% | L102: 100% | M102: 0 | N102: 0 | O102: 부활
A103: 41001 | B103: spe_04_03 | C103: ATK_DMG_Add | D103: Self | E103: None | F103: 1 | G103: FALSE | H103: Buff | I103: None | J103: None | K103: 0 | L103: 0 | M103: 0 | N103: 0 | O103: 공속 빠름
A104: 41002 | B104: spe_05_00 | C104: ATK_DMG_Add | D104: Self | E104: None | F104: 1 | G104: FALSE | H104: Buff | I104: None | J104: None | K104: 0 | L104: 0 | M104: 0 | N104: 0 | O104: 공속 빠름
A105: 41003 | B105: spe_05_01 | C105: ATK_DMG_Add | D105: Self | E105: None | F105: 1 | G105: FALSE | H105: Buff | I105: None | J105: None | K105: 0 | L105: 0 | M105: 0 | N105: 0 | O105: 공속 빠름
A106: 41004 | B106: spe_05_02 | C106: ATK_DMG_Add | D106: Self | E106: None | F106: 1 | G106: FALSE | H106: Buff | I106: None | J106: None | K106: 0 | L106: 0 | M106: 0 | N106: 0 | O106: 공속 빠름
A107: 41005 | B107: spe_01_00 | C107: ATK_DMG_Add | D107: Self | E107: None | F107: 1 | G107: FALSE | H107: Buff | I107: None | J107: None | K107: 0 | L107: 0 | M107: 0 | N107: 0 | O107: 공속 빠름
A108: 41006 | B108: spe_01_01 | C108: ATK_DMG_Add | D108: Self | E108: None | F108: 1 | G108: FALSE | H108: Buff | I108: None | J108: None | K108: 0 | L108: 0 | M108: 0 | N108: 0 | O108: 공속 빠름
A109: 41007 | B109: spe_01_02 | C109: Cri_Add | D109: Self | E109: None | F109: 1 | G109: FALSE | H109: Buff | I109: Cri | J109: None | K109: 5% | L109: 0 | M109: 0 | N109: 0 | O109: 치명타 5%
A110: 41008 | B110: spe_01_03 | C110: Cri_Add | D110: Self | E110: None | F110: 1 | G110: FALSE | H110: Buff | I110: Cri | J110: None | K110: 5% | L110: 0 | M110: 0 | N110: 0 | O110: 치명타 5%
A111: 41009 | B111: spe_03_00 | C111: ATK_DMG_Add | D111: Self | E111: None | F111: 1 | G111: FALSE | H111: Buff | I111: None | J111: None | K111: 0 | L111: 0 | M111: 0 | N111: 0 | O111: 체력 10%
A112: 41010 | B112: spe_03_02 | C112: ATK_DMG_Add | D112: Self | E112: None | F112: 1 | G112: FALSE | H112: Buff | I112: None | J112: None | K112: 0 | L112: 0 | M112: 0 | N112: 0 | O112: 체력 10%
A113: 41011 | B113: spe_04_00 | C113: ATK_DMG_Add | D113: Self | E113: None | F113: 1 | G113: FALSE | H113: Buff | I113: None | J113: None | K113: 0 | L113: 0 | M113: 0 | N113: 0 | O113: 체력 10%
A114: 41012 | B114: spe_04_01 | C114: ATK_DMG_Add | D114: Self | E114: None | F114: 1 | G114: FALSE | H114: Buff | I114: None | J114: None | K114: 0 | L114: 0 | M114: 0 | N114: 0 | O114: 체력 10%
A115: 41013 | B115: spe_04_02 | C115: ATK_DMG_Add | D115: Self | E115: None | F115: 1 | G115: FALSE | H115: Buff | I115: None | J115: None | K115: 0 | L115: 0 | M115: 0 | N115: 0 | O115: 체력 10%
A116: 41014 | B116: spe_04_03 | C116: ATK_DMG_Add | D116: Self | E116: None | F116: 1 | G116: FALSE | H116: Buff | I116: None | J116: None | K116: 0 | L116: 0 | M116: 0 | N116: 0 | O116: 체력 10%
A117: 41015 | B117: spe_05_00 | C117: Invincibility_Count | D117: Self | E117: Appear | F117: 100% | G117: FALSE | H117: Buff | I117: Dmg_Immune | J117: None | K117: 1 | L117: 0 | M117: 0 | N117: 0 | O117: 피해 무효
A118: 41016 | B118: spe_05_01 | C118: Invincibility_Count | D118: Self | E118: Appear | F118: 100% | G118: FALSE | H118: Buff | I118: Dmg_Immune | J118: None | K118: 1 | L118: 0 | M118: 0 | N118: 0 | O118: 피해 무효
A119: 41017 | B119: spe_05_02 | C119: ATK_DMG_Add | D119: Self | E119: None | F119: 1 | G119: FALSE | H119: Buff | I119: None | J119: None | K119: 0 | L119: 0 | M119: 0 | N119: 0 | O119: 공격력 15%
A120: 41018 | B120: spe_01_00 | C120: ATK_DMG_Add | D120: Self | E120: None | F120: 1 | G120: FALSE | H120: Buff | I120: None | J120: None | K120: 0 | L120: 0 | M120: 0 | N120: 0 | O120: 공격력 15%
A121: 41019 | B121: spe_01_01 | C121: ATK_DMG_Add | D121: Self | E121: None | F121: 1 | G121: FALSE | H121: Buff | I121: None | J121: None | K121: 0 | L121: 0 | M121: 0 | N121: 0 | O121: 공격력 15%
A122: 41020 | B122: spe_01_02 | C122: ATK_DMG_Add | D122: Self | E122: None | F122: 1 | G122: FALSE | H122: Buff | I122: None | J122: None | K122: 0 | L122: 0 | M122: 0 | N122: 0 | O122: 공격력 15%
A123: 41021 | B123: spe_01_03 | C123: ATK_DMG_Add | D123: Self | E123: None | F123: 1 | G123: FALSE | H123: Buff | I123: None | J123: None | K123: 0 | L123: 0 | M123: 0 | N123: 0 | O123: 공격력 15%
A124: 41022 | B124: spe_03_00 | C124: ATK_DMG_Add | D124: Self | E124: None | F124: 1 | G124: FALSE | H124: Buff | I124: None | J124: None | K124: 0 | L124: 0 | M124: 0 | N124: 0 | O124: 공격력 15%
A125: 41023 | B125: spe_03_02 | C125: ATK_DMG_Add | D125: Self | E125: None | F125: 1 | G125: FALSE | H125: Buff | I125: None | J125: None | K125: 0 | L125: 0 | M125: 0 | N125: 0 | O125: 공격력 15%
A126: 41024 | B126: spe_04_00 | C126: CriticalRate_Add | D126: Self | E126: None | F126: 1 | G126: FALSE | H126: Buff | I126: CriDmg | J126: None | K126: 0.3 | L126: 0 | M126: 0 | N126: 0 | O126: 치명타 피해량 + 30%
A127: 41025 | B127: spe_04_01 | C127: CriticalRate_Add | D127: Self | E127: None | F127: 1 | G127: FALSE | H127: Buff | I127: CriDmg | J127: None | K127: 0.3 | L127: 0 | M127: 0 | N127: 0 | O127: 치명타 피해량 + 30%
A128: 41026 | B128: spe_04_02 | C128: CriticalRate_Add | D128: Self | E128: None | F128: 1 | G128: FALSE | H128: Buff | I128: CriDmg | J128: None | K128: 0.3 | L128: 0 | M128: 0 | N128: 0 | O128: 치명타 피해량 + 30%
A129: 41027 | B129: spe_04_03 | C129: ATK_DMG_Add | D129: Self | E129: None | F129: 1 | G129: FALSE | H129: Buff | I129: None | J129: None | K129: 0 | L129: 0 | M129: 0 | N129: 0 | O129: 생명력 20%
A130: 41028 | B130: spe_05_00 | C130: ATK_DMG_Add | D130: Self | E130: None | F130: 1 | G130: FALSE | H130: Buff | I130: None | J130: None | K130: 0 | L130: 0 | M130: 0 | N130: 0 | O130: 생명력 20%
A131: 41029 | B131: spe_05_01 | C131: Heal_Hp_Random | D131: Self | E131: Hit_Noraml | F131: 10% | G131: FALSE | H131: Buff | I131: HP | J131: None | K131: 1 | L131: 5 | M131: 0 | N131: 0 | O131: 회복
A132: 41030 | B132: spe_05_02 | C132: Heal_Hp_Random | D132: Self | E132: Hit_Noraml | F132: 10% | G132: FALSE | H132: Buff | I132: HP | J132: None | K132: 1 | L132: 5 | M132: 0 | N132: 0 | O132: 회복
A133: 41031 | B133: spe_01_00 | C133: Heal_Hp_Random | D133: Self | E133: Hit_Noraml | F133: 10% | G133: FALSE | H133: Buff | I133: HP | J133: None | K133: 1 | L133: 5 | M133: 0 | N133: 0 | O133: 회복
A134: 51001 | B134: spe_01_01 | C134: ATK_SPD_Add | D134: Self | E134: None | F134: 1 | G134: FALSE | H134: Buff | I134: None | J134: None | K134: 0.15 | L134: 0 | M134: 0 | N134: 0 | O134: 공격속도 빠름
A135: 52001 | B135: spe_01_02 | C135: Cri_Add | D135: Self | E135: None | F135: 1 | G135: FALSE | H135: Buff | I135: Cri | J135: None | K135: 5% | L135: 0 | M135: 0 | N135: 0 | O135: 치명타 5%
A136: 51002 | B136: spe_01_03 | C136: ATK_SPD_Add | D136: Self | E136: None | F136: 1 | G136: FALSE | H136: Buff | I136: None | J136: None | K136: 0.15 | L136: 0 | M136: 0 | N136: 0 | O136: 공격속도 빠름
A137: 52002 | B137: spe_03_00 | C137: Cri_Add | D137: Self | E137: None | F137: 1 | G137: FALSE | H137: Buff | I137: Cri | J137: None | K137: 5% | L137: 0 | M137: 0 | N137: 0 | O137: 치명타 5%
A138: 51003 | B138: spe_03_02 | C138: ATK_SPD_Add | D138: Self | E138: None | F138: 1 | G138: FALSE | H138: Buff | I138: None | J138: None | K138: 0.15 | L138: 0 | M138: 0 | N138: 0 | O138: 공격속도 빠름
A139: 52003 | B139: spe_04_00 | C139: Cri_Add | D139: Self | E139: None | F139: 1 | G139: FALSE | H139: Buff | I139: Cri | J139: None | K139: 5% | L139: 0 | M139: 0 | N139: 0 | O139: 치명타 5%
A140: 51004 | B140: spe_04_01 | C140: Death_ATK_Mul | D140: Self | E140: Die_Ally | F140: 1 | G140: FALSE | H140: Buff | I140: DmgMul | J140: None | K140: 20% | L140: 0 | M140: 0 | N140: 0 | O140: 사망 - 공격력
A141: 51005 | B141: spe_04_02 | C141: Death_ATK_Mul | D141: Self | E141: Die_Ally | F141: 1 | G141: FALSE | H141: Buff | I141: DmgMul | J141: None | K141: 20% | L141: 0 | M141: 0 | N141: 0 | O141: 사망 - 공격력
A142: 51006 | B142: spe_04_03 | C142: Death_ATK_Mul | D142: Self | E142: Die_Ally | F142: 1 | G142: FALSE | H142: Buff | I142: DmgMul | J142: None | K142: 20% | L142: 0 | M142: 0 | N142: 0 | O142: 사망 - 공격력
A143: 51007 | B143: spe_05_00 | C143: Death_ATK_Mul | D143: Self | E143: Die_Ally | F143: 1 | G143: FALSE | H143: Buff | I143: DmgMul | J143: None | K143: 20% | L143: 0 | M143: 0 | N143: 0 | O143: 사망 - 공격력
A144: 51008 | B144: spe_05_01 | C144: Berserker_ATK_DMG_Mul | D144: Self | E144: MaxHpRate | F144: 50% | G144: FALSE | H144: Buff | I144: DmgMul | J144: None | K144: 50% | L144: 0 | M144: 0 | N144: 0 | O144: 광포화 - 공격력
A145: 52008 | B145: spe_05_02 | C145: CriticalRate_Add | D145: Self | E145: None | F145: 100% | G145: FALSE | H145: Buff | I145: CriDmg | J145: None | K145: 30% | L145: 0 | M145: 0 | N145: 0 | O145: 치명타 피해량 30%
A146: 51009 | B146: spe_01_00 | C146: Berserker_ATK_DMG_Mul | D146: Self | E146: MaxHpRate | F146: 50% | G146: FALSE | H146: Buff | I146: DmgMul | J146: None | K146: 50% | L146: 0 | M146: 0 | N146: 0 | O146: 광포화 - 공격력
A147: 52009 | B147: spe_01_01 | C147: CriticalRate_Add | D147: Self | E147: None | F147: 100% | G147: FALSE | H147: Buff | I147: CriDmg | J147: None | K147: 30% | L147: 0 | M147: 0 | N147: 0 | O147: 치명타 피해량 30%
A148: 51010 | B148: spe_01_02 | C148: Berserker_ATK_DMG_Mul | D148: Self | E148: MaxHpRate | F148: 50% | G148: FALSE | H148: Buff | I148: DmgMul | J148: None | K148: 50% | L148: 0 | M148: 0 | N148: 0 | O148: 광포화 - 공격력
A149: 52010 | B149: spe_01_03 | C149: CriticalRate_Add | D149: Self | E149: None | F149: 100% | G149: FALSE | H149: Buff | I149: CriDmg | J149: None | K149: 30% | L149: 0 | M149: 0 | N149: 0 | O149: 치명타 피해량 30%
A150: 51011 | B150: spe_03_00 | C150: Berserker_ATK_DMG_Mul | D150: Self | E150: MaxHpRate | F150: 50% | G150: FALSE | H150: Buff | I150: DmgMul | J150: None | K150: 50% | L150: 0 | M150: 0 | N150: 0 | O150: 광포화 - 공격력
A151: 52011 | B151: spe_03_02 | C151: CriticalRate_Add | D151: Self | E151: None | F151: 100% | G151: FALSE | H151: Buff | I151: CriDmg | J151: None | K151: 30% | L151: 0 | M151: 0 | N151: 0 | O151: 치명타 피해량 30%
A152: 51012 | B152: spe_04_00 | C152: Berserker_ATK_DMG_Mul | D152: Self | E152: MaxHpRate | F152: 50% | G152: FALSE | H152: Buff | I152: DmgMul | J152: None | K152: 50% | L152: 0 | M152: 0 | N152: 0 | O152: 광포화 - 공격력
A153: 52012 | B153: spe_04_01 | C153: CriticalRate_Add | D153: Self | E153: None | F153: 100% | G153: FALSE | H153: Buff | I153: CriDmg | J153: None | K153: 30% | L153: 0 | M153: 0 | N153: 0 | O153: 치명타 피해량 30%
A154: 51013 | B154: spe_04_02 | C154: Berserker_ATK_DMG_Mul | D154: Self | E154: MaxHpRate | F154: 50% | G154: FALSE | H154: Buff | I154: DmgMul | J154: None | K154: 50% | L154: 0 | M154: 0 | N154: 0 | O154: 광포화 - 공격력
A155: 52013 | B155: spe_04_03 | C155: CriticalRate_Add | D155: Self | E155: None | F155: 100% | G155: FALSE | H155: Buff | I155: CriDmg | J155: None | K155: 30% | L155: 0 | M155: 0 | N155: 0 | O155: 치명타 피해량 30%
A156: 51014 | B156: spe_05_00 | C156: Invincibility_Count | D156: Self | E156: Appear | F156: 100% | G156: FALSE | H156: Buff | I156: Dmg_Immune | J156: None | K156: 1 | L156: 0 | M156: 0 | N156: 0 | O156: 피해 무효
A157: 52014 | B157: spe_05_01 | C157: Cri_Add | D157: Self | E157: None | F157: 100% | G157: FALSE | H157: Buff | I157: Cri | J157: None | K157: 5% | L157: 0 | M157: 0 | N157: 0 | O157: 치명타 5%
A158: 51015 | B158: spe_05_02 | C158: Invincibility_Count | D158: Self | E158: Appear | F158: 100% | G158: FALSE | H158: Buff | I158: Dmg_Immune | J158: None | K158: 1 | L158: 0 | M158: 0 | N158: 0 | O158: 피해 무효
A159: 52015 | B159: spe_01_00 | C159: Cri_Add | D159: Self | E159: None | F159: 100% | G159: FALSE | H159: Buff | I159: Cri | J159: None | K159: 5% | L159: 0 | M159: 0 | N159: 0 | O159: 치명타 5%
A160: 51016 | B160: spe_01_01 | C160: Invincibility_Count | D160: Self | E160: Appear | F160: 100% | G160: FALSE | H160: Buff | I160: Dmg_Immune | J160: None | K160: 1 | L160: 0 | M160: 0 | N160: 0 | O160: 피해 무효
A161: 52016 | B161: spe_01_02 | C161: Cri_Add | D161: Self | E161: None | F161: 100% | G161: FALSE | H161: Buff | I161: Cri | J161: None | K161: 5% | L161: 0 | M161: 0 | N161: 0 | O161: 치명타 5%
A162: 51017 | B162: spe_01_03 | C162: Slow | D162: Enemy | E162: Attack_Hit | F162: 25% | G162: FALSE | H162: Debuff | I162: Slow | J162: None | K162: 2.5s | L162: -0.5 | M162: 0 | N162: 0 | O162: 둔화 50%
A163: 51018 | B163: spe_03_00 | C163: Heal_Hp_Random | D163: Random_Ally | E163: Attack_Normal | F163: 100% | G163: FALSE | H163: Buff | I163: HP | J163: None | K163: 3 | L163: 5 | M163: 0 | N163: 0 | O163: 회복
A164: 51019 | B164: spe_03_02 | C164: Burn | D164: Enemy | E164: Attack_Hit | F164: 15% | G164: TRUE | H164: Debuff | I164: None | J164: None | K164: 3s | L164: -5% | M164: 0 | N164: 0 | O164: 화상
A165: 51020 | B165: spe_04_00 | C165: Poison | D165: Enemy | E165: Attack_Hit | F165: 0.25 | G165: TRUE | H165: Debuff | I165: None | J165: None | K165: 5s | L165: 3 | M165: 0 | N165: 0 | O165: 중독 5초
A166: 51021 | B166: spe_04_01 | C166: Berserker_ATK_DMG_Mul | D166: Self | E166: MaxHpRate | F166: 50% | G166: FALSE | H166: Buff | I166: DmgMul | J166: None | K166: 50% | L166: 0 | M166: 0 | N166: 0 | O166: 광전사 2배
A167: 51022 | B167: spe_04_02 | C167: Cri_Add | D167: Self | E167: None | F167: 1 | G167: FALSE | H167: Buff | I167: Cri | J167: None | K167: 20% | L167: 0 | M167: 0 | N167: 0 | O167: 치명타 확률 20%
A168: 51023 | B168: spe_04_03 | C168: Cri_Add | D168: Self | E168: None | F168: 1 | G168: FALSE | H168: Buff | I168: Cri | J168: None | K168: 20% | L168: 0 | M168: 0 | N168: 0 | O168: 치명타 확률 20%
A169: 51024 | B169: spe_05_00 | C169: Cri_Add | D169: Self | E169: None | F169: 1 | G169: FALSE | H169: Buff | I169: Cri | J169: None | K169: 20% | L169: 0 | M169: 0 | N169: 0 | O169: 치명타 확률 20%
A170: 51025 | B170: spe_05_01 | C170: VampirHeal_Mul | D170: Enemy | E170: Attack_Hit | F170: 100% | G170: FALSE | H170: Buff | I170: None | J170: None | K170: 0.5 | L170: 0.5 | M170: 0 | N170: 0 | O170: 흡혈
A171: 52025 | B171: spe_05_02 | C171: ATK_SPD_Add | D171: Self | E171: None | F171: 1 | G171: FALSE | H171: Buff | I171: None | J171: None | K171: 0.25 | L171: 0 | M171: 0 | N171: 0 | O171: 공격속도 빠름
A172: 51026 | B172: spe_01_00 | C172: VampirHeal_Mul | D172: Enemy | E172: Attack_Hit | F172: 100% | G172: FALSE | H172: Buff | I172: None | J172: None | K172: 0.5 | L172: 0.5 | M172: 0 | N172: 0 | O172: 흡혈
A173: 52026 | B173: spe_01_01 | C173: ATK_SPD_Add | D173: Self | E173: None | F173: 1 | G173: FALSE | H173: Buff | I173: None | J173: None | K173: 0.25 | L173: 0 | M173: 0 | N173: 0 | O173: 공격속도 빠름
A174: 51027 | B174: spe_01_02 | C174: VampirHeal_Mul | D174: Enemy | E174: Attack_Hit | F174: 100% | G174: FALSE | H174: Buff | I174: None | J174: None | K174: 0.5 | L174: 0.5 | M174: 0 | N174: 0 | O174: 흡혈
A175: 52027 | B175: spe_01_03 | C175: ATK_SPD_Add | D175: Self | E175: None | F175: 1 | G175: FALSE | H175: Buff | I175: None | J175: None | K175: 0.25 | L175: 0 | M175: 0 | N175: 0 | O175: 공격속도 빠름
A176: 51028 | B176: spe_03_00 | C176: Death_Heal_Mul | D176: Self | E176: None | F176: 1 | G176: FALSE | H176: Buff | I176: None | J176: None | K176: 0.25 | L176: 0 | M176: 0 | N176: 0 | O176: 사망 - 회복
A177: 51029 | B177: spe_03_02 | C177: Death_Heal_Mul | D177: Self | E177: None | F177: 1 | G177: FALSE | H177: Buff | I177: None | J177: None | K177: 0.25 | L177: 0 | M177: 0 | N177: 0 | O177: 사망 - 회복
A178: 51030 | B178: spe_04_00 | C178: Death_Heal_Mul | D178: Self | E178: None | F178: 1 | G178: FALSE | H178: Buff | I178: None | J178: None | K178: 0.25 | L178: 0 | M178: 0 | N178: 0 | O178: 사망 - 회복
A179: 51031 | B179: spe_04_01 | C179: Death_Heal_Mul | D179: Self | E179: None | F179: 1 | G179: FALSE | H179: Buff | I179: None | J179: None | K179: 0.25 | L179: 0 | M179: 0 | N179: 0 | O179: 사망 - 회복
A180: 51032 | B180: spe_04_02 | C180: Death_Heal_Mul | D180: Self | E180: None | F180: 1 | G180: FALSE | H180: Buff | I180: None | J180: None | K180: 0.25 | L180: 0 | M180: 0 | N180: 0 | O180: 사망 - 회복
A181: 51033 | B181: spe_04_03 | C181: Death_Heal_Mul | D181: Self | E181: None | F181: 1 | G181: FALSE | H181: Buff | I181: None | J181: None | K181: 0.25 | L181: 0 | M181: 0 | N181: 0 | O181: 사망 - 회복
A182: 51034 | B182: spe_05_00 | C182: Death_Heal_Mul | D182: Self | E182: None | F182: 1 | G182: FALSE | H182: Buff | I182: None | J182: None | K182: 0.25 | L182: 0 | M182: 0 | N182: 0 | O182: 사망 - 회복
A183: 51035 | B183: spe_05_01 | C183: ATK_DMG_Mul | D183: Self | E183: None | F183: 1 | G183: FALSE | H183: Buff | I183: DmgMul | J183: None | K183: 15% | L183: 0 | M183: 0 | N183: 0 | O183: 공격력 15%
A184: 52035 | B184: spe_05_02 | C184: ATK_SPD_Add | D184: Self | E184: None | F184: 1 | G184: FALSE | H184: Buff | I184: None | J184: None | K184: 0.15 | L184: 0 | M184: 0 | N184: 0 | O184: 공격속도 빠름
A185: 51036 | B185: spe_01_00 | C185: ATK_DMG_Mul | D185: Self | E185: None | F185: 1 | G185: FALSE | H185: Buff | I185: DmgMul | J185: None | K185: 15% | L185: 0 | M185: 0 | N185: 0 | O185: 공격력 15%
A186: 52036 | B186: spe_01_01 | C186: ATK_SPD_Add | D186: Self | E186: None | F186: 1 | G186: FALSE | H186: Buff | I186: None | J186: None | K186: 0.15 | L186: 0 | M186: 0 | N186: 0 | O186: 공격속도 빠름
A187: 51037 | B187: spe_01_02 | C187: ATK_DMG_Mul | D187: Self | E187: None | F187: 1 | G187: FALSE | H187: Buff | I187: DmgMul | J187: None | K187: 15% | L187: 0 | M187: 0 | N187: 0 | O187: 공격력 15%
A188: 52037 | B188: spe_01_03 | C188: ATK_SPD_Add | D188: Self | E188: None | F188: 1 | G188: FALSE | H188: Buff | I188: None | J188: None | K188: 0.15 | L188: 0 | M188: 0 | N188: 0 | O188: 공격속도 빠름
A189: 61001 | B189: spe_03_00 | C189: Heal_Shield_Mul | D189: Self | E189: Die_Ally | F189: 100% | G189: FALSE | H189: Buff | I189: None | J189: None | K189: 50% | L189: 0 | M189: 0 | N189: 0 | O189: 실드 회복
A190: 62001 | B190: spe_03_02 | C190: ATK_DMG_Mul | D190: Self | E190: None | F190: 1 | G190: FALSE | H190: Buff | I190: DmgMul | J190: None | K190: 20% | L190: 0 | M190: 0 | N190: 0 | O190: 공격력 20%
A191: 61002 | B191: spe_04_00 | C191: Heal_Shield_Mul | D191: Self | E191: Die_Ally | F191: 100% | G191: FALSE | H191: Buff | I191: None | J191: None | K191: 50% | L191: 0 | M191: 0 | N191: 0 | O191: 실드 회복
A192: 62002 | B192: spe_04_01 | C192: ATK_DMG_Mul | D192: Self | E192: None | F192: 1 | G192: FALSE | H192: Buff | I192: DmgMul | J192: None | K192: 20% | L192: 0 | M192: 0 | N192: 0 | O192: 공격력 20%
A193: 61003 | B193: spe_04_02 | C193: Heal_Shield_Mul | D193: Self | E193: Die_Ally | F193: 100% | G193: FALSE | H193: Buff | I193: None | J193: None | K193: 50% | L193: 0 | M193: 0 | N193: 0 | O193: 실드 회복
A194: 62003 | B194: spe_04_03 | C194: ATK_DMG_Mul | D194: Self | E194: None | F194: 1 | G194: FALSE | H194: Buff | I194: DmgMul | J194: None | K194: 20% | L194: 0 | M194: 0 | N194: 0 | O194: 공격력 20%
A195: 61004 | B195: spe_05_00 | C195: Death_Heal_Mul | D195: Self | E195: Die_Ally | F195: 100% | G195: FALSE | H195: Buff | I195: None | J195: None | K195: 50% | L195: 0 | M195: 0 | N195: 0 | O195: 사망 회복
A196: 61005 | B196: spe_05_01 | C196: Death_Heal_Mul | D196: Self | E196: Die_Ally | F196: 100% | G196: FALSE | H196: Buff | I196: None | J196: None | K196: 50% | L196: 0 | M196: 0 | N196: 0 | O196: 사망 회복
A197: 61006 | B197: spe_05_02 | C197: ATK_DMG_Mul | D197: Self | E197: None | F197: 1 | G197: FALSE | H197: Buff | I197: DmgMul | J197: None | K197: 30% | L197: 0 | M197: 0 | N197: 0 | O197: 공격력 증가
A198: 61007 | B198: spe_01_00 | C198: Poison | D198: Enemy | E198: Attack_Hit | F198: 1 | G198: TRUE | H198: Debuff | I198: None | J198: None | K198: 5s | L198: 1 | M198: 0 | N198: 0 | O198: 중독 5초
A199: 61008 | B199: spe_01_01 | C199: Poison | D199: Enemy | E199: Attack_Hit | F199: 1 | G199: TRUE | H199: Debuff | I199: None | J199: None | K199: 5s | L199: 1 | M199: 0 | N199: 0 | O199: 중독 5초
A200: 61009 | B200: spe_01_02 | C200: Poison | D200: Enemy | E200: Attack_Hit | F200: 1 | G200: TRUE | H200: Debuff | I200: None | J200: None | K200: 5s | L200: 1 | M200: 0 | N200: 0 | O200: 중독 5초
... 116 more rows

Sheet StatusConditionsList
A1: e_StatusConditionsType | B1: e_StatusConditionsType_Old | C1: s_SkillNoticeIcon | D1: n_EffectNameDesc | E1: n_EffectInfoDesc | F1: s_SkillEffect | G1: s_RepeatEffect | H1: f_RepeatEffectStartDelay | I1: e_EffectPivot
A2: _New Status Enum 타입 | B2: Old Status Enum 타입 | C2: Status 아이콘 정보 | D2: Status 효과의 이름 | E2: Status 효과의 설명 | F2: 발생할 때 재생할 이펙트 경로 | G2: 반복 재생할 이펙트 경로 | H2: 반복 재생 될 이팩트 시작 될 시간 | I2: 이펙트 표시 위치 | J2: 설명
A3: Slow | B3: Slow | C3: Slow | D3: 13001 | E3: 14001 | F3: Fog_speedSlow | G3: ="Repeat_"&B3 -> Repeat_Slow | H3: 1 | I3: Bottom | J3: 둔화
A4: Burn | B4: Burn | C4: Burn | D4: 13015 | E4: 14015 | F4: FX_Fire_Exp | G4: ="Repeat_"&B4 -> Repeat_Burn | H4: 1 | I4: Center | J4: 화상
A5: Poison | B5: Poison | C5: Poison | D5: 13018 | E5: 14018 | F5: vfx_ToonHit_Bullet01Green | G5: Fog_poison | H5: 1 | I5: Center | J5: 중독
A6: Stun | B6: Stun | C6: Stun | D6: 13019 | E6: 14019 | F6: None | G6: Stun_loop | H6: 1 | I6: Top | J6: 스턴
A7: Freezing | B7: Freezing | C7: Freezing | D7: 13020 | E7: 14020 | F7: ="Effect_"&B7 -> Effect_Freezing | G7: ="Repeat_"&B7 -> Repeat_Freezing | H7: 1 | I7: Center | J7: 빙결
A8: Blind | B8: Blind | C8: Blind | D8: 13021 | E8: 14021 | F8: HCFX_Eye_01 | G8: ="Repeat_"&B8 -> Repeat_Blind | H8: 1 | I8: Center | J8: 눈멀기
A9: Heal_Hp_Add | B9: Heal | C9: None | D9: 13005 | E9: 14005 | F9: Regeneration_health | G9: None | H9: 1 | I9: Bottom | J9: HP 회복 : 고정(+)
A10: Heal_Shield_Add | B10: Heal_Shield | C10: None | D10: 0 | E10: 0 | F10: Loot_pick_up | G10: None | H10: 1 | I10: Center | J10: 실드 회복 : 고정(+)
A11: Heal_Hp_Random | B11: New | C11: None | D11: 0 | E11: 0 | F11: Loot_pick_up | G11: None | H11: 1 | I11: Center | J11: HP 회복 : 고정 랜덤(+)
A12: Heal_Shield_Random | B12: New | C12: None | D12: 0 | E12: 0 | F12: Loot_pick_up | G12: None | H12: 1 | I12: Center | J12: 실드 회복 : 고정 랜덤(+)
A13: Heal_Hp_Mul | B13: New | C13: None | D13: 13005 | E13: 14005 | F13: Regeneration_health | G13: None | H13: 1 | I13: Bottom | J13: HP 회복 : 비율(%)
A14: Heal_Shield_Mul | B14: New | C14: None | D14: 0 | E14: 0 | F14: Loot_pick_up | G14: None | H14: 1 | I14: Center | J14: 실드 회복 : 비율(%)
A15: Recovery_All | B15: Heal_All | C15: None | D15: 0 | E15: 0 | F15: Loot_pick_up | G15: None | H15: 1 | I15: Center | J15: HP & 실드 완전 회복
A16: AddResurrection | B16: AddResurrection | C16: None | D16: 0 | E16: 0 | F16: Loot_pick_up | G16: None | H16: 1 | I16: Center | J16: 부활 횟수 추가
A17: VampirHeal_Add | B17: VampirHeal_ADD | C17: None | D17: 13006 | E17: 14006 | F17: Effect_Vampir | G17: None | H17: 1 | I17: Center | J17: 흡혈-고정 피해 : 고정(+)
A18: VampirHeal_Mul | B18: VampirHeal_Rate | C18: None | D18: 13007 | E18: 14007 | F18: Effect_Vampir | G18: None | H18: 1 | I18: Center | J18: 흡혈-비율 피해 : 비율(%)
A19: Invincibility_Count | B19: DMG_IMMUNE | C19: DMG_IMMUNE | D19: 13008 | E19: 14008 | F19: ="Effect_"&B19 -> Effect_DMG_IMMUNE | G19: ="Repeat_"&B19 -> Repeat_DMG_IMMUNE | H19: 1 | I19: Center | J19: 무적 : 횟수
A20: Invincibility_Time | B20: Invincibility | C20: Invincibility | D20: 13016 | E20: 14016 | F20: FX_LightUpSmoke | G20: ="Repeat_"&B20 -> Repeat_Invincibility | H20: 1 | I20: Center | J20: 무적 : 지속 시간
A21: Destruct | B21: Self_destruct | C21: None | D21: 13009 | E21: 14009 | F21: FX_Fire_Exp | G21: None | H21: 1 | I21: Center | J21: 자폭 : 무조건 자신
A22: Resurrection | B22: Resurrection | C22: None | D22: 13014 | E22: 14014 | F22: Loot_flicker | G22: None | H22: 1 | I22: Center | J22: 부활 : 무조건 자신
A23: Berserker_ATK_DMG_Add | B23: Berserker_ATK_DMG | C23: Berserker_ATK_DMG | D23: 13002 | E23: 14002 | F23: Loot_pick_up | G23: ="Repeat_"&B23 -> Repeat_Berserker_ATK_DMG | H23: 1 | I23: Center | J23: 광포화-체력 기준, 공격력 증가 : 고정(+)
A24: Berserker_ATK_SPD_Add | B24: Berserker_ATK_SPD | C24: Berserker_ATK_SPD | D24: 13003 | E24: 14003 | F24: Fog_speedFast | G24: Repeat_Berserker_ATK_SPD | H24: 1 | I24: Center | J24: 광포화-체력 기준, 공속 증가 : 고정(+)
A25: Berserker_ATK_DMG_Mul | B25: New | C25: Berserker_ATK_DMG | D25: 13002 | E25: 14002 | F25: Loot_pick_up | G25: Repeat_New | H25: 1 | I25: Center | J25: 광포화-체력 비례 공격력 증가 : 비율(%)
A26: Berserker_ATK_SPD_Mul | B26: New | C26: Berserker_ATK_SPD | D26: 13003 | E26: 14003 | F26: Fog_speedFast | G26: Repeat_New | H26: 1 | I26: Center | J26: 광포화-체력 비례 공속 증가 : 비율(%)
A27: ATK_DMG_Add | B27: ATK_UP | C27: ATK_UP | D27: 13010 | E27: 14010 | F27: Loot_pick_up | G27: Repeat_ATK_UP | H27: 1 | I27: Center | J27: 강화-공격력 증가 : 고정(+)
A28: ATK_SPD_Add | B28: ATK_SPD | C28: ATK_SPD | D28: 13004 | E28: 14004 | F28: Fog_speedFast | G28: Repeat_ATK_SPD | H28: 1 | I28: Center | J28: 강화-공속 증가 : 고정(+)
A29: ATK_DMG_Mul | B29: New | C29: ATK_UP | D29: 13010 | E29: 14010 | F29: Loot_pick_up | G29: Repeat_New | H29: 1 | I29: Center | J29: 강화-공격력 증가 : 비율(%)
A30: ATK_SPD_Mul | B30: New | C30: ATK_SPD | D30: 13004 | E30: 14004 | F30: Fog_speedFast | G30: Repeat_New | H30: 1 | I30: Center | J30: 강화-공속 증가 : 비율(%)
A31: Death_ATK_Add | B31: Death_ATK | C31: Death_ATK | D31: 13011 | E31: 14011 | F31: ="Effect_"&B31 -> Effect_Death_ATK | G31: ="Repeat_"&B31 -> Repeat_Death_ATK | H31: 1 | I31: Center | J31: 아군 사망 시 공격력 증가 : 고정(+)
A32: Death_ATK_Mul | B32: New | C32: Death_ATK | D32: 13011 | E32: 14011 | F32: ="Effect_"&B32 -> Effect_New | G32: ="Repeat_"&B32 -> Repeat_New | H32: 1 | I32: Center | J32: 아군 사망 시 공격력 증가 : 비율(%)
A33: Death_Heal_Add | B33: Death_Heal | C33: None | D33: 13013 | E33: 14013 | F33: Area_generic_green_outbreak | G33: None | H33: 1 | I33: Center | J33: 아군 사망 시 회복 : 고정(+)
A34: Death_Heal_Mul | B34: New | C34: None | D34: 13013 | E34: 14013 | F34: Area_generic_green_outbreak | G34: None | H34: 1 | I34: Center | J34: 아군 사망 시 회복 : 비율(%)
A35: Death_Growup | B35: Death_Growup | C35: Death_Growup | D35: 13012 | E35: 14012 | F35: ="Effect_"&B35 -> Effect_Death_Growup | G35: ="Repeat_"&B35 -> Repeat_Death_Growup | H35: 1 | I35: Center | J35: 아군 사망 시- 거대화 (크기 증가20% + 완전 회복, 아군 사망 시마다 공격력과 HP 최대치 2배씩 누적 증가)
A36: HitDamage_Add | B36: New | C36: None | D36: 0 | E36: 0 | F36: Loot_pick_up | G36: None | H36: 1 | I36: Center | J36: 피해가 발생되어 즉시 고정(-) HP 감소
A37: HitDamage_Random | B37: New | C37: None | D37: 0 | E37: 0 | F37: Loot_pick_up | G37: None | H37: 1 | I37: Center | J37: 피해가 발생되어 즉시 고정 랜덤 피해(-) HP 감소
A38: HitDamage_Mul | B38: New | C38: None | D38: 0 | E38: 0 | F38: Loot_pick_up | G38: None | H38: 1 | I38: Center | J38: 피해가 발생되어 즉시 최대 생명력의 HP 비율(%)만큼 감소
A39: IncreaseSoul_Mul | B39: New | C39: None | D39: 0 | E39: 0 | F39: Loot_pick_up | G39: None | H39: 1 | I39: Center | J39: 소울 획득량 증가
A40: IncreaseEXP_Mul | B40: EXP_Mul | C40: None | D40: 0 | E40: 0 | F40: Loot_pick_up | G40: None | H40: 1 | I40: Center | J40: 경험치 획득량 증가
A41: IncreaseGold_Mul | B41: GOLD_mul | C41: None | D41: 0 | E41: 0 | F41: Loot_pick_up | G41: None | H41: 1 | I41: Center | J41: 골드 획득량 증가
A42: GetSoul_Add | B42: GetSoul | C42: None | D42: 0 | E42: 0 | F42: Loot_pick_up | G42: None | H42: 1 | I42: Center | J42: 소울 획득 (즉시 증가)
A43: GetGold_Add | B43: GetGold | C43: None | D43: 0 | E43: 0 | F43: Loot_pick_up | G43: None | H43: 1 | I43: Center | J43: 골드 획득 (즉시 증가)
A44: GetExp_Add | B44: GetExp | C44: None | D44: 0 | E44: 0 | F44: Loot_pick_up | G44: None | H44: 1 | I44: Center | J44: 경험치 획득 (즉시 증가)
A45: GetPotion_Add | B45: New | C45: None | D45: 0 | E45: 0 | F45: Loot_pick_up | G45: None | H45: 1 | I45: Center | J45: 포션 획득 (즉시 수량 증가)
A46: GetSkillCard_N | B46: GetSkillCard | C46: None | D46: 0 | E46: 0 | F46: Loot_pick_up | G46: None | H46: 1 | I46: Center | J46: 일반(Common) 등급 카드 획득 (선택지 발생)
A47: GetSkillCard_R | B47: New | C47: None | D47: 0 | E47: 0 | F47: Loot_pick_up | G47: None | H47: 1 | I47: Center | J47: 고급UnCommon) 등급 카드 획득 (선택지 발생)
A48: GetSkillCard_SR | B48: New | C48: None | D48: 0 | E48: 0 | F48: Loot_pick_up | G48: None | H48: 1 | I48: Center | J48: 희귀(Rare) 등급 카드 획득 (선택지 발생)
A49: GetSkillCard_SSR | B49: New | C49: None | D49: 0 | E49: 0 | F49: Loot_pick_up | G49: None | H49: 1 | I49: Center | J49: 영웅(Epic) 등급 카드 획득 (선택지 발생)
A50: GetSkillCard_UR | B50: New | C50: None | D50: 0 | E50: 0 | F50: Loot_pick_up | G50: None | H50: 1 | I50: Center | J50: 전설(Legend) 등급 카드 획득 (선택지 발생)
A51: GetSkillCard_Random | B51: New | C51: None | D51: 0 | E51: 0 | F51: Loot_pick_up | G51: None | H51: 1 | I51: Center | J51: 일반~전설 등급 중 랜덤 카드 획득(등장 확률 = 등급 별 가중치)
A52: LvUp | B52: LvUp | C52: None | D52: 0 | E52: 0 | F52: Loot_pick_up | G52: None | H52: 1 | I52: Center | J52: 남은 경험치 무시하고 즉시 레벨업
A53: PC_DefaultAttack_Add | B53: Rusy_NormalAttack | C53: Rusy_NormalAttack | D53: 13024 | E53: 14024 | F53: None | G53: None | H53: 1 | I53: Center | J53: 영웅 기본 공격력에 최소 / 최대 공격력 고정(+) 수치 추가
A54: PC_MinAttack_Add | B54: New | C54: None | D54: 13024 | E54: 14024 | F54: None | G54: None | H54: 1 | I54: Center | J54: 영웅 기본 최소 공격력에 고정(+) 수치 증가
A55: PC_MaxAttack_Add | B55: New | C55: None | D55: 13024 | E55: 14024 | F55: None | G55: None | H55: 1 | I55: Center | J55: 영웅 기본 최대 공격력 고정(+) 수치 증가
A56: PC_DefaultAttack_Mul | B56: New | C56: None | D56: 13024 | E56: 14024 | F56: None | G56: None | H56: 1 | I56: Center | J56: 영웅 기본 공격력을 기준으로 최소 / 최대 공격력 비율(%) 증가
A57: PC_MinAttack_Mul | B57: New | C57: None | D57: 13024 | E57: 14024 | F57: None | G57: None | H57: 1 | I57: Center | J57: 영웅 기본 최소 공격력을 기준으로 비율(%) 증가
A58: PC_MaxAttack_Mul | B58: New | C58: None | D58: 13024 | E58: 14024 | F58: None | G58: None | H58: 1 | I58: Center | J58: 영웅 기본 최대 공격력을 기준으로 비율(%) 증가
A59: PC_Evasion_Melee | B59: Rusy_Evasion | C59: Rusy_Evasion | D59: 13025 | E59: 14025 | F59: None | G59: None | H59: 1 | I59: Center | J59: 영웅 근접 회피 확률에 고정(+) 확률을 추가
A60: PC_Evasion_Range | B60: New | C60: Rusy_Evasion | D60: 13025 | E60: 14025 | F60: None | G60: None | H60: 1 | I60: Center | J60: 영웅 원거리 회피 확률에 고정(+) 확률을 추가
A61: PC_Evasion_All | B61: New | C61: Rusy_Evasion | D61: 13025 | E61: 14025 | F61: None | G61: None | H61: 1 | I61: Center | J61: 영웅 근접 / 원거리 회피 확률에 고정(+) 확률을 각각 추가
A62: PC_Critical_Add | B62: New | C62: None | D62: 13026 | E62: 14026 | F62: None | G62: None | H62: 1 | I62: Center | J62: 영웅 기본 치명타 확률에 고정(+) 확률 값을 추가
A63: PC_CriticalRate_Add | B63: Rusy_CriticalRate | C63: Rusy_CriticalRate | D63: 13027 | E63: 14027 | F63: None | G63: None | H63: 1 | I63: Center | J63: 치명타 피해량 증가
A64: HitCriticalRate_Add | B64: Rusy_HitCritical | C64: Rusy_HitCritical | D64: 13026 | E64: 14026 | F64: None | G64: None | H64: 1 | I64: Center | J64: 공격 명중 시마다 영웅 기본 치명타 피해량에 고정(+) 확률 값을 추가(치명타 발생 시 초기화)
A65: PC_Accuracy_Add | B65: New | C65: None | D65: 13026 | E65: 14026 | F65: None | G65: None | H65: 1 | I65: Center | J65: 영웅 기본 명중력에 고정(+) 값을 추가
A66: PC_StealRate_Add | B66: New | C66: None | D66: 13026 | E66: 14026 | F66: None | G66: None | H66: 1 | I66: Center | J66: 영웅 기본 훔치기 확률에 고정(+) 확률을 추가
A67: PC_IncreaseMaxHp_Add | B67: New | C67: None | D67: 13024 | E67: 14024 | F67: None | G67: None | H67: 1 | I67: Center | J67: 영웅의 최대 생명력에 고정(+) 값만큼 최대 생명력 추가
A68: PC_IncreaseMaxHp_Mul | B68: New | C68: None | D68: 13024 | E68: 14024 | F68: None | G68: None | H68: 1 | I68: Center | J68: 영웅의 최대 생명력을 기준으로 비율(%) 만큼 최대 생명력 증가
A69: PC_IncreaseMaxShield_Add | B69: New | C69: None | D69: 13024 | E69: 14024 | F69: None | G69: None | H69: 1 | I69: Center | J69: 영웅의 최대 보호막에 고정(+) 값만 큼 최대 보호막을 추가
A70: PC_IncreaseMaxShield_Mul | B70: New | C70: None | D70: 13024 | E70: 14024 | F70: None | G70: None | H70: 1 | I70: Center | J70: 영웅의 최대 보호막을 기준으로 비율(%) 만큼 최대 보호막 증가
A71: Battle | B71: New | C71: None | D71: 13024 | E71: 14024 | F71: None | G71: None | H71: 1 | I71: Center | J71: 즉시 지정 된 몬스터 등장 후 전투 발생(선제 공격)
A72: Cri_Add | B72: New | C72: None | D72: 13015 | E72: 14015 | F72: None | G72: None | H72: 1 | I72: Center | J72: 치명타 확률 증가
A73: CriticalRate_Add | B73: New | C73: None | D73: 13015 | E73: 14015 | F73: None | G73: None | H73: 1 | I73: Center | J73: 치명타 피해량 증가
A74: MaxHp_Mul | B74: New | C74: None | D74: 13015 | E74: 14015 | F74: None | G74: None | H74: 1 | I74: Center | J74: 최대 HP 증가
A75: MaxShield_Mul | B75: New | C75: None | D75: 13015 | E75: 14015 | F75: None | G75: None | H75: 1 | I75: Center | J75: 최대 보호막 증가
A76: Curse | B76: New | C76: None | D76: 13015 | E76: 14015 | F76: Effect_Curse | G76: Effect_Curse | H76: 0.5 | I76: Center | J76: 저주 효과
A77: Curse_Explosion | B77: New | C77: None | D77: 13015 | E77: 14015 | F77: Effect_Curse_Exp | G77: None | H77: 0 | I77: Center | J77: 저주 효과 폭발 이펙트
A78: Evasion_All | B78: New | C78: None | D78: 13015 | E78: 14015 | F78: None | G78: None | H78: 1 | I78: Center | J78: 회피력 증가(몬스터에 주로 사용)

Sheet Projectile
A1: s_Projectile | B1: n_LoadAmount | C1: f_Scale | D1: s_Effect | E1: f_PositionX | F1: f_PositionY | G1: b_Filpx
A2: _투사체 프리팹 | B2: 미리 생성 개수 | C2: 크기 | D2: 적중 시 나올 이펙트 | E2: 보정 X좌표 | F2: 보정 Y좌표 | G2: x축 반전
A3: 2D Projectile 27 heart | B3: 5 | C3: 3 | D3: HCFX_Heart_Get | E3: 0 | F3: 0 | G3: FALSE
A4: Projectile 8 energy | B4: 5 | C4: 2 | D4: Vol2_Hit 8 | E4: 0 | F4: 0 | G4: FALSE
A5: Projectile 20 black | B5: 5 | C5: 2 | D5: Vol2_Hit 20 | E5: 0 | F5: 0 | G5: FALSE
A6: vfx_Projectile_Orb02_Pink | B6: 5 | C6: 1.5 | D6: vfx_Hit_Orb02_Pink | E6: 0 | F6: 0 | G6: FALSE
A7: vfx_Projectile_Orb06_Purple | B7: 5 | C7: 1.5 | D7: vfx_Hit_Orb06_Purple | E7: 0 | F7: 0 | G7: FALSE
A8: vfx_Projectile_Orb05_Purple | B8: 5 | C8: 1.5 | D8: vfx_Hit_Orb05_Purple | E8: 0 | F8: 0 | G8: FALSE
A9: vfx_Projectile_Orb04_Yellow | B9: 5 | C9: 1.5 | D9: vfx_Hit_Orb04_Yellow | E9: 0 | F9: 0 | G9: FALSE
A10: vfx_Projectile_Fireball03_Orange | B10: 5 | C10: 1 | D10: vfx_Hit_Fireball03_Orange | E10: 0 | F10: 0 | G10: FALSE | L10: 10001 | M10: 거미여왕1 | N10: UniqueToonProjectiles01_Demo | O10: vfx_ToonProjectile_Fireball01Green | R10: AAA Projectiles Vol 1 | S10: 2D Projectile 27 heart | T10: 2D Projectile 27 heart
A11: vfx_Projectile_Fireball03_Green | B11: 5 | C11: 1 | D11: vfx_Hit_Fireball03_Green | E11: 0 | F11: 0 | G11: FALSE | L11: 10002 | M11: 거미여왕2 | N11: UniqueToonProjectiles01_Demo | O11: vfx_ToonProjectile_Fireball01Purple | R11: AAA Projectiles Vol 1 | S11: FLASH_4 | T11: Projectile 4 yellow arrow
A12: vfx_Projectile_Orb09_OrangePurple | B12: 5 | C12: 1.5 | D12: vfx_Hit_Orb09_OrangePurple | E12: 0 | F12: 0 | G12: FALSE | L12: 10003 | M12: 놀강도2 | R12: AAA Projectiles Vol 1 | S12: 2D Projectile 21 red arrow | T12: 2D Projectile 21 red arrow
A13: vfx_Projectile_Orb09_BluePurple | B13: 5 | C13: 1.5 | D13: vfx_Hit_Orb09_BluePurple | E13: 0 | F13: 0 | G13: FALSE | L13: 10004 | M13: 놀아처1 | N13: AAA Projectiles Vol 2 | O13: Projectile 12 cuts | R13: AAA Projectiles Vol 1 | S13: FLASH 21 red arrow | T13: Projectile 21 red arrow
A14: vfx_Projectile_Orb13_DarkPurple | B14: 5 | C14: 1.5 | D14: vfx_Hit_Orb13_DarkPurple | E14: 0 | F14: 0 | G14: FALSE | L14: 10005 | M14: 늑대인간 | R14: AAA Projectiles Vol 1 | S14: Flash 3 black fire | T14: Projectile 3 black fire
A15: vfx_Projectile_Orb13_DarkRed | B15: 5 | C15: 1.5 | D15: vfx_Hit_Orb13_DarkRed | E15: 0 | F15: 0 | G15: FALSE | L15: 10006 | M15: 다크엘프 아처1 | N15: AAA Projectiles Vol 2 | O15: Projectile 7 wind | R15: AAA Projectiles Vol 1 | S15: Flash 6 blue fire | T15: Projectile 6 blue fire
A16: vfx_Projectile_Orb14_Red | B16: 5 | C16: 1.5 | D16: vfx_Hit_Orb14_Red | E16: 0 | F16: 0 | G16: FALSE | L16: 10007 | M16: 대사탄1 | R16: AAA Projectiles Vol 1 | S16: Flash 16 fire | T16: Projectile 16 fire
A17: vfx_Projectile_Orb15_DarkBlue | B17: 5 | C17: 1.25 | D17: vfx_Hit_Orb15_DarkBlue | E17: 0 | F17: 0 | G17: FALSE | L17: 10008 | M17: 대사탄2 | R17: AAA Projectiles Vol 2 | S17: FLASH_12 | T17: Projectile 12 cuts
A18: vfx_Projectile_Orb15_DarkRed | B18: 5 | C18: 1.25 | D18: vfx_Hit_Orb15_DarkRed | E18: 0 | F18: 0 | G18: FALSE | L18: 10009 | M18: 데스나이트1 | R18: AAA Projectiles Vol 2 | S18: FLASH_7 | T18: Projectile 7 wind
A19: vfx_Projectile_Orb15_DarkOrange | B19: 5 | C19: 1.25 | D19: vfx_Hit_Orb15_DarkOrange | E19: 0 | F19: 0 | G19: FALSE | L19: 10010 | M19: 데스나이트3 | R19: AAA Projectiles Vol 2 | S19: FLASH_19 | T19: Projectile 19 sun
A20: vfx_ToonProjectile_Fireball01Green | B20: 5 | C20: 1 | D20: vfx_ToonHit_Fireball01Green | E20: 0 | F20: 0 | G20: FALSE | L20: 10011 | M20: 레드드래곤1 | R20: AAA Projectiles Vol 2 | S20: FLASH_8 | T20: Projectile 8 energy
A21: vfx_ToonProjectile_Fireball01Purple | B21: 5 | C21: 1 | D21: vfx_ToonHit_Fireball01Purple | E21: 0 | F21: 0 | G21: FALSE | L21: 10012 | M21: 레드드래곤3 | R21: AAA Projectiles Vol 2 | S21: FLASH_20 | T21: Projectile 20 black
A22: vfx_ToonProjectile_Bomb02Red | B22: 5 | C22: 1 | D22: vfx_ToonHit_Bomb02Red | E22: 0 | F22: 0 | G22: FALSE | L22: 10013 | M22: 레드드래곤4 | N22: UniqueToonProjectiles01_Demo | O22: vfx_ToonProjectile_Bomb02Red | R22: AAA Projectiles Vol 2 | S22: Flash 4 | T22: Projectile 4 fire
A23: vfx_ToonProjectile_Plasma03Purple | B23: 5 | C23: 1 | D23: vfx_ToonHit_Plasma03Purple | E23: 0 | F23: 0 | G23: FALSE | L23: 10014 | M23: 메두사1 | R23: UniqueProjectiles02_Demo | S23: vfx_Projectile_Orb02_Pink | T23: vfx_Projectile_Orb02_Pink
A24: vfx_ToonProjectile_Bomb03Orange | B24: 5 | C24: 1.25 | D24: vfx_ToonHit_Bomb03Orange | E24: 0 | F24: 0 | G24: FALSE | L24: 10015 | M24: 메두사2 | N24: UniqueToonProjectiles01_Demo | O24: vfx_ToonProjectile_Plasma03Purple | R24: UniqueProjectiles02_Demo | S24: vfx_Projectile_Orb06_Purple | T24: vfx_Projectile_Orb06_Purple
A25: vfx_ToonProjectile_Bomb03Red | B25: 5 | C25: 1.5 | D25: vfx_ToonHit_Bomb03Red | E25: 0 | F25: 0 | G25: FALSE | L25: 10016 | M25: 바포메트2 | N25: AAA Projectiles Vol 2 | O25: Projectile 19 sun | R25: UniqueProjectiles02_Demo | S25: vfx_Projectile_Orb05_Purple | T25: vfx_Projectile_Orb05_Purple
A26: vfx_ToonProjectile_Bomb03Blue | B26: 5 | C26: 1.5 | D26: vfx_ToonHit_Bomb03Blue | E26: 0 | F26: 0 | G26: FALSE | L26: 10017 | M26: 바포메트6 | N26: AAA Projectiles Vol 2 | O26: Projectile 8 emergy | R26: UniqueProjectiles02_Demo | S26: vfx_Projectile_Orb04_Yellow | T26: vfx_Projectile_Orb04_Yellow
A27: vfx_ToonProjectile_Bullet01Green | B27: 5 | C27: 1.25 | D27: vfx_ToonHit_Bullet01Green | E27: 0 | F27: 0 | G27: FALSE | L27: 10018 | M27: 바포메트7 | N27: AAA Projectiles Vol 2 | O27: Projectile 20 black | R27: UniqueProjectiles02_Demo | S27: vfx_Projectile_Fireball03_Orange | T27: vfx_Projectile_Fireball03_Orange
A28: YellowSwordBeamHit | B28: 1 | C28: 1 | E28: 0 | F28: 0 | G28: FALSE | L28: 10019 | M28: 에티4 | R28: UniqueProjectiles02_Demo | S28: vfx_Projectile_Fireball03_Green | T28: vfx_Projectile_Fireball03_Green
A29: Attack_Stun | B29: 5 | C29: 1 | D29: Stun_loop | E29: 0 | F29: 0 | G29: FALSE | H29: HCFX_Hit_01 | L29: 10020 | M29: 오우거1 | R29: UniqueProjectiles03_Demo | S29: vfx_Projectile_Orb09_OrangePurple | T29: vfx_Projectile_Orb09_OrangePurple
A30: FX_Cartoon Thunder | B30: 2 | C30: 1.5 | E30: 0 | F30: 0 | G30: FALSE | L30: 10021 | M30: 용암골렘2 | R30: UniqueProjectiles03_Demo | S30: vfx_Projectile_Orb09_BluePurple | T30: vfx_Projectile_Orb09_BluePurple
A31: FX_BlueCharge | B31: 5 | C31: 1 | E31: 0 | F31: 0 | G31: FALSE | L31: 10022 | M31: 임프전사1 | R31: UniqueProjectiles03_Demo | S31: vfx_Projectile_Fireball07_Blue | T31: vfx_Projectile_Fireball07_Blue
A32: FX_Red Slash_Impact | B32: 5 | C32: 1 | E32: 0 | F32: 0 | G32: FALSE | L32: 10023 | M32: 타락한 천사 | R32: UniqueProjectiles03_Demo | S32: vfx_Projectile_Fireball07_Orange | T32: vfx_Projectile_Fireball07_Orange
A33: Holy hit | B33: 5 | C33: 1 | E33: 0 | F33: 0 | G33: FALSE | I33: 신성 피해 | L33: 10024 | M33: 트롤 워리어4 | R33: UniqueProjectiles03_Demo | S33: vfx_Projectile_Fireball07_Purple | T33: vfx_Projectile_Fireball07_Purple
A34: EnergyBlast | B34: 5 | C34: 1 | E34: 0 | F34: 0 | G34: FALSE | I34: 버프 이펙트 | L34: 10025 | M34: 흑기사1 | R34: UniqueProjectiles03_Demo | S34: vfx_Projectile_Orb13_DarkPurple | T34: vfx_Projectile_Orb13_DarkPurple
A35: FX_Fireball_Fall | B35: 5 | C35: 2 | E35: 0 | F35: 0 | G35: FALSE | L35: 10026 | M35: 흑기사2 | R35: UniqueProjectiles03_Demo | S35: vfx_Projectile_Orb13_DarkRed | T35: vfx_Projectile_Orb13_DarkRed
A36: BlueCannonBullet | B36: 5 | C36: 2 | D36: BlueCannonHit | E36: 0 | F36: 0 | G36: FALSE | L36: 10027 | M36: 흑기사3 | R36: UniqueProjectiles03_Demo | S36: vfx_Projectile_Orb14_Yellow | T36: vfx_Projectile_Orb14_Yellow
A37: Magic Door_Purple | B37: 5 | C37: 0.6 | D37: FX_Purple_Hit | E37: 0 | F37: 0 | G37: FALSE | L37: 10028 | M37: 흡혈귀여왕2 | N37: AAA Projectiles Vol 1 | O37: 2D Projectile 27 heart | R37: UniqueProjectiles03_Demo | S37: vfx_Projectile_Orb14_Red | T37: vfx_Projectile_Orb14_Red
A38: MeleeAttack | B38: 5 | C38: 1.25 | E38: 0 | F38: 0 | G38: FALSE | H38: HCFX_Hit_08 | L38: 11001 | M38: 놀1 | R38: UniqueProjectiles03_Demo | S38: vfx_Projectile_Orb15_DarkBlue | T38: vfx_Projectile_Orb15_DarkBlue
A39: G1_IllusionSpearAttack | B39: 2 | C39: 2 | E39: 0 | F39: 0 | G39: FALSE | L39: 11002 | M39: 놀2 | R39: UniqueProjectiles03_Demo | S39: vfx_Projectile_Orb15_DarkRed | T39: vfx_Projectile_Orb15_DarkRed
A40: magicmissile | B40: 6 | C40: 3 | D40: YellowMachineGunHit | E40: 0 | F40: 0 | G40: FALSE | L40: 11003 | M40: 놀3 | R40: UniqueProjectiles03_Demo | S40: vfx_Projectile_Orb15_DarkOrange | T40: vfx_Projectile_Orb15_DarkOrange
A41: darkmissile | B41: 10 | C41: 3 | D41: YellowMachineGunHit | E41: 0 | F41: 0 | G41: FALSE | I41: 중독 이펙트? | L41: 11004 | M41: 놀강도1 | R41: UniqueProjectiles03_Demo | S41: vfx_Projectile_Orb07_Purple | T41: vfx_Projectile_Orb07_Purple
A42: G4_NHitCastsLightningAttack | B42: 2 | C42: 0.5 | D42: FX_Thunder Smoke | E42: 0 | F42: 0 | G42: FALSE | L42: 11005 | M42: 놀강도3 | R42: UniqueToonProjectiles01_Demo | S42: vfx_ToonProjectile_Fireball01Green | T42: vfx_ToonProjectile_Fireball01Green
A43: FX_Shoot_06_projectile | B43: 5 | C43: 1.25 | D43: FX_Shoot_06_muzzle | E43: 0 | F43: 0 | G43: FALSE | L43: 11006 | M43: 놀강도4 | R43: UniqueToonProjectiles01_Demo | S43: vfx_ToonProjectile_Fireball01Purple | T43: vfx_ToonProjectile_Fireball01Purple
A44: FX_Icelight_Seal | B44: 5 | C44: 1 | E44: 0 | F44: 0 | G44: FALSE | L44: 11007 | M44: 놀아처2 | N44: AAA Projectiles Vol 2 | O44: Projectile 12 cuts | R44: UniqueToonProjectiles01_Demo | S44: vfx_ToonProjectile_Bomb02Red | T44: vfx_ToonProjectile_Bomb02Red
A45: vfx_Heal | B45: 5 | C45: 1 | D45: Effect_Heal | E45: 0 | F45: 0 | G45: FALSE | H45: FX_SpeedUP | L45: 11008 | M45: 놀아처3 | N45: AAA Projectiles Vol 1 | O45: Projectile 4 yellow arrow | R45: UniqueToonProjectiles01_Demo | S45: vfx_ToonProjectile_Plasma03Purple | T45: vfx_ToonProjectile_Plasma03Purple
A46: FX_Rotating shield | B46: 5 | C46: 1 | E46: 0 | F46: 0 | G46: FALSE | L46: 11009 | M46: 미노타우르스 광전사1 | R46: UniqueToonProjectiles01_Demo | S46: vfx_ToonProjectile_Bomb03Orange | T46: vfx_ToonProjectile_Bomb03Orange
A47: FX_Shoot_02_projectile | B47: 5 | C47: 1 | D47: vfx_ToonHit_Bomb03Blue | E47: 0 | F47: 0 | G47: FALSE | L47: 11010 | M47: 미노타우르스 광전사2 | R47: UniqueToonProjectiles01_Demo | S47: vfx_ToonProjectile_Bomb03Red | T47: vfx_ToonProjectile_Bomb03Red
A48: FX_Shoot_08_projectile | B48: 5 | C48: 1 | D48: FX_Shoot_08_muzzle | E48: 0 | F48: 0 | G48: FALSE | L48: 11011 | M48: 미노타우르스 광전사3 | R48: UniqueToonProjectiles01_Demo | S48: vfx_ToonProjectile_Bomb03Blue | T48: vfx_ToonProjectile_Bomb03Blue
A49: Projectiles_dark_magic | B49: 5 | C49: 1 | D49: Hit_dark_magic | E49: 0 | F49: 0 | G49: FALSE | L49: 11012 | M49: 미노타우르스 광전사4 | R49: UniqueToonProjectiles01_Demo | S49: vfx_ToonProjectile_Bullet01Green | T49: vfx_ToonProjectile_Bullet01Green
A50: Projectiles_electric | B50: 5 | C50: 1 | D50: Hit_electric | E50: 0 | F50: 0 | G50: FALSE | L50: 11013 | M50: 미노타우로스 도살자1
A51: Projectiles_fire | B51: 5 | C51: 1 | D51: Hit_fire | E51: 0 | F51: 0 | G51: FALSE | L51: 11014 | M51: 미노타우로스 도살자2
A52: Projectiles_frost | B52: 5 | C52: 1 | D52: Hit_frost | E52: 0 | F52: 0 | G52: FALSE | L52: 11015 | M52: 미노타우르스 챔피언1
A53: Projectiles_green_shuriken | B53: 5 | C53: 1 | D53: Hit_green_shuriken | E53: 0 | F53: 0 | G53: FALSE | L53: 11016 | M53: 미노타우르스 챔피언2
A54: Projectiles_heart | B54: 5 | C54: 1 | D54: Hit_heart | E54: 0 | F54: 0 | G54: FALSE | L54: 11017 | M54: 미노타우르스 챔피언3
A55: Projectiles_light | B55: 5 | C55: 1 | D55: Heavy 2 - Yellow | E55: 0 | F55: 0 | G55: FALSE | H55: Hit_light | L55: 11018 | M55: 미노타우르스 챔피언4
A56: Projectiles_magic | B56: 5 | C56: 1 | D56: Hit_magic | E56: 0 | F56: 0 | G56: FALSE | L56: 11019 | M56: 미노타우르스 챔피언5
A57: Projectiles_water | B57: 5 | C57: 1 | D57: Hit_water | E57: 0 | F57: 0 | G57: FALSE | L57: 11020 | M57: 버그베어1
A58: Projectiles_wind | B58: 5 | C58: 1 | D58: Hit_wind | E58: 0 | F58: 0 | G58: FALSE | L58: 11021 | M58: 버그베어2
A59: 2D Projectile 4 yellow arrow | B59: 5 | C59: 1 | D59: Heavy 2 - Yellow | E59: 0 | F59: 0 | G59: FALSE | L59: 11022 | M59: 버그베어3
A60: MeleeAttack_Axe | B60: 5 | C60: 0.7 | D60: FX_Blood_Hit_03 | E60: -1.8 | F60: -0.5 | G60: TRUE | H60: Orange_Slash_2 | I60: YellowMachineGunHit | L60: 11023 | M60: 버그베어4
A61: MeleeAttack_Sword | B61: 5 | C61: 0.8 | D61: SlashHitBlue | E61: -3 | F61: 0 | G61: TRUE | H61: Blue_Slash_3 | I61: FX_Shoot_06_muzzle | L61: 11024 | M61: 싸이클롭스1 | N61: UniqueToonProjectiles01_Demo | O61: vfx_ToonProjectile_Bomb03Orang
A62: MeleeAttack_Dagger | B62: 5 | C62: 0.7 | D62: SlashHitComplex | E62: -2.5 | F62: 0.5 | G62: TRUE | H62: Orange_Slash_1 | L62: 11025 | M62: 싸이클롭스2 | N62: UniqueToonProjectiles01_Demo | O62: vfx_ToonProjectile_Bomb03Red
A63: MeleeAttack_Blunt | B63: 5 | C63: 1.2 | D63: FX_Yellow_Hit | E63: -3 | F63: -0.5 | G63: TRUE | H63: Blue_Slash_4 | L63: 11026 | M63: 싸이클롭스3 | N63: UniqueToonProjectiles01_Demo | O63: vfx_ToonProjectile_Bomb03Blue
A64: MeleeAttack_Claw | B64: 5 | C64: 0.7 | D64: FX_Red_2Hit | E64: 1.5 | F64: 0 | G64: FALSE | I64: FX_BloodSlash_Five | L64: 11027 | M64: 예티1
A65: MeleeAttack_Scythe | B65: 5 | C65: 1.2 | D65: ArrowHit | E65: -4.2 | F65: 0 | G65: TRUE | H65: FX_Double RedSlash | L65: 11028 | M65: 예티2
A66: MeleeAttack_DoubleSword | B66: 5 | C66: 0.8 | D66: FX_Water Splash_4Hit | E66: -1.5 | F66: 0 | G66: FALSE | H66: HCFX_Hit_09 | L66: 11029 | M66: 트롤1
A67: MeleeAttack_Blow | B67: 1 | C67: 0.8 | D67: FX_Yellow_Hit | E67: -2 | F67: -1 | G67: TRUE | H67: FX_Slash_Ground2 | L67: 11030 | M67: 트롤2
A68: FX_Double Claw | B68: 5 | C68: 1.2 | D68: FX_YellowSlash_Hit | E68: -1 | F68: 0 | G68: TRUE | L68: 11031 | M68: 트롤3
A69: FX_Shield_Ring | B69: 5 | C69: 1 | E69: 0 | F69: 0 | G69: FALSE | L69: 12001 | M69: 강도1
A70: Bite - Blue | B70: 5 | C70: 2.2 | D70: HCFX_Hit_03 | E70: 0 | F70: 0 | G70: FALSE | L70: 12002 | M70: 강도2
A71: Bite - Red | B71: 5 | C71: 2.2 | D71: LevelUp2 | E71: 0 | F71: 0 | G71: FALSE | L71: 12003 | M71: 강도3
A72: Bite - White | B72: 5 | C72: 2.2 | D72: FX_Purple_Hit | E72: 0 | F72: 0 | G72: FALSE | L72: 12004 | M72: 고블린1
A73: Bite - Yellow | B73: 5 | C73: 2.2 | D73: FX_BloodSlash_Five | E73: 0 | F73: 0 | G73: FALSE | L73: 12005 | M73: 고블린 라이더1
A74: FX_Kick | B74: 5 | C74: 1 | D74: Light 2 - Yellow | E74: -3.8 | F74: 0 | G74: TRUE | L74: 12006 | M74: 고블린 라이더2
A75: DeathAttack | B75: 1 | C75: 1 | D75: DeathAttack_Hit | E75: 0 | F75: 0 | G75: FALSE | L75: 12007 | M75: 고블린 아처1 | N75: UniqueToonProjectiles01_Demo | O75: vfx_ToonProjectile_Bullet01Green
L76: 12008 | M76: 광전사1
L77: 12009 | M77: 광전사2
L78: 12010 | M78: 광전사3
L79: 12011 | M79: 광전사4
L80: 12012 | M80: 광전사5
L81: 12013 | M81: 광전사6
L82: 12014 | M82: 다크엘프 기사2
L83: 12015 | M83: 다크엘프 기사3
L84: 12016 | M84: 다크엘프 기사4
L85: 12017 | M85: 다크엘프 마법사1 | N85: UniqueProjectiles02_Demo | O85: vfx_Projectile_Orb02_Pink
L86: 12018 | M86: 다크엘프 마법사3 | N86: UniqueProjectiles02_Demo | O86: vfx_Projectile_Orb06_Purple
L87: 12019 | M87: 다크엘프 마법사4 | N87: UniqueProjectiles02_Demo | O87: vfx_Projectile_Orb05_Purple
L88: 12020 | M88: 도살자1
L89: 12021 | M89: 도살자2
L90: 12022 | M90: 살인 청부업자1
L91: 12023 | M91: 살인 청부업자2
L92: 12024 | M92: 살인 청부업자3
L93: 12025 | M93: 연쇄살인마1
L94: 12026 | M94: 연쇄살인마2
L95: 12027 | M95: 연쇄살인마3
L96: 12028 | M96: 오크 궁수1 | N96: AAA Projectiles Vol 2 | O96: Projectile 12 cuts
L97: 12029 | M97: 오크 궁수2 | N97: AAA Projectiles Vol 1 | O97: 2D Projectile 21 red arrow
L98: 12030 | M98: 오크 마법사1 | N98: UniqueProjectiles03_Demo | O98: vfx_Projectile_Orb09_OrangePurple
L99: 12031 | M99: 오크 마법사2 | N99: UniqueProjectiles03_Demo | O99: vfx_Projectile_Orb09_BluePurple
L100: 12032 | M100: 오크1
L101: 12033 | M101: 오크2
L102: 12034 | M102: 오크 워리어1
L103: 12035 | M103: 활든 강도1 | N103: AAA Projectiles Vol 1 | O103: Projectile 21 red arrow
L104: 12036 | M104: 활든 강도2 | N104: AAA Projectiles Vol 2 | O104: Projectile 12 cuts
L105: 12037 | M105: 활든 강도3 | N105: AAA Projectiles Vol 1 | O105: Projectile 4 yellow arrow
L106: 13001 | M106: 네크로멘서1 | N106: UniqueProjectiles03_Demo | O106: vfx_Projectile_Fireball07_Blue
L107: 13002 | M107: 네크로멘서2 | N107: UniqueProjectiles03_Demo | O107: vfx_Projectile_Fireball07_Orange
L108: 13003 | M108: 네크로멘서3 | N108: UniqueProjectiles03_Demo | O108: vfx_Projectile_Fireball07_Purple
L109: 13004 | M109: 데스1
L110: 13005 | M110: 데스2
L111: 13006 | M111: 데스나이트2
L112: 13007 | M112: 머미1
L113: 13008 | M113: 머미2
L114: 13009 | M114: 머미3
L115: 13010 | M115: 바포메트1 | N115: UniqueProjectiles03_Demo | O115: vfx_Projectile_Orb13_DarkPurple
L116: 13011 | M116: 바포메트3 | N116: UniqueProjectiles03_Demo | O116: vfx_Projectile_Orb13_DarkRed
L117: 13012 | M117: 바포메트4 | N117: UniqueProjectiles03_Demo | O117: vfx_Projectile_Orb14_Yellow
